Workbook

Sheet Overall
C2: Multiword | F2: Slicing | I2: Multiword | J2: Slicing
C3: AND64/C++ | D3: AMD64/ASM | F3: AMD64/C++ | I3: X86/ASM
B4: CRC-32 | C4: =AVERAGE('CL-64-NOASM'!H76:H86) -> 1.17 | D4: =AVERAGE('GCC-64-ASM'!H76:H86) -> 1.16 | E4: =100*(C4-D4)/D4 -> 0.91 | F4: =AVERAGE('CL-64-NOASM'!F76:F86) -> 2.08 | G4: =F4/C4 -> 1.77 | I4: =AVERAGE('CL-32-ASM'!H76:H86) -> 1.29 | J4: =AVERAGE('CL-32-ASM'!F138:F148) -> 2.52 | K4: =J4/I4 -> 1.96
B5: CRC-64 | C5: =AVERAGE('CL-64-NOASM'!H14:H24) -> 1.17 | D5: =AVERAGE('GCC-64-ASM'!H14:H24) -> 1.16 | E5: =100*(C5-D5)/D5 -> 0.86 | F5: =AVERAGE('CL-64-NOASM'!F14:F24) -> 2.09 | G5: =F5/C5 -> 1.78 | I5: =AVERAGE('CL-32-ASM'!H14:H24) -> 1.29 | J5: =AVERAGE('CL-32-NOASM'!F759:F769) -> 3.28 | K5: =J5/I5 -> 2.55
B6: CRC-128 | C6: =AVERAGE('GCC-64-NOASM'!C913:C923) -> 1.68 | D6: =AVERAGE('GCC-64-ASM'!H200:H210) -> 1.76 | E6: =100*(C6-D6)/D6 -> -4.28 | F6: =AVERAGE('GCC-64-NOASM'!F200:F210) -> 2.91 | G6: =F6/C6 -> 1.73 | I6: =AVERAGE('GCC-32-NOASM'!E572:E582) -> 2.10 | J6: =AVERAGE('GCC-32-NOASM'!F262:F272) -> 4.17 | K6: =J6/I6 -> 1.98
C9: amd64/Slicing | D9: amd64/Multiword | F9: x86/Slicing | G9: x86/Multiword
B10: CRC-32 | C10: =F4 -> 2.08 | D10: =D4 -> 1.16 | E10: =C10/D10 -> 1.79 | F10: =J4 -> 2.52 | G10: =I4 -> 1.29 | H10: =F10/G10 -> 1.96
B11: CRC-64 | C11: =F5 -> 2.09 | D11: =D5 -> 1.16 | E11: =C11/D11 -> 1.79 | F11: =J5 -> 3.28 | G11: =I5 -> 1.29 | H11: =F11/G11 -> 2.55
B12: CRC-128 | C12: =F6 -> 2.91 | D12: =C6 -> 1.68 | E12: =C12/D12 -> 1.73 | F12: =J6 -> 4.17 | G12: =I6 -> 2.10 | H12: =F12/G12 -> 1.98
B15: Choosing interleave level
D17: 2 | E17: 3 | F17: 4 | G17: 5 | H17: 6 | I17: 7 | J17: 8
B18: CRC-64 | C18: AMD64 | D18: =AVERAGE('CL-64-NOASM'!C386:C396) -> 1.42 | E18: =AVERAGE('CL-64-NOASM'!C417:C427) -> 1.23 | F18: =AVERAGE('CL-64-NOASM'!C448:C458) -> 1.17 | G18: =AVERAGE('CL-64-NOASM'!C479:C489) -> 1.46 | H18: =AVERAGE('CL-64-NOASM'!C510:C520) -> 2.08 | I18: =AVERAGE('CL-64-NOASM'!C541:C551) -> 2.59 | J18: =AVERAGE('CL-64-NOASM'!C572:C582) -> 2.73
B19: CRC-128 | C19: AMD64 | D19: =AVERAGE('GCC-64-NOASM'!C789:C799) -> 2.07 | E19: =AVERAGE('GCC-64-NOASM'!C820:C830) -> 1.84 | F19: =AVERAGE('GCC-64-NOASM'!C851:C861) -> 1.76 | G19: =AVERAGE('GCC-64-NOASM'!C882:C892) -> 1.70 | H19: =AVERAGE('GCC-64-NOASM'!C913:C923) -> 1.68 | I19: =AVERAGE('GCC-64-NOASM'!C944:C954) -> 1.75 | J19: =AVERAGE('GCC-64-NOASM'!C975:C985) -> 1.79
B20: CRC-128 | C20: X86 | D20: =AVERAGE('GCC-32-NOASM'!C542:C551) -> 2.56 | E20: =AVERAGE('GCC-32-NOASM'!C572:C582) -> 2.10 | F20: =AVERAGE('GCC-32-NOASM'!C603:C613) -> 2.46 | G20: =AVERAGE('GCC-32-NOASM'!E634:E644) -> 2.61 | H20: =AVERAGE('GCC-32-NOASM'!C665:C675) -> 2.52 | I20: =AVERAGE('GCC-32-NOASM'!C696:C706) -> 2.62 | J20: =AVERAGE('GCC-32-NOASM'!E727:E737) -> 2.57

Sheet CRC32
B1: CRC-32 | C1: CL | J1: stride=3
B2: MemSpeed | C2: Byte | D2: ByteUnrolled | E2: ByteWord | F2: Word | G2: Blockword | H2: Multiword | J2: Blockword
A3: 4 | B3: ='CL-64-NOASM'!B68 -> 6.25 | C3: ='CL-64-NOASM'!C68 -> 6.045 | D3: ='CL-64-NOASM'!D68 -> 6.309 | E3: ='CL-64-NOASM'!E68 -> 7.369 | F3: ='CL-64-NOASM'!F68 -> 7.369 | G3: ='CL-64-NOASM'!G68 -> 7.502 | H3: ='CL-64-NOASM'!H68 -> 7.274 | J3: ='CL-64-NOASM'!B99 -> 7.769
A4: 8 | B4: ='CL-64-NOASM'!B69 -> 2 | C4: ='CL-64-NOASM'!C69 -> 6.043 | D4: ='CL-64-NOASM'!D69 -> 5.888 | E4: ='CL-64-NOASM'!E69 -> 5.027 | F4: ='CL-64-NOASM'!F69 -> 3.003 | G4: ='CL-64-NOASM'!G69 -> 3.376 | H4: ='CL-64-NOASM'!H69 -> 2.969 | J4: ='CL-64-NOASM'!B100 -> 3.379
A5: 16 | B5: ='CL-64-NOASM'!B70 -> 1.125 | C5: ='CL-64-NOASM'!C70 -> 6.452 | D5: ='CL-64-NOASM'!D70 -> 6.225 | E5: ='CL-64-NOASM'!E70 -> 5.128 | F5: ='CL-64-NOASM'!F70 -> 2.514 | G5: ='CL-64-NOASM'!G70 -> 2.613 | H5: ='CL-64-NOASM'!H70 -> 2.506 | J5: ='CL-64-NOASM'!B101 -> 2.672 | N5: =C33 -> 64 | O5: =C35 -> 256 | P5: =C37 -> 1K | Q5: =C39 -> 4K | R5: =C41 -> 16K | S5: =C43 -> 64K | T5: =C45 -> 256K | U5: =C47 -> 1M
A6: 32 | B6: ='CL-64-NOASM'!B71 -> 0.625 | C6: ='CL-64-NOASM'!C71 -> 6.765 | D6: ='CL-64-NOASM'!D71 -> 6.466 | E6: ='CL-64-NOASM'!E71 -> 5.378 | F6: ='CL-64-NOASM'!F71 -> 2.254 | G6: ='CL-64-NOASM'!G71 -> 2.365 | H6: ='CL-64-NOASM'!H71 -> 2.288 | J6: ='CL-64-NOASM'!B102 -> 2.344 | M6: =D30 -> Sarwate | N6: =D33 -> 6.61 | O6: =D35 -> 6.62 | P6: =D37 -> 6.70 | Q6: =D39 -> 6.68 | R6: =D41 -> 6.67 | S6: =D43 -> 6.66 | T6: =D45 -> 6.67 | U6: =D47 -> 6.75
A7: 64 | B7: ='CL-64-NOASM'!B72 -> 0.392 | C7: ='CL-64-NOASM'!C72 -> 6.869 | D7: ='CL-64-NOASM'!D72 -> 6.606 | E7: ='CL-64-NOASM'!E72 -> 5.438 | F7: ='CL-64-NOASM'!F72 -> 2.151 | G7: ='CL-64-NOASM'!G72 -> 2.228 | H7: ='CL-64-NOASM'!H72 -> 1.749 | J7: ='CL-64-NOASM'!B103 -> 2.265 | M7: =E30 -> Black | N7: =E33 -> 5.44 | O7: =E35 -> 5.46 | P7: =E37 -> 5.47 | Q7: =E39 -> 5.48 | R7: =E41 -> 5.47 | S7: =E43 -> 5.46 | T7: =E45 -> 5.47 | U7: =E47 -> 5.53
A8: 128 | B8: ='CL-64-NOASM'!B73 -> 0.308 | C8: ='CL-64-NOASM'!C73 -> 7.207 | D8: ='CL-64-NOASM'!D73 -> 6.606 | E8: ='CL-64-NOASM'!E73 -> 5.415 | F8: ='CL-64-NOASM'!F73 -> 2.083 | G8: ='CL-64-NOASM'!G73 -> 2.188 | H8: ='CL-64-NOASM'!H73 -> 1.433 | J8: ='CL-64-NOASM'!B104 -> 2.184 | M8: =F30 -> Slicing | N8: =F33 -> 2.15 | O8: =F35 -> 2.10 | P8: =F37 -> 2.09 | Q8: =F39 -> 2.09 | R8: =F41 -> 2.08 | S8: =F43 -> 2.08 | T8: =F45 -> 2.08 | U8: =F47 -> 2.10
A9: 256 | B9: ='CL-64-NOASM'!B74 -> 0.282 | C9: ='CL-64-NOASM'!C74 -> 7.119 | D9: ='CL-64-NOASM'!D74 -> 6.624 | E9: ='CL-64-NOASM'!E74 -> 5.456 | F9: ='CL-64-NOASM'!F74 -> 2.099 | G9: ='CL-64-NOASM'!G74 -> 2.153 | H9: ='CL-64-NOASM'!H74 -> 1.291 | J9: ='CL-64-NOASM'!B105 -> 2.137 | M9: =G30 -> Blockword/3 | N9: =G33 -> 2.27 | O9: =G35 -> 2.14 | P9: =G37 -> 2.15 | Q9: =G39 -> 2.13 | R9: =G41 -> 2.13 | S9: =G43 -> 1.55 | T9: =G45 -> 1.39 | U9: =G47 -> 1.31
A10: 512 | B10: ='CL-64-NOASM'!B75 -> 0.266 | C10: ='CL-64-NOASM'!C75 -> 7.099 | D10: ='CL-64-NOASM'!D75 -> 6.733 | E10: ='CL-64-NOASM'!E75 -> 5.454 | F10: ='CL-64-NOASM'!F75 -> 2.084 | G10: ='CL-64-NOASM'!G75 -> 2.14 | H10: ='CL-64-NOASM'!H75 -> 1.216 | J10: ='CL-64-NOASM'!B106 -> 2.148 | M10: =H30 -> Multiword/4 | N10: =H33 -> 1.75 | O10: =H35 -> 1.29 | P10: =H37 -> 1.18 | Q10: =H39 -> 1.16 | R10: =H41 -> 1.17 | S10: =H43 -> 1.18 | T10: =H45 -> 1.18 | U10: =H47 -> 1.18
A11: 1024 | B11: ='CL-64-NOASM'!B76 -> 0.257 | C11: ='CL-64-NOASM'!C76 -> 7.047 | D11: ='CL-64-NOASM'!D76 -> 6.703 | E11: ='CL-64-NOASM'!E76 -> 5.47 | F11: ='CL-64-NOASM'!F76 -> 2.086 | G11: ='CL-64-NOASM'!G76 -> 2.151 | H11: ='CL-64-NOASM'!H76 -> 1.18 | J11: ='CL-64-NOASM'!B107 -> 2.153
A12: 2048 | B12: ='CL-64-NOASM'!B77 -> 0.254 | C12: ='CL-64-NOASM'!C77 -> 7.026 | D12: ='CL-64-NOASM'!D77 -> 6.69 | E12: ='CL-64-NOASM'!E77 -> 5.466 | F12: ='CL-64-NOASM'!F77 -> 2.077 | G12: ='CL-64-NOASM'!G77 -> 2.14 | H12: ='CL-64-NOASM'!H77 -> 1.162 | J12: ='CL-64-NOASM'!B108 -> 2.134
A13: 4096 | B13: ='CL-64-NOASM'!B78 -> 0.257 | C13: ='CL-64-NOASM'!C78 -> 7.011 | D13: ='CL-64-NOASM'!D78 -> 6.679 | E13: ='CL-64-NOASM'!E78 -> 5.475 | F13: ='CL-64-NOASM'!F78 -> 2.091 | G13: ='CL-64-NOASM'!G78 -> 2.13 | H13: ='CL-64-NOASM'!H78 -> 1.156 | J13: ='CL-64-NOASM'!B109 -> 2.129
A14: 8192 | B14: ='CL-64-NOASM'!B79 -> 0.253 | C14: ='CL-64-NOASM'!C79 -> 7.005 | D14: ='CL-64-NOASM'!D79 -> 6.672 | E14: ='CL-64-NOASM'!E79 -> 5.468 | F14: ='CL-64-NOASM'!F79 -> 2.078 | G14: ='CL-64-NOASM'!G79 -> 2.129 | H14: ='CL-64-NOASM'!H79 -> 1.155 | J14: ='CL-64-NOASM'!B110 -> 2.129
A15: 16384 | B15: ='CL-64-NOASM'!B80 -> 0.252 | C15: ='CL-64-NOASM'!C80 -> 6.992 | D15: ='CL-64-NOASM'!D80 -> 6.666 | E15: ='CL-64-NOASM'!E80 -> 5.465 | F15: ='CL-64-NOASM'!F80 -> 2.077 | G15: ='CL-64-NOASM'!G80 -> 2.129 | H15: ='CL-64-NOASM'!H80 -> 1.169 | J15: ='CL-64-NOASM'!B111 -> 2.129
A16: 32768 | B16: ='CL-64-NOASM'!B81 -> 0.259 | C16: ='CL-64-NOASM'!C81 -> 6.983 | D16: ='CL-64-NOASM'!D81 -> 6.658 | E16: ='CL-64-NOASM'!E81 -> 5.466 | F16: ='CL-64-NOASM'!F81 -> 2.08 | G16: ='CL-64-NOASM'!G81 -> 2.129 | H16: ='CL-64-NOASM'!H81 -> 1.18 | J16: ='CL-64-NOASM'!B112 -> 2.129
A17: 65536 | B17: ='CL-64-NOASM'!B82 -> 0.302 | C17: ='CL-64-NOASM'!C82 -> 6.95 | D17: ='CL-64-NOASM'!D82 -> 6.655 | E17: ='CL-64-NOASM'!E82 -> 5.463 | F17: ='CL-64-NOASM'!F82 -> 2.081 | G17: ='CL-64-NOASM'!G82 -> 1.568 | H17: ='CL-64-NOASM'!H82 -> 1.182 | J17: ='CL-64-NOASM'!B113 -> 1.551
A18: 131072 | B18: ='CL-64-NOASM'!B83 -> 0.302 | C18: ='CL-64-NOASM'!C83 -> 6.94 | D18: ='CL-64-NOASM'!D83 -> 6.657 | E18: ='CL-64-NOASM'!E83 -> 5.465 | F18: ='CL-64-NOASM'!F83 -> 2.081 | G18: ='CL-64-NOASM'!G83 -> 1.56 | H18: ='CL-64-NOASM'!H83 -> 1.182 | J18: ='CL-64-NOASM'!B114 -> 1.542
A19: 262144 | B19: ='CL-64-NOASM'!B84 -> 0.301 | C19: ='CL-64-NOASM'!C84 -> 6.995 | D19: ='CL-64-NOASM'!D84 -> 6.666 | E19: ='CL-64-NOASM'!E84 -> 5.465 | F19: ='CL-64-NOASM'!F84 -> 2.083 | G19: ='CL-64-NOASM'!G84 -> 1.557 | H19: ='CL-64-NOASM'!H84 -> 1.182 | J19: ='CL-64-NOASM'!B115 -> 1.39
A20: 524288 | B20: ='CL-64-NOASM'!B85 -> 0.301 | C20: ='CL-64-NOASM'!C85 -> 7.01 | D20: ='CL-64-NOASM'!D85 -> 6.718 | E20: ='CL-64-NOASM'!E85 -> 5.51 | F20: ='CL-64-NOASM'!F85 -> 2.083 | G20: ='CL-64-NOASM'!G85 -> 1.556 | H20: ='CL-64-NOASM'!H85 -> 1.182 | J20: ='CL-64-NOASM'!B116 -> 1.313
A21: 1048576 | B21: ='CL-64-NOASM'!B86 -> 0.302 | C21: ='CL-64-NOASM'!C86 -> 7.023 | D21: ='CL-64-NOASM'!D86 -> 6.746 | E21: ='CL-64-NOASM'!E86 -> 5.532 | F21: ='CL-64-NOASM'!F86 -> 2.1 | G21: ='CL-64-NOASM'!G86 -> 1.521 | H21: ='CL-64-NOASM'!H86 -> 1.182 | J21: ='CL-64-NOASM'!B117 -> 1.313
A22: 2097152 | B22: ='CL-64-NOASM'!B87 -> 0.304 | C22: ='CL-64-NOASM'!C87 -> 7.058 | D22: ='CL-64-NOASM'!D87 -> 6.757 | E22: ='CL-64-NOASM'!E87 -> 5.547 | F22: ='CL-64-NOASM'!F87 -> 2.107 | G22: ='CL-64-NOASM'!G87 -> 1.535 | H22: ='CL-64-NOASM'!H87 -> 1.196 | J22: ='CL-64-NOASM'!B118 -> 1.307
A23: 4194304 | B23: ='CL-64-NOASM'!B88 -> 0.304 | C23: ='CL-64-NOASM'!C88 -> 7.078 | D23: ='CL-64-NOASM'!D88 -> 6.767 | E23: ='CL-64-NOASM'!E88 -> 5.556 | F23: ='CL-64-NOASM'!F88 -> 2.108 | G23: ='CL-64-NOASM'!G88 -> 1.537 | H23: ='CL-64-NOASM'!H88 -> 1.197 | J23: ='CL-64-NOASM'!B119 -> 1.311
A24: 8388608 | B24: ='CL-64-NOASM'!B89 -> 0.539 | C24: ='CL-64-NOASM'!C89 -> 7.274 | D24: ='CL-64-NOASM'!D89 -> 6.95 | E24: ='CL-64-NOASM'!E89 -> 5.747 | F24: ='CL-64-NOASM'!F89 -> 2.241 | G24: ='CL-64-NOASM'!G89 -> 1.646 | H24: ='CL-64-NOASM'!H89 -> 1.301 | J24: ='CL-64-NOASM'!B120 -> 1.413
A25: 16777216 | B25: ='CL-64-NOASM'!B90 -> 0.56 | C25: ='CL-64-NOASM'!C90 -> 7.302 | D25: ='CL-64-NOASM'!D90 -> 6.961 | E25: ='CL-64-NOASM'!E90 -> 5.764 | F25: ='CL-64-NOASM'!F90 -> 2.243 | G25: ='CL-64-NOASM'!G90 -> 1.659 | H25: ='CL-64-NOASM'!H90 -> 1.297 | J25: ='CL-64-NOASM'!B121 -> 1.416
A26: 33554432 | B26: ='CL-64-NOASM'!B91 -> 0.559 | C26: ='CL-64-NOASM'!C91 -> 7.304 | D26: ='CL-64-NOASM'!D91 -> 6.958 | E26: ='CL-64-NOASM'!E91 -> 5.759 | F26: ='CL-64-NOASM'!F91 -> 2.248 | G26: ='CL-64-NOASM'!G91 -> 1.658 | H26: ='CL-64-NOASM'!H91 -> 1.302 | J26: ='CL-64-NOASM'!B122 -> 1.418
A27: 67108864 | B27: ='CL-64-NOASM'!B92 -> 0.56 | C27: ='CL-64-NOASM'!C92 -> 7.31 | D27: ='CL-64-NOASM'!D92 -> 6.967 | E27: ='CL-64-NOASM'!E92 -> 5.766 | F27: ='CL-64-NOASM'!F92 -> 2.248 | G27: ='CL-64-NOASM'!G92 -> 1.663 | H27: ='CL-64-NOASM'!H92 -> 1.304 | J27: ='CL-64-NOASM'!B123 -> 1.42
D30: Sarwate | E30: Black | F30: Slicing | G30: Blockword/3 | H30: Multiword/4
C31: 16 | D31: =D5 -> 6.225 | E31: =E5 -> 5.128 | F31: =F5 -> 2.514 | G31: =J5 -> 2.672 | H31: =H5 -> 2.506
C32: 32 | D32: =D6 -> 6.466 | E32: 5.378 | F32: 2.254 | G32: =J6 -> 2.344 | H32: 2.288
C33: 64 | D33: 6.606 | E33: 5.438 | F33: 2.151 | G33: 2.265 | H33: 1.749
C34: 128 | D34: 6.606 | E34: 5.415 | F34: 2.083 | G34: 2.184 | H34: 1.433
C35: 256 | D35: 6.624 | E35: 5.456 | F35: 2.099 | G35: 2.137 | H35: 1.291
C36: 512 | D36: 6.733 | E36: 5.454 | F36: 2.084 | G36: 2.148 | H36: 1.216
C37: 1K | D37: 6.703 | E37: 5.47 | F37: 2.086 | G37: 2.153 | H37: 1.18
C38: 2K | D38: 6.69 | E38: 5.466 | F38: 2.077 | G38: 2.134 | H38: 1.162
C39: 4K | D39: 6.679 | E39: 5.475 | F39: 2.091 | G39: 2.129 | H39: 1.156
C40: 8K | D40: 6.672 | E40: 5.468 | F40: 2.078 | G40: 2.129 | H40: 1.155
C41: 16K | D41: 6.666 | E41: 5.465 | F41: 2.077 | G41: 2.129 | H41: 1.169
C42: 32K | D42: 6.658 | E42: 5.466 | F42: 2.08 | G42: 2.129 | H42: 1.18
C43: 64K | D43: 6.655 | E43: 5.463 | F43: 2.081 | G43: 1.551 | H43: 1.182
C44: 128K | D44: 6.657 | E44: 5.465 | F44: 2.081 | G44: 1.542 | H44: 1.182
C45: 256K | D45: 6.666 | E45: 5.465 | F45: 2.083 | G45: 1.39 | H45: 1.182
C46: 512K | D46: 6.718 | E46: 5.51 | F46: 2.083 | G46: 1.313 | H46: 1.182
C47: 1M | D47: 6.746 | E47: 5.532 | F47: 2.1 | G47: 1.313 | H47: 1.182
C48: 2M | D48: =D22 -> 6.757 | E48: 5.547 | F48: 2.107 | G48: 1.307 | H48: 1.196
C49: 4M | D49: 6.767 | E49: 5.556 | F49: 2.108 | G49: 1.311 | H49: 1.197
C50: 8M | D50: 6.95 | E50: 5.747 | F50: 2.241 | G50: 1.413 | H50: 1.301
C51: 16M | D51: 6.961 | E51: 5.764 | F51: 2.243 | G51: 1.416 | H51: 1.297
C52: 32M | D52: 6.958 | E52: 5.759 | F52: 2.248 | G52: 1.418 | H52: 1.302
C53: 64M | D53: 6.967 | E53: 5.766 | F53: 2.248 | G53: 1.42 | H53: 1.304
F57: =F30 -> Slicing | G57: =G30 -> Blockword/3 | H57: Multiword/4
E58: =C31 -> 16 | F58: =F31 -> 2.514 | G58: 2.672 | H58: 2.506
E59: =C32 -> 32 | F59: 2.254 | G59: 2.344 | H59: 2.288
E60: 64 | F60: 2.151 | G60: 2.265 | H60: 1.749
E61: 128 | F61: 2.083 | G61: 2.184 | H61: 1.433
E62: 256 | F62: 2.099 | G62: 2.137 | H62: 1.291
E63: 512 | F63: 2.084 | G63: 2.148 | H63: 1.216
E64: 1K | F64: 2.086 | G64: 2.153 | H64: 1.18
E65: 2K | F65: 2.077 | G65: 2.134 | H65: 1.162
E66: 4K | F66: 2.091 | G66: 2.129 | H66: 1.156
E67: 8K | F67: 2.078 | G67: 2.129 | H67: 1.155
E68: 16K | F68: 2.077 | G68: 2.129 | H68: 1.169
E69: 32K | F69: 2.08 | G69: 2.129 | H69: 1.18
E70: 64K | F70: 2.081 | G70: 1.551 | H70: 1.182
E71: 128K | F71: 2.081 | G71: 1.542 | H71: 1.182
E72: 256K | F72: 2.083 | G72: 1.39 | H72: 1.182
E73: 512K | F73: 2.083 | G73: 1.313 | H73: 1.182
E74: 1M | F74: =F47 -> 2.1 | G74: 1.313 | H74: 1.182
E75: 2M | F75: 2.107 | G75: 1.307 | H75: 1.196
E76: 4M | F76: 2.108 | G76: 1.311 | H76: 1.197
E77: 8M | F77: 2.241 | G77: 1.413 | H77: 1.301
E78: 16M | F78: 2.243 | G78: 1.416 | H78: 1.297
E79: 32M | F79: 2.248 | G79: 1.418 | H79: 1.302
E80: 64M | F80: 2.248 | G80: 1.42 | H80: 1.304

Sheet CRC64
B1: CRC-64 | C1: CL | J1: stride=3
B2: MemSpeed | C2: Byte | D2: ByteUnrolled | E2: ByteWord | F2: Word | G2: Blockword | H2: Multiword | J2: Blockword
A3: 4 | B3: ='CL-64-NOASM'!B6 -> 6.25 | C3: ='CL-64-NOASM'!C6 -> 6.035 | D3: ='CL-64-NOASM'!D6 -> 6.316 | E3: ='CL-64-NOASM'!E6 -> 7.369 | F3: ='CL-64-NOASM'!F6 -> 7.368 | G3: ='CL-64-NOASM'!G6 -> 7.509 | H3: ='CL-64-NOASM'!H6 -> 7.3 | J3: ='CL-64-NOASM'!B37 -> 7.797
A4: 8 | B4: ='CL-64-NOASM'!B7 -> 2 | C4: ='CL-64-NOASM'!C7 -> 6.044 | D4: ='CL-64-NOASM'!D7 -> 5.888 | E4: ='CL-64-NOASM'!E7 -> 5.027 | F4: ='CL-64-NOASM'!F7 -> 3.03 | G4: ='CL-64-NOASM'!G7 -> 3.375 | H4: ='CL-64-NOASM'!H7 -> 2.972 | J4: ='CL-64-NOASM'!B38 -> 3.378
A5: 16 | B5: ='CL-64-NOASM'!B8 -> 1.125 | C5: ='CL-64-NOASM'!C8 -> 6.432 | D5: ='CL-64-NOASM'!D8 -> 6.225 | E5: ='CL-64-NOASM'!E8 -> 5.131 | F5: ='CL-64-NOASM'!F8 -> 2.514 | G5: ='CL-64-NOASM'!G8 -> 2.613 | H5: ='CL-64-NOASM'!H8 -> 2.499 | J5: ='CL-64-NOASM'!B39 -> 2.672 | N5: =C33 -> 64 | O5: =C35 -> 256 | P5: =C37 -> 1K | Q5: =C39 -> 4K | R5: =C41 -> 16K | S5: =C43 -> 64K | T5: =C45 -> 256K | U5: =C47 -> 1M
A6: 32 | B6: ='CL-64-NOASM'!B9 -> 0.625 | C6: ='CL-64-NOASM'!C9 -> 6.765 | D6: ='CL-64-NOASM'!D9 -> 6.458 | E6: ='CL-64-NOASM'!E9 -> 5.354 | F6: ='CL-64-NOASM'!F9 -> 2.254 | G6: ='CL-64-NOASM'!G9 -> 2.365 | H6: ='CL-64-NOASM'!H9 -> 2.294 | J6: ='CL-64-NOASM'!B40 -> 2.332 | M6: =D30 -> Sarwate | N6: =D33 -> 6.61 | O6: =D35 -> 6.62 | P6: =D37 -> 6.70 | Q6: =D39 -> 6.68 | R6: =D41 -> 6.67 | S6: =D43 -> 6.65 | T6: =D45 -> 6.66 | U6: =D47 -> 6.75
A7: 64 | B7: ='CL-64-NOASM'!B10 -> 0.398 | C7: ='CL-64-NOASM'!C10 -> 6.869 | D7: ='CL-64-NOASM'!D10 -> 6.606 | E7: ='CL-64-NOASM'!E10 -> 5.438 | F7: ='CL-64-NOASM'!F10 -> 2.155 | G7: ='CL-64-NOASM'!G10 -> 2.228 | H7: ='CL-64-NOASM'!H10 -> 1.75 | J7: ='CL-64-NOASM'!B41 -> 2.265 | M7: =E30 -> Black | N7: =E33 -> 5.44 | O7: =E35 -> 5.46 | P7: =E37 -> 5.47 | Q7: =E39 -> 5.47 | R7: =E41 -> 5.47 | S7: =E43 -> 5.47 | T7: =E45 -> 5.47 | U7: =E47 -> 5.53
A8: 128 | B8: ='CL-64-NOASM'!B11 -> 0.308 | C8: ='CL-64-NOASM'!C11 -> 7.207 | D8: ='CL-64-NOASM'!D11 -> 6.609 | E8: ='CL-64-NOASM'!E11 -> 5.449 | F8: ='CL-64-NOASM'!F11 -> 2.085 | G8: ='CL-64-NOASM'!G11 -> 2.186 | H8: ='CL-64-NOASM'!H11 -> 1.433 | J8: ='CL-64-NOASM'!B42 -> 2.187 | M8: =F30 -> Slicing | N8: =F33 -> 2.16 | O8: =F35 -> 2.08 | P8: =F37 -> 2.09 | Q8: =F39 -> 2.10 | R8: =F41 -> 2.08 | S8: =F43 -> 2.08 | T8: =F45 -> 2.08 | U8: =F47 -> 2.09
A9: 256 | B9: ='CL-64-NOASM'!B12 -> 0.281 | C9: ='CL-64-NOASM'!C12 -> 7.119 | D9: ='CL-64-NOASM'!D12 -> 6.619 | E9: ='CL-64-NOASM'!E12 -> 5.455 | F9: ='CL-64-NOASM'!F12 -> 2.082 | G9: ='CL-64-NOASM'!G12 -> 2.152 | H9: ='CL-64-NOASM'!H12 -> 1.293 | J9: ='CL-64-NOASM'!B43 -> 2.136 | M9: =G30 -> Blockword/3 | N9: =G33 -> 2.27 | O9: =G35 -> 2.14 | P9: =G37 -> 2.15 | Q9: =G39 -> 2.13 | R9: =G41 -> 2.13 | S9: =G43 -> 1.59 | T9: =G45 -> 1.41 | U9: =G47 -> 1.33
A10: 512 | B10: ='CL-64-NOASM'!B13 -> 0.266 | C10: ='CL-64-NOASM'!C13 -> 7.099 | D10: ='CL-64-NOASM'!D13 -> 6.733 | E10: ='CL-64-NOASM'!E13 -> 5.454 | F10: ='CL-64-NOASM'!F13 -> 2.084 | G10: ='CL-64-NOASM'!G13 -> 2.141 | H10: ='CL-64-NOASM'!H13 -> 1.216 | J10: ='CL-64-NOASM'!B44 -> 2.148 | M10: =H30 -> Multiword/4 | N10: =H33 -> 1.75 | O10: =H35 -> 1.29 | P10: =H37 -> 1.18 | Q10: =H39 -> 1.15 | R10: =H41 -> 1.17 | S10: =H43 -> 1.18 | T10: =H45 -> 1.18 | U10: =H47 -> 1.18
A11: 1024 | B11: ='CL-64-NOASM'!B14 -> 0.257 | C11: ='CL-64-NOASM'!C14 -> 7.047 | D11: ='CL-64-NOASM'!D14 -> 6.703 | E11: ='CL-64-NOASM'!E14 -> 5.47 | F11: ='CL-64-NOASM'!F14 -> 2.086 | G11: ='CL-64-NOASM'!G14 -> 2.15 | H11: ='CL-64-NOASM'!H14 -> 1.178 | J11: ='CL-64-NOASM'!B45 -> 2.153
A12: 2048 | B12: ='CL-64-NOASM'!B15 -> 0.254 | C12: ='CL-64-NOASM'!C15 -> 7.026 | D12: ='CL-64-NOASM'!D15 -> 6.69 | E12: ='CL-64-NOASM'!E15 -> 5.466 | F12: ='CL-64-NOASM'!F15 -> 2.079 | G12: ='CL-64-NOASM'!G15 -> 2.145 | H12: ='CL-64-NOASM'!H15 -> 1.162 | J12: ='CL-64-NOASM'!B46 -> 2.14
A13: 4096 | B13: ='CL-64-NOASM'!B16 -> 0.257 | C13: ='CL-64-NOASM'!C16 -> 7.011 | D13: ='CL-64-NOASM'!D16 -> 6.679 | E13: ='CL-64-NOASM'!E16 -> 5.474 | F13: ='CL-64-NOASM'!F16 -> 2.099 | G13: ='CL-64-NOASM'!G16 -> 2.128 | H13: ='CL-64-NOASM'!H16 -> 1.153 | J13: ='CL-64-NOASM'!B47 -> 2.129
A14: 8192 | B14: ='CL-64-NOASM'!B17 -> 0.253 | C14: ='CL-64-NOASM'!C17 -> 7 | D14: ='CL-64-NOASM'!D17 -> 6.673 | E14: ='CL-64-NOASM'!E17 -> 5.469 | F14: ='CL-64-NOASM'!F17 -> 2.087 | G14: ='CL-64-NOASM'!G17 -> 2.13 | H14: ='CL-64-NOASM'!H17 -> 1.156 | J14: ='CL-64-NOASM'!B48 -> 2.127
A15: 16384 | B15: ='CL-64-NOASM'!B18 -> 0.252 | C15: ='CL-64-NOASM'!C18 -> 6.986 | D15: ='CL-64-NOASM'!D18 -> 6.668 | E15: ='CL-64-NOASM'!E18 -> 5.468 | F15: ='CL-64-NOASM'!F18 -> 2.084 | G15: ='CL-64-NOASM'!G18 -> 2.122 | H15: ='CL-64-NOASM'!H18 -> 1.168 | J15: ='CL-64-NOASM'!B49 -> 2.126
A16: 32768 | B16: ='CL-64-NOASM'!B19 -> 0.259 | C16: ='CL-64-NOASM'!C19 -> 6.979 | D16: ='CL-64-NOASM'!D19 -> 6.662 | E16: ='CL-64-NOASM'!E19 -> 5.464 | F16: ='CL-64-NOASM'!F19 -> 2.08 | G16: ='CL-64-NOASM'!G19 -> 2.129 | H16: ='CL-64-NOASM'!H19 -> 1.179 | J16: ='CL-64-NOASM'!B50 -> 2.129
A17: 65536 | B17: ='CL-64-NOASM'!B20 -> 0.302 | C17: ='CL-64-NOASM'!C20 -> 6.966 | D17: ='CL-64-NOASM'!D20 -> 6.654 | E17: ='CL-64-NOASM'!E20 -> 5.466 | F17: ='CL-64-NOASM'!F20 -> 2.083 | G17: ='CL-64-NOASM'!G20 -> 1.617 | H17: ='CL-64-NOASM'!H20 -> 1.182 | J17: ='CL-64-NOASM'!B51 -> 1.594
A18: 131072 | B18: ='CL-64-NOASM'!B21 -> 0.302 | C18: ='CL-64-NOASM'!C21 -> 6.937 | D18: ='CL-64-NOASM'!D21 -> 6.656 | E18: ='CL-64-NOASM'!E21 -> 5.463 | F18: ='CL-64-NOASM'!F21 -> 2.083 | G18: ='CL-64-NOASM'!G21 -> 1.595 | H18: ='CL-64-NOASM'!H21 -> 1.182 | J18: ='CL-64-NOASM'!B52 -> 1.568
A19: 262144 | B19: ='CL-64-NOASM'!B22 -> 0.301 | C19: ='CL-64-NOASM'!C22 -> 6.978 | D19: ='CL-64-NOASM'!D22 -> 6.658 | E19: ='CL-64-NOASM'!E22 -> 5.465 | F19: ='CL-64-NOASM'!F22 -> 2.082 | G19: ='CL-64-NOASM'!G22 -> 1.582 | H19: ='CL-64-NOASM'!H22 -> 1.182 | J19: ='CL-64-NOASM'!B53 -> 1.411
A20: 524288 | B20: ='CL-64-NOASM'!B23 -> 0.301 | C20: ='CL-64-NOASM'!C23 -> 7.009 | D20: ='CL-64-NOASM'!D23 -> 6.721 | E20: ='CL-64-NOASM'!E23 -> 5.493 | F20: ='CL-64-NOASM'!F23 -> 2.083 | G20: ='CL-64-NOASM'!G23 -> 1.577 | H20: ='CL-64-NOASM'!H23 -> 1.182 | J20: ='CL-64-NOASM'!B54 -> 1.333
A21: 1048576 | B21: ='CL-64-NOASM'!B24 -> 0.302 | C21: ='CL-64-NOASM'!C24 -> 7.022 | D21: ='CL-64-NOASM'!D24 -> 6.747 | E21: ='CL-64-NOASM'!E24 -> 5.533 | F21: ='CL-64-NOASM'!F24 -> 2.09 | G21: ='CL-64-NOASM'!G24 -> 1.541 | H21: ='CL-64-NOASM'!H24 -> 1.183 | J21: ='CL-64-NOASM'!B55 -> 1.33
A22: 2097152 | B22: ='CL-64-NOASM'!B25 -> 0.304 | C22: ='CL-64-NOASM'!C25 -> 7.044 | D22: ='CL-64-NOASM'!D25 -> 6.758 | E22: ='CL-64-NOASM'!E25 -> 5.547 | F22: ='CL-64-NOASM'!F25 -> 2.107 | G22: ='CL-64-NOASM'!G25 -> 1.555 | H22: ='CL-64-NOASM'!H25 -> 1.197 | J22: ='CL-64-NOASM'!B56 -> 1.322
A23: 4194304 | B23: ='CL-64-NOASM'!B26 -> 0.304 | C23: ='CL-64-NOASM'!C26 -> 7.076 | D23: ='CL-64-NOASM'!D26 -> 6.774 | E23: ='CL-64-NOASM'!E26 -> 5.554 | F23: ='CL-64-NOASM'!F26 -> 2.108 | G23: ='CL-64-NOASM'!G26 -> 1.559 | H23: ='CL-64-NOASM'!H26 -> 1.197 | J23: ='CL-64-NOASM'!B57 -> 1.322
A24: 8388608 | B24: ='CL-64-NOASM'!B27 -> 0.541 | C24: ='CL-64-NOASM'!C27 -> 7.281 | D24: ='CL-64-NOASM'!D27 -> 6.95 | E24: ='CL-64-NOASM'!E27 -> 5.742 | F24: ='CL-64-NOASM'!F27 -> 2.24 | G24: ='CL-64-NOASM'!G27 -> 1.667 | H24: ='CL-64-NOASM'!H27 -> 1.301 | J24: ='CL-64-NOASM'!B58 -> 1.428
A25: 16777216 | B25: ='CL-64-NOASM'!B28 -> 0.56 | C25: ='CL-64-NOASM'!C28 -> 7.302 | D25: ='CL-64-NOASM'!D28 -> 6.969 | E25: ='CL-64-NOASM'!E28 -> 5.758 | F25: ='CL-64-NOASM'!F28 -> 2.246 | G25: ='CL-64-NOASM'!G28 -> 1.678 | H25: ='CL-64-NOASM'!H28 -> 1.3 | J25: ='CL-64-NOASM'!B59 -> 1.434
A26: 33554432 | B26: ='CL-64-NOASM'!B29 -> 0.562 | C26: ='CL-64-NOASM'!C29 -> 7.304 | D26: ='CL-64-NOASM'!D29 -> 6.963 | E26: ='CL-64-NOASM'!E29 -> 5.768 | F26: ='CL-64-NOASM'!F29 -> 2.244 | G26: ='CL-64-NOASM'!G29 -> 1.678 | H26: ='CL-64-NOASM'!H29 -> 1.302 | J26: ='CL-64-NOASM'!B60 -> 1.434
A27: 67108864 | B27: ='CL-64-NOASM'!B30 -> 0.559 | C27: ='CL-64-NOASM'!C30 -> 7.31 | D27: ='CL-64-NOASM'!D30 -> 6.963 | E27: ='CL-64-NOASM'!E30 -> 5.765 | F27: ='CL-64-NOASM'!F30 -> 2.251 | G27: ='CL-64-NOASM'!G30 -> 1.68 | H27: ='CL-64-NOASM'!H30 -> 1.304 | J27: ='CL-64-NOASM'!B61 -> 1.434
D30: Sarwate | E30: Black | F30: Slicing | G30: Blockword/3 | H30: Multiword/4
C31: 16 | D31: =D5 -> 6.225 | E31: =E5 -> 5.131 | F31: =F5 -> 2.514 | G31: =J5 -> 2.672 | H31: =H5 -> 2.499
C32: 32 | D32: =D6 -> 6.458 | E32: 5.354 | F32: 2.254 | G32: =J6 -> 2.332 | H32: =H6 -> 2.294
C33: 64 | D33: =D7 -> 6.606 | E33: 5.438 | F33: 2.155 | G33: 2.265 | H33: 1.75
C34: 128 | D34: =D8 -> 6.609 | E34: 5.449 | F34: 2.085 | G34: 2.187 | H34: 1.433
C35: 256 | D35: =D9 -> 6.619 | E35: 5.455 | F35: 2.082 | G35: 2.136 | H35: 1.293
C36: 512 | D36: =D10 -> 6.733 | E36: 5.454 | F36: 2.084 | G36: 2.148 | H36: 1.216
C37: 1K | D37: =D11 -> 6.703 | E37: 5.47 | F37: 2.086 | G37: 2.153 | H37: 1.178
C38: 2K | D38: =D12 -> 6.69 | E38: 5.466 | F38: 2.079 | G38: 2.14 | H38: 1.162
C39: 4K | D39: =D13 -> 6.679 | E39: 5.474 | F39: 2.099 | G39: 2.129 | H39: 1.153
C40: 8K | D40: =D14 -> 6.673 | E40: 5.469 | F40: 2.087 | G40: 2.127 | H40: 1.156
C41: 16K | D41: =D15 -> 6.668 | E41: 5.468 | F41: 2.084 | G41: 2.126 | H41: 1.168
C42: 32K | D42: =D16 -> 6.662 | E42: 5.464 | F42: 2.08 | G42: 2.129 | H42: 1.179
C43: 64K | D43: =D17 -> 6.654 | E43: 5.466 | F43: 2.083 | G43: 1.594 | H43: 1.182
C44: 128K | D44: =D18 -> 6.656 | E44: 5.463 | F44: 2.083 | G44: 1.568 | H44: 1.182
C45: 256K | D45: =D19 -> 6.658 | E45: 5.465 | F45: 2.082 | G45: 1.411 | H45: 1.182
C46: 512K | D46: =D20 -> 6.721 | E46: 5.493 | F46: 2.083 | G46: 1.333 | H46: 1.182
C47: 1M | D47: =D21 -> 6.747 | E47: 5.533 | F47: 2.09 | G47: 1.33 | H47: 1.183
C48: 2M | D48: =D22 -> 6.758 | E48: 5.547 | F48: 2.107 | G48: 1.322 | H48: 1.197
C49: 4M | D49: =D23 -> 6.774 | E49: 5.554 | F49: 2.108 | G49: 1.322 | H49: 1.197
C50: 8M | D50: =D24 -> 6.95 | E50: 5.742 | F50: 2.24 | G50: 1.428 | H50: 1.301
C51: 16M | D51: =D25 -> 6.969 | E51: 5.758 | F51: 2.246 | G51: 1.434 | H51: 1.3
C52: 32M | D52: =D26 -> 6.963 | E52: 5.768 | F52: 2.244 | G52: 1.434 | H52: 1.302
C53: 64M | D53: =D27 -> 6.963 | E53: 5.765 | F53: 2.251 | G53: 1.434 | H53: 1.304
F57: =F30 -> Slicing | G57: =G30 -> Blockword/3 | H57: Multiword/4
E58: =C31 -> 16 | F58: =F31 -> 2.514 | G58: 2.672 | H58: 2.499
E59: =C32 -> 32 | F59: =F32 -> 2.254 | G59: 2.332 | H59: 2.294
E60: 64 | F60: =F33 -> 2.155 | G60: 2.265 | H60: 1.75
E61: 128 | F61: =F34 -> 2.085 | G61: 2.187 | H61: 1.433
E62: 256 | F62: =F35 -> 2.082 | G62: 2.136 | H62: 1.293
E63: 512 | F63: =F36 -> 2.084 | G63: 2.148 | H63: 1.216
E64: 1K | F64: =F37 -> 2.086 | G64: 2.153 | H64: 1.178
E65: 2K | F65: =F38 -> 2.079 | G65: 2.14 | H65: 1.162
E66: 4K | F66: =F39 -> 2.099 | G66: 2.129 | H66: 1.153
E67: 8K | F67: =F40 -> 2.087 | G67: 2.127 | H67: 1.156
E68: 16K | F68: =F41 -> 2.084 | G68: 2.126 | H68: 1.168
E69: 32K | F69: =F42 -> 2.08 | G69: 2.129 | H69: 1.179
E70: 64K | F70: =F43 -> 2.083 | G70: 1.594 | H70: 1.182
E71: 128K | F71: =F44 -> 2.083 | G71: 1.568 | H71: 1.182
E72: 256K | F72: =F45 -> 2.082 | G72: 1.411 | H72: 1.182
E73: 512K | F73: =F46 -> 2.083 | G73: 1.333 | H73: 1.182
E74: 1M | F74: =F47 -> 2.09 | G74: 1.33 | H74: 1.183
E75: 2M | F75: =F48 -> 2.107 | G75: 1.322 | H75: 1.197
E76: 4M | F76: =F49 -> 2.108 | G76: 1.322 | H76: 1.197
E77: 8M | F77: =F50 -> 2.24 | G77: 1.428 | H77: 1.301
E78: 16M | F78: =F51 -> 2.246 | G78: 1.434 | H78: 1.3
E79: 32M | F79: =F52 -> 2.244 | G79: 1.434 | H79: 1.302
E80: 64M | F80: =F53 -> 2.251 | G80: 1.434 | H80: 1.304

Sheet CRC-128
A1: CRC-128
B2: CL/Slicing/SSE2 | C2: ICL/Slicing/SSE2 | D2: GCC/Slicing/UINT | E2: GCC/Slicing/SSE2 | F2: GCC/Multiword/UINT/3 | G2: CL/Multiword/SSE2/5 | H2: ICL/Multiword/SSE2/5 | I2: GCC/Multiword/SSE2/6 | K2: GCC/Multiword/SSE2/C++/6 | L2: GCC/Multiword/SSE2/ASM/4
A3: 4 | B3: ='CL-64-NOASM'!F192 -> 12.536 | C3: ='ICL-64-NOASM'!F192 -> 11.754 | D3: ='GCC-64-NOASM'!F378 -> 14.598 | E3: ='GCC-64-NOASM'!F192 -> 9.669 | F3: ='GCC-64-NOASM'!C440 -> 16.029 | G3: ='CL-64-NOASM'!C688 -> 12.337 | H3: ='ICL-64-NOASM'!C688 -> 13.157 | I3: ='GCC-64-NOASM'!C905 -> 11.675 | K3: ='GCC-64-NOASM'!C905 -> 11.675 | L3: ='GCC-64-ASM'!H192 -> 9.755
A4: 8 | B4: ='CL-64-NOASM'!F193 -> 6.601 | C4: ='ICL-64-NOASM'!F193 -> 4.761 | D4: ='GCC-64-NOASM'!F379 -> 6.138 | E4: ='GCC-64-NOASM'!F193 -> 4.587 | F4: ='GCC-64-NOASM'!C441 -> 6.752 | G4: ='CL-64-NOASM'!C689 -> 6.501 | H4: ='ICL-64-NOASM'!C689 -> 5.529 | I4: ='GCC-64-NOASM'!C906 -> 5.574 | K4: ='GCC-64-NOASM'!C906 -> 5.574 | L4: ='GCC-64-ASM'!H193 -> 4.643
A5: 16 | B5: ='CL-64-NOASM'!F194 -> 4.971 | C5: ='ICL-64-NOASM'!F194 -> 3.975 | D5: ='GCC-64-NOASM'!F380 -> 4.501 | E5: ='GCC-64-NOASM'!F194 -> 3.448 | F5: ='GCC-64-NOASM'!C442 -> 5.047 | G5: ='CL-64-NOASM'!C690 -> 4.785 | H5: ='ICL-64-NOASM'!C690 -> 4.355 | I5: ='GCC-64-NOASM'!C907 -> 4.235 | K5: ='GCC-64-NOASM'!C907 -> 4.235 | L5: ='GCC-64-ASM'!H194 -> 3.749 | P5: =C35 -> 64 | Q5: =C37 -> 256 | R5: =C39 -> 1K | S5: =C41 -> 4K | T5: =C43 -> 16K | U5: =C45 -> 64K | V5: =C47 -> 256K | W5: =C49 -> 1M
A6: 32 | B6: ='CL-64-NOASM'!F195 -> 4.359 | C6: ='ICL-64-NOASM'!F195 -> 3.579 | D6: ='GCC-64-NOASM'!F381 -> 3.794 | E6: ='GCC-64-NOASM'!F195 -> 2.854 | F6: ='GCC-64-NOASM'!C443 -> 4.146 | G6: ='CL-64-NOASM'!C691 -> 4.393 | H6: ='ICL-64-NOASM'!C691 -> 3.699 | I6: ='GCC-64-NOASM'!C908 -> 3.351 | K6: ='GCC-64-NOASM'!C908 -> 3.351 | L6: ='GCC-64-ASM'!H195 -> 3.313 | O6: =D32 -> CL/Slicing/SSE2 | P6: =D35 -> 4.02 | Q6: =D37 -> 3.81 | R6: =D39 -> 4.01 | S6: =D41 -> 4.05 | T6: =D43 -> 4.13 | U6: =D45 -> 4.18 | V6: =D47 -> 4.20 | W6: =D49 -> 4.24
A7: 64 | B7: ='CL-64-NOASM'!F196 -> 4.016 | C7: ='ICL-64-NOASM'!F196 -> 3.404 | D7: ='GCC-64-NOASM'!F382 -> 3.454 | E7: ='GCC-64-NOASM'!F196 -> 2.674 | F7: ='GCC-64-NOASM'!C444 -> 3.828 | G7: ='CL-64-NOASM'!C692 -> 4.076 | H7: ='ICL-64-NOASM'!C692 -> 3.518 | I7: ='GCC-64-NOASM'!C909 -> 2.899 | K7: ='GCC-64-NOASM'!C909 -> 2.899 | L7: ='GCC-64-ASM'!H196 -> 2.522 | O7: =E32 -> ICL/Slicing/SSE2 | P7: =E35 -> 3.40 | Q7: =E37 -> 3.24 | R7: =E39 -> 3.57 | S7: =E41 -> 3.59 | T7: =E43 -> 3.68 | U7: =E45 -> 3.72 | V7: =E47 -> 3.75 | W7: =E49 -> 3.81
A8: 128 | B8: ='CL-64-NOASM'!F197 -> 3.9 | C8: ='ICL-64-NOASM'!F197 -> 3.258 | D8: ='GCC-64-NOASM'!F383 -> 3.244 | E8: ='GCC-64-NOASM'!F197 -> 2.556 | F8: ='GCC-64-NOASM'!C445 -> 3.299 | G8: ='CL-64-NOASM'!C693 -> 2.937 | H8: ='ICL-64-NOASM'!C693 -> 2.71 | I8: ='GCC-64-NOASM'!C910 -> 2.342 | K8: ='GCC-64-NOASM'!C910 -> 2.342 | L8: ='GCC-64-ASM'!H197 -> 2.064 | O8: =F32 -> GCC/Slicing/UINT | P8: =F35 -> 3.45 | Q8: =F37 -> 3.24 | R8: =F39 -> 3.36 | S8: =F41 -> 3.48 | T8: =F43 -> 3.61 | U8: =F45 -> 3.64 | V8: =F47 -> 3.67 | W8: =F49 -> 3.72
A9: 256 | B9: ='CL-64-NOASM'!F198 -> 3.805 | C9: ='ICL-64-NOASM'!F198 -> 3.235 | D9: ='GCC-64-NOASM'!F384 -> 3.238 | E9: ='GCC-64-NOASM'!F198 -> 2.48 | F9: ='GCC-64-NOASM'!C446 -> 3.02 | G9: ='CL-64-NOASM'!C694 -> 2.559 | H9: ='ICL-64-NOASM'!C694 -> 2.329 | I9: ='GCC-64-NOASM'!C911 -> 1.925 | K9: ='GCC-64-NOASM'!C911 -> 1.925 | L9: ='GCC-64-ASM'!H198 -> 1.828 | O9: =G32 -> GCC/Slicing/SSE2 | P9: =G35 -> 2.67 | Q9: =G37 -> 2.48 | R9: =G39 -> 2.63 | S9: =G41 -> 2.79 | T9: =G43 -> 2.97 | U9: =G45 -> 2.99 | V9: =G47 -> 2.99 | W9: =G49 -> 3.03
A10: 512 | B10: ='CL-64-NOASM'!F199 -> 3.779 | C10: ='ICL-64-NOASM'!F199 -> 3.271 | D10: ='GCC-64-NOASM'!F385 -> 3.197 | E10: ='GCC-64-NOASM'!F199 -> 2.445 | F10: ='GCC-64-NOASM'!C447 -> 2.978 | G10: ='CL-64-NOASM'!C695 -> 2.426 | H10: ='ICL-64-NOASM'!C695 -> 2.162 | I10: ='GCC-64-NOASM'!C912 -> 1.938 | K10: ='GCC-64-NOASM'!C912 -> 1.938 | L10: ='GCC-64-ASM'!H199 -> 1.78 | O10: =H32 -> GCC/Multiword/UINT/3 | P10: =H35 -> 3.83 | Q10: =H37 -> 3.02 | R10: =H39 -> 3.04 | S10: =H41 -> 3.01 | T10: =H43 -> 3.00 | U10: =H45 -> 2.98 | V10: =H47 -> 2.98 | W10: =H49 -> 3.00
A11: 1024 | B11: ='CL-64-NOASM'!F200 -> 4.006 | C11: ='ICL-64-NOASM'!F200 -> 3.565 | D11: ='GCC-64-NOASM'!F386 -> 3.356 | E11: ='GCC-64-NOASM'!F200 -> 2.627 | F11: ='GCC-64-NOASM'!C448 -> 3.042 | G11: ='CL-64-NOASM'!C696 -> 2.433 | H11: ='ICL-64-NOASM'!C696 -> 2.232 | I11: ='GCC-64-NOASM'!C913 -> 1.853 | K11: ='GCC-64-NOASM'!C913 -> 1.853 | L11: ='GCC-64-ASM'!H200 -> 1.818 | O11: =I32 -> CL/Multiword/SSE2/5 | P11: =I35 -> 4.08 | Q11: =I37 -> 2.56 | R11: =I39 -> 2.43 | S11: =I41 -> 2.25 | T11: =I43 -> 2.20 | U11: =I45 -> 2.19 | V11: =I47 -> 2.18 | W11: =I49 -> 2.20
A12: 2048 | B12: ='CL-64-NOASM'!F201 -> 4.13 | C12: ='ICL-64-NOASM'!F201 -> 3.667 | D12: ='GCC-64-NOASM'!F387 -> 3.506 | E12: ='GCC-64-NOASM'!F201 -> 2.785 | F12: ='GCC-64-NOASM'!C449 -> 3.063 | G12: ='CL-64-NOASM'!C697 -> 2.307 | H12: ='ICL-64-NOASM'!C697 -> 2.105 | I12: ='GCC-64-NOASM'!C914 -> 1.801 | K12: ='GCC-64-NOASM'!C914 -> 1.801 | L12: ='GCC-64-ASM'!H201 -> 1.797 | O12: =J32 -> ICL/Multiword/SSE2/5 | P12: =J35 -> 3.52 | Q12: =J37 -> 2.33 | R12: =J39 -> 2.23 | S12: =J41 -> 2.05 | T12: =J43 -> 2.00 | U12: =J45 -> 1.99 | V12: =J47 -> 1.99 | W12: =J49 -> 2.01
A13: 4096 | B13: ='CL-64-NOASM'!F202 -> 4.046 | C13: ='ICL-64-NOASM'!F202 -> 3.586 | D13: ='GCC-64-NOASM'!F388 -> 3.48 | E13: ='GCC-64-NOASM'!F202 -> 2.792 | F13: ='GCC-64-NOASM'!C450 -> 3.006 | G13: ='CL-64-NOASM'!C698 -> 2.246 | H13: ='ICL-64-NOASM'!C698 -> 2.05 | I13: ='GCC-64-NOASM'!C915 -> 1.716 | K13: ='GCC-64-NOASM'!C915 -> 1.716 | L13: ='GCC-64-ASM'!H202 -> 1.769 | O13: =K32 -> GCC/Multiword/SSE2/6 | P13: =K35 -> 2.90 | Q13: =K37 -> 1.93 | R13: =K39 -> 1.85 | S13: =K41 -> 1.72 | T13: =K43 -> 1.65 | U13: =K45 -> 1.63 | V13: =K47 -> 1.63 | W13: =K49 -> 1.63
A14: 8192 | B14: ='CL-64-NOASM'!F203 -> 4.119 | C14: ='ICL-64-NOASM'!F203 -> 3.641 | D14: ='GCC-64-NOASM'!F389 -> 3.57 | E14: ='GCC-64-NOASM'!F203 -> 2.862 | F14: ='GCC-64-NOASM'!C451 -> 2.974 | G14: ='CL-64-NOASM'!C699 -> 2.219 | H14: ='ICL-64-NOASM'!C699 -> 2.024 | I14: ='GCC-64-NOASM'!C916 -> 1.684 | K14: ='GCC-64-NOASM'!C916 -> 1.684 | L14: ='GCC-64-ASM'!H203 -> 1.745 | O14: =L2 -> GCC/Multiword/SSE2/ASM/4 | P14: =L7 -> 2.52 | Q14: =L9 -> 1.83 | R14: =L11 -> 1.82 | S14: =L13 -> 1.77 | T14: =L15 -> 1.75 | U14: =L17 -> 1.74 | V14: =L19 -> 1.74 | W14: =L21 -> 1.75
A15: 16384 | B15: ='CL-64-NOASM'!F204 -> 4.128 | C15: ='ICL-64-NOASM'!F204 -> 3.675 | D15: ='GCC-64-NOASM'!F390 -> 3.611 | E15: ='GCC-64-NOASM'!F204 -> 2.966 | F15: ='GCC-64-NOASM'!C452 -> 2.998 | G15: ='CL-64-NOASM'!C700 -> 2.2 | H15: ='ICL-64-NOASM'!C700 -> 2 | I15: ='GCC-64-NOASM'!C917 -> 1.648 | K15: ='GCC-64-NOASM'!C917 -> 1.648 | L15: ='GCC-64-ASM'!H204 -> 1.747
A16: 32768 | B16: ='CL-64-NOASM'!F205 -> 4.201 | C16: ='ICL-64-NOASM'!F205 -> 3.748 | D16: ='GCC-64-NOASM'!F391 -> 3.656 | E16: ='GCC-64-NOASM'!F205 -> 2.967 | F16: ='GCC-64-NOASM'!C453 -> 2.983 | G16: ='CL-64-NOASM'!C701 -> 2.188 | H16: ='ICL-64-NOASM'!C701 -> 1.982 | I16: ='GCC-64-NOASM'!C918 -> 1.641 | K16: ='GCC-64-NOASM'!C918 -> 1.641 | L16: ='GCC-64-ASM'!H205 -> 1.737
A17: 65536 | B17: ='CL-64-NOASM'!F206 -> 4.182 | C17: ='ICL-64-NOASM'!F206 -> 3.718 | D17: ='GCC-64-NOASM'!F392 -> 3.638 | E17: ='GCC-64-NOASM'!F206 -> 2.988 | F17: ='GCC-64-NOASM'!C454 -> 2.982 | G17: ='CL-64-NOASM'!C702 -> 2.186 | H17: ='ICL-64-NOASM'!C702 -> 1.986 | I17: ='GCC-64-NOASM'!C919 -> 1.632 | K17: ='GCC-64-NOASM'!C919 -> 1.632 | L17: ='GCC-64-ASM'!H206 -> 1.739
A18: 131072 | B18: ='CL-64-NOASM'!F207 -> 4.194 | C18: ='ICL-64-NOASM'!F207 -> 3.744 | D18: ='GCC-64-NOASM'!F393 -> 3.671 | E18: ='GCC-64-NOASM'!F207 -> 2.986 | F18: ='GCC-64-NOASM'!C455 -> 2.979 | G18: ='CL-64-NOASM'!C703 -> 2.185 | H18: ='ICL-64-NOASM'!C703 -> 1.986 | I18: ='GCC-64-NOASM'!C920 -> 1.629 | K18: ='GCC-64-NOASM'!C920 -> 1.629 | L18: ='GCC-64-ASM'!H207 -> 1.733
A19: 262144 | B19: ='CL-64-NOASM'!F208 -> 4.201 | C19: ='ICL-64-NOASM'!F208 -> 3.746 | D19: ='GCC-64-NOASM'!F394 -> 3.673 | E19: ='GCC-64-NOASM'!F208 -> 2.991 | F19: ='GCC-64-NOASM'!C456 -> 2.979 | G19: ='CL-64-NOASM'!C704 -> 2.184 | H19: ='ICL-64-NOASM'!C704 -> 1.985 | I19: ='GCC-64-NOASM'!C921 -> 1.627 | K19: ='GCC-64-NOASM'!C921 -> 1.627 | L19: ='GCC-64-ASM'!H208 -> 1.737
A20: 524288 | B20: ='CL-64-NOASM'!F209 -> 4.233 | C20: ='ICL-64-NOASM'!F209 -> 3.784 | D20: ='GCC-64-NOASM'!F395 -> 3.698 | E20: ='GCC-64-NOASM'!F209 -> 3.003 | F20: ='GCC-64-NOASM'!C457 -> 2.98 | G20: ='CL-64-NOASM'!C705 -> 2.185 | H20: ='ICL-64-NOASM'!C705 -> 1.985 | I20: ='GCC-64-NOASM'!C922 -> 1.627 | K20: ='GCC-64-NOASM'!C922 -> 1.627 | L20: ='GCC-64-ASM'!H209 -> 1.738
A21: 1048576 | B21: ='CL-64-NOASM'!F210 -> 4.242 | C21: ='ICL-64-NOASM'!F210 -> 3.807 | D21: ='GCC-64-NOASM'!F396 -> 3.718 | E21: ='GCC-64-NOASM'!F210 -> 3.032 | F21: ='GCC-64-NOASM'!C458 -> 3.004 | G21: ='CL-64-NOASM'!C706 -> 2.202 | H21: ='ICL-64-NOASM'!C706 -> 2.01 | I21: ='GCC-64-NOASM'!C923 -> 1.63 | K21: ='GCC-64-NOASM'!C923 -> 1.63 | L21: ='GCC-64-ASM'!H210 -> 1.754
A22: 2097152 | B22: ='CL-64-NOASM'!F211 -> 4.262 | C22: ='ICL-64-NOASM'!F211 -> 3.819 | D22: ='GCC-64-NOASM'!F397 -> 3.731 | E22: ='GCC-64-NOASM'!F211 -> 3.053 | F22: ='GCC-64-NOASM'!C459 -> 3.019 | G22: ='CL-64-NOASM'!C707 -> 2.212 | H22: ='ICL-64-NOASM'!C707 -> 2.011 | I22: ='GCC-64-NOASM'!C924 -> 1.643 | K22: ='GCC-64-NOASM'!C924 -> 1.643 | L22: ='GCC-64-ASM'!H211 -> 1.757
A23: 4194304 | B23: ='CL-64-NOASM'!F212 -> 4.267 | C23: ='ICL-64-NOASM'!F212 -> 3.82 | D23: ='GCC-64-NOASM'!F398 -> 3.752 | E23: ='GCC-64-NOASM'!F212 -> 3.062 | F23: ='GCC-64-NOASM'!C460 -> 3.025 | G23: ='CL-64-NOASM'!C708 -> 2.217 | H23: ='ICL-64-NOASM'!C708 -> 2.013 | I23: ='GCC-64-NOASM'!C925 -> 1.654 | K23: ='GCC-64-NOASM'!C925 -> 1.654 | L23: ='GCC-64-ASM'!H212 -> 1.767
A24: 8388608 | B24: ='CL-64-NOASM'!F213 -> 4.417 | C24: ='ICL-64-NOASM'!F213 -> 3.954 | D24: ='GCC-64-NOASM'!F399 -> 3.892 | E24: ='GCC-64-NOASM'!F213 -> 3.191 | F24: ='GCC-64-NOASM'!C461 -> 3.179 | G24: ='CL-64-NOASM'!C709 -> 2.337 | H24: ='ICL-64-NOASM'!C709 -> 2.134 | I24: ='GCC-64-NOASM'!C926 -> 1.776 | K24: ='GCC-64-NOASM'!C926 -> 1.776 | L24: ='GCC-64-ASM'!H213 -> 1.879
A25: 16777216 | B25: ='CL-64-NOASM'!F214 -> 4.42 | C25: ='ICL-64-NOASM'!F214 -> 3.963 | D25: ='GCC-64-NOASM'!F400 -> 3.896 | E25: ='GCC-64-NOASM'!F214 -> 3.194 | F25: ='GCC-64-NOASM'!C462 -> 3.188 | G25: ='CL-64-NOASM'!C710 -> 2.346 | H25: ='ICL-64-NOASM'!C710 -> 2.138 | I25: ='GCC-64-NOASM'!C927 -> 1.779 | K25: ='GCC-64-NOASM'!C927 -> 1.779 | L25: ='GCC-64-ASM'!H214 -> 1.884
A26: 33554432 | B26: ='CL-64-NOASM'!F215 -> 4.428 | C26: ='ICL-64-NOASM'!F215 -> 3.969 | D26: ='GCC-64-NOASM'!F401 -> 3.897 | E26: ='GCC-64-NOASM'!F215 -> 3.201 | F26: ='GCC-64-NOASM'!C463 -> 3.189 | G26: ='CL-64-NOASM'!C711 -> 2.353 | H26: ='ICL-64-NOASM'!C711 -> 2.146 | I26: ='GCC-64-NOASM'!C928 -> 1.78 | K26: ='GCC-64-NOASM'!C928 -> 1.78 | L26: ='GCC-64-ASM'!H215 -> 1.891
A27: 67108864 | B27: ='CL-64-NOASM'!F216 -> 4.434 | C27: ='ICL-64-NOASM'!F216 -> 3.969 | D27: ='GCC-64-NOASM'!F402 -> 3.908 | E27: ='GCC-64-NOASM'!F216 -> 3.203 | F27: ='GCC-64-NOASM'!C464 -> 3.193 | G27: ='CL-64-NOASM'!C712 -> 2.351 | H27: ='ICL-64-NOASM'!C712 -> 2.146 | I27: ='GCC-64-NOASM'!C929 -> 1.783 | K27: ='GCC-64-NOASM'!C929 -> 1.783 | L27: ='GCC-64-ASM'!H216 -> 1.893
D32: =B2 -> CL/Slicing/SSE2 | E32: ICL/Slicing/SSE2 | F32: GCC/Slicing/UINT | G32: GCC/Slicing/SSE2 | H32: GCC/Multiword/UINT/3 | I32: CL/Multiword/SSE2/5 | J32: ICL/Multiword/SSE2/5 | K32: =I2 -> GCC/Multiword/SSE2/6
C33: 16 | D33: =B5 -> 4.971 | E33: =C5 -> 3.975 | F33: 4.501 | G33: 3.448 | H33: 5.047 | I33: 4.785 | J33: 4.355 | K33: 4.235
C34: 32 | D34: 4.359 | E34: =C6 -> 3.579 | F34: 3.794 | G34: 2.854 | H34: 4.146 | I34: 4.393 | J34: 3.699 | K34: 3.351
C35: 64 | D35: 4.016 | E35: =C7 -> 3.404 | F35: 3.454 | G35: 2.674 | H35: 3.828 | I35: 4.076 | J35: 3.518 | K35: 2.899
C36: 128 | D36: 3.9 | E36: =C8 -> 3.258 | F36: 3.244 | G36: 2.556 | H36: 3.299 | I36: 2.937 | J36: 2.71 | K36: 2.342
C37: 256 | D37: 3.805 | E37: =C9 -> 3.235 | F37: 3.238 | G37: 2.48 | H37: 3.02 | I37: 2.559 | J37: 2.329 | K37: 1.925
C38: 512 | D38: 3.779 | E38: =C10 -> 3.271 | F38: 3.197 | G38: 2.445 | H38: 2.978 | I38: 2.426 | J38: 2.162 | K38: 1.938
C39: 1K | D39: 4.006 | E39: =C11 -> 3.565 | F39: 3.356 | G39: 2.627 | H39: 3.042 | I39: 2.433 | J39: 2.232 | K39: 1.853
C40: 2K | D40: 4.13 | E40: =C12 -> 3.667 | F40: 3.506 | G40: 2.785 | H40: 3.063 | I40: 2.307 | J40: 2.105 | K40: 1.801
C41: 4K | D41: 4.046 | E41: =C13 -> 3.586 | F41: 3.48 | G41: 2.792 | H41: 3.006 | I41: 2.246 | J41: 2.05 | K41: 1.716
C42: 8K | D42: 4.119 | E42: =C14 -> 3.641 | F42: 3.57 | G42: 2.862 | H42: 2.974 | I42: 2.219 | J42: 2.024 | K42: 1.684
C43: 16K | D43: 4.128 | E43: =C15 -> 3.675 | F43: 3.611 | G43: 2.966 | H43: 2.998 | I43: 2.2 | J43: 2 | K43: 1.648
C44: 32K | D44: 4.201 | E44: =C16 -> 3.748 | F44: 3.656 | G44: 2.967 | H44: 2.983 | I44: 2.188 | J44: 1.982 | K44: 1.641
C45: 64K | D45: 4.182 | E45: =C17 -> 3.718 | F45: 3.638 | G45: 2.988 | H45: 2.982 | I45: 2.186 | J45: 1.986 | K45: 1.632
C46: 128K | D46: 4.194 | E46: =C18 -> 3.744 | F46: 3.671 | G46: 2.986 | H46: 2.979 | I46: 2.185 | J46: 1.986 | K46: 1.629
C47: 256K | D47: 4.201 | E47: =C19 -> 3.746 | F47: 3.673 | G47: 2.991 | H47: 2.979 | I47: 2.184 | J47: 1.985 | K47: 1.627
C48: 512K | D48: 4.233 | E48: =C20 -> 3.784 | F48: 3.698 | G48: 3.003 | H48: 2.98 | I48: 2.185 | J48: 1.985 | K48: 1.627
C49: 1M | D49: 4.242 | E49: =C21 -> 3.807 | F49: 3.718 | G49: 3.032 | H49: 3.004 | I49: 2.202 | J49: 2.01 | K49: 1.63
C50: 2M | D50: 4.262 | E50: =C22 -> 3.819 | F50: 3.731 | G50: 3.053 | H50: 3.019 | I50: 2.212 | J50: 2.011 | K50: 1.643
C51: 4M | D51: 4.267 | E51: =C23 -> 3.82 | F51: 3.752 | G51: 3.062 | H51: 3.025 | I51: 2.217 | J51: 2.013 | K51: 1.654
C52: 8M | D52: 4.417 | E52: =C24 -> 3.954 | F52: 3.892 | G52: 3.191 | H52: 3.179 | I52: 2.337 | J52: 2.134 | K52: 1.776
C53: 16M | D53: 4.42 | E53: =C25 -> 3.963 | F53: 3.896 | G53: 3.194 | H53: 3.188 | I53: 2.346 | J53: 2.138 | K53: 1.779
C54: 32M | D54: 4.428 | E54: =C26 -> 3.969 | F54: 3.897 | G54: 3.201 | H54: 3.189 | I54: 2.353 | J54: 2.146 | K54: 1.78
C55: 64M | D55: 4.434 | E55: =C27 -> 3.969 | F55: 3.908 | G55: 3.203 | H55: 3.193 | I55: 2.351 | J55: 2.146 | K55: 1.783
D64: =F32 -> GCC/Slicing/UINT | E64: GCC/Slicing/SSE2 | F64: GCC/Multiword/UINT/3 | G64: CL/Multiword/SSE2/5 | H64: ICL/Multiword/SSE2/5 | I64: GCC/Multiword/SSE2/6
C65: 256 | D65: =F37 -> 3.238 | E65: =G37 -> 2.48 | F65: =H37 -> 3.02 | G65: =I37 -> 2.559 | H65: =J37 -> 2.329 | I65: =K37 -> 1.925
C66: 512 | D66: 3.197 | E66: 2.445 | F66: 2.978 | G66: 2.426 | H66: 2.162 | I66: 1.938
C67: 1K | D67: 3.356 | E67: 2.627 | F67: 3.042 | G67: 2.433 | H67: 2.232 | I67: 1.853
C68: 2K | D68: 3.506 | E68: 2.785 | F68: 3.063 | G68: 2.307 | H68: 2.105 | I68: 1.801
C69: 4K | D69: 3.48 | E69: 2.792 | F69: 3.006 | G69: 2.246 | H69: 2.05 | I69: 1.716
C70: 8K | D70: 3.57 | E70: 2.862 | F70: 2.974 | G70: 2.219 | H70: 2.024 | I70: 1.684
C71: 16K | D71: 3.611 | E71: 2.966 | F71: 2.998 | G71: 2.2 | H71: 2 | I71: 1.648
C72: 32K | D72: 3.656 | E72: 2.967 | F72: 2.983 | G72: 2.188 | H72: 1.982 | I72: 1.641
C73: 64K | D73: 3.638 | E73: 2.988 | F73: 2.982 | G73: 2.186 | H73: 1.986 | I73: 1.632
C74: 128K | D74: 3.671 | E74: 2.986 | F74: 2.979 | G74: 2.185 | H74: 1.986 | I74: 1.629
C75: 256K | D75: 3.673 | E75: 2.991 | F75: 2.979 | G75: 2.184 | H75: 1.985 | I75: 1.627
C76: 512K | D76: 3.698 | E76: 3.003 | F76: 2.98 | G76: 2.185 | H76: 1.985 | I76: 1.627
C77: 1M | D77: 3.718 | E77: 3.032 | F77: 3.004 | G77: 2.202 | H77: 2.01 | I77: 1.63
C78: 2M | D78: 3.731 | E78: 3.053 | F78: 3.019 | G78: 2.212 | H78: 2.011 | I78: 1.643
C79: 4M | D79: 3.752 | E79: 3.062 | F79: 3.025 | G79: 2.217 | H79: 2.013 | I79: 1.654
C80: 8M | D80: 3.892 | E80: 3.191 | F80: 3.179 | G80: 2.337 | H80: 2.134 | I80: 1.776
C81: 16M | D81: 3.896 | E81: 3.194 | F81: 3.188 | G81: 2.346 | H81: 2.138 | I81: 1.779
C82: 32M | D82: 3.897 | E82: 3.201 | F82: 3.189 | G82: 2.353 | H82: 2.146 | I82: 1.78
C83: 64M | D83: 3.908 | E83: 3.203 | F83: 3.193 | G83: 2.351 | H83: 2.146 | I83: 1.783

Sheet Compilers2
B1: CRC-64 | D1: N=5 | E1: N=5 | F1: N=6 | G1: N=3 | H1: N=3 | I1: N=4 | J1: N=4
B2: MemSpeed | C2: Byte | D2: CL-128 | E2: ICL-128 | F2: GCC-128 | G2: GCC-64 | H2: ICL-64 | I2: CL-64 | J2: GCC-64/ASM
A3: 4 | D3: ='CL-64-NOASM'!C688 -> 12.337 | E3: ='ICL-64-NOASM'!C688 -> 13.157 | F3: ='GCC-64-NOASM'!C905 -> 11.675 | G3: ='GCC-64-NOASM'!C595 -> 8.919 | H3: ='ICL-64-NOASM'!C409 -> 9.07 | I3: ='CL-64-NOASM'!H6 -> 7.3 | J3: ='GCC-64-ASM'!H6 -> 7.731
A4: 8 | D4: ='CL-64-NOASM'!C689 -> 6.501 | E4: ='ICL-64-NOASM'!C689 -> 5.529 | F4: ='GCC-64-NOASM'!C906 -> 5.574 | G4: ='GCC-64-NOASM'!C596 -> 4.008 | H4: ='ICL-64-NOASM'!C410 -> 4.126 | I4: ='CL-64-NOASM'!H7 -> 2.972 | J4: ='GCC-64-ASM'!H7 -> 3.238
A5: 16 | D5: ='CL-64-NOASM'!C690 -> 4.785 | E5: ='ICL-64-NOASM'!C690 -> 4.355 | F5: ='GCC-64-NOASM'!C907 -> 4.235 | G5: ='GCC-64-NOASM'!C597 -> 3.065 | H5: ='ICL-64-NOASM'!C411 -> 3.195 | I5: ='CL-64-NOASM'!H8 -> 2.499 | J5: ='GCC-64-ASM'!H8 -> 2.631 | N5: =C33 -> 64 | O5: =C35 -> 256 | P5: =C37 -> 1K | Q5: =C39 -> 4K | R5: =C41 -> 16K | S5: =C43 -> 64K | T5: =C45 -> 256K | U5: =C47 -> 1M
A6: 32 | D6: ='CL-64-NOASM'!C691 -> 4.393 | E6: ='ICL-64-NOASM'!C691 -> 3.699 | F6: ='GCC-64-NOASM'!C908 -> 3.351 | G6: ='GCC-64-NOASM'!C598 -> 2.578 | H6: ='ICL-64-NOASM'!C412 -> 2.742 | I6: ='CL-64-NOASM'!H9 -> 2.294 | J6: ='GCC-64-ASM'!H9 -> 2.433 | M6: =D30 -> CL-128 | N6: =D33 -> 4.08 | O6: =D35 -> 2.56 | P6: =D37 -> 2.43 | Q6: =D39 -> 2.25 | R6: =D41 -> 2.20 | S6: =D43 -> 2.19 | T6: =D45 -> 2.18 | U6: =D47 -> 2.20
A7: 64 | D7: ='CL-64-NOASM'!C692 -> 4.076 | E7: ='ICL-64-NOASM'!C692 -> 3.518 | F7: ='GCC-64-NOASM'!C909 -> 2.899 | G7: ='GCC-64-NOASM'!C599 -> 2.11 | H7: ='ICL-64-NOASM'!C413 -> 2.349 | I7: ='CL-64-NOASM'!H10 -> 1.75 | J7: ='GCC-64-ASM'!H10 -> 1.651 | M7: =E30 -> ICL-128 | N7: =E33 -> 3.52 | O7: =E35 -> 2.33 | P7: =E37 -> 2.23 | Q7: =E39 -> 2.05 | R7: =E41 -> 2.00 | S7: =E43 -> 1.99 | T7: =E45 -> 1.99 | U7: =E47 -> 2.01
A8: 128 | D8: ='CL-64-NOASM'!C693 -> 2.937 | E8: ='ICL-64-NOASM'!C693 -> 2.71 | F8: ='GCC-64-NOASM'!C910 -> 2.342 | G8: ='GCC-64-NOASM'!C600 -> 1.917 | H8: ='ICL-64-NOASM'!C414 -> 1.818 | I8: ='CL-64-NOASM'!H11 -> 1.433 | J8: ='GCC-64-ASM'!H11 -> 1.397 | M8: =F30 -> GCC-128 | N8: =F33 -> 2.90 | O8: =F35 -> 1.93 | P8: =F37 -> 1.85 | Q8: =F39 -> 1.72 | R8: =F41 -> 1.65 | S8: =F43 -> 1.63 | T8: =F45 -> 1.63 | U8: =F47 -> 1.63
A9: 256 | D9: ='CL-64-NOASM'!C694 -> 2.559 | E9: ='ICL-64-NOASM'!C694 -> 2.329 | F9: ='GCC-64-NOASM'!C911 -> 1.925 | G9: ='GCC-64-NOASM'!C601 -> 1.84 | H9: ='ICL-64-NOASM'!C415 -> 1.654 | I9: ='CL-64-NOASM'!H12 -> 1.293 | J9: ='GCC-64-ASM'!H12 -> 1.262 | M9: =G30 -> GCC-64 | N9: =G33 -> 2.11 | O9: =G35 -> 1.84 | P9: =G37 -> 1.76 | Q9: =G39 -> 1.74 | R9: =G41 -> 1.75 | S9: =G43 -> 1.75 | T9: =G45 -> 1.75 | U9: =G47 -> 1.76
A10: 512 | D10: ='CL-64-NOASM'!C695 -> 2.426 | E10: ='ICL-64-NOASM'!C695 -> 2.162 | F10: ='GCC-64-NOASM'!C912 -> 1.938 | G10: ='GCC-64-NOASM'!C602 -> 1.769 | H10: ='ICL-64-NOASM'!C416 -> 1.516 | I10: ='CL-64-NOASM'!H13 -> 1.216 | J10: ='GCC-64-ASM'!H13 -> 1.2 | M10: =H30 -> ICL-64 | N10: =H33 -> 2.35 | O10: =H35 -> 1.65 | P10: =H37 -> 1.48 | Q10: =H39 -> 1.44 | R10: =H41 -> 1.44 | S10: =H43 -> 1.45 | T10: =H45 -> 1.45 | U10: =H47 -> 1.45
A11: 1024 | D11: ='CL-64-NOASM'!C696 -> 2.433 | E11: ='ICL-64-NOASM'!C696 -> 2.232 | F11: ='GCC-64-NOASM'!C913 -> 1.853 | G11: ='GCC-64-NOASM'!C603 -> 1.755 | H11: ='ICL-64-NOASM'!C417 -> 1.481 | I11: ='CL-64-NOASM'!H14 -> 1.178 | J11: ='GCC-64-ASM'!H14 -> 1.166 | M11: =I30 -> CL-64 | N11: =I33 -> 1.75 | O11: =I35 -> 1.29 | P11: =I37 -> 1.18 | Q11: =I39 -> 1.15 | R11: =I41 -> 1.17 | S11: =I43 -> 1.18 | T11: =I45 -> 1.18 | U11: =I47 -> 1.18
A12: 2048 | D12: ='CL-64-NOASM'!C697 -> 2.307 | E12: ='ICL-64-NOASM'!C697 -> 2.105 | F12: ='GCC-64-NOASM'!C914 -> 1.801 | G12: ='GCC-64-NOASM'!C604 -> 1.747 | H12: ='ICL-64-NOASM'!C418 -> 1.449 | I12: ='CL-64-NOASM'!H15 -> 1.162 | J12: ='GCC-64-ASM'!H15 -> 1.152 | M12: =J30 -> GCC-64/ASM | N12: =J33 -> 1.65 | O12: =J35 -> 1.26 | P12: =J37 -> 1.17 | Q12: =J39 -> 1.15 | R12: =J41 -> 1.16 | S12: =J43 -> 1.17 | T12: =J45 -> 1.17 | U12: =J47 -> 1.17
A13: 4096 | D13: ='CL-64-NOASM'!C698 -> 2.246 | E13: ='ICL-64-NOASM'!C698 -> 2.05 | F13: ='GCC-64-NOASM'!C915 -> 1.716 | G13: ='GCC-64-NOASM'!C605 -> 1.735 | H13: ='ICL-64-NOASM'!C419 -> 1.439 | I13: ='CL-64-NOASM'!H16 -> 1.153 | J13: ='GCC-64-ASM'!H16 -> 1.145
A14: 8192 | D14: ='CL-64-NOASM'!C699 -> 2.219 | E14: ='ICL-64-NOASM'!C699 -> 2.024 | F14: ='GCC-64-NOASM'!C916 -> 1.684 | G14: ='GCC-64-NOASM'!C606 -> 1.737 | H14: ='ICL-64-NOASM'!C420 -> 1.435 | I14: ='CL-64-NOASM'!H17 -> 1.156 | J14: ='GCC-64-ASM'!H17 -> 1.147
A15: 16384 | D15: ='CL-64-NOASM'!C700 -> 2.2 | E15: ='ICL-64-NOASM'!C700 -> 2 | F15: ='GCC-64-NOASM'!C917 -> 1.648 | G15: ='GCC-64-NOASM'!C607 -> 1.747 | H15: ='ICL-64-NOASM'!C421 -> 1.44 | I15: ='CL-64-NOASM'!H18 -> 1.168 | J15: ='GCC-64-ASM'!H18 -> 1.155 | M15: =D2 -> CL-128 | N15: =E2 -> ICL-128 | O15: GCC-128 | P15: GCC-64 | Q15: ICL-64 | R15: CL-64 | S15: GCC-64/ASM
A16: 32768 | D16: ='CL-64-NOASM'!C701 -> 2.188 | E16: ='ICL-64-NOASM'!C701 -> 1.982 | F16: ='GCC-64-NOASM'!C918 -> 1.641 | G16: ='GCC-64-NOASM'!C608 -> 1.748 | H16: ='ICL-64-NOASM'!C422 -> 1.445 | I16: ='CL-64-NOASM'!H19 -> 1.179 | J16: ='GCC-64-ASM'!H19 -> 1.171 | M16: =AVERAGE(D11:D21) -> 2.23 | N16: =AVERAGE(E11:E21) -> 2.03 | O16: 1.68 | P16: 1.75 | Q16: 1.45 | R16: 1.17 | S16: 1.16
A17: 65536 | D17: ='CL-64-NOASM'!C702 -> 2.186 | E17: ='ICL-64-NOASM'!C702 -> 1.986 | F17: ='GCC-64-NOASM'!C919 -> 1.632 | G17: ='GCC-64-NOASM'!C609 -> 1.751 | H17: ='ICL-64-NOASM'!C423 -> 1.446 | I17: ='CL-64-NOASM'!H20 -> 1.182 | J17: ='GCC-64-ASM'!H20 -> 1.172 | L17: Ratio | M17: =M16/O16 -> 1.33 | N17: =N16/O16 -> 1.21 | P17: =P16/R16 -> 1.49 | Q17: =Q16/R16 -> 1.23
A18: 131072 | D18: ='CL-64-NOASM'!C703 -> 2.185 | E18: ='ICL-64-NOASM'!C703 -> 1.986 | F18: ='GCC-64-NOASM'!C920 -> 1.629 | G18: ='GCC-64-NOASM'!C610 -> 1.751 | H18: ='ICL-64-NOASM'!C424 -> 1.446 | I18: ='CL-64-NOASM'!H21 -> 1.182 | J18: ='GCC-64-ASM'!H21 -> 1.172
A19: 262144 | D19: ='CL-64-NOASM'!C704 -> 2.184 | E19: ='ICL-64-NOASM'!C704 -> 1.985 | F19: ='GCC-64-NOASM'!C921 -> 1.627 | G19: ='GCC-64-NOASM'!C611 -> 1.752 | H19: ='ICL-64-NOASM'!C425 -> 1.445 | I19: ='CL-64-NOASM'!H22 -> 1.182 | J19: ='GCC-64-ASM'!H22 -> 1.172
A20: 524288 | D20: ='CL-64-NOASM'!C705 -> 2.185 | E20: ='ICL-64-NOASM'!C705 -> 1.985 | F20: ='GCC-64-NOASM'!C922 -> 1.627 | G20: ='GCC-64-NOASM'!C612 -> 1.751 | H20: ='ICL-64-NOASM'!C426 -> 1.445 | I20: ='CL-64-NOASM'!H23 -> 1.182 | J20: ='GCC-64-ASM'!H23 -> 1.172
A21: 1048576 | D21: ='CL-64-NOASM'!C706 -> 2.202 | E21: ='ICL-64-NOASM'!C706 -> 2.01 | F21: ='GCC-64-NOASM'!C923 -> 1.63 | G21: ='GCC-64-NOASM'!C613 -> 1.763 | H21: ='ICL-64-NOASM'!C427 -> 1.447 | I21: ='CL-64-NOASM'!H24 -> 1.183 | J21: ='GCC-64-ASM'!H24 -> 1.173
A22: 2097152 | D22: ='CL-64-NOASM'!C707 -> 2.212 | E22: ='ICL-64-NOASM'!C707 -> 2.011 | F22: ='GCC-64-NOASM'!C924 -> 1.643 | G22: ='GCC-64-NOASM'!C614 -> 1.776 | H22: ='ICL-64-NOASM'!C428 -> 1.461 | I22: ='CL-64-NOASM'!H25 -> 1.197 | J22: ='GCC-64-ASM'!H25 -> 1.187
A23: 4194304 | D23: ='CL-64-NOASM'!C708 -> 2.217 | E23: ='ICL-64-NOASM'!C708 -> 2.013 | F23: ='GCC-64-NOASM'!C925 -> 1.654 | G23: ='GCC-64-NOASM'!C615 -> 1.777 | H23: ='ICL-64-NOASM'!C429 -> 1.464 | I23: ='CL-64-NOASM'!H26 -> 1.197 | J23: ='GCC-64-ASM'!H26 -> 1.187
A24: 8388608 | D24: ='CL-64-NOASM'!C709 -> 2.337 | E24: ='ICL-64-NOASM'!C709 -> 2.134 | F24: ='GCC-64-NOASM'!C926 -> 1.776 | G24: ='GCC-64-NOASM'!C616 -> 1.908 | H24: ='ICL-64-NOASM'!C430 -> 1.585 | I24: ='CL-64-NOASM'!H27 -> 1.301 | J24: ='GCC-64-ASM'!H27 -> 1.295
A25: 16777216 | D25: ='CL-64-NOASM'!C710 -> 2.346 | E25: ='ICL-64-NOASM'!C710 -> 2.138 | F25: ='GCC-64-NOASM'!C927 -> 1.779 | G25: ='GCC-64-NOASM'!C617 -> 1.917 | H25: ='ICL-64-NOASM'!C431 -> 1.595 | I25: ='CL-64-NOASM'!H28 -> 1.3 | J25: ='GCC-64-ASM'!H28 -> 1.3
A26: 33554432 | D26: ='CL-64-NOASM'!C711 -> 2.353 | E26: ='ICL-64-NOASM'!C711 -> 2.146 | F26: ='GCC-64-NOASM'!C928 -> 1.78 | G26: ='GCC-64-NOASM'!C618 -> 1.915 | H26: ='ICL-64-NOASM'!C432 -> 1.594 | I26: ='CL-64-NOASM'!H29 -> 1.302 | J26: ='GCC-64-ASM'!H29 -> 1.299
A27: 67108864 | D27: ='CL-64-NOASM'!C712 -> 2.351 | E27: ='ICL-64-NOASM'!C712 -> 2.146 | F27: ='GCC-64-NOASM'!C929 -> 1.783 | G27: ='GCC-64-NOASM'!C619 -> 1.913 | H27: ='ICL-64-NOASM'!C433 -> 1.596 | I27: ='CL-64-NOASM'!H30 -> 1.304 | J27: ='GCC-64-ASM'!H30 -> 1.302
D30: =D2 -> CL-128 | E30: =E2 -> ICL-128 | F30: GCC-128 | G30: GCC-64 | H30: ICL-64 | I30: CL-64 | J30: GCC-64/ASM
C31: 16 | D31: =D5 -> 4.785 | E31: =E5 -> 4.355 | F31: 4.235 | G31: 3.065 | H31: 3.195 | I31: 2.499 | J31: 2.631
C32: 32 | D32: =D6 -> 4.393 | E32: 3.699 | F32: 3.351 | G32: 2.578 | H32: 2.742 | I32: 2.294 | J32: 2.433
C33: 64 | D33: =D7 -> 4.076 | E33: 3.518 | F33: 2.899 | G33: 2.11 | H33: 2.349 | I33: 1.75 | J33: 1.651
C34: 128 | D34: =D8 -> 2.937 | E34: 2.71 | F34: 2.342 | G34: 1.917 | H34: 1.818 | I34: 1.433 | J34: 1.397
C35: 256 | D35: =D9 -> 2.559 | E35: 2.329 | F35: 1.925 | G35: 1.84 | H35: 1.654 | I35: 1.293 | J35: 1.262
C36: 512 | D36: =D10 -> 2.426 | E36: 2.162 | F36: 1.938 | G36: 1.769 | H36: 1.516 | I36: 1.216 | J36: 1.2
C37: 1K | D37: =D11 -> 2.433 | E37: 2.232 | F37: 1.853 | G37: 1.755 | H37: 1.481 | I37: 1.178 | J37: 1.166
C38: 2K | D38: =D12 -> 2.307 | E38: 2.105 | F38: 1.801 | G38: 1.747 | H38: 1.449 | I38: 1.162 | J38: 1.152
C39: 4K | D39: =D13 -> 2.246 | E39: 2.05 | F39: 1.716 | G39: 1.735 | H39: 1.439 | I39: 1.153 | J39: 1.145
C40: 8K | D40: =D14 -> 2.219 | E40: 2.024 | F40: 1.684 | G40: 1.737 | H40: 1.435 | I40: 1.156 | J40: 1.147
C41: 16K | D41: =D15 -> 2.2 | E41: 2 | F41: 1.648 | G41: 1.747 | H41: 1.44 | I41: 1.168 | J41: 1.155
C42: 32K | D42: =D16 -> 2.188 | E42: 1.982 | F42: 1.641 | G42: 1.748 | H42: 1.445 | I42: 1.179 | J42: 1.171
C43: 64K | D43: =D17 -> 2.186 | E43: 1.986 | F43: 1.632 | G43: 1.751 | H43: 1.446 | I43: 1.182 | J43: 1.172
C44: 128K | D44: =D18 -> 2.185 | E44: 1.986 | F44: 1.629 | G44: 1.751 | H44: 1.446 | I44: 1.182 | J44: 1.172
C45: 256K | D45: =D19 -> 2.184 | E45: 1.985 | F45: 1.627 | G45: 1.752 | H45: 1.445 | I45: 1.182 | J45: 1.172
C46: 512K | D46: =D20 -> 2.185 | E46: 1.985 | F46: 1.627 | G46: 1.751 | H46: 1.445 | I46: 1.182 | J46: 1.172
C47: 1M | D47: =D21 -> 2.202 | E47: 2.01 | F47: 1.63 | G47: 1.763 | H47: 1.447 | I47: 1.183 | J47: 1.173
C48: 2M | D48: =D22 -> 2.212 | E48: 2.011 | F48: 1.643 | G48: 1.776 | H48: 1.461 | I48: 1.197 | J48: 1.187
C49: 4M | D49: =D23 -> 2.217 | E49: 2.013 | F49: 1.654 | G49: 1.777 | H49: 1.464 | I49: 1.197 | J49: 1.187
C50: 8M | D50: =D24 -> 2.337 | E50: 2.134 | F50: 1.776 | G50: 1.908 | H50: 1.585 | I50: 1.301 | J50: 1.295
C51: 16M | D51: =D25 -> 2.346 | E51: 2.138 | F51: 1.779 | G51: 1.917 | H51: 1.595 | I51: 1.3 | J51: 1.3
C52: 32M | D52: =D26 -> 2.353 | E52: 2.146 | F52: 1.78 | G52: 1.915 | H52: 1.594 | I52: 1.302 | J52: 1.299
C53: 64M | D53: =D27 -> 2.351 | E53: 2.146 | F53: 1.783 | G53: 1.913 | H53: 1.596 | I53: 1.304 | J53: 1.302
D62: =D30 -> CL-128 | E62: ICL-128 | F62: GCC-128 | G62: GCC-64 | H62: ICL-64 | I62: CL-64
C63: 256 | D63: =D35 -> 2.559 | E63: 2.329 | F63: 1.925 | G63: 1.84 | H63: 1.654 | I63: 1.293
C64: 512 | D64: 2.426 | E64: 2.162 | F64: 1.938 | G64: 1.769 | H64: 1.516 | I64: 1.216
C65: 1K | D65: 2.433 | E65: 2.232 | F65: 1.853 | G65: 1.755 | H65: 1.481 | I65: 1.178
C66: 2K | D66: 2.307 | E66: 2.105 | F66: 1.801 | G66: 1.747 | H66: 1.449 | I66: 1.162
C67: 4K | D67: 2.246 | E67: 2.05 | F67: 1.716 | G67: 1.735 | H67: 1.439 | I67: 1.153
C68: 8K | D68: 2.219 | E68: 2.024 | F68: 1.684 | G68: 1.737 | H68: 1.435 | I68: 1.156
C69: 16K | D69: 2.2 | E69: 2 | F69: 1.648 | G69: 1.747 | H69: 1.44 | I69: 1.168
C70: 32K | D70: 2.188 | E70: 1.982 | F70: 1.641 | G70: 1.748 | H70: 1.445 | I70: 1.179
C71: 64K | D71: 2.186 | E71: 1.986 | F71: 1.632 | G71: 1.751 | H71: 1.446 | I71: 1.182
C72: 128K | D72: 2.185 | E72: 1.986 | F72: 1.629 | G72: 1.751 | H72: 1.446 | I72: 1.182
C73: 256K | D73: 2.184 | E73: 1.985 | F73: 1.627 | G73: 1.752 | H73: 1.445 | I73: 1.182
C74: 512K | D74: 2.185 | E74: 1.985 | F74: 1.627 | G74: 1.751 | H74: 1.445 | I74: 1.182
C75: 1M | D75: 2.202 | E75: 2.01 | F75: 1.63 | G75: 1.763 | H75: 1.447 | I75: 1.183
C76: 2M | D76: 2.212 | E76: 2.011 | F76: 1.643 | G76: 1.776 | H76: 1.461 | I76: 1.197
C77: 4M | D77: 2.217 | E77: 2.013 | F77: 1.654 | G77: 1.777 | H77: 1.464 | I77: 1.197
C78: 8M | D78: 2.337 | E78: 2.134 | F78: 1.776 | G78: 1.908 | H78: 1.585 | I78: 1.301
C79: 16M | D79: =D51 -> 2.346 | E79: 2.138 | F79: 1.779 | G79: 1.917 | H79: 1.595 | I79: 1.3
C80: 32M | D80: 2.353 | E80: 2.146 | F80: 1.78 | G80: 1.915 | H80: 1.594 | I80: 1.302
C81: 64M | D81: 2.351 | E81: 2.146 | F81: 1.783 | G81: 1.913 | H81: 1.596 | I81: 1.304

Sheet CL-32-ASM
A1: ClassTitle | B1: CRC-64-u64/u64/u64-4-canonical
A2: Compiler | B2: CpuBits | C2: Degree | D2: Crc | E2: TableEntry | F2: Word | G2: Stride | H2: Alignment | I2: TableBytes | J2: InitCycles
A3: CL-150030729 | B3: 32 | C3: 64 | D3: 8 | E3: 8 | F3: 8 | G3: 4 | H3: 0 | I3: 33368 | J3: 120654
B5: MemSpeed | C5: Byte | D5: ByteUnrolled | E5: ByteWord | F5: Word | G5: Blockword | H5: Multiword | J5: BestTime | K5: BestMethod
A6: 4 | B6: 7.269 | C6: 10.295 | D6: 10.085 | E6: 10.669 | F6: 10.752 | G6: 10.967 | H6: 10.329 | J6: 10.085 | K6: ByteUnrolled
A7: 8 | B7: 2.815 | C7: 8.617 | D7: 8.142 | E7: 7.973 | F7: 8.189 | G7: 8.509 | H7: 8.649 | J7: 7.973 | K7: ByteWord
A8: 16 | B8: 1.445 | C8: 7.936 | D8: 7.912 | E8: 7.36 | F8: 7.184 | G8: 7.048 | H8: 5.688 | J8: 5.688 | K8: Multiword
A9: 32 | B9: 0.847 | C9: 7.728 | D9: 7.564 | E9: 6.985 | F9: 4.967 | G9: 6.595 | H9: 3.985 | J9: 3.985 | K9: Multiword
A10: 64 | B10: 0.547 | C10: 7.595 | D10: 7.476 | E10: 6.664 | F10: 4.698 | G10: 6.313 | H10: 2.579 | J10: 2.579 | K10: Multiword
A11: 128 | B11: 0.399 | C11: 7.68 | D11: 7.488 | E11: 6.467 | F11: 4.602 | G11: 6.111 | H11: 1.899 | J11: 1.899 | K11: Multiword
A12: 256 | B12: 0.325 | C12: 7.511 | D12: 7.436 | E12: 6.361 | F12: 4.52 | G12: 6.04 | H12: 1.565 | J12: 1.565 | K12: Multiword
A13: 512 | B13: 0.288 | C13: 7.532 | D13: 7.46 | E13: 6.378 | F13: 4.47 | G13: 5.994 | H13: 1.415 | J13: 1.415 | K13: Multiword
A14: 1024 | B14: 0.269 | C14: 7.451 | D14: 7.448 | E14: 6.356 | F14: 4.436 | G14: 6.04 | H14: 1.331 | J14: 1.331 | K14: Multiword
A15: 2048 | B15: 0.26 | C15: 7.444 | D15: 7.443 | E15: 6.346 | F15: 4.445 | G15: 6.024 | H15: 1.287 | J15: 1.287 | K15: Multiword
A16: 4096 | B16: 0.259 | C16: 7.428 | D16: 7.428 | E16: 6.363 | F16: 4.466 | G16: 6.03 | H16: 1.269 | J16: 1.269 | K16: Multiword
A17: 8192 | B17: 0.255 | C17: 7.357 | D17: 7.421 | E17: 6.362 | F17: 4.438 | G17: 6.01 | H17: 1.268 | J17: 1.268 | K17: Multiword
A18: 16384 | B18: 0.252 | C18: 7.313 | D18: 7.375 | E18: 6.358 | F18: 4.442 | G18: 6.017 | H18: 1.281 | J18: 1.281 | K18: Multiword
A19: 32768 | B19: 0.26 | C19: 7.383 | D19: 7.668 | E19: 6.354 | F19: 4.437 | G19: 6.029 | H19: 1.287 | J19: 1.287 | K19: Multiword
A20: 65536 | B20: 0.302 | C20: 7.391 | D20: 7.529 | E20: 6.349 | F20: 4.443 | G20: 6.878 | H20: 1.288 | J20: 1.288 | K20: Multiword
A21: 131072 | B21: 0.302 | C21: 7.386 | D21: 7.446 | E21: 6.345 | F21: 4.447 | G21: 6.839 | H21: 1.288 | J21: 1.288 | K21: Multiword
A22: 262144 | B22: 0.302 | C22: 7.45 | D22: 7.531 | E22: 6.344 | F22: 4.446 | G22: 6.837 | H22: 1.288 | J22: 1.288 | K22: Multiword
A23: 524288 | B23: 0.301 | C23: 7.47 | D23: 7.526 | E23: 6.395 | F23: 4.465 | G23: 6.863 | H23: 1.288 | J23: 1.288 | K23: Multiword
A24: 1048576 | B24: 0.302 | C24: 7.498 | D24: 7.552 | E24: 6.42 | F24: 4.495 | G24: 6.93 | H24: 1.288 | J24: 1.288 | K24: Multiword
A25: 2097152 | B25: 0.304 | C25: 7.508 | D25: 7.554 | E25: 6.422 | F25: 4.503 | G25: 6.944 | H25: 1.301 | J25: 1.301 | K25: Multiword
A26: 4194304 | B26: 0.304 | C26: 7.527 | D26: 7.574 | E26: 6.443 | F26: 4.509 | G26: 6.954 | H26: 1.301 | J26: 1.301 | K26: Multiword
A27: 8388608 | B27: 0.543 | C27: 7.723 | D27: 7.784 | E27: 6.635 | F27: 4.678 | G27: 7.117 | H27: 1.405 | J27: 1.405 | K27: Multiword
A28: 16777216 | B28: 0.556 | C28: 7.733 | D28: 7.784 | E28: 6.641 | F28: 4.688 | G28: 7.133 | H28: 1.409 | J28: 1.409 | K28: Multiword
A29: 33554432 | B29: 0.557 | C29: 7.753 | D29: 7.802 | E29: 6.656 | F29: 4.697 | G29: 7.133 | H29: 1.413 | J29: 1.413 | K29: Multiword
A30: 67108864 | B30: 0.559 | C30: 7.755 | D30: 7.797 | E30: 6.656 | F30: 4.699 | G30: 7.136 | H30: 1.417 | J30: 1.417 | K30: Multiword
A32: ClassTitle | B32: CRC-64-u64/u64/u64-3-canonical
A33: Compiler | B33: CpuBits | C33: Degree | D33: Crc | E33: TableEntry | F33: Word | G33: Stride | H33: Alignment | I33: TableBytes | J33: InitCycles
A34: CL-150030729 | B34: 32 | C34: 64 | D34: 8 | E34: 8 | F34: 8 | G34: 3 | H34: 0 | I34: 33368 | J34: 129960
B36: Blockword | C36: Multiword | E36: BestTime | F36: BestMethod
A37: 4 | B37: 10.796 | C37: 10.702 | E37: 10.702 | F37: Multiword
A38: 8 | B38: 6.258 | C38: 8.251 | E38: 6.258 | F38: Blockword
A39: 16 | B39: 4.86 | C39: 7.234 | E39: 4.86 | F39: Blockword
A40: 32 | B40: 4.143 | C40: 6.626 | E40: 4.143 | F40: Blockword
A41: 64 | B41: 3.688 | C41: 7.375 | E41: 3.688 | F41: Blockword
A42: 128 | B42: 3.605 | C42: 8.016 | E42: 3.605 | F42: Blockword
A43: 256 | B43: 3.554 | C43: 8.133 | E43: 3.554 | F43: Blockword
A44: 512 | B44: 3.488 | C44: 8.278 | E44: 3.488 | F44: Blockword
A45: 1024 | B45: 3.469 | C45: 8.323 | E45: 3.469 | F45: Blockword
A46: 2048 | B46: 3.482 | C46: 8.383 | E46: 3.482 | F46: Blockword
A47: 4096 | B47: 3.47 | C47: 8.396 | E47: 3.47 | F47: Blockword
A48: 8192 | B48: 3.464 | C48: 8.404 | E48: 3.464 | F48: Blockword
A49: 16384 | B49: 3.463 | C49: 8.425 | E49: 3.463 | F49: Blockword
A50: 32768 | B50: 3.466 | C50: 8.435 | E50: 3.466 | F50: Blockword
A51: 65536 | B51: 5.069 | C51: 8.438 | E51: 5.069 | F51: Blockword
A52: 131072 | B52: 5.033 | C52: 8.438 | E52: 5.033 | F52: Blockword
A53: 262144 | B53: 5.403 | C53: 8.492 | E53: 5.403 | F53: Blockword
A54: 524288 | B54: 5.631 | C54: 8.506 | E54: 5.631 | F54: Blockword
A55: 1048576 | B55: 5.638 | C55: 8.532 | E55: 5.638 | F55: Blockword
A56: 2097152 | B56: 5.699 | C56: 8.546 | E56: 5.699 | F56: Blockword
A57: 4194304 | B57: 5.712 | C57: 8.568 | E57: 5.712 | F57: Blockword
A58: 8388608 | B58: 5.892 | C58: 8.795 | E58: 5.892 | F58: Blockword
A59: 16777216 | B59: 5.909 | C59: 8.805 | E59: 5.909 | F59: Blockword
A60: 33554432 | B60: 5.909 | C60: 8.807 | E60: 5.909 | F60: Blockword
A61: 67108864 | B61: 5.905 | C61: 8.81 | E61: 5.905 | F61: Blockword
A63: ClassTitle | B63: CRC-32-u64/u64/u64-4-canonical
A64: Compiler | B64: CpuBits | C64: Degree | D64: Crc | E64: TableEntry | F64: Word | G64: Stride | H64: Alignment | I64: TableBytes | J64: InitCycles
A65: CL-150030729 | B65: 32 | C65: 32 | D65: 8 | E65: 8 | F65: 8 | G65: 4 | H65: 0 | I65: 33368 | J65: 940806
B67: MemSpeed | C67: Byte | D67: ByteUnrolled | E67: ByteWord | F67: Word | G67: Blockword | H67: Multiword | I67: CRC32C | K67: BestTime | L67: BestMethod
A68: 4 | B68: 7.319 | C68: 10.407 | D68: 10.214 | E68: 10.669 | F68: 10.752 | G68: 11.076 | H68: 10.329 | I68: 8.877 | K68: 8.877 | L68: CRC32C
A69: 8 | B69: 2.814 | C69: 8.171 | D69: 8.251 | E69: 7.977 | F69: 8.178 | G69: 8.494 | H69: 8.649 | I69: 6.228 | K69: 6.228 | L69: CRC32C
A70: 16 | B70: 1.469 | C70: 7.932 | D70: 7.898 | E70: 7.36 | F70: 7.181 | G70: 7.048 | H70: 5.688 | I70: 3.969 | K70: 3.969 | L70: CRC32C
A71: 32 | B71: 0.844 | C71: 7.728 | D71: 7.578 | E71: 6.987 | F71: 4.912 | G71: 6.596 | H71: 3.985 | I71: 3.282 | K71: 3.282 | L71: CRC32C
A72: 64 | B72: 0.547 | C72: 7.065 | D72: 7.479 | E72: 6.674 | F72: 4.698 | G72: 6.313 | H72: 2.579 | I72: 2.784 | K72: 2.579 | L72: Multiword
A73: 128 | B73: 0.399 | C73: 7.68 | D73: 7.478 | E73: 6.492 | F73: 4.604 | G73: 6.111 | H73: 1.899 | I73: 2.719 | K73: 1.899 | L73: Multiword
A74: 256 | B74: 0.325 | C74: 7.506 | D74: 7.436 | E74: 6.361 | F74: 4.476 | G74: 6.102 | H74: 1.565 | I74: 2.641 | K74: 1.565 | L74: Multiword
A75: 512 | B75: 0.288 | C75: 7.533 | D75: 7.46 | E75: 6.378 | F75: 4.433 | G75: 6.067 | H75: 1.415 | I75: 1.565 | K75: 1.415 | L75: Multiword
A76: 1024 | B76: 0.269 | C76: 7.45 | D76: 7.451 | E76: 6.356 | F76: 4.448 | G76: 5.983 | H76: 1.331 | I76: 1.507 | K76: 1.331 | L76: Multiword
A77: 2048 | B77: 0.26 | C77: 7.446 | D77: 7.44 | E77: 6.347 | F77: 4.431 | G77: 6.054 | H77: 1.287 | I77: 1.491 | K77: 1.287 | L77: Multiword
A78: 4096 | B78: 0.259 | C78: 7.43 | D78: 7.431 | E78: 6.362 | F78: 4.452 | G78: 6.023 | H78: 1.278 | I78: 1.451 | K78: 1.278 | L78: Multiword
A79: 8192 | B79: 0.255 | C79: 7.356 | D79: 7.42 | E79: 6.363 | F79: 4.433 | G79: 5.983 | H79: 1.269 | I79: 1.452 | K79: 1.269 | L79: Multiword
A80: 16384 | B80: 0.252 | C80: 7.283 | D80: 7.365 | E80: 6.354 | F80: 4.442 | G80: 6.017 | H80: 1.275 | I80: 1.454 | K80: 1.275 | L80: Multiword
A81: 32768 | B81: 0.26 | C81: 7.394 | D81: 7.693 | E81: 6.353 | F81: 4.44 | G81: 6.029 | H81: 1.288 | I81: 1.454 | K81: 1.288 | L81: Multiword
A82: 65536 | B82: 0.302 | C82: 7.391 | D82: 7.546 | E82: 6.349 | F82: 4.447 | G82: 6.819 | H82: 1.289 | I82: 1.457 | K82: 1.289 | L82: Multiword
A83: 131072 | B83: 0.302 | C83: 7.395 | D83: 7.457 | E83: 6.341 | F83: 4.447 | G83: 6.804 | H83: 1.288 | I83: 1.457 | K83: 1.288 | L83: Multiword
A84: 262144 | B84: 0.302 | C84: 7.453 | D84: 7.514 | E84: 6.351 | F84: 4.449 | G84: 6.796 | H84: 1.287 | I84: 1.459 | K84: 1.287 | L84: Multiword
A85: 524288 | B85: 0.301 | C85: 7.469 | D85: 7.54 | E85: 6.392 | F85: 4.468 | G85: 6.838 | H85: 1.287 | I85: 1.461 | K85: 1.287 | L85: Multiword
A86: 1048576 | B86: 0.302 | C86: 7.501 | D86: 7.555 | E86: 6.42 | F86: 4.487 | G86: 6.906 | H86: 1.288 | I86: 1.463 | K86: 1.288 | L86: Multiword
A87: 2097152 | B87: 0.304 | C87: 7.507 | D87: 7.551 | E87: 6.426 | F87: 4.503 | G87: 6.919 | H87: 1.294 | I87: 1.474 | K87: 1.294 | L87: Multiword
A88: 4194304 | B88: 0.304 | C88: 7.539 | D88: 7.583 | E88: 6.445 | F88: 4.515 | G88: 6.932 | H88: 1.303 | I88: 1.481 | K88: 1.303 | L88: Multiword
A89: 8388608 | B89: 0.541 | C89: 7.727 | D89: 7.782 | E89: 6.639 | F89: 4.681 | G89: 7.09 | H89: 1.409 | I89: 1.596 | K89: 1.409 | L89: Multiword
A90: 16777216 | B90: 0.552 | C90: 7.743 | D90: 7.797 | E90: 6.647 | F90: 4.695 | G90: 7.101 | H90: 1.408 | I90: 1.599 | K90: 1.408 | L90: Multiword
A91: 33554432 | B91: 0.553 | C91: 7.754 | D91: 7.8 | E91: 6.641 | F91: 4.692 | G91: 7.108 | H91: 1.411 | I91: 1.6 | K91: 1.411 | L91: Multiword
A92: 67108864 | B92: 0.554 | C92: 7.752 | D92: 7.802 | E92: 6.656 | F92: 4.699 | G92: 7.107 | H92: 1.416 | I92: 1.603 | K92: 1.416 | L92: Multiword
A94: ClassTitle | B94: CRC-32-u64/u64/u64-3-canonical
A95: Compiler | B95: CpuBits | C95: Degree | D95: Crc | E95: TableEntry | F95: Word | G95: Stride | H95: Alignment | I95: TableBytes | J95: InitCycles
A96: CL-150030729 | B96: 32 | C96: 32 | D96: 8 | E96: 8 | F96: 8 | G96: 3 | H96: 0 | I96: 33368 | J96: 939843
B98: Blockword | C98: Multiword | D98: CRC32C | F98: BestTime | G98: BestMethod
A99: 4 | B99: 10.825 | C99: 10.702 | D99: 8.877 | F99: 8.877 | G99: CRC32C
A100: 8 | B100: 6.258 | C100: 8.134 | D100: 6.334 | F100: 6.258 | G100: Blockword
A101: 16 | B101: 4.86 | C101: 7.247 | D101: 3.969 | F101: 3.969 | G101: CRC32C
A102: 32 | B102: 4.142 | C102: 6.621 | D102: 3.282 | F102: 3.282 | G102: CRC32C
A103: 64 | B103: 3.688 | C103: 7.375 | D103: 2.782 | F103: 2.782 | G103: CRC32C
A104: 128 | B104: 3.608 | C104: 8.016 | D104: 2.719 | F104: 2.719 | G104: CRC32C
A105: 256 | B105: 3.556 | C105: 8.135 | D105: 2.641 | F105: 2.641 | G105: CRC32C
A106: 512 | B106: 3.488 | C106: 8.263 | D106: 1.565 | F106: 1.565 | G106: CRC32C
A107: 1024 | B107: 3.469 | C107: 8.315 | D107: 1.505 | F107: 1.505 | G107: CRC32C
A108: 2048 | B108: 3.478 | C108: 8.384 | D108: 1.492 | F108: 1.492 | G108: CRC32C
A109: 4096 | B109: 3.47 | C109: 8.376 | D109: 1.459 | F109: 1.459 | G109: CRC32C
A110: 8192 | B110: 3.462 | C110: 8.404 | D110: 1.453 | F110: 1.453 | G110: CRC32C
A111: 16384 | B111: 3.463 | C111: 8.422 | D111: 1.451 | F111: 1.451 | G111: CRC32C
A112: 32768 | B112: 3.462 | C112: 8.431 | D112: 1.453 | F112: 1.453 | G112: CRC32C
A113: 65536 | B113: 5.02 | C113: 8.436 | D113: 1.457 | F113: 1.457 | G113: CRC32C
A114: 131072 | B114: 5.003 | C114: 8.44 | D114: 1.459 | F114: 1.459 | G114: CRC32C
A115: 262144 | B115: 5.376 | C115: 8.488 | D115: 1.46 | F115: 1.46 | G115: CRC32C
A116: 524288 | B116: 5.606 | C116: 8.51 | D116: 1.461 | F116: 1.461 | G116: CRC32C
A117: 1048576 | B117: 5.614 | C117: 8.528 | D117: 1.462 | F117: 1.462 | G117: CRC32C
A118: 2097152 | B118: 5.676 | C118: 8.545 | D118: 1.474 | F118: 1.474 | G118: CRC32C
A119: 4194304 | B119: 5.682 | C119: 8.569 | D119: 1.481 | F119: 1.481 | G119: CRC32C
A120: 8388608 | B120: 5.865 | C120: 8.797 | D120: 1.596 | F120: 1.596 | G120: CRC32C
A121: 16777216 | B121: 5.883 | C121: 8.805 | D121: 1.601 | F121: 1.601 | G121: CRC32C
A122: 33554432 | B122: 5.889 | C122: 8.806 | D122: 1.601 | F122: 1.601 | G122: CRC32C
A123: 67108864 | B123: 5.898 | C123: 8.808 | D123: 1.601 | F123: 1.601 | G123: CRC32C
A125: ClassTitle | B125: CRC-32-u32/u32/u32-4-canonical
A126: Compiler | B126: CpuBits | C126: Degree | D126: Crc | E126: TableEntry | F126: Word | G126: Stride | H126: Alignment | I126: TableBytes | J126: InitCycles
A127: CL-150030729 | B127: 32 | C127: 32 | D127: 4 | E127: 4 | F127: 4 | G127: 4 | H127: 0 | I127: 8500 | J127: 900522
B129: MemSpeed | C129: Byte | D129: ByteUnrolled | E129: ByteWord | F129: Word | G129: Blockword | H129: Multiword | I129: CRC32C | K129: BestTime | L129: BestMethod
A130: 4 | B130: 4.601 | C130: 6.684 | D130: 6.878 | E130: 6.68 | F130: 6.357 | G130: 6.127 | H130: 6.252 | I130: 7.255 | K130: 6.127 | L130: Blockword
A131: 8 | B131: 2.655 | C131: 5.814 | D131: 5.91 | E131: 4.628 | F131: 3.924 | G131: 3.901 | H131: 3.767 | I131: 5.192 | K131: 3.767 | L131: Multiword
A132: 16 | B132: 1.289 | C132: 5.508 | D132: 6.008 | E132: 4.924 | F132: 3.066 | G132: 3.064 | H132: 3.011 | I132: 3.698 | K132: 3.011 | L132: Multiword
A133: 32 | B133: 0.719 | C133: 6.239 | D133: 6.23 | E133: 5.226 | F133: 2.75 | G133: 2.765 | H133: 3.432 | I133: 3.147 | K133: 2.75 | L133: Word
A134: 64 | B134: 0.485 | C134: 6.362 | D134: 6.367 | E134: 5.4 | F134: 2.651 | G134: 2.718 | H134: 3.333 | I134: 2.762 | K134: 2.651 | L134: Word
A135: 128 | B135: 0.368 | C135: 6.75 | D135: 6.376 | E135: 5.52 | F135: 2.591 | G135: 2.656 | H135: 3.276 | I135: 2.717 | K135: 2.591 | L135: Word
A136: 256 | B136: 0.309 | C136: 6.695 | D136: 6.343 | E136: 5.545 | F136: 2.547 | G136: 2.597 | H136: 3.237 | I136: 2.637 | K136: 2.547 | L136: Word
A137: 512 | B137: 0.28 | C137: 6.615 | D137: 6.442 | E137: 5.561 | F137: 2.561 | G137: 2.78 | H137: 3.227 | I137: 1.559 | K137: 1.559 | L137: CRC32C
A138: 1024 | B138: 0.265 | C138: 6.577 | D138: 6.47 | E138: 5.613 | F138: 2.541 | G138: 2.77 | H138: 3.216 | I138: 1.514 | K138: 1.514 | L138: CRC32C
A139: 2048 | B139: 0.271 | C139: 6.571 | D139: 6.452 | E139: 5.696 | F139: 2.587 | G139: 2.728 | H139: 3.216 | I139: 1.494 | K139: 1.494 | L139: CRC32C
A140: 4096 | B140: 0.258 | C140: 6.563 | D140: 6.441 | E140: 5.693 | F140: 2.578 | G140: 2.716 | H140: 3.213 | I140: 1.456 | K140: 1.456 | L140: CRC32C
A141: 8192 | B141: 0.254 | C141: 6.555 | D141: 6.385 | E141: 5.692 | F141: 2.578 | G141: 2.709 | H141: 3.213 | I141: 1.453 | K141: 1.453 | L141: CRC32C
A142: 16384 | B142: 0.252 | C142: 6.561 | D142: 6.391 | E142: 5.674 | F142: 2.49 | G142: 2.703 | H142: 3.211 | I142: 1.455 | K142: 1.455 | L142: CRC32C
A143: 32768 | B143: 0.261 | C143: 6.575 | D143: 6.404 | E143: 5.64 | F143: 2.492 | G143: 2.704 | H143: 3.23 | I143: 1.451 | K143: 1.451 | L143: CRC32C
A144: 65536 | B144: 0.308 | C144: 6.448 | D144: 6.365 | E144: 5.601 | F144: 2.486 | G144: 2.702 | H144: 3.228 | I144: 1.455 | K144: 1.455 | L144: CRC32C
A145: 131072 | B145: 0.308 | C145: 6.441 | D145: 6.245 | E145: 5.579 | F145: 2.485 | G145: 2.694 | H145: 3.227 | I145: 1.458 | K145: 1.458 | L145: CRC32C
A146: 262144 | B146: 0.308 | C146: 6.475 | D146: 6.286 | E146: 5.631 | F146: 2.49 | G146: 2.689 | H146: 3.233 | I146: 1.459 | K146: 1.459 | L146: CRC32C
A147: 524288 | B147: 0.309 | C147: 6.52 | D147: 6.328 | E147: 5.703 | F147: 2.486 | G147: 2.688 | H147: 3.235 | I147: 1.461 | K147: 1.461 | L147: CRC32C
A148: 1048576 | B148: 0.309 | C148: 6.617 | D148: 6.374 | E148: 5.734 | F148: 2.527 | G148: 2.71 | H148: 3.257 | I148: 1.463 | K148: 1.463 | L148: CRC32C
A149: 2097152 | B149: 0.312 | C149: 6.646 | D149: 6.407 | E149: 5.72 | F149: 2.527 | G149: 2.716 | H149: 3.27 | I149: 1.474 | K149: 1.474 | L149: CRC32C
A150: 4194304 | B150: 0.312 | C150: 6.653 | D150: 6.404 | E150: 5.757 | F150: 2.563 | G150: 2.722 | H150: 3.281 | I150: 1.48 | K150: 1.48 | L150: CRC32C
A151: 8388608 | B151: 0.545 | C151: 6.855 | D151: 6.615 | E151: 5.932 | F151: 2.689 | G151: 2.845 | H151: 3.423 | I151: 1.595 | K151: 1.595 | L151: CRC32C
A152: 16777216 | B152: 0.548 | C152: 6.858 | D152: 6.638 | E152: 5.948 | F152: 2.685 | G152: 2.856 | H152: 3.426 | I152: 1.601 | K152: 1.601 | L152: CRC32C
A153: 33554432 | B153: 0.548 | C153: 6.865 | D153: 6.659 | E153: 5.952 | F153: 2.691 | G153: 2.861 | H153: 3.431 | I153: 1.6 | K153: 1.6 | L153: CRC32C
A154: 67108864 | B154: 0.55 | C154: 6.868 | D154: 6.676 | E154: 5.958 | F154: 2.701 | G154: 2.864 | H154: 3.435 | I154: 1.602 | K154: 1.602 | L154: CRC32C
A156: ClassTitle | B156: CRC-32-u32/u32/u32-3-canonical
A157: Compiler | B157: CpuBits | C157: Degree | D157: Crc | E157: TableEntry | F157: Word | G157: Stride | H157: Alignment | I157: TableBytes | J157: InitCycles
A158: CL-150030729 | B158: 32 | C158: 32 | D158: 4 | E158: 4 | F158: 4 | G158: 3 | H158: 0 | I158: 8500 | J158: 904338
B160: Blockword | C160: Multiword | D160: CRC32C | F160: BestTime | G160: BestMethod
A161: 4 | B161: 6.302 | C161: 6.502 | D161: 7.4 | F161: 6.302 | G161: Blockword
A162: 8 | B162: 3.962 | C162: 4.043 | D162: 5.193 | F162: 3.962 | G162: Blockword
A163: 16 | B163: 3.034 | C163: 3.065 | D163: 3.692 | F163: 3.034 | G163: Blockword
A164: 32 | B164: 2.742 | C164: 3.174 | D164: 3.146 | F164: 2.742 | G164: Blockword
A165: 64 | B165: 2.734 | C165: 2.955 | D165: 2.762 | F165: 2.734 | G165: Blockword
A166: 128 | B166: 2.67 | C166: 2.861 | D166: 2.717 | F166: 2.67 | G166: Blockword
A167: 256 | B167: 2.623 | C167: 2.848 | D167: 2.637 | F167: 2.623 | G167: Blockword
A168: 512 | B168: 2.749 | C168: 2.818 | D168: 1.56 | F168: 1.56 | G168: CRC32C
A169: 1024 | B169: 2.73 | C169: 2.844 | D169: 1.511 | F169: 1.511 | G169: CRC32C
A170: 2048 | B170: 2.721 | C170: 2.838 | D170: 1.492 | F170: 1.492 | G170: CRC32C
A171: 4096 | B171: 2.714 | C171: 2.814 | D171: 1.456 | F171: 1.456 | G171: CRC32C
A172: 8192 | B172: 2.708 | C172: 2.819 | D172: 1.451 | F172: 1.451 | G172: CRC32C
A173: 16384 | B173: 2.705 | C173: 2.818 | D173: 1.457 | F173: 1.457 | G173: CRC32C
A174: 32768 | B174: 2.704 | C174: 2.841 | D174: 1.455 | F174: 1.455 | G174: CRC32C
A175: 65536 | B175: 2.412 | C175: 2.844 | D175: 1.457 | F175: 1.457 | G175: CRC32C
A176: 131072 | B176: 2.4 | C176: 2.846 | D176: 1.458 | F176: 1.458 | G176: CRC32C
A177: 262144 | B177: 2.317 | C177: 2.847 | D177: 1.46 | F177: 1.46 | G177: CRC32C
A178: 524288 | B178: 2.277 | C178: 2.849 | D178: 1.462 | F178: 1.462 | G178: CRC32C
A179: 1048576 | B179: 2.29 | C179: 2.872 | D179: 1.462 | F179: 1.462 | G179: CRC32C
A180: 2097152 | B180: 2.288 | C180: 2.88 | D180: 1.475 | F180: 1.475 | G180: CRC32C
A181: 4194304 | B181: 2.294 | C181: 2.889 | D181: 1.48 | F181: 1.48 | G181: CRC32C
A182: 8388608 | B182: 2.407 | C182: 3.02 | D182: 1.594 | F182: 1.594 | G182: CRC32C
A183: 16777216 | B183: 2.416 | C183: 3.031 | D183: 1.599 | F183: 1.599 | G183: CRC32C
A184: 33554432 | B184: 2.416 | C184: 3.033 | D184: 1.602 | F184: 1.602 | G184: CRC32C
A185: 67108864 | B185: 2.422 | C185: 3.036 | D185: 1.601 | F185: 1.601 | G185: CRC32C
A187: ClassTitle | B187: CRC-128-sse2/sse2/u64-4-canonical
A188: Compiler | B188: CpuBits | C188: Degree | D188: Crc | E188: TableEntry | F188: Word | G188: Stride | H188: Alignment | I188: TableBytes | J188: InitCycles
A189: CL-150030729 | B189: 32 | C189: 128 | D189: 16 | E189: 16 | F189: 8 | G189: 4 | H189: 0 | I189: 66736 | J189: 1495188
B191: MemSpeed | C191: Byte | D191: ByteUnrolled | E191: ByteWord | F191: Word | G191: Blockword | H191: Multiword | J191: BestTime | K191: BestMethod
A192: 4 | B192: 13.003 | C192: 32.502 | D192: 33.419 | E192: 33.502 | F192: 32.752 | G192: 33.252 | H192: 33.002 | J192: 32.502 | K192: Byte
A193: 8 | B193: 6.314 | C193: 22.791 | D193: 23.001 | E193: 23.064 | F193: 13.883 | G193: 17.626 | H193: 14.751 | J193: 13.883 | K193: Word
A194: 16 | B194: 3.721 | C194: 17.317 | D194: 17.751 | E194: 16.626 | F194: 9.688 | G194: 12.751 | H194: 9.969 | J194: 9.688 | K194: Word
A195: 32 | B195: 3.157 | C195: 14.969 | D195: 15.094 | E195: 14.001 | F195: 7.188 | G195: 9.719 | H195: 7.376 | J195: 7.188 | K195: Word
A196: 64 | B196: 1.939 | C196: 13.672 | D196: 13.743 | E196: 12.789 | F196: 5.923 | G196: 8.36 | H196: 6.61 | J196: 5.923 | K196: Word
A197: 128 | B197: 1.314 | C197: 13.476 | D197: 13.009 | E197: 12.133 | F197: 5.298 | G197: 7.618 | H197: 5.305 | J197: 5.298 | K197: Word
A198: 256 | B198: 1.025 | C198: 13.132 | D198: 12.674 | E198: 11.747 | F198: 5.039 | G198: 7.247 | H198: 4.692 | J198: 4.692 | K198: Multiword
A199: 512 | B199: 0.88 | C199: 13.003 | D199: 12.52 | E199: 11.55 | F199: 4.811 | G199: 7.119 | H199: 4.39 | J199: 4.39 | K199: Multiword
A200: 1024 | B200: 0.808 | C200: 12.89 | D200: 12.423 | E200: 11.451 | F200: 5.065 | G200: 7.208 | H200: 4.348 | J200: 4.348 | K200: Multiword
A201: 2048 | B201: 0.772 | C201: 12.797 | D201: 12.381 | E201: 11.402 | F201: 5.056 | G201: 7.223 | H201: 4.31 | J201: 4.31 | K201: Multiword
A202: 4096 | B202: 0.759 | C202: 12.659 | D202: 12.354 | E202: 11.377 | F202: 5.003 | G202: 7.141 | H202: 4.254 | J202: 4.254 | K202: Multiword
A203: 8192 | B203: 0.747 | C203: 12.671 | D203: 12.34 | E203: 11.376 | F203: 5.008 | G203: 7.157 | H203: 4.217 | J203: 4.217 | K203: Multiword
A204: 16384 | B204: 0.741 | C204: 12.618 | D204: 12.334 | E204: 11.36 | F204: 5.048 | G204: 7.185 | H204: 4.206 | J204: 4.206 | K204: Multiword
A205: 32768 | B205: 0.739 | C205: 12.512 | D205: 12.331 | E205: 11.356 | F205: 5.053 | G205: 7.188 | H205: 4.207 | J205: 4.207 | K205: Multiword
A206: 65536 | B206: 0.737 | C206: 12.244 | D206: 12.329 | E206: 11.354 | F206: 5.048 | G206: 5.517 | H206: 4.199 | J206: 4.199 | K206: Multiword
A207: 131072 | B207: 0.736 | C207: 12.244 | D207: 12.336 | E207: 11.357 | F207: 5.082 | G207: 5.185 | H207: 4.197 | J207: 4.197 | K207: Multiword
A208: 262144 | B208: 0.735 | C208: 12.323 | D208: 12.421 | E208: 11.422 | F208: 5.077 | G208: 5.024 | H208: 4.197 | J208: 4.197 | K208: Multiword
A209: 524288 | B209: 0.735 | C209: 12.404 | D209: 12.466 | E209: 11.467 | F209: 5.125 | G209: 4.972 | H209: 4.226 | J209: 4.226 | K209: Multiword
A210: 1048576 | B210: 0.735 | C210: 12.406 | D210: 12.486 | E210: 11.479 | F210: 5.127 | G210: 4.798 | H210: 4.241 | J210: 4.241 | K210: Multiword
A211: 2097152 | B211: 0.736 | C211: 12.421 | D211: 12.503 | E211: 11.494 | F211: 5.143 | G211: 4.794 | H211: 4.252 | J211: 4.252 | K211: Multiword
A212: 4194304 | B212: 0.741 | C212: 12.442 | D212: 12.542 | E212: 11.538 | F212: 5.161 | G212: 4.8 | H212: 4.27 | J212: 4.27 | K212: Multiword
A213: 8388608 | B213: 0.846 | C213: 12.714 | D213: 12.77 | E213: 11.769 | F213: 5.319 | G213: 4.945 | H213: 4.414 | J213: 4.414 | K213: Multiword
... 496 more rows

Sheet CL-32-NOASM
A1: ClassTitle | B1: CRC-64-u64/u64/u64-4-canonical
A2: Compiler | B2: CpuBits | C2: Degree | D2: Crc | E2: TableEntry | F2: Word | G2: Stride | H2: Alignment | I2: TableBytes | J2: InitCycles
A3: CL-150030729 | B3: 32 | C3: 64 | D3: 8 | E3: 8 | F3: 8 | G3: 4 | H3: 0 | I3: 33368 | J3: 121248
B5: MemSpeed | C5: Byte | D5: ByteUnrolled | E5: ByteWord | F5: Word | G5: Blockword | H5: Multiword | J5: BestTime | K5: BestMethod
A6: 4 | B6: 8.949 | C6: 10.31 | D6: 10.085 | E6: 10.669 | F6: 10.752 | G6: 10.968 | H6: 10.753 | J6: 10.085 | K6: ByteUnrolled
A7: 8 | B7: 2.821 | C7: 8.129 | D7: 8.034 | E7: 7.948 | F7: 8.189 | G7: 8.584 | H7: 8.157 | J7: 7.948 | K7: ByteWord
A8: 16 | B8: 1.469 | C8: 7.912 | D8: 7.791 | E8: 7.36 | F8: 7.178 | G8: 7.048 | H8: 7.072 | J8: 7.048 | K8: Blockword
A9: 32 | B9: 0.845 | C9: 7.728 | D9: 7.563 | E9: 6.986 | F9: 4.916 | G9: 6.596 | H9: 6.595 | J9: 4.916 | K9: Word
A10: 64 | B10: 0.547 | C10: 7.416 | D10: 7.468 | E10: 6.641 | F10: 4.716 | G10: 6.313 | H10: 7.907 | J10: 4.716 | K10: Word
A11: 128 | B11: 0.399 | C11: 7.68 | D11: 7.457 | E11: 6.467 | F11: 4.597 | G11: 6.149 | H11: 8.367 | J11: 4.597 | K11: Word
A12: 256 | B12: 0.325 | C12: 7.498 | D12: 7.445 | E12: 6.361 | F12: 4.52 | G12: 6.102 | H12: 8.639 | J12: 4.52 | K12: Word
A13: 512 | B13: 0.288 | C13: 7.533 | D13: 7.46 | E13: 6.378 | F13: 4.473 | G13: 5.997 | H13: 8.761 | J13: 4.473 | K13: Word
A14: 1024 | B14: 0.269 | C14: 7.45 | D14: 7.45 | E14: 6.356 | F14: 4.459 | G14: 6.04 | H14: 8.87 | J14: 4.459 | K14: Word
A15: 2048 | B15: 0.26 | C15: 7.447 | D15: 7.442 | E15: 6.349 | F15: 4.444 | G15: 6.032 | H15: 8.897 | J15: 4.444 | K15: Word
A16: 4096 | B16: 0.259 | C16: 7.424 | D16: 7.432 | E16: 6.362 | F16: 4.451 | G16: 6.037 | H16: 8.92 | J16: 4.451 | K16: Word
A17: 8192 | B17: 0.255 | C17: 7.357 | D17: 7.422 | E17: 6.362 | F17: 4.44 | G17: 6.011 | H17: 8.934 | J17: 4.44 | K17: Word
A18: 16384 | B18: 0.252 | C18: 7.29 | D18: 7.369 | E18: 6.358 | F18: 4.439 | G18: 6.016 | H18: 8.962 | J18: 4.439 | K18: Word
A19: 32768 | B19: 0.26 | C19: 7.399 | D19: 7.6 | E19: 6.355 | F19: 4.432 | G19: 6.026 | H19: 8.968 | J19: 4.432 | K19: Word
A20: 65536 | B20: 0.302 | C20: 7.398 | D20: 7.595 | E20: 6.349 | F20: 4.442 | G20: 6.875 | H20: 8.968 | J20: 4.442 | K20: Word
A21: 131072 | B21: 0.302 | C21: 7.383 | D21: 7.332 | E21: 6.348 | F21: 4.447 | G21: 6.837 | H21: 8.972 | J21: 4.447 | K21: Word
A22: 262144 | B22: 0.302 | C22: 7.462 | D22: 7.49 | E22: 6.35 | F22: 4.445 | G22: 6.833 | H22: 9.046 | J22: 4.445 | K22: Word
A23: 524288 | B23: 0.301 | C23: 7.48 | D23: 7.537 | E23: 6.393 | F23: 4.492 | G23: 6.863 | H23: 9.066 | J23: 4.492 | K23: Word
A24: 1048576 | B24: 0.302 | C24: 7.493 | D24: 7.558 | E24: 6.418 | F24: 4.488 | G24: 6.932 | H24: 9.083 | J24: 4.488 | K24: Word
A25: 2097152 | B25: 0.304 | C25: 7.505 | D25: 7.552 | E25: 6.432 | F25: 4.508 | G25: 6.944 | H25: 9.094 | J25: 4.508 | K25: Word
A26: 4194304 | B26: 0.304 | C26: 7.519 | D26: 7.57 | E26: 6.446 | F26: 4.511 | G26: 6.953 | H26: 9.108 | J26: 4.511 | K26: Word
A27: 8388608 | B27: 0.544 | C27: 7.735 | D27: 7.788 | E27: 6.635 | F27: 4.676 | G27: 7.121 | H27: 9.354 | J27: 4.676 | K27: Word
A28: 16777216 | B28: 0.557 | C28: 7.746 | D28: 7.803 | E28: 6.653 | F28: 4.685 | G28: 7.132 | H28: 9.351 | J28: 4.685 | K28: Word
A29: 33554432 | B29: 0.558 | C29: 7.758 | D29: 7.807 | E29: 6.656 | F29: 4.695 | G29: 7.142 | H29: 9.368 | J29: 4.695 | K29: Word
A30: 67108864 | B30: 0.557 | C30: 7.759 | D30: 7.804 | E30: 6.664 | F30: 4.701 | G30: 7.144 | H30: 9.372 | J30: 4.701 | K30: Word
A32: ClassTitle | B32: CRC-64-u64/u64/u64-3-canonical
A33: Compiler | B33: CpuBits | C33: Degree | D33: Crc | E33: TableEntry | F33: Word | G33: Stride | H33: Alignment | I33: TableBytes | J33: InitCycles
A34: CL-150030729 | B34: 32 | C34: 64 | D34: 8 | E34: 8 | F34: 8 | G34: 3 | H34: 0 | I34: 33368 | J34: 130572
B36: Blockword | C36: Multiword | E36: BestTime | F36: BestMethod
A37: 4 | B37: 11.503 | C37: 10.702 | E37: 10.702 | F37: Multiword
A38: 8 | B38: 6.258 | C38: 8.251 | E38: 6.258 | F38: Blockword
A39: 16 | B39: 4.86 | C39: 7.201 | E39: 4.86 | F39: Blockword
A40: 32 | B40: 4.15 | C40: 6.599 | E40: 4.15 | F40: Blockword
A41: 64 | B41: 3.688 | C41: 7.375 | E41: 3.688 | F41: Blockword
A42: 128 | B42: 3.623 | C42: 8.028 | E42: 3.623 | F42: Blockword
A43: 256 | B43: 3.548 | C43: 8.141 | E43: 3.548 | F43: Blockword
A44: 512 | B44: 3.488 | C44: 8.297 | E44: 3.488 | F44: Blockword
A45: 1024 | B45: 3.496 | C45: 8.341 | E45: 3.496 | F45: Blockword
A46: 2048 | B46: 3.485 | C46: 8.385 | E46: 3.485 | F46: Blockword
A47: 4096 | B47: 3.473 | C47: 8.393 | E47: 3.473 | F47: Blockword
A48: 8192 | B48: 3.466 | C48: 8.409 | E48: 3.466 | F48: Blockword
A49: 16384 | B49: 3.464 | C49: 8.419 | E49: 3.464 | F49: Blockword
A50: 32768 | B50: 3.462 | C50: 8.431 | E50: 3.462 | F50: Blockword
A51: 65536 | B51: 5.069 | C51: 8.438 | E51: 5.069 | F51: Blockword
A52: 131072 | B52: 5.033 | C52: 8.438 | E52: 5.033 | F52: Blockword
A53: 262144 | B53: 5.404 | C53: 8.527 | E53: 5.404 | F53: Blockword
A54: 524288 | B54: 5.631 | C54: 8.517 | E54: 5.631 | F54: Blockword
A55: 1048576 | B55: 5.647 | C55: 8.532 | E55: 5.647 | F55: Blockword
A56: 2097152 | B56: 5.7 | C56: 8.554 | E56: 5.7 | F56: Blockword
A57: 4194304 | B57: 5.706 | C57: 8.568 | E57: 5.706 | F57: Blockword
A58: 8388608 | B58: 5.894 | C58: 8.771 | E58: 5.894 | F58: Blockword
A59: 16777216 | B59: 5.914 | C59: 8.796 | E59: 5.914 | F59: Blockword
A60: 33554432 | B60: 5.912 | C60: 8.813 | E60: 5.912 | F60: Blockword
A61: 67108864 | B61: 5.916 | C61: 8.818 | E61: 5.916 | F61: Blockword
A63: ClassTitle | B63: CRC-32-u64/u64/u64-4-canonical
A64: Compiler | B64: CpuBits | C64: Degree | D64: Crc | E64: TableEntry | F64: Word | G64: Stride | H64: Alignment | I64: TableBytes | J64: InitCycles
A65: CL-150030729 | B65: 32 | C65: 32 | D65: 8 | E65: 8 | F65: 8 | G65: 4 | H65: 0 | I65: 33368 | J65: 953622
B67: MemSpeed | C67: Byte | D67: ByteUnrolled | E67: ByteWord | F67: Word | G67: Blockword | H67: Multiword | I67: CRC32C | K67: BestTime | L67: BestMethod
A68: 4 | B68: 7.337 | C68: 10.185 | D68: 10.213 | E68: 10.669 | F68: 10.877 | G68: 10.967 | H68: 10.752 | I68: 8.877 | K68: 8.877 | L68: CRC32C
A69: 8 | B69: 2.752 | C69: 8.333 | D69: 8.254 | E69: 7.997 | F69: 8.189 | G69: 8.577 | H69: 8.126 | I69: 6.251 | K69: 6.251 | L69: CRC32C
A70: 16 | B70: 1.438 | C70: 7.932 | D70: 7.823 | E70: 7.36 | F70: 7.178 | G70: 7.048 | H70: 7.085 | I70: 3.969 | K70: 3.969 | L70: CRC32C
A71: 32 | B71: 0.844 | C71: 7.747 | D71: 7.581 | E71: 6.987 | F71: 4.98 | G71: 6.601 | H71: 6.605 | I71: 3.282 | K71: 3.282 | L71: CRC32C
A72: 64 | B72: 0.547 | C72: 7.253 | D72: 7.469 | E72: 6.662 | F72: 4.698 | G72: 6.313 | H72: 7.907 | I72: 2.813 | K72: 2.813 | L72: CRC32C
A73: 128 | B73: 0.399 | C73: 7.68 | D73: 7.457 | E73: 6.512 | F73: 4.574 | G73: 6.116 | H73: 8.368 | I73: 2.719 | K73: 2.719 | L73: CRC32C
A74: 256 | B74: 0.325 | C74: 7.497 | D74: 7.442 | E74: 6.361 | F74: 4.458 | G74: 6.102 | H74: 8.583 | I74: 2.641 | K74: 2.641 | L74: CRC32C
A75: 512 | B75: 0.288 | C75: 7.533 | D75: 7.46 | E75: 6.378 | F75: 4.472 | G75: 6.067 | H75: 8.7 | I75: 1.585 | K75: 1.585 | L75: CRC32C
A76: 1024 | B76: 0.269 | C76: 7.45 | D76: 7.45 | E76: 6.357 | F76: 4.458 | G76: 6.045 | H76: 8.821 | I76: 1.49 | K76: 1.49 | L76: CRC32C
A77: 2048 | B77: 0.26 | C77: 7.447 | D77: 7.442 | E77: 6.347 | F77: 4.444 | G77: 6.049 | H77: 8.885 | I77: 1.477 | K77: 1.477 | L77: CRC32C
A78: 4096 | B78: 0.259 | C78: 7.43 | D78: 7.428 | E78: 6.362 | F78: 4.452 | G78: 6.009 | H78: 8.906 | I78: 1.45 | K78: 1.45 | L78: CRC32C
A79: 8192 | B79: 0.255 | C79: 7.357 | D79: 7.418 | E79: 6.363 | F79: 4.435 | G79: 5.992 | H79: 8.92 | I79: 1.454 | K79: 1.454 | L79: CRC32C
A80: 16384 | B80: 0.253 | C80: 7.282 | D80: 7.381 | E80: 6.354 | F80: 4.44 | G80: 5.999 | H80: 8.936 | I80: 1.454 | K80: 1.454 | L80: CRC32C
A81: 32768 | B81: 0.26 | C81: 7.396 | D81: 7.639 | E81: 6.353 | F81: 4.441 | G81: 6.032 | H81: 8.964 | I81: 1.453 | K81: 1.453 | L81: CRC32C
A82: 65536 | B82: 0.302 | C82: 7.396 | D82: 7.502 | E82: 6.35 | F82: 4.443 | G82: 6.818 | H82: 8.971 | I82: 1.457 | K82: 1.457 | L82: CRC32C
A83: 131072 | B83: 0.302 | C83: 7.383 | D83: 7.455 | E83: 6.348 | F83: 4.447 | G83: 6.801 | H83: 8.971 | I83: 1.459 | K83: 1.459 | L83: CRC32C
A84: 262144 | B84: 0.302 | C84: 7.454 | D84: 7.447 | E84: 6.346 | F84: 4.45 | G84: 6.794 | H84: 9.025 | I84: 1.459 | K84: 1.459 | L84: CRC32C
A85: 524288 | B85: 0.301 | C85: 7.467 | D85: 7.539 | E85: 6.393 | F85: 4.479 | G85: 6.841 | H85: 9.065 | I85: 1.461 | K85: 1.461 | L85: CRC32C
A86: 1048576 | B86: 0.302 | C86: 7.488 | D86: 7.556 | E86: 6.42 | F86: 4.495 | G86: 6.912 | H86: 9.087 | I86: 1.462 | K86: 1.462 | L86: CRC32C
A87: 2097152 | B87: 0.304 | C87: 7.507 | D87: 7.553 | E87: 6.427 | F87: 4.504 | G87: 6.926 | H87: 9.098 | I87: 1.475 | K87: 1.475 | L87: CRC32C
A88: 4194304 | B88: 0.304 | C88: 7.519 | D88: 7.57 | E88: 6.439 | F88: 4.51 | G88: 6.939 | H88: 9.118 | I88: 1.48 | K88: 1.48 | L88: CRC32C
A89: 8388608 | B89: 0.536 | C89: 7.732 | D89: 7.791 | E89: 6.636 | F89: 4.68 | G89: 7.092 | H89: 9.348 | I89: 1.595 | K89: 1.595 | L89: CRC32C
A90: 16777216 | B90: 0.556 | C90: 7.751 | D90: 7.795 | E90: 6.654 | F90: 4.692 | G90: 7.101 | H90: 9.35 | I90: 1.597 | K90: 1.597 | L90: CRC32C
A91: 33554432 | B91: 0.556 | C91: 7.753 | D91: 7.804 | E91: 6.659 | F91: 4.701 | G91: 7.111 | H91: 9.365 | I91: 1.6 | K91: 1.6 | L91: CRC32C
A92: 67108864 | B92: 0.556 | C92: 7.759 | D92: 7.81 | E92: 6.655 | F92: 4.698 | G92: 7.121 | H92: 9.369 | I92: 1.603 | K92: 1.603 | L92: CRC32C
A94: ClassTitle | B94: CRC-32-u64/u64/u64-3-canonical
A95: Compiler | B95: CpuBits | C95: Degree | D95: Crc | E95: TableEntry | F95: Word | G95: Stride | H95: Alignment | I95: TableBytes | J95: InitCycles
A96: CL-150030729 | B96: 32 | C96: 32 | D96: 8 | E96: 8 | F96: 8 | G96: 3 | H96: 0 | I96: 33368 | J96: 957294
B98: Blockword | C98: Multiword | D98: CRC32C | F98: BestTime | G98: BestMethod
A99: 4 | B99: 11.079 | C99: 10.645 | D99: 8.847 | F99: 8.847 | G99: CRC32C
A100: 8 | B100: 6.258 | C100: 8.126 | D100: 6.251 | F100: 6.251 | G100: CRC32C
A101: 16 | B101: 4.86 | C101: 7.201 | D101: 3.969 | F101: 3.969 | G101: CRC32C
A102: 32 | B102: 4.149 | C102: 6.626 | D102: 3.282 | F102: 3.282 | G102: CRC32C
A103: 64 | B103: 3.688 | C103: 7.375 | D103: 2.813 | F103: 2.813 | G103: CRC32C
A104: 128 | B104: 3.614 | C104: 8.025 | D104: 2.727 | F104: 2.727 | G104: CRC32C
A105: 256 | B105: 3.555 | C105: 8.089 | D105: 2.641 | F105: 2.641 | G105: CRC32C
A106: 512 | B106: 3.488 | C106: 8.263 | D106: 1.594 | F106: 1.594 | G106: CRC32C
A107: 1024 | B107: 3.49 | C107: 8.319 | D107: 1.49 | F107: 1.49 | G107: CRC32C
A108: 2048 | B108: 3.488 | C108: 8.382 | D108: 1.488 | F108: 1.488 | G108: CRC32C
A109: 4096 | B109: 3.474 | C109: 8.382 | D109: 1.454 | F109: 1.454 | G109: CRC32C
A110: 8192 | B110: 3.468 | C110: 8.404 | D110: 1.451 | F110: 1.451 | G110: CRC32C
A111: 16384 | B111: 3.463 | C111: 8.422 | D111: 1.456 | F111: 1.456 | G111: CRC32C
A112: 32768 | B112: 3.465 | C112: 8.431 | D112: 1.455 | F112: 1.455 | G112: CRC32C
A113: 65536 | B113: 5.02 | C113: 8.436 | D113: 1.455 | F113: 1.455 | G113: CRC32C
A114: 131072 | B114: 5.002 | C114: 8.44 | D114: 1.459 | F114: 1.459 | G114: CRC32C
A115: 262144 | B115: 5.375 | C115: 8.477 | D115: 1.46 | F115: 1.46 | G115: CRC32C
A116: 524288 | B116: 5.608 | C116: 8.518 | D116: 1.461 | F116: 1.461 | G116: CRC32C
A117: 1048576 | B117: 5.625 | C117: 8.531 | D117: 1.463 | F117: 1.463 | G117: CRC32C
A118: 2097152 | B118: 5.676 | C118: 8.541 | D118: 1.475 | F118: 1.475 | G118: CRC32C
A119: 4194304 | B119: 5.684 | C119: 8.558 | D119: 1.481 | F119: 1.481 | G119: CRC32C
A120: 8388608 | B120: 5.876 | C120: 8.78 | D120: 1.592 | F120: 1.592 | G120: CRC32C
A121: 16777216 | B121: 5.878 | C121: 8.808 | D121: 1.597 | F121: 1.597 | G121: CRC32C
A122: 33554432 | B122: 5.891 | C122: 8.775 | D122: 1.599 | F122: 1.599 | G122: CRC32C
A123: 67108864 | B123: 5.901 | C123: 8.812 | D123: 1.604 | F123: 1.604 | G123: CRC32C
A125: ClassTitle | B125: CRC-32-u32/u32/u32-4-canonical
A126: Compiler | B126: CpuBits | C126: Degree | D126: Crc | E126: TableEntry | F126: Word | G126: Stride | H126: Alignment | I126: TableBytes | J126: InitCycles
A127: CL-150030729 | B127: 32 | C127: 32 | D127: 4 | E127: 4 | F127: 4 | G127: 4 | H127: 0 | I127: 8500 | J127: 928710
B129: MemSpeed | C129: Byte | D129: ByteUnrolled | E129: ByteWord | F129: Word | G129: Blockword | H129: Multiword | I129: CRC32C | K129: BestTime | L129: BestMethod
A130: 4 | B130: 4.529 | C130: 6.654 | D130: 6.692 | E130: 6.68 | F130: 6.357 | G130: 6.127 | H130: 6.252 | I130: 7.335 | K130: 6.127 | L130: Blockword
A131: 8 | B131: 2.655 | C131: 5.814 | D131: 5.69 | E131: 4.783 | F131: 3.927 | G131: 3.891 | H131: 3.764 | I131: 5.189 | K131: 3.764 | L131: Multiword
A132: 16 | B132: 1.268 | C132: 5.516 | D132: 5.924 | E132: 4.977 | F132: 3.068 | G132: 3.064 | H132: 3.046 | I132: 3.69 | K132: 3.046 | L132: Multiword
A133: 32 | B133: 0.719 | C133: 6.242 | D133: 6.232 | E133: 5.221 | F133: 2.75 | G133: 2.813 | H133: 3.432 | I133: 3.146 | K133: 2.75 | L133: Word
A134: 64 | B134: 0.485 | C134: 6.351 | D134: 6.359 | E134: 5.401 | F134: 2.651 | G134: 2.718 | H134: 3.35 | I134: 2.762 | K134: 2.651 | L134: Word
A135: 128 | B135: 0.368 | C135: 6.75 | D135: 6.342 | E135: 5.525 | F135: 2.591 | G135: 2.656 | H135: 3.275 | I135: 2.717 | K135: 2.591 | L135: Word
A136: 256 | B136: 0.309 | C136: 6.695 | D136: 6.345 | E136: 5.538 | F136: 2.547 | G136: 2.597 | H136: 3.239 | I136: 2.637 | K136: 2.547 | L136: Word
A137: 512 | B137: 0.28 | C137: 6.615 | D137: 6.564 | E137: 5.562 | F137: 2.561 | G137: 2.764 | H137: 3.223 | I137: 1.559 | K137: 1.559 | L137: CRC32C
A138: 1024 | B138: 0.265 | C138: 6.577 | D138: 6.398 | E138: 5.631 | F138: 2.541 | G138: 2.745 | H138: 3.216 | I138: 1.513 | K138: 1.513 | L138: CRC32C
A139: 2048 | B139: 0.271 | C139: 6.572 | D139: 6.508 | E139: 5.695 | F139: 2.587 | G139: 2.728 | H139: 3.216 | I139: 1.492 | K139: 1.492 | L139: CRC32C
A140: 4096 | B140: 0.259 | C140: 6.563 | D140: 6.385 | E140: 5.697 | F140: 2.578 | G140: 2.716 | H140: 3.216 | I140: 1.456 | K140: 1.456 | L140: CRC32C
A141: 8192 | B141: 0.254 | C141: 6.554 | D141: 6.478 | E141: 5.687 | F141: 2.576 | G141: 2.708 | H141: 3.217 | I141: 1.455 | K141: 1.455 | L141: CRC32C
A142: 16384 | B142: 0.252 | C142: 6.542 | D142: 6.436 | E142: 5.674 | F142: 2.488 | G142: 2.703 | H142: 3.22 | I142: 1.455 | K142: 1.455 | L142: CRC32C
A143: 32768 | B143: 0.261 | C143: 6.59 | D143: 6.403 | E143: 5.656 | F143: 2.486 | G143: 2.703 | H143: 3.231 | I143: 1.453 | K143: 1.453 | L143: CRC32C
A144: 65536 | B144: 0.308 | C144: 6.479 | D144: 6.354 | E144: 5.597 | F144: 2.486 | G144: 2.703 | H144: 3.231 | I144: 1.456 | K144: 1.456 | L144: CRC32C
A145: 131072 | B145: 0.308 | C145: 6.441 | D145: 6.271 | E145: 5.579 | F145: 2.485 | G145: 2.693 | H145: 3.232 | I145: 1.458 | K145: 1.458 | L145: CRC32C
A146: 262144 | B146: 0.309 | C146: 6.483 | D146: 6.267 | E146: 5.62 | F146: 2.488 | G146: 2.69 | H146: 3.233 | I146: 1.46 | K146: 1.46 | L146: CRC32C
A147: 524288 | B147: 0.309 | C147: 6.451 | D147: 6.287 | E147: 5.67 | F147: 2.485 | G147: 2.689 | H147: 3.235 | I147: 1.46 | K147: 1.46 | L147: CRC32C
A148: 1048576 | B148: 0.309 | C148: 6.616 | D148: 6.326 | E148: 5.721 | F148: 2.52 | G148: 2.709 | H148: 3.257 | I148: 1.463 | K148: 1.463 | L148: CRC32C
A149: 2097152 | B149: 0.312 | C149: 6.645 | D149: 6.437 | E149: 5.731 | F149: 2.545 | G149: 2.717 | H149: 3.27 | I149: 1.474 | K149: 1.474 | L149: CRC32C
A150: 4194304 | B150: 0.312 | C150: 6.653 | D150: 6.471 | E150: 5.732 | F150: 2.567 | G150: 2.722 | H150: 3.276 | I150: 1.48 | K150: 1.48 | L150: CRC32C
A151: 8388608 | B151: 0.547 | C151: 6.853 | D151: 6.643 | E151: 5.932 | F151: 2.69 | G151: 2.85 | H151: 3.421 | I151: 1.592 | K151: 1.592 | L151: CRC32C
A152: 16777216 | B152: 0.55 | C152: 6.865 | D152: 6.644 | E152: 5.945 | F152: 2.679 | G152: 2.858 | H152: 3.427 | I152: 1.598 | K152: 1.598 | L152: CRC32C
A153: 33554432 | B153: 0.55 | C153: 6.867 | D153: 6.677 | E153: 5.963 | F153: 2.689 | G153: 2.865 | H153: 3.428 | I153: 1.601 | K153: 1.601 | L153: CRC32C
A154: 67108864 | B154: 0.55 | C154: 6.874 | D154: 6.69 | E154: 5.961 | F154: 2.695 | G154: 2.856 | H154: 3.44 | I154: 1.603 | K154: 1.603 | L154: CRC32C
A156: ClassTitle | B156: CRC-32-u32/u32/u32-3-canonical
A157: Compiler | B157: CpuBits | C157: Degree | D157: Crc | E157: TableEntry | F157: Word | G157: Stride | H157: Alignment | I157: TableBytes | J157: InitCycles
A158: CL-150030729 | B158: 32 | C158: 32 | D158: 4 | E158: 4 | F158: 4 | G158: 3 | H158: 0 | I158: 8500 | J158: 912150
B160: Blockword | C160: Multiword | D160: CRC32C | F160: BestTime | G160: BestMethod
A161: 4 | B161: 6.253 | C161: 6.502 | D161: 7.502 | F161: 6.253 | G161: Blockword
A162: 8 | B162: 4.003 | C162: 4.062 | D162: 5.189 | F162: 4.003 | G162: Blockword
A163: 16 | B163: 3.036 | C163: 3.064 | D163: 3.691 | F163: 3.036 | G163: Blockword
A164: 32 | B164: 2.753 | C164: 3.205 | D164: 3.146 | F164: 2.753 | G164: Blockword
A165: 64 | B165: 2.715 | C165: 2.954 | D165: 2.762 | F165: 2.715 | G165: Blockword
A166: 128 | B166: 2.67 | C166: 2.862 | D166: 2.717 | F166: 2.67 | G166: Blockword
A167: 256 | B167: 2.623 | C167: 2.846 | D167: 2.637 | F167: 2.623 | G167: Blockword
A168: 512 | B168: 2.748 | C168: 2.816 | D168: 1.559 | F168: 1.559 | G168: CRC32C
A169: 1024 | B169: 2.73 | C169: 2.844 | D169: 1.511 | F169: 1.511 | G169: CRC32C
A170: 2048 | B170: 2.721 | C170: 2.837 | D170: 1.493 | F170: 1.493 | G170: CRC32C
A171: 4096 | B171: 2.714 | C171: 2.813 | D171: 1.456 | F171: 1.456 | G171: CRC32C
A172: 8192 | B172: 2.708 | C172: 2.819 | D172: 1.451 | F172: 1.451 | G172: CRC32C
A173: 16384 | B173: 2.705 | C173: 2.818 | D173: 1.456 | F173: 1.456 | G173: CRC32C
A174: 32768 | B174: 2.703 | C174: 2.837 | D174: 1.451 | F174: 1.451 | G174: CRC32C
A175: 65536 | B175: 2.41 | C175: 2.844 | D175: 1.458 | F175: 1.458 | G175: CRC32C
A176: 131072 | B176: 2.4 | C176: 2.847 | D176: 1.458 | F176: 1.458 | G176: CRC32C
A177: 262144 | B177: 2.316 | C177: 2.847 | D177: 1.46 | F177: 1.46 | G177: CRC32C
A178: 524288 | B178: 2.276 | C178: 2.849 | D178: 1.46 | F178: 1.46 | G178: CRC32C
A179: 1048576 | B179: 2.298 | C179: 2.872 | D179: 1.463 | F179: 1.463 | G179: CRC32C
A180: 2097152 | B180: 2.288 | C180: 2.88 | D180: 1.474 | F180: 1.474 | G180: CRC32C
A181: 4194304 | B181: 2.294 | C181: 2.885 | D181: 1.48 | F181: 1.48 | G181: CRC32C
A182: 8388608 | B182: 2.408 | C182: 3.021 | D182: 1.593 | F182: 1.593 | G182: CRC32C
A183: 16777216 | B183: 2.417 | C183: 3.03 | D183: 1.597 | F183: 1.597 | G183: CRC32C
A184: 33554432 | B184: 2.42 | C184: 3.035 | D184: 1.6 | F184: 1.6 | G184: CRC32C
A185: 67108864 | B185: 2.423 | C185: 3.041 | D185: 1.602 | F185: 1.602 | G185: CRC32C
A187: ClassTitle | B187: CRC-128-sse2/sse2/u64-4-canonical
A188: Compiler | B188: CpuBits | C188: Degree | D188: Crc | E188: TableEntry | F188: Word | G188: Stride | H188: Alignment | I188: TableBytes | J188: InitCycles
A189: CL-150030729 | B189: 32 | C189: 128 | D189: 16 | E189: 16 | F189: 8 | G189: 4 | H189: 0 | I189: 66736 | J189: 1477377
B191: MemSpeed | C191: Byte | D191: ByteUnrolled | E191: ByteWord | F191: Word | G191: Blockword | H191: Multiword | J191: BestTime | K191: BestMethod
A192: 4 | B192: 13.002 | C192: 32.502 | D192: 33.419 | E192: 33.502 | F192: 32.752 | G192: 33.502 | H192: 33.002 | J192: 32.502 | K192: Byte
A193: 8 | B193: 6.314 | C193: 22.751 | D193: 22.876 | E193: 23.064 | F193: 13.89 | G193: 17.627 | H193: 14.751 | J193: 13.89 | K193: Word
A194: 16 | B194: 3.688 | C194: 17.376 | D194: 17.751 | E194: 16.626 | F194: 9.688 | G194: 12.313 | H194: 9.969 | J194: 9.688 | K194: Word
A195: 32 | B195: 3.188 | C195: 14.969 | D195: 15.094 | E195: 14.001 | F195: 7.188 | G195: 9.719 | H195: 7.376 | J195: 7.188 | K195: Word
A196: 64 | B196: 1.938 | C196: 13.676 | D196: 13.743 | E196: 12.782 | F196: 5.923 | G196: 8.36 | H196: 6.631 | J196: 5.923 | K196: Word
A197: 128 | B197: 1.298 | C197: 13.475 | D197: 13.009 | E197: 12.133 | F197: 5.298 | G197: 7.618 | H197: 5.273 | J197: 5.273 | K197: Multiword
A198: 256 | B198: 1.016 | C198: 13.167 | D198: 12.665 | E198: 11.747 | F198: 5.039 | G198: 7.247 | H198: 4.708 | J198: 4.708 | K198: Multiword
A199: 512 | B199: 0.88 | C199: 13.011 | D199: 12.52 | E199: 11.549 | F199: 4.803 | G199: 7.084 | H199: 4.419 | J199: 4.419 | K199: Multiword
A200: 1024 | B200: 0.807 | C200: 12.92 | D200: 12.423 | E200: 11.451 | F200: 5.069 | G200: 7.224 | H200: 4.346 | J200: 4.346 | K200: Multiword
A201: 2048 | B201: 0.771 | C201: 12.797 | D201: 12.381 | E201: 11.401 | F201: 5.076 | G201: 7.218 | H201: 4.311 | J201: 4.311 | K201: Multiword
A202: 4096 | B202: 0.758 | C202: 12.67 | D202: 12.353 | E202: 11.377 | F202: 4.986 | G202: 7.139 | H202: 4.256 | J202: 4.256 | K202: Multiword
A203: 8192 | B203: 0.747 | C203: 12.667 | D203: 12.342 | E203: 11.376 | F203: 5.005 | G203: 7.157 | H203: 4.218 | J203: 4.218 | K203: Multiword
A204: 16384 | B204: 0.741 | C204: 12.564 | D204: 12.337 | E204: 11.358 | F204: 5.056 | G204: 7.184 | H204: 4.208 | J204: 4.208 | K204: Multiword
A205: 32768 | B205: 0.739 | C205: 12.516 | D205: 12.338 | E205: 11.356 | F205: 5.076 | G205: 7.186 | H205: 4.206 | J205: 4.206 | K205: Multiword
A206: 65536 | B206: 0.737 | C206: 12.228 | D206: 12.329 | E206: 11.352 | F206: 5.026 | G206: 5.511 | H206: 4.201 | J206: 4.201 | K206: Multiword
A207: 131072 | B207: 0.736 | C207: 12.248 | D207: 12.332 | E207: 11.357 | F207: 5.081 | G207: 5.181 | H207: 4.197 | J207: 4.197 | K207: Multiword
A208: 262144 | B208: 0.735 | C208: 12.291 | D208: 12.418 | E208: 11.439 | F208: 5.08 | G208: 5.022 | H208: 4.197 | J208: 4.197 | K208: Multiword
A209: 524288 | B209: 0.735 | C209: 12.397 | D209: 12.47 | E209: 11.487 | F209: 5.124 | G209: 4.983 | H209: 4.228 | J209: 4.228 | K209: Multiword
A210: 1048576 | B210: 0.735 | C210: 12.415 | D210: 12.489 | E210: 11.489 | F210: 5.128 | G210: 4.799 | H210: 4.239 | J210: 4.239 | K210: Multiword
A211: 2097152 | B211: 0.736 | C211: 12.435 | D211: 12.503 | E211: 11.507 | F211: 5.144 | G211: 4.802 | H211: 4.265 | J211: 4.265 | K211: Multiword
A212: 4194304 | B212: 0.741 | C212: 12.463 | D212: 12.526 | E212: 11.517 | F212: 5.16 | G212: 4.794 | H212: 4.264 | J212: 4.264 | K212: Multiword
A213: 8388608 | B213: 0.843 | C213: 12.729 | D213: 12.762 | E213: 11.774 | F213: 5.314 | G213: 4.94 | H213: 4.416 | J213: 4.416 | K213: Multiword
... 554 more rows

Sheet CL-64-NOASM
A1: ClassTitle | B1: CRC-64-u64/u64/u64-4-canonical
A2: Compiler | B2: CpuBits | C2: Degree | D2: Crc | E2: TableEntry | F2: Word | G2: Stride | H2: Alignment | I2: TableBytes | J2: InitCycles
A3: CL-150030729 | B3: 64 | C3: 64 | D3: 8 | E3: 8 | F3: 8 | G3: 4 | H3: 0 | I3: 33384 | J3: 82089
B5: MemSpeed | C5: Byte | D5: ByteUnrolled | E5: ByteWord | F5: Word | G5: Blockword | H5: Multiword | J5: BestTime | K5: BestMethod
A6: 4 | B6: 6.25 | C6: 6.035 | D6: 6.316 | E6: 7.369 | F6: 7.368 | G6: 7.509 | H6: 7.3 | J6: 6.035 | K6: Byte
A7: 8 | B7: 2 | C7: 6.044 | D7: 5.888 | E7: 5.027 | F7: 3.03 | G7: 3.375 | H7: 2.972 | J7: 2.972 | K7: Multiword
A8: 16 | B8: 1.125 | C8: 6.432 | D8: 6.225 | E8: 5.131 | F8: 2.514 | G8: 2.613 | H8: 2.499 | J8: 2.499 | K8: Multiword
A9: 32 | B9: 0.625 | C9: 6.765 | D9: 6.458 | E9: 5.354 | F9: 2.254 | G9: 2.365 | H9: 2.294 | J9: 2.254 | K9: Word
A10: 64 | B10: 0.398 | C10: 6.869 | D10: 6.606 | E10: 5.438 | F10: 2.155 | G10: 2.228 | H10: 1.75 | J10: 1.75 | K10: Multiword
A11: 128 | B11: 0.308 | C11: 7.207 | D11: 6.609 | E11: 5.449 | F11: 2.085 | G11: 2.186 | H11: 1.433 | J11: 1.433 | K11: Multiword
A12: 256 | B12: 0.281 | C12: 7.119 | D12: 6.619 | E12: 5.455 | F12: 2.082 | G12: 2.152 | H12: 1.293 | J12: 1.293 | K12: Multiword
A13: 512 | B13: 0.266 | C13: 7.099 | D13: 6.733 | E13: 5.454 | F13: 2.084 | G13: 2.141 | H13: 1.216 | J13: 1.216 | K13: Multiword
A14: 1024 | B14: 0.257 | C14: 7.047 | D14: 6.703 | E14: 5.47 | F14: 2.086 | G14: 2.15 | H14: 1.178 | J14: 1.178 | K14: Multiword
A15: 2048 | B15: 0.254 | C15: 7.026 | D15: 6.69 | E15: 5.466 | F15: 2.079 | G15: 2.145 | H15: 1.162 | J15: 1.162 | K15: Multiword
A16: 4096 | B16: 0.257 | C16: 7.011 | D16: 6.679 | E16: 5.474 | F16: 2.099 | G16: 2.128 | H16: 1.153 | J16: 1.153 | K16: Multiword
A17: 8192 | B17: 0.253 | C17: 7 | D17: 6.673 | E17: 5.469 | F17: 2.087 | G17: 2.13 | H17: 1.156 | J17: 1.156 | K17: Multiword
A18: 16384 | B18: 0.252 | C18: 6.986 | D18: 6.668 | E18: 5.468 | F18: 2.084 | G18: 2.122 | H18: 1.168 | J18: 1.168 | K18: Multiword
A19: 32768 | B19: 0.259 | C19: 6.979 | D19: 6.662 | E19: 5.464 | F19: 2.08 | G19: 2.129 | H19: 1.179 | J19: 1.179 | K19: Multiword
A20: 65536 | B20: 0.302 | C20: 6.966 | D20: 6.654 | E20: 5.466 | F20: 2.083 | G20: 1.617 | H20: 1.182 | J20: 1.182 | K20: Multiword
A21: 131072 | B21: 0.302 | C21: 6.937 | D21: 6.656 | E21: 5.463 | F21: 2.083 | G21: 1.595 | H21: 1.182 | J21: 1.182 | K21: Multiword
A22: 262144 | B22: 0.301 | C22: 6.978 | D22: 6.658 | E22: 5.465 | F22: 2.082 | G22: 1.582 | H22: 1.182 | J22: 1.182 | K22: Multiword
A23: 524288 | B23: 0.301 | C23: 7.009 | D23: 6.721 | E23: 5.493 | F23: 2.083 | G23: 1.577 | H23: 1.182 | J23: 1.182 | K23: Multiword
A24: 1048576 | B24: 0.302 | C24: 7.022 | D24: 6.747 | E24: 5.533 | F24: 2.09 | G24: 1.541 | H24: 1.183 | J24: 1.183 | K24: Multiword
A25: 2097152 | B25: 0.304 | C25: 7.044 | D25: 6.758 | E25: 5.547 | F25: 2.107 | G25: 1.555 | H25: 1.197 | J25: 1.197 | K25: Multiword
A26: 4194304 | B26: 0.304 | C26: 7.076 | D26: 6.774 | E26: 5.554 | F26: 2.108 | G26: 1.559 | H26: 1.197 | J26: 1.197 | K26: Multiword
A27: 8388608 | B27: 0.541 | C27: 7.281 | D27: 6.95 | E27: 5.742 | F27: 2.24 | G27: 1.667 | H27: 1.301 | J27: 1.301 | K27: Multiword
A28: 16777216 | B28: 0.56 | C28: 7.302 | D28: 6.969 | E28: 5.758 | F28: 2.246 | G28: 1.678 | H28: 1.3 | J28: 1.3 | K28: Multiword
A29: 33554432 | B29: 0.562 | C29: 7.304 | D29: 6.963 | E29: 5.768 | F29: 2.244 | G29: 1.678 | H29: 1.302 | J29: 1.302 | K29: Multiword
A30: 67108864 | B30: 0.559 | C30: 7.31 | D30: 6.963 | E30: 5.765 | F30: 2.251 | G30: 1.68 | H30: 1.304 | J30: 1.304 | K30: Multiword
A32: ClassTitle | B32: CRC-64-u64/u64/u64-3-canonical
A33: Compiler | B33: CpuBits | C33: Degree | D33: Crc | E33: TableEntry | F33: Word | G33: Stride | H33: Alignment | I33: TableBytes | J33: InitCycles
A34: CL-150030729 | B34: 64 | C34: 64 | D34: 8 | E34: 8 | F34: 8 | G34: 3 | H34: 0 | I34: 33384 | J34: 87939
B36: Blockword | C36: Multiword | E36: BestTime | F36: BestMethod
A37: 4 | B37: 7.797 | C37: 7.501 | E37: 7.501 | F37: Multiword
A38: 8 | B38: 3.378 | C38: 3.173 | E38: 3.173 | F38: Multiword
A39: 16 | B39: 2.672 | C39: 2.577 | E39: 2.577 | F39: Multiword
A40: 32 | B40: 2.332 | C40: 2.314 | E40: 2.314 | F40: Multiword
A41: 64 | B41: 2.265 | C41: 1.906 | E41: 1.906 | F41: Multiword
A42: 128 | B42: 2.187 | C42: 1.504 | E42: 1.504 | F42: Multiword
A43: 256 | B43: 2.136 | C43: 1.373 | E43: 1.373 | F43: Multiword
A44: 512 | B44: 2.148 | C44: 1.285 | E44: 1.285 | F44: Multiword
A45: 1024 | B45: 2.153 | C45: 1.255 | E45: 1.255 | F45: Multiword
A46: 2048 | B46: 2.14 | C46: 1.234 | E46: 1.234 | F46: Multiword
A47: 4096 | B47: 2.129 | C47: 1.23 | E47: 1.23 | F47: Multiword
A48: 8192 | B48: 2.127 | C48: 1.224 | E48: 1.224 | F48: Multiword
A49: 16384 | B49: 2.126 | C49: 1.228 | E49: 1.228 | F49: Multiword
A50: 32768 | B50: 2.129 | C50: 1.23 | E50: 1.23 | F50: Multiword
A51: 65536 | B51: 1.594 | C51: 1.232 | E51: 1.232 | F51: Multiword
A52: 131072 | B52: 1.568 | C52: 1.23 | E52: 1.23 | F52: Multiword
A53: 262144 | B53: 1.411 | C53: 1.23 | E53: 1.23 | F53: Multiword
A54: 524288 | B54: 1.333 | C54: 1.23 | E54: 1.23 | F54: Multiword
A55: 1048576 | B55: 1.33 | C55: 1.231 | E55: 1.231 | F55: Multiword
A56: 2097152 | B56: 1.322 | C56: 1.244 | E56: 1.244 | F56: Multiword
A57: 4194304 | B57: 1.322 | C57: 1.244 | E57: 1.244 | F57: Multiword
A58: 8388608 | B58: 1.428 | C58: 1.36 | E58: 1.36 | F58: Multiword
A59: 16777216 | B59: 1.434 | C59: 1.365 | E59: 1.365 | F59: Multiword
A60: 33554432 | B60: 1.434 | C60: 1.367 | E60: 1.367 | F60: Multiword
A61: 67108864 | B61: 1.434 | C61: 1.369 | E61: 1.369 | F61: Multiword
A63: ClassTitle | B63: CRC-32-u64/u64/u64-4-canonical
A64: Compiler | B64: CpuBits | C64: Degree | D64: Crc | E64: TableEntry | F64: Word | G64: Stride | H64: Alignment | I64: TableBytes | J64: InitCycles
A65: CL-150030729 | B65: 64 | C65: 32 | D65: 8 | E65: 8 | F65: 8 | G65: 4 | H65: 0 | I65: 33384 | J65: 1124001
B67: MemSpeed | C67: Byte | D67: ByteUnrolled | E67: ByteWord | F67: Word | G67: Blockword | H67: Multiword | I67: CRC32C | K67: BestTime | L67: BestMethod
A68: 4 | B68: 6.25 | C68: 6.045 | D68: 6.309 | E68: 7.369 | F68: 7.369 | G68: 7.502 | H68: 7.274 | I68: 7.256 | K68: 6.045 | L68: Byte
A69: 8 | B69: 2 | C69: 6.043 | D69: 5.888 | E69: 5.027 | F69: 3.003 | G69: 3.376 | H69: 2.969 | I69: 3.375 | K69: 2.969 | L69: Multiword
A70: 16 | B70: 1.125 | C70: 6.452 | D70: 6.225 | E70: 5.128 | F70: 2.514 | G70: 2.613 | H70: 2.506 | I70: 2.563 | K70: 2.506 | L70: Multiword
A71: 32 | B71: 0.625 | C71: 6.765 | D71: 6.466 | E71: 5.378 | F71: 2.254 | G71: 2.365 | H71: 2.288 | I71: 2.299 | K71: 2.254 | L71: Word
A72: 64 | B72: 0.392 | C72: 6.869 | D72: 6.606 | E72: 5.438 | F72: 2.151 | G72: 2.228 | H72: 1.749 | I72: 2.163 | K72: 1.749 | L72: Multiword
A73: 128 | B73: 0.308 | C73: 7.207 | D73: 6.606 | E73: 5.415 | F73: 2.083 | G73: 2.188 | H73: 1.433 | I73: 2.149 | K73: 1.433 | L73: Multiword
A74: 256 | B74: 0.282 | C74: 7.119 | D74: 6.624 | E74: 5.456 | F74: 2.099 | G74: 2.153 | H74: 1.291 | I74: 2.101 | K74: 1.291 | L74: Multiword
A75: 512 | B75: 0.266 | C75: 7.099 | D75: 6.733 | E75: 5.454 | F75: 2.084 | G75: 2.14 | H75: 1.216 | I75: 1.446 | K75: 1.216 | L75: Multiword
A76: 1024 | B76: 0.257 | C76: 7.047 | D76: 6.703 | E76: 5.47 | F76: 2.086 | G76: 2.151 | H76: 1.18 | I76: 1.416 | K76: 1.18 | L76: Multiword
A77: 2048 | B77: 0.254 | C77: 7.026 | D77: 6.69 | E77: 5.466 | F77: 2.077 | G77: 2.14 | H77: 1.162 | I77: 1.411 | K77: 1.162 | L77: Multiword
A78: 4096 | B78: 0.257 | C78: 7.011 | D78: 6.679 | E78: 5.475 | F78: 2.091 | G78: 2.13 | H78: 1.156 | I78: 1.379 | K78: 1.156 | L78: Multiword
A79: 8192 | B79: 0.253 | C79: 7.005 | D79: 6.672 | E79: 5.468 | F79: 2.078 | G79: 2.129 | H79: 1.155 | I79: 1.381 | K79: 1.155 | L79: Multiword
A80: 16384 | B80: 0.252 | C80: 6.992 | D80: 6.666 | E80: 5.465 | F80: 2.077 | G80: 2.129 | H80: 1.169 | I80: 1.39 | K80: 1.169 | L80: Multiword
A81: 32768 | B81: 0.259 | C81: 6.983 | D81: 6.658 | E81: 5.466 | F81: 2.08 | G81: 2.129 | H81: 1.18 | I81: 1.381 | K81: 1.18 | L81: Multiword
A82: 65536 | B82: 0.302 | C82: 6.95 | D82: 6.655 | E82: 5.463 | F82: 2.081 | G82: 1.568 | H82: 1.182 | I82: 1.383 | K82: 1.182 | L82: Multiword
A83: 131072 | B83: 0.302 | C83: 6.94 | D83: 6.657 | E83: 5.465 | F83: 2.081 | G83: 1.56 | H83: 1.182 | I83: 1.385 | K83: 1.182 | L83: Multiword
A84: 262144 | B84: 0.301 | C84: 6.995 | D84: 6.666 | E84: 5.465 | F84: 2.083 | G84: 1.557 | H84: 1.182 | I84: 1.386 | K84: 1.182 | L84: Multiword
A85: 524288 | B85: 0.301 | C85: 7.01 | D85: 6.718 | E85: 5.51 | F85: 2.083 | G85: 1.556 | H85: 1.182 | I85: 1.386 | K85: 1.182 | L85: Multiword
A86: 1048576 | B86: 0.302 | C86: 7.023 | D86: 6.746 | E86: 5.532 | F86: 2.1 | G86: 1.521 | H86: 1.182 | I86: 1.388 | K86: 1.182 | L86: Multiword
A87: 2097152 | B87: 0.304 | C87: 7.058 | D87: 6.757 | E87: 5.547 | F87: 2.107 | G87: 1.535 | H87: 1.196 | I87: 1.396 | K87: 1.196 | L87: Multiword
A88: 4194304 | B88: 0.304 | C88: 7.078 | D88: 6.767 | E88: 5.556 | F88: 2.108 | G88: 1.537 | H88: 1.197 | I88: 1.407 | K88: 1.197 | L88: Multiword
A89: 8388608 | B89: 0.539 | C89: 7.274 | D89: 6.95 | E89: 5.747 | F89: 2.241 | G89: 1.646 | H89: 1.301 | I89: 1.519 | K89: 1.301 | L89: Multiword
A90: 16777216 | B90: 0.56 | C90: 7.302 | D90: 6.961 | E90: 5.764 | F90: 2.243 | G90: 1.659 | H90: 1.297 | I90: 1.526 | K90: 1.297 | L90: Multiword
A91: 33554432 | B91: 0.559 | C91: 7.304 | D91: 6.958 | E91: 5.759 | F91: 2.248 | G91: 1.658 | H91: 1.302 | I91: 1.527 | K91: 1.302 | L91: Multiword
A92: 67108864 | B92: 0.56 | C92: 7.31 | D92: 6.967 | E92: 5.766 | F92: 2.248 | G92: 1.663 | H92: 1.304 | I92: 1.531 | K92: 1.304 | L92: Multiword
A94: ClassTitle | B94: CRC-32-u64/u64/u64-3-canonical
A95: Compiler | B95: CpuBits | C95: Degree | D95: Crc | E95: TableEntry | F95: Word | G95: Stride | H95: Alignment | I95: TableBytes | J95: InitCycles
A96: CL-150030729 | B96: 64 | C96: 32 | D96: 8 | E96: 8 | F96: 8 | G96: 3 | H96: 0 | I96: 33384 | J96: 1113120
B98: Blockword | C98: Multiword | D98: CRC32C | F98: BestTime | G98: BestMethod
A99: 4 | B99: 7.769 | C99: 7.501 | D99: 7.261 | F99: 7.261 | G99: CRC32C
A100: 8 | B100: 3.379 | C100: 3.174 | D100: 3.375 | F100: 3.174 | G100: Multiword
A101: 16 | B101: 2.672 | C101: 2.576 | D101: 2.563 | F101: 2.563 | G101: CRC32C
A102: 32 | B102: 2.344 | C102: 2.314 | D102: 2.227 | F102: 2.227 | G102: CRC32C
A103: 64 | B103: 2.265 | C103: 1.9 | D103: 2.163 | F103: 1.9 | G103: Multiword
A104: 128 | B104: 2.184 | C104: 1.487 | D104: 2.146 | F104: 1.487 | G104: Multiword
A105: 256 | B105: 2.137 | C105: 1.376 | D105: 2.102 | F105: 1.376 | G105: Multiword
A106: 512 | B106: 2.148 | C106: 1.285 | D106: 1.45 | F106: 1.285 | G106: Multiword
A107: 1024 | B107: 2.153 | C107: 1.255 | D107: 1.417 | F107: 1.255 | G107: Multiword
A108: 2048 | B108: 2.134 | C108: 1.24 | D108: 1.41 | F108: 1.24 | G108: Multiword
A109: 4096 | B109: 2.129 | C109: 1.227 | D109: 1.379 | F109: 1.227 | G109: Multiword
A110: 8192 | B110: 2.129 | C110: 1.223 | D110: 1.38 | F110: 1.223 | G110: Multiword
A111: 16384 | B111: 2.129 | C111: 1.228 | D111: 1.39 | F111: 1.228 | G111: Multiword
A112: 32768 | B112: 2.129 | C112: 1.23 | D112: 1.381 | F112: 1.23 | G112: Multiword
A113: 65536 | B113: 1.551 | C113: 1.231 | D113: 1.383 | F113: 1.231 | G113: Multiword
A114: 131072 | B114: 1.542 | C114: 1.23 | D114: 1.385 | F114: 1.23 | G114: Multiword
A115: 262144 | B115: 1.39 | C115: 1.23 | D115: 1.385 | F115: 1.23 | G115: Multiword
A116: 524288 | B116: 1.313 | C116: 1.23 | D116: 1.386 | F116: 1.23 | G116: Multiword
A117: 1048576 | B117: 1.313 | C117: 1.231 | D117: 1.387 | F117: 1.231 | G117: Multiword
A118: 2097152 | B118: 1.307 | C118: 1.242 | D118: 1.401 | F118: 1.242 | G118: Multiword
A119: 4194304 | B119: 1.311 | C119: 1.245 | D119: 1.406 | F119: 1.245 | G119: Multiword
A120: 8388608 | B120: 1.413 | C120: 1.362 | D120: 1.523 | F120: 1.362 | G120: Multiword
A121: 16777216 | B121: 1.416 | C121: 1.366 | D121: 1.525 | F121: 1.366 | G121: Multiword
A122: 33554432 | B122: 1.418 | C122: 1.371 | D122: 1.529 | F122: 1.371 | G122: Multiword
A123: 67108864 | B123: 1.42 | C123: 1.372 | D123: 1.533 | F123: 1.372 | G123: Multiword
A125: ClassTitle | B125: CRC-32-u32/u32/u32-4-canonical
A126: Compiler | B126: CpuBits | C126: Degree | D126: Crc | E126: TableEntry | F126: Word | G126: Stride | H126: Alignment | I126: TableBytes | J126: InitCycles
A127: CL-150030729 | B127: 64 | C127: 32 | D127: 4 | E127: 4 | F127: 4 | G127: 4 | H127: 0 | I127: 8528 | J127: 1102536
B129: MemSpeed | C129: Byte | D129: ByteUnrolled | E129: ByteWord | F129: Word | G129: Blockword | H129: Multiword | I129: CRC32C | K129: BestTime | L129: BestMethod
A130: 4 | B130: 4.25 | C130: 6.34 | D130: 6.292 | E130: 6.001 | F130: 6.001 | G130: 6.251 | H130: 6.001 | I130: 7.751 | K130: 6.001 | L130: Word
A131: 8 | B131: 2.375 | C131: 6.045 | D131: 5.88 | E131: 5.145 | F131: 3.5 | G131: 3.646 | H131: 3.5 | I131: 3.25 | K131: 3.25 | L131: CRC32C
A132: 16 | B132: 1.063 | C132: 6.459 | D132: 6.225 | E132: 5.407 | F132: 2.77 | G132: 3.044 | H132: 2.884 | I132: 2.563 | K132: 2.563 | L132: CRC32C
A133: 32 | B133: 0.625 | C133: 6.745 | D133: 6.451 | E133: 5.488 | F133: 2.672 | G133: 2.863 | H133: 2.094 | I133: 2.299 | K133: 2.094 | L133: Multiword
A134: 64 | B134: 0.406 | C134: 6.868 | D134: 6.552 | E134: 5.573 | F134: 2.651 | G134: 2.761 | H134: 1.717 | I134: 2.161 | K134: 1.717 | L134: Multiword
A135: 128 | B135: 0.317 | C135: 7.207 | D135: 6.607 | E135: 5.613 | F135: 2.624 | G135: 2.758 | H135: 1.48 | I135: 2.149 | K135: 1.48 | L135: Multiword
A136: 256 | B136: 0.282 | C136: 7.119 | D136: 6.618 | E136: 5.622 | F136: 2.609 | G136: 2.755 | H136: 1.376 | I136: 2.102 | K136: 1.376 | L136: Multiword
A137: 512 | B137: 0.266 | C137: 7.099 | D137: 6.742 | E137: 5.617 | F137: 2.608 | G137: 2.801 | H137: 1.323 | I137: 1.446 | K137: 1.323 | L137: Multiword
A138: 1024 | B138: 0.258 | C138: 7.047 | D138: 6.706 | E138: 5.62 | F138: 2.613 | G138: 2.759 | H138: 1.301 | I138: 1.418 | K138: 1.301 | L138: Multiword
A139: 2048 | B139: 0.263 | C139: 7.027 | D139: 6.684 | E139: 5.64 | F139: 2.628 | G139: 2.759 | H139: 1.295 | I139: 1.409 | K139: 1.295 | L139: Multiword
A140: 4096 | B140: 0.257 | C140: 7.01 | D140: 6.677 | E140: 5.627 | F140: 2.619 | G140: 2.752 | H140: 1.284 | I140: 1.379 | K140: 1.284 | L140: Multiword
A141: 8192 | B141: 0.253 | C141: 7.006 | D141: 6.67 | E141: 5.623 | F141: 2.616 | G141: 2.759 | H141: 1.28 | I141: 1.377 | K141: 1.28 | L141: Multiword
A142: 16384 | B142: 0.252 | C142: 6.997 | D142: 6.666 | E142: 5.621 | F142: 2.614 | G142: 2.756 | H142: 1.279 | I142: 1.39 | K142: 1.279 | L142: Multiword
A143: 32768 | B143: 0.259 | C143: 7.013 | D143: 6.665 | E143: 5.619 | F143: 2.613 | G143: 2.756 | H143: 1.297 | I143: 1.381 | K143: 1.297 | L143: Multiword
A144: 65536 | B144: 0.308 | C144: 6.974 | D144: 6.655 | E144: 5.619 | F144: 2.613 | G144: 1.501 | H144: 1.302 | I144: 1.383 | K144: 1.302 | L144: Multiword
A145: 131072 | B145: 0.308 | C145: 6.972 | D145: 6.652 | E145: 5.619 | F145: 2.613 | G145: 1.489 | H145: 1.303 | I145: 1.385 | K145: 1.303 | L145: Multiword
A146: 262144 | B146: 0.308 | C146: 7.065 | D146: 6.674 | E146: 5.62 | F146: 2.613 | G146: 1.489 | H146: 1.303 | I146: 1.386 | K146: 1.303 | L146: Multiword
A147: 524288 | B147: 0.309 | C147: 7.057 | D147: 6.719 | E147: 5.654 | F147: 2.613 | G147: 1.489 | H147: 1.303 | I147: 1.386 | K147: 1.303 | L147: Multiword
A148: 1048576 | B148: 0.309 | C148: 7.086 | D148: 6.751 | E148: 5.669 | F148: 2.637 | G148: 1.409 | H148: 1.304 | I148: 1.388 | K148: 1.304 | L148: Multiword
A149: 2097152 | B149: 0.312 | C149: 7.102 | D149: 6.768 | E149: 5.688 | F149: 2.646 | G149: 1.422 | H149: 1.318 | I149: 1.397 | K149: 1.318 | L149: Multiword
A150: 4194304 | B150: 0.312 | C150: 7.11 | D150: 6.777 | E150: 5.701 | F150: 2.648 | G150: 1.423 | H150: 1.323 | I150: 1.406 | K150: 1.323 | L150: Multiword
A151: 8388608 | B151: 0.546 | C151: 7.314 | D151: 6.947 | E151: 5.888 | F151: 2.776 | G151: 1.525 | H151: 1.422 | I151: 1.526 | K151: 1.422 | L151: Multiword
A152: 16777216 | B152: 0.557 | C152: 7.336 | D152: 6.949 | E152: 5.9 | F152: 2.784 | G152: 1.538 | H152: 1.423 | I152: 1.525 | K152: 1.423 | L152: Multiword
A153: 33554432 | B153: 0.558 | C153: 7.339 | D153: 6.968 | E153: 5.909 | F153: 2.79 | G153: 1.535 | H153: 1.43 | I153: 1.531 | K153: 1.43 | L153: Multiword
A154: 67108864 | B154: 0.558 | C154: 7.342 | D154: 6.976 | E154: 5.911 | F154: 2.77 | G154: 1.536 | H154: 1.429 | I154: 1.533 | K154: 1.429 | L154: Multiword
A156: ClassTitle | B156: CRC-32-u32/u32/u32-3-canonical
A157: Compiler | B157: CpuBits | C157: Degree | D157: Crc | E157: TableEntry | F157: Word | G157: Stride | H157: Alignment | I157: TableBytes | J157: InitCycles
A158: CL-150030729 | B158: 64 | C158: 32 | D158: 4 | E158: 4 | F158: 4 | G158: 3 | H158: 0 | I158: 8528 | J158: 1100043
B160: Blockword | C160: Multiword | D160: CRC32C | F160: BestTime | G160: BestMethod
A161: 4 | B161: 6.251 | C161: 5.751 | D161: 7.751 | F161: 5.751 | G161: Multiword
A162: 8 | B162: 3.643 | C162: 3.448 | D162: 3.25 | F162: 3.25 | G162: CRC32C
A163: 16 | B163: 2.976 | C163: 2.932 | D163: 2.563 | F163: 2.563 | G163: CRC32C
A164: 32 | B164: 2.825 | C164: 2.265 | D164: 2.299 | F164: 2.265 | G164: Multiword
A165: 64 | B165: 2.797 | C165: 1.763 | D165: 2.161 | F165: 1.763 | G165: Multiword
A166: 128 | B166: 2.758 | C166: 1.587 | D166: 2.148 | F166: 1.587 | G166: Multiword
A167: 256 | B167: 2.751 | C167: 1.456 | D167: 2.102 | F167: 1.456 | G167: Multiword
A168: 512 | B168: 2.769 | C168: 1.407 | D168: 1.452 | F168: 1.407 | G168: Multiword
A169: 1024 | B169: 2.755 | C169: 1.385 | D169: 1.417 | F169: 1.385 | G169: Multiword
A170: 2048 | B170: 2.754 | C170: 1.38 | D170: 1.409 | F170: 1.38 | G170: Multiword
A171: 4096 | B171: 2.754 | C171: 1.369 | D171: 1.379 | F171: 1.369 | G171: Multiword
A172: 8192 | B172: 2.756 | C172: 1.362 | D172: 1.38 | F172: 1.362 | G172: Multiword
A173: 16384 | B173: 2.755 | C173: 1.363 | D173: 1.39 | F173: 1.363 | G173: Multiword
A174: 32768 | B174: 2.757 | C174: 1.375 | D174: 1.382 | F174: 1.375 | G174: Multiword
A175: 65536 | B175: 1.928 | C175: 1.377 | D175: 1.384 | F175: 1.377 | G175: Multiword
A176: 131072 | B176: 1.92 | C176: 1.377 | D176: 1.385 | F176: 1.377 | G176: Multiword
A177: 262144 | B177: 1.71 | C177: 1.377 | D177: 1.386 | F177: 1.377 | G177: Multiword
A178: 524288 | B178: 1.599 | C178: 1.378 | D178: 1.387 | F178: 1.378 | G178: Multiword
A179: 1048576 | B179: 1.6 | C179: 1.379 | D179: 1.388 | F179: 1.379 | G179: Multiword
A180: 2097152 | B180: 1.588 | C180: 1.392 | D180: 1.401 | F180: 1.392 | G180: Multiword
A181: 4194304 | B181: 1.593 | C181: 1.397 | D181: 1.407 | F181: 1.397 | G181: Multiword
A182: 8388608 | B182: 1.69 | C182: 1.496 | D182: 1.523 | F182: 1.496 | G182: Multiword
A183: 16777216 | B183: 1.697 | C183: 1.504 | D183: 1.528 | F183: 1.504 | G183: Multiword
A184: 33554432 | B184: 1.696 | C184: 1.507 | D184: 1.531 | F184: 1.507 | G184: Multiword
A185: 67108864 | B185: 1.7 | C185: 1.509 | D185: 1.534 | F185: 1.509 | G185: Multiword
A187: ClassTitle | B187: CRC-128-sse2/sse2/u64-4-canonical
A188: Compiler | B188: CpuBits | C188: Degree | D188: Crc | E188: TableEntry | F188: Word | G188: Stride | H188: Alignment | I188: TableBytes | J188: InitCycles
A189: CL-150030729 | B189: 64 | C189: 128 | D189: 16 | E189: 16 | F189: 8 | G189: 4 | H189: 0 | I189: 66736 | J189: 992556
B191: MemSpeed | C191: Byte | D191: ByteUnrolled | E191: ByteWord | F191: Word | G191: Blockword | H191: Multiword | J191: BestTime | K191: BestMethod
A192: 4 | B192: 8.501 | C192: 11.925 | D192: 11.668 | E192: 12.231 | F192: 12.536 | G192: 13.917 | H192: 12.603 | J192: 11.668 | K192: ByteUnrolled
A193: 8 | B193: 5.001 | C193: 10.763 | D193: 10.632 | E193: 10.251 | F193: 6.601 | G193: 6.876 | H193: 6.501 | J193: 6.501 | K193: Multiword
A194: 16 | B194: 3.5 | C194: 11.553 | D194: 11.535 | E194: 10.407 | F194: 4.971 | G194: 5.192 | H194: 5.046 | J194: 4.971 | K194: Word
A195: 32 | B195: 1.751 | C195: 11.913 | D195: 11.844 | E195: 10.782 | F195: 4.359 | G195: 4.466 | H195: 4.384 | J195: 4.359 | K195: Word
A196: 64 | B196: 1.297 | C196: 12.171 | D196: 12.094 | E196: 11.01 | F196: 4.016 | G196: 4.137 | H196: 3.308 | J196: 3.308 | K196: Multiword
A197: 128 | B197: 1.071 | C197: 12.602 | D197: 12.172 | E197: 11.143 | F197: 3.9 | G197: 3.948 | H197: 2.756 | J197: 2.756 | K197: Multiword
A198: 256 | B198: 0.958 | C198: 12.492 | D198: 12.188 | E198: 11.205 | F198: 3.805 | G198: 3.901 | H198: 2.443 | J198: 2.443 | K198: Multiword
A199: 512 | B199: 0.901 | C199: 12.421 | D199: 12.323 | E199: 11.207 | F199: 3.779 | G199: 3.808 | H199: 2.344 | J199: 2.344 | K199: Multiword
A200: 1024 | B200: 0.873 | C200: 12.387 | D200: 12.276 | E200: 11.248 | F200: 4.006 | G200: 4.099 | H200: 2.341 | J200: 2.341 | K200: Multiword
A201: 2048 | B201: 0.858 | C201: 12.359 | D201: 12.253 | E201: 11.257 | F201: 4.13 | G201: 4.192 | H201: 2.331 | J201: 2.331 | K201: Multiword
A202: 4096 | B202: 0.857 | C202: 12.341 | D202: 12.241 | E202: 11.262 | F202: 4.046 | G202: 4.12 | H202: 2.284 | J202: 2.284 | K202: Multiword
A203: 8192 | B203: 0.85 | C203: 12.307 | D203: 12.235 | E203: 11.268 | F203: 4.119 | G203: 4.157 | H203: 2.255 | J203: 2.255 | K203: Multiword
A204: 16384 | B204: 0.847 | C204: 12.126 | D204: 12.223 | E204: 11.267 | F204: 4.128 | G204: 4.188 | H204: 2.26 | J204: 2.26 | K204: Multiword
A205: 32768 | B205: 0.846 | C205: 12.142 | D205: 12.221 | E205: 11.267 | F205: 4.201 | G205: 4.207 | H205: 2.255 | J205: 2.255 | K205: Multiword
A206: 65536 | B206: 0.845 | C206: 12.162 | D206: 12.221 | E206: 11.267 | F206: 4.182 | G206: 3.118 | H206: 2.249 | J206: 2.249 | K206: Multiword
A207: 131072 | B207: 0.845 | C207: 12.202 | D207: 12.225 | E207: 11.27 | F207: 4.194 | G207: 2.922 | H207: 2.256 | J207: 2.256 | K207: Multiword
A208: 262144 | B208: 0.844 | C208: 12.305 | D208: 12.318 | E208: 11.336 | F208: 4.201 | G208: 2.818 | H208: 2.255 | J208: 2.255 | K208: Multiword
A209: 524288 | B209: 0.844 | C209: 12.36 | D209: 12.346 | E209: 11.384 | F209: 4.233 | G209: 2.774 | H209: 2.257 | J209: 2.257 | K209: Multiword
A210: 1048576 | B210: 0.844 | C210: 12.447 | D210: 12.371 | E210: 11.398 | F210: 4.242 | G210: 2.666 | H210: 2.282 | J210: 2.282 | K210: Multiword
A211: 2097152 | B211: 0.852 | C211: 12.457 | D211: 12.395 | E211: 11.423 | F211: 4.262 | G211: 2.678 | H211: 2.285 | J211: 2.285 | K211: Multiword
A212: 4194304 | B212: 0.85 | C212: 12.482 | D212: 12.42 | E212: 11.435 | F212: 4.267 | G212: 2.671 | H212: 2.292 | J212: 2.292 | K212: Multiword
A213: 8388608 | B213: 0.952 | C213: 12.745 | D213: 12.676 | E213: 11.618 | F213: 4.417 | G213: 2.788 | H213: 2.407 | J213: 2.407 | K213: Multiword
... 554 more rows

Sheet GCC-32-ASM
A1: ClassTitle | B1: CRC-64-u64/u64/u64-4-canonical
A2: Compiler | B2: CpuBits | C2: Degree | D2: Crc | E2: TableEntry | F2: Word | G2: Stride | H2: Alignment | I2: TableBytes | J2: InitCycles
A3: GCC-4.5.0 | B3: 32 | C3: 64 | D3: 8 | E3: 8 | F3: 8 | G3: 4 | H3: 0 | I3: 33376 | J3: 149121
B5: MemSpeed | C5: Byte | D5: ByteUnrolled | E5: ByteWord | F5: Word | G5: Blockword | H5: Multiword | J5: BestTime | K5: BestMethod
A6: 4 | B6: 11.001 | C6: 15.751 | D6: 18.168 | E6: 17.375 | F6: 17.101 | G6: 21.669 | H6: 14.861 | J6: 14.861 | K6: Multiword
A7: 8 | B7: 3.545 | C7: 12.417 | D7: 15.834 | E7: 15.207 | F7: 9.626 | G7: 10.422 | H7: 8.126 | J7: 8.126 | K7: Multiword
A8: 16 | B8: 1.761 | C8: 10.439 | D8: 14.92 | E8: 13.564 | F8: 7.501 | G8: 8.438 | H8: 5.105 | J8: 5.105 | K8: Multiword
A9: 32 | B9: 1.45 | C9: 9.752 | D9: 14.657 | E9: 12.782 | F9: 6.667 | G9: 7.402 | H9: 3.594 | J9: 3.594 | K9: Multiword
A10: 64 | B10: 0.875 | C10: 9.287 | D10: 13.727 | E10: 12.322 | F10: 6.183 | G10: 6.932 | H10: 2.361 | J10: 2.361 | K10: Multiword
A11: 128 | B11: 0.594 | C11: 9.309 | D11: 13.737 | E11: 12.112 | F11: 6.002 | G11: 6.517 | H11: 1.797 | J11: 1.797 | K11: Multiword
A12: 256 | B12: 0.462 | C12: 8.946 | D12: 13.656 | E12: 12.012 | F12: 5.848 | G12: 6.457 | H12: 1.532 | J12: 1.532 | K12: Multiword
A13: 512 | B13: 0.397 | C13: 9.054 | D13: 13.758 | E13: 11.972 | F13: 5.736 | G13: 6.417 | H13: 1.397 | J13: 1.397 | K13: Multiword
A14: 1024 | B14: 0.356 | C14: 9.098 | D14: 13.661 | E14: 11.941 | F14: 5.708 | G14: 6.348 | H14: 1.323 | J14: 1.323 | K14: Multiword
A15: 2048 | B15: 0.334 | C15: 9.039 | D15: 13.612 | E15: 11.945 | F15: 5.705 | G15: 6.322 | H15: 1.301 | J15: 1.301 | K15: Multiword
A16: 4096 | B16: 0.328 | C16: 8.996 | D16: 13.587 | E16: 11.933 | F16: 5.699 | G16: 6.317 | H16: 1.284 | J16: 1.284 | K16: Multiword
A17: 8192 | B17: 0.322 | C17: 9.007 | D17: 13.582 | E17: 11.922 | F17: 5.681 | G17: 6.327 | H17: 1.285 | J17: 1.285 | K17: Multiword
A18: 16384 | B18: 0.318 | C18: 8.999 | D18: 13.579 | E18: 11.915 | F18: 5.705 | G18: 6.346 | H18: 1.291 | J18: 1.291 | K18: Multiword
A19: 32768 | B19: 0.324 | C19: 9.014 | D19: 13.582 | E19: 11.913 | F19: 5.719 | G19: 6.358 | H19: 1.304 | J19: 1.304 | K19: Multiword
A20: 65536 | B20: 0.352 | C20: 9.004 | D20: 13.582 | E20: 11.911 | F20: 5.722 | G20: 7.986 | H20: 1.305 | J20: 1.305 | K20: Multiword
A21: 131072 | B21: 0.352 | C21: 9.017 | D21: 13.584 | E21: 11.916 | F21: 5.724 | G21: 7.948 | H21: 1.302 | J21: 1.302 | K21: Multiword
A22: 262144 | B22: 0.353 | C22: 9.095 | D22: 13.677 | E22: 11.996 | F22: 5.726 | G22: 8.095 | H22: 1.303 | J22: 1.303 | K22: Multiword
A23: 524288 | B23: 0.353 | C23: 9.143 | D23: 13.742 | E23: 12.038 | F23: 5.771 | G23: 8 | H23: 1.302 | J23: 1.302 | K23: Multiword
A24: 1048576 | B24: 0.353 | C24: 9.163 | D24: 13.749 | E24: 12.062 | F24: 5.796 | G24: 8.105 | H24: 1.304 | J24: 1.304 | K24: Multiword
A25: 2097152 | B25: 0.356 | C25: 9.196 | D25: 13.763 | E25: 12.068 | F25: 5.801 | G25: 8.122 | H25: 1.316 | J25: 1.316 | K25: Multiword
A26: 4194304 | B26: 0.356 | C26: 9.215 | D26: 13.789 | E26: 12.089 | F26: 5.819 | G26: 8.155 | H26: 1.323 | J26: 1.323 | K26: Multiword
A27: 8388608 | B27: 0.584 | C27: 9.469 | D27: 14.078 | E27: 12.374 | F27: 6.025 | G27: 8.313 | H27: 1.431 | J27: 1.431 | K27: Multiword
A28: 16777216 | B28: 0.59 | C28: 9.461 | D28: 14.082 | E28: 12.391 | F28: 6.042 | G28: 8.378 | H28: 1.439 | J28: 1.439 | K28: Multiword
A29: 33554432 | B29: 0.589 | C29: 9.467 | D29: 14.103 | E29: 12.392 | F29: 5.982 | G29: 8.357 | H29: 1.433 | J29: 1.433 | K29: Multiword
A30: 67108864 | B30: 0.593 | C30: 9.483 | D30: 14.112 | E30: 12.408 | F30: 6.053 | G30: 8.405 | H30: 1.439 | J30: 1.439 | K30: Multiword
A32: ClassTitle | B32: CRC-64-u64/u64/u64-3-canonical
A33: Compiler | B33: CpuBits | C33: Degree | D33: Crc | E33: TableEntry | F33: Word | G33: Stride | H33: Alignment | I33: TableBytes | J33: InitCycles
A34: GCC-4.5.0 | B34: 32 | C34: 64 | D34: 8 | E34: 8 | F34: 8 | G34: 3 | H34: 0 | I34: 33376 | J34: 161181
B36: Blockword | C36: Multiword | E36: BestTime | F36: BestMethod
A37: 4 | B37: 22.064 | C37: 18.251 | E37: 18.251 | F37: Multiword
A38: 8 | B38: 10.501 | C38: 9.532 | E38: 9.532 | F38: Multiword
A39: 16 | B39: 8.2 | C39: 7.501 | E39: 7.501 | F39: Multiword
A40: 32 | B40: 7.349 | C40: 6.657 | E40: 6.657 | F40: Multiword
A41: 64 | B41: 6.84 | C41: 7.204 | E41: 6.84 | F41: Blockword
A42: 128 | B42: 6.587 | C42: 7.528 | E42: 6.587 | F42: Blockword
A43: 256 | B43: 6.436 | C43: 7.54 | E43: 6.436 | F43: Blockword
A44: 512 | B44: 6.397 | C44: 7.608 | E44: 6.397 | F44: Blockword
A45: 1024 | B45: 6.357 | C45: 7.561 | E45: 6.357 | F45: Blockword
A46: 2048 | B46: 6.328 | C46: 7.565 | E46: 6.328 | F46: Blockword
A47: 4096 | B47: 6.302 | C47: 7.575 | E47: 6.302 | F47: Blockword
A48: 8192 | B48: 6.298 | C48: 7.566 | E48: 6.298 | F48: Blockword
A49: 16384 | B49: 6.332 | C49: 7.576 | E49: 6.332 | F49: Blockword
A50: 32768 | B50: 6.355 | C50: 7.587 | E50: 6.355 | F50: Blockword
A51: 65536 | B51: 7.485 | C51: 7.604 | E51: 7.485 | F51: Blockword
A52: 131072 | B52: 7.433 | C52: 7.604 | E52: 7.433 | F52: Blockword
A53: 262144 | B53: 7.766 | C53: 7.608 | E53: 7.608 | F53: Multiword
A54: 524288 | B54: 7.881 | C54: 7.685 | E54: 7.685 | F54: Multiword
A55: 1048576 | B55: 7.869 | C55: 7.712 | E55: 7.712 | F55: Multiword
A56: 2097152 | B56: 7.954 | C56: 7.729 | E56: 7.729 | F56: Multiword
A57: 4194304 | B57: 8.018 | C57: 7.744 | E57: 7.744 | F57: Multiword
A58: 8388608 | B58: 8.144 | C58: 7.976 | E58: 7.976 | F58: Multiword
A59: 16777216 | B59: 8.23 | C59: 7.995 | E59: 7.995 | F59: Multiword
A60: 33554432 | B60: 8.236 | C60: 8.004 | E60: 8.004 | F60: Multiword
A61: 67108864 | B61: 8.199 | C61: 8.014 | E61: 8.014 | F61: Multiword
A63: ClassTitle | B63: CRC-32-u64/u64/u64-4-canonical
A64: Compiler | B64: CpuBits | C64: Degree | D64: Crc | E64: TableEntry | F64: Word | G64: Stride | H64: Alignment | I64: TableBytes | J64: InitCycles
A65: GCC-4.5.0 | B65: 32 | C65: 32 | D65: 8 | E65: 8 | F65: 8 | G65: 4 | H65: 0 | I65: 33376 | J65: 1154565
B67: MemSpeed | C67: Byte | D67: ByteUnrolled | E67: ByteWord | F67: Word | G67: Blockword | H67: Multiword | I67: CRC32C | K67: BestTime | L67: BestMethod
A68: 4 | B68: 11.001 | C68: 15.233 | D68: 18.652 | E68: 17.501 | F68: 17.131 | G68: 21.67 | H68: 14.93 | I68: 11.392 | K68: 11.392 | L68: CRC32C
A69: 8 | B69: 3.376 | C69: 12.417 | D69: 15.834 | E69: 15.194 | F69: 9.626 | G69: 10.422 | H69: 7.847 | I69: 6.885 | K69: 6.885 | L69: CRC32C
A70: 16 | B70: 1.688 | C70: 10.623 | D70: 14.92 | E70: 13.576 | F70: 7.546 | G70: 8.438 | H70: 5.105 | I70: 4.351 | K70: 4.351 | L70: CRC32C
A71: 32 | B71: 1.44 | C71: 9.755 | D71: 14.202 | E71: 12.751 | F71: 6.564 | G71: 7.49 | H71: 3.594 | I71: 3.424 | K71: 3.424 | L71: CRC32C
A72: 64 | B72: 0.896 | C72: 9.301 | D72: 13.739 | E72: 12.297 | F72: 6.177 | G72: 6.858 | H72: 2.308 | I72: 3.049 | K72: 2.308 | L72: Multiword
A73: 128 | B73: 0.594 | C73: 9.212 | D73: 13.737 | E73: 12.1 | F73: 5.829 | G73: 6.554 | H73: 1.792 | I73: 2.857 | K73: 1.792 | L73: Multiword
A74: 256 | B74: 0.462 | C74: 9.009 | D74: 13.656 | E74: 12.012 | F74: 5.819 | G74: 6.437 | H74: 1.532 | I74: 2.681 | K74: 1.532 | L74: Multiword
A75: 512 | B75: 0.397 | C75: 8.962 | D75: 13.758 | E75: 11.961 | F75: 5.756 | G75: 6.415 | H75: 1.397 | I75: 3.482 | K75: 1.397 | L75: Multiword
A76: 1024 | B76: 0.356 | C76: 9.058 | D76: 13.661 | E76: 11.929 | F76: 5.708 | G76: 6.341 | H76: 1.323 | I76: 3.466 | K76: 1.323 | L76: Multiword
A77: 2048 | B77: 0.333 | C77: 9.04 | D77: 13.612 | E77: 11.929 | F77: 5.664 | G77: 6.317 | H77: 1.303 | I77: 3.459 | K77: 1.303 | L77: Multiword
A78: 4096 | B78: 0.33 | C78: 8.986 | D78: 13.587 | E78: 11.93 | F78: 5.69 | G78: 6.337 | H78: 1.291 | I78: 3.428 | K78: 1.291 | L78: Multiword
A79: 8192 | B79: 0.322 | C79: 9.037 | D79: 13.582 | E79: 11.92 | F79: 5.692 | G79: 6.331 | H79: 1.283 | I79: 3.431 | K79: 1.283 | L79: Multiword
A80: 16384 | B80: 0.318 | C80: 9.003 | D80: 13.579 | E80: 11.911 | F80: 5.71 | G80: 6.344 | H80: 1.295 | I80: 3.431 | K80: 1.295 | L80: Multiword
A81: 32768 | B81: 0.324 | C81: 8.986 | D81: 13.58 | E81: 11.91 | F81: 5.719 | G81: 6.361 | H81: 1.302 | I81: 3.436 | K81: 1.302 | L81: Multiword
A82: 65536 | B82: 0.352 | C82: 9.023 | D82: 13.581 | E82: 11.909 | F82: 5.723 | G82: 7.913 | H82: 1.304 | I82: 3.444 | K82: 1.304 | L82: Multiword
A83: 131072 | B83: 0.352 | C83: 9.029 | D83: 13.585 | E83: 11.913 | F83: 5.724 | G83: 7.889 | H83: 1.303 | I83: 3.446 | K83: 1.303 | L83: Multiword
A84: 262144 | B84: 0.353 | C84: 9.124 | D84: 13.688 | E84: 12.004 | F84: 5.727 | G84: 7.976 | H84: 1.302 | I84: 3.448 | K84: 1.302 | L84: Multiword
A85: 524288 | B85: 0.353 | C85: 9.14 | D85: 13.726 | E85: 12.03 | F85: 5.773 | G85: 7.969 | H85: 1.303 | I85: 3.449 | K85: 1.303 | L85: Multiword
A86: 1048576 | B86: 0.354 | C86: 9.167 | D86: 13.762 | E86: 12.052 | F86: 5.797 | G86: 8.158 | H86: 1.304 | I86: 3.473 | K86: 1.304 | L86: Multiword
A87: 2097152 | B87: 0.356 | C87: 9.189 | D87: 13.769 | E87: 12.064 | F87: 5.803 | G87: 8.136 | H87: 1.317 | I87: 3.494 | K87: 1.317 | L87: Multiword
A88: 4194304 | B88: 0.356 | C88: 9.217 | D88: 13.796 | E88: 12.098 | F88: 5.819 | G88: 8.132 | H88: 1.321 | I88: 3.493 | K88: 1.321 | L88: Multiword
A89: 8388608 | B89: 0.589 | C89: 9.449 | D89: 14.054 | E89: 12.377 | F89: 6.002 | G89: 8.278 | H89: 1.436 | I89: 3.645 | K89: 1.436 | L89: Multiword
A90: 16777216 | B90: 0.586 | C90: 9.477 | D90: 14.082 | E90: 12.402 | F90: 6.029 | G90: 8.293 | H90: 1.437 | I90: 3.661 | K90: 1.437 | L90: Multiword
A91: 33554432 | B91: 0.59 | C91: 9.434 | D91: 14.113 | E91: 12.409 | F91: 6.047 | G91: 8.353 | H91: 1.436 | I91: 3.666 | K91: 1.436 | L91: Multiword
A92: 67108864 | B92: 0.599 | C92: 9.489 | D92: 14.107 | E92: 12.411 | F92: 6.043 | G92: 8.377 | H92: 1.437 | I92: 3.681 | K92: 1.437 | L92: Multiword
A94: ClassTitle | B94: CRC-32-u64/u64/u64-3-canonical
A95: Compiler | B95: CpuBits | C95: Degree | D95: Crc | E95: TableEntry | F95: Word | G95: Stride | H95: Alignment | I95: TableBytes | J95: InitCycles
A96: GCC-4.5.0 | B96: 32 | C96: 32 | D96: 8 | E96: 8 | F96: 8 | G96: 3 | H96: 0 | I96: 33376 | J96: 1154835
B98: Blockword | C98: Multiword | D98: CRC32C | F98: BestTime | G98: BestMethod
A99: 4 | B99: 22.026 | C99: 18.007 | D99: 11.601 | F99: 11.601 | G99: CRC32C
A100: 8 | B100: 10.251 | C100: 9.584 | D100: 7.054 | F100: 7.054 | G100: CRC32C
A101: 16 | B101: 8.221 | C101: 7.625 | D101: 4.368 | F101: 4.368 | G101: CRC32C
A102: 32 | B102: 7.344 | C102: 6.696 | D102: 3.492 | F102: 3.492 | G102: CRC32C
A103: 64 | B103: 6.872 | C103: 7.204 | D103: 3.045 | F103: 3.045 | G103: CRC32C
A104: 128 | B104: 6.563 | C104: 7.61 | D104: 2.86 | F104: 2.86 | G104: CRC32C
A105: 256 | B105: 6.449 | C105: 7.567 | D105: 2.68 | F105: 2.68 | G105: CRC32C
A106: 512 | B106: 6.325 | C106: 7.628 | D106: 3.452 | F106: 3.452 | G106: CRC32C
A107: 1024 | B107: 6.33 | C107: 7.613 | D107: 3.472 | F107: 3.472 | G107: CRC32C
A108: 2048 | B108: 6.278 | C108: 7.639 | D108: 3.454 | F108: 3.454 | G108: CRC32C
A109: 4096 | B109: 6.258 | C109: 7.6 | D109: 3.421 | F109: 3.421 | G109: CRC32C
A110: 8192 | B110: 6.299 | C110: 7.594 | D110: 3.421 | F110: 3.421 | G110: CRC32C
A111: 16384 | B111: 6.329 | C111: 7.611 | D111: 3.421 | F111: 3.421 | G111: CRC32C
A112: 32768 | B112: 6.355 | C112: 7.62 | D112: 3.434 | F112: 3.434 | G112: CRC32C
A113: 65536 | B113: 7.421 | C113: 7.607 | D113: 3.439 | F113: 3.439 | G113: CRC32C
A114: 131072 | B114: 7.442 | C114: 7.584 | D114: 3.441 | F114: 3.441 | G114: CRC32C
A115: 262144 | B115: 7.747 | C115: 7.671 | D115: 3.441 | F115: 3.441 | G115: CRC32C
A116: 524288 | B116: 7.906 | C116: 7.674 | D116: 3.443 | F116: 3.443 | G116: CRC32C
A117: 1048576 | B117: 7.869 | C117: 7.677 | D117: 3.466 | F117: 3.466 | G117: CRC32C
A118: 2097152 | B118: 7.978 | C118: 7.706 | D118: 3.479 | F118: 3.479 | G118: CRC32C
A119: 4194304 | B119: 7.936 | C119: 7.735 | D119: 3.496 | F119: 3.496 | G119: CRC32C
A120: 8388608 | B120: 8.204 | C120: 7.97 | D120: 3.652 | F120: 3.652 | G120: CRC32C
A121: 16777216 | B121: 8.194 | C121: 7.995 | D121: 3.666 | F121: 3.666 | G121: CRC32C
A122: 33554432 | B122: 8.219 | C122: 7.998 | D122: 3.659 | F122: 3.659 | G122: CRC32C
A123: 67108864 | B123: 8.253 | C123: 8.017 | D123: 3.675 | F123: 3.675 | G123: CRC32C
A125: ClassTitle | B125: CRC-32-u32/u32/u32-4-canonical
A126: Compiler | B126: CpuBits | C126: Degree | D126: Crc | E126: TableEntry | F126: Word | G126: Stride | H126: Alignment | I126: TableBytes | J126: InitCycles
A127: GCC-4.5.0 | B127: 32 | C127: 32 | D127: 4 | E127: 4 | F127: 4 | G127: 4 | H127: 0 | I127: 8528 | J127: 1118412
B129: MemSpeed | C129: Byte | D129: ByteUnrolled | E129: ByteWord | F129: Word | G129: Blockword | H129: Multiword | I129: CRC32C | K129: BestTime | L129: BestMethod
A130: 4 | B130: 5.655 | C130: 8.279 | D130: 9.331 | E130: 8.866 | F130: 8.362 | G130: 9.786 | H130: 8.416 | I130: 8.912 | K130: 8.279 | L130: Byte
A131: 8 | B131: 2.932 | C131: 6.972 | D131: 7.001 | E131: 6.311 | F131: 5.911 | G131: 6.138 | H131: 5.57 | I131: 5.751 | K131: 5.57 | L131: Multiword
A132: 16 | B132: 1.558 | C132: 7.257 | D132: 7.375 | E132: 5.98 | F132: 3.694 | G132: 4.657 | H132: 4.135 | I132: 3.852 | K132: 3.694 | L132: Word
A133: 32 | B133: 0.885 | C133: 7.401 | D133: 7.438 | E133: 6.251 | F133: 3.169 | G133: 4.048 | H133: 4.063 | I133: 3.167 | K133: 3.167 | L133: CRC32C
A134: 64 | B134: 0.669 | C134: 7.365 | D134: 7.458 | E134: 6.224 | F134: 2.917 | G134: 3.753 | H134: 3.641 | I134: 2.805 | K134: 2.805 | L134: CRC32C
A135: 128 | B135: 0.453 | C135: 7.554 | D135: 7.529 | E135: 6.198 | F135: 2.789 | G135: 3.62 | H135: 3.399 | I135: 2.741 | K135: 2.741 | L135: CRC32C
A136: 256 | B136: 0.351 | C136: 7.426 | D136: 7.571 | E136: 6.212 | F136: 2.697 | G136: 3.524 | H136: 3.297 | I136: 2.657 | K136: 2.657 | L136: CRC32C
A137: 512 | B137: 0.301 | C137: 7.391 | D137: 7.635 | E137: 6.23 | F137: 2.656 | G137: 3.545 | H137: 3.235 | I137: 3.46 | K137: 2.656 | L137: Word
A138: 1024 | B138: 0.273 | C138: 7.359 | D138: 7.621 | E138: 6.216 | F138: 2.644 | G138: 3.493 | H138: 3.211 | I138: 3.457 | K138: 2.644 | L138: Word
A139: 2048 | B139: 0.267 | C139: 7.344 | D139: 7.627 | E139: 6.228 | F139: 2.66 | G139: 3.477 | H139: 3.203 | I139: 3.45 | K139: 2.66 | L139: Word
A140: 4096 | B140: 0.26 | C140: 7.34 | D140: 7.6 | E140: 6.231 | F140: 2.607 | G140: 3.463 | H140: 3.195 | I140: 3.424 | K140: 2.607 | L140: Word
A141: 8192 | B141: 0.255 | C141: 7.337 | D141: 7.594 | E141: 6.225 | F141: 2.6 | G141: 3.467 | H141: 3.189 | I141: 3.422 | K141: 2.6 | L141: Word
A142: 16384 | B142: 0.253 | C142: 7.335 | D142: 7.604 | E142: 6.208 | F142: 2.592 | G142: 3.47 | H142: 3.186 | I142: 3.424 | K142: 2.592 | L142: Word
A143: 32768 | B143: 0.262 | C143: 7.335 | D143: 7.606 | E143: 6.209 | F143: 2.591 | G143: 3.467 | H143: 3.2 | I143: 3.432 | K143: 2.591 | L143: Word
A144: 65536 | B144: 0.308 | C144: 7.336 | D144: 7.608 | E144: 6.204 | F144: 2.591 | G144: 2.997 | H144: 3.202 | I144: 3.439 | K144: 2.591 | L144: Word
A145: 131072 | B145: 0.308 | C145: 7.336 | D145: 7.595 | E145: 6.204 | F145: 2.59 | G145: 2.992 | H145: 3.202 | I145: 3.44 | K145: 2.59 | L145: Word
A146: 262144 | B146: 0.309 | C146: 7.375 | D146: 7.682 | E146: 6.205 | F146: 2.589 | G146: 2.992 | H146: 3.204 | I146: 3.44 | K146: 2.589 | L146: Word
A147: 524288 | B147: 0.309 | C147: 7.415 | D147: 7.708 | E147: 6.25 | F147: 2.589 | G147: 2.992 | H147: 3.205 | I147: 3.444 | K147: 2.589 | L147: Word
A148: 1048576 | B148: 0.309 | C148: 7.421 | D148: 7.725 | E148: 6.272 | F148: 2.624 | G148: 2.984 | H148: 3.228 | I148: 3.47 | K148: 2.624 | L148: Word
A149: 2097152 | B149: 0.312 | C149: 7.433 | D149: 7.736 | E149: 6.288 | F149: 2.646 | G149: 2.996 | H149: 3.241 | I149: 3.478 | K149: 2.646 | L149: Word
A150: 4194304 | B150: 0.312 | C150: 7.455 | D150: 7.759 | E150: 6.306 | F150: 2.662 | G150: 3.006 | H150: 3.255 | I150: 3.494 | K150: 2.662 | L150: Word
A151: 8388608 | B151: 0.545 | C151: 7.678 | D151: 7.96 | E151: 6.517 | F151: 2.794 | G151: 3.147 | H151: 3.389 | I151: 3.655 | K151: 2.794 | L151: Word
A152: 16777216 | B152: 0.551 | C152: 7.696 | D152: 7.994 | E152: 6.535 | F152: 2.811 | G152: 3.156 | H152: 3.409 | I152: 3.673 | K152: 2.811 | L152: Word
A153: 33554432 | B153: 0.553 | C153: 7.709 | D153: 8.018 | E153: 6.54 | F153: 2.809 | G153: 3.162 | H153: 3.419 | I153: 3.628 | K153: 2.809 | L153: Word
A154: 67108864 | B154: 0.552 | C154: 7.717 | D154: 8.02 | E154: 6.539 | F154: 2.807 | G154: 3.165 | H154: 3.425 | I154: 3.668 | K154: 2.807 | L154: Word
A156: ClassTitle | B156: CRC-32-u32/u32/u32-3-canonical
A157: Compiler | B157: CpuBits | C157: Degree | D157: Crc | E157: TableEntry | F157: Word | G157: Stride | H157: Alignment | I157: TableBytes | J157: InitCycles
A158: GCC-4.5.0 | B158: 32 | C158: 32 | D158: 4 | E158: 4 | F158: 4 | G158: 3 | H158: 0 | I158: 8528 | J158: 1108278
B160: Blockword | C160: Multiword | D160: CRC32C | F160: BestTime | G160: BestMethod
A161: 4 | B161: 9.721 | C161: 8.543 | D161: 9.001 | F161: 8.543 | G161: Multiword
A162: 8 | B162: 6.261 | C162: 5.884 | D162: 5.681 | F162: 5.681 | G162: CRC32C
A163: 16 | B163: 4.695 | C163: 4.253 | D163: 3.852 | F163: 3.852 | G163: CRC32C
A164: 32 | B164: 4.019 | C164: 3.735 | D164: 3.164 | F164: 3.164 | G164: CRC32C
A165: 64 | B165: 3.713 | C165: 3.297 | D165: 2.805 | F165: 2.805 | G165: CRC32C
A166: 128 | B166: 3.54 | C166: 3.19 | D166: 2.745 | F166: 2.745 | G166: CRC32C
A167: 256 | B167: 3.484 | C167: 3.091 | D167: 2.657 | F167: 2.657 | G167: CRC32C
A168: 512 | B168: 3.467 | C168: 3.039 | D168: 3.459 | F168: 3.039 | G168: Multiword
A169: 1024 | B169: 3.427 | C169: 3.033 | D169: 3.468 | F169: 3.033 | G169: Multiword
A170: 2048 | B170: 3.426 | C170: 3.015 | D170: 3.451 | F170: 3.015 | G170: Multiword
A171: 4096 | B171: 3.418 | C171: 3.005 | D171: 3.423 | F171: 3.005 | G171: Multiword
A172: 8192 | B172: 3.423 | C172: 3.003 | D172: 3.429 | F172: 3.003 | G172: Multiword
A173: 16384 | B173: 3.398 | C173: 2.998 | D173: 3.429 | F173: 2.998 | G173: Multiword
A174: 32768 | B174: 3.412 | C174: 3.018 | D174: 3.438 | F174: 3.018 | G174: Multiword
A175: 65536 | B175: 2.846 | C175: 3.022 | D175: 3.441 | F175: 2.846 | G175: Blockword
A176: 131072 | B176: 2.83 | C176: 3.021 | D176: 3.443 | F176: 2.83 | G176: Blockword
A177: 262144 | B177: 2.676 | C177: 3.021 | D177: 3.444 | F177: 2.676 | G177: Blockword
A178: 524288 | B178: 2.603 | C178: 3.022 | D178: 3.447 | F178: 2.603 | G178: Blockword
A179: 1048576 | B179: 2.617 | C179: 3.04 | D179: 3.483 | F179: 2.617 | G179: Blockword
A180: 2097152 | B180: 2.608 | C180: 3.059 | D180: 3.483 | F180: 2.608 | G180: Blockword
A181: 4194304 | B181: 2.621 | C181: 3.076 | D181: 3.496 | F181: 2.621 | G181: Blockword
A182: 8388608 | B182: 2.741 | C182: 3.219 | D182: 3.649 | F182: 2.741 | G182: Blockword
A183: 16777216 | B183: 2.756 | C183: 3.211 | D183: 3.662 | F183: 2.756 | G183: Blockword
A184: 33554432 | B184: 2.771 | C184: 3.19 | D184: 3.669 | F184: 2.771 | G184: Blockword
A185: 67108864 | B185: 2.767 | C185: 3.242 | D185: 3.676 | F185: 2.767 | G185: Blockword
A187: ClassTitle | B187: CRC-128-sse2/sse2/u64-4-canonical
A188: Compiler | B188: CpuBits | C188: Degree | D188: Crc | E188: TableEntry | F188: Word | G188: Stride | H188: Alignment | I188: TableBytes | J188: InitCycles
A189: GCC-4.5.0 | B189: 32 | C189: 128 | D189: 16 | E189: 16 | F189: 8 | G189: 4 | H189: 0 | I189: 66720 | J189: 1414224
B191: MemSpeed | C191: Byte | D191: ByteUnrolled | E191: ByteWord | F191: Word | G191: Blockword | H191: Multiword | J191: BestTime | K191: BestMethod
A192: 4 | B192: 9.001 | C192: 14.257 | D192: 14.971 | E192: 15.621 | F192: 16.609 | G192: 15.906 | H192: 15.866 | J192: 14.257 | K192: Byte
A193: 8 | B193: 4.25 | C193: 12.427 | D193: 12.292 | E193: 12.244 | F193: 7.875 | G193: 7.576 | H193: 7.176 | J193: 7.176 | K193: Multiword
A194: 16 | B194: 2.375 | C194: 12.367 | D194: 12.348 | E194: 11.396 | F194: 6.063 | G194: 5.61 | H194: 5.489 | J194: 5.489 | K194: Multiword
A195: 32 | B195: 1.625 | C195: 12.378 | D195: 12.302 | E195: 11.282 | F195: 5.194 | G195: 5.02 | H195: 4.75 | J195: 4.75 | K195: Multiword
A196: 64 | B196: 1.157 | C196: 12.418 | D196: 12.318 | E196: 11.657 | F196: 4.724 | G196: 4.248 | H196: 4.813 | J196: 4.248 | K196: Blockword
A197: 128 | B197: 1.055 | C197: 12.828 | D197: 12.407 | E197: 11.557 | F197: 4.372 | G197: 3.972 | H197: 4.641 | J197: 3.972 | K197: Blockword
A198: 256 | B198: 0.954 | C198: 12.692 | D198: 12.373 | E198: 11.506 | F198: 4.271 | G198: 3.879 | H198: 4.516 | J198: 3.879 | K198: Blockword
A199: 512 | B199: 0.957 | C199: 12.619 | D199: 12.453 | E199: 11.477 | F199: 4.382 | G199: 4.019 | H199: 4.566 | J199: 4.019 | K199: Blockword
A200: 1024 | B200: 0.895 | C200: 12.626 | D200: 12.468 | E200: 11.459 | F200: 4.727 | G200: 4.242 | H200: 4.714 | J200: 4.242 | K200: Blockword
A201: 2048 | B201: 0.883 | C201: 12.583 | D201: 12.422 | E201: 11.468 | F201: 4.744 | G201: 4.258 | H201: 4.728 | J201: 4.258 | K201: Blockword
A202: 4096 | B202: 0.885 | C202: 12.562 | D202: 12.398 | E202: 11.47 | F202: 4.639 | G202: 4.181 | H202: 4.676 | J202: 4.181 | K202: Blockword
A203: 8192 | B203: 0.88 | C203: 12.556 | D203: 12.393 | E203: 11.441 | F203: 4.675 | G203: 4.209 | H203: 4.646 | J203: 4.209 | K203: Blockword
A204: 16384 | B204: 0.878 | C204: 12.502 | D204: 12.447 | E204: 11.441 | F204: 4.77 | G204: 4.256 | H204: 4.651 | J204: 4.256 | K204: Blockword
A205: 32768 | B205: 0.877 | C205: 12.552 | D205: 12.451 | E205: 11.437 | F205: 4.789 | G205: 4.271 | H205: 4.645 | J205: 4.271 | K205: Blockword
A206: 65536 | B206: 0.876 | C206: 12.537 | D206: 12.437 | E206: 11.446 | F206: 4.784 | G206: 5.468 | H206: 4.637 | J206: 4.637 | K206: Multiword
A207: 131072 | B207: 0.875 | C207: 12.541 | D207: 12.435 | E207: 11.452 | F207: 4.796 | G207: 5.158 | H207: 4.637 | J207: 4.637 | K207: Multiword
A208: 262144 | B208: 0.875 | C208: 12.626 | D208: 12.544 | E208: 11.536 | F208: 4.801 | G208: 5.007 | H208: 4.638 | J208: 4.638 | K208: Multiword
A209: 524288 | B209: 0.875 | C209: 12.693 | D209: 12.6 | E209: 11.583 | F209: 4.837 | G209: 4.971 | H209: 4.672 | J209: 4.672 | K209: Multiword
A210: 1048576 | B210: 0.875 | C210: 12.725 | D210: 12.634 | E210: 11.597 | F210: 4.851 | G210: 4.97 | H210: 4.687 | J210: 4.687 | K210: Multiword
A211: 2097152 | B211: 0.886 | C211: 12.717 | D211: 12.699 | E211: 11.612 | F211: 4.855 | G211: 4.963 | H211: 4.701 | J211: 4.701 | K211: Multiword
A212: 4194304 | B212: 0.892 | C212: 12.761 | D212: 12.738 | E212: 11.651 | F212: 4.886 | G212: 4.974 | H212: 4.719 | J212: 4.719 | K212: Multiword
A213: 8388608 | B213: 0.991 | C213: 13.063 | D213: 12.982 | E213: 11.915 | F213: 5.044 | G213: 5.131 | H213: 4.88 | J213: 4.88 | K213: Multiword
... 496 more rows

Sheet GCC-32-NOASM
A1: ClassTitle | B1: CRC-64-u64/u64/u64-4-canonical
A2: Compiler | B2: CpuBits | C2: Degree | D2: Crc | E2: TableEntry | F2: Word | G2: Stride | H2: Alignment | I2: TableBytes | J2: InitCycles
A3: GCC-4.5.0 | B3: 32 | C3: 64 | D3: 8 | E3: 8 | F3: 8 | G3: 4 | H3: 0 | I3: 33376 | J3: 151605
B5: MemSpeed | C5: Byte | D5: ByteUnrolled | E5: ByteWord | F5: Word | G5: Blockword | H5: Multiword | J5: BestTime | K5: BestMethod
A6: 4 | B6: 10.635 | C6: 15.179 | D6: 18.168 | E6: 17.323 | F6: 17.341 | G6: 21.751 | H6: 16.376 | J6: 15.179 | K6: Byte
A7: 8 | B7: 3.393 | C7: 12.001 | D7: 15.793 | E7: 15.001 | F7: 10.001 | G7: 10.385 | H7: 9.334 | J7: 9.334 | K7: Multiword
A8: 16 | B8: 1.719 | C8: 10.615 | D8: 15.033 | E8: 13.782 | F8: 7.563 | G8: 8.015 | H8: 7.695 | J8: 7.563 | K8: Word
A9: 32 | B9: 1.438 | C9: 9.713 | D9: 14.189 | E9: 12.812 | F9: 6.667 | G9: 7.266 | H9: 6.469 | J9: 6.469 | K9: Multiword
A10: 64 | B10: 0.875 | C10: 9.322 | D10: 13.922 | E10: 12.297 | F10: 6.102 | G10: 6.785 | H10: 7.85 | J10: 6.102 | K10: Word
A11: 128 | B11: 0.594 | C11: 9.11 | D11: 13.737 | E11: 12.099 | F11: 5.956 | G11: 6.462 | H11: 8.102 | J11: 5.956 | K11: Word
A12: 256 | B12: 0.455 | C12: 8.948 | D12: 13.656 | E12: 12.011 | F12: 5.667 | G12: 6.434 | H12: 8.032 | J12: 5.667 | K12: Word
A13: 512 | B13: 0.43 | C13: 8.918 | D13: 13.756 | E13: 11.969 | F13: 5.762 | G13: 6.382 | H13: 8.075 | J13: 5.762 | K13: Word
A14: 1024 | B14: 0.373 | C14: 8.975 | D14: 13.657 | E14: 11.933 | F14: 5.71 | G14: 6.358 | H14: 8.09 | J14: 5.71 | K14: Word
A15: 2048 | B15: 0.342 | C15: 9.003 | D15: 13.61 | E15: 11.912 | F15: 5.678 | G15: 6.342 | H15: 8.099 | J15: 5.678 | K15: Word
A16: 4096 | B16: 0.334 | C16: 8.94 | D16: 13.586 | E16: 11.915 | F16: 5.695 | G16: 6.324 | H16: 8.104 | J16: 5.695 | K16: Word
A17: 8192 | B17: 0.326 | C17: 8.935 | D17: 13.581 | E17: 11.915 | F17: 5.687 | G17: 6.316 | H17: 8.117 | J17: 5.687 | K17: Word
A18: 16384 | B18: 0.322 | C18: 8.955 | D18: 13.579 | E18: 11.91 | F18: 5.704 | G18: 6.341 | H18: 8.147 | J18: 5.704 | K18: Word
A19: 32768 | B19: 0.328 | C19: 8.988 | D19: 13.579 | E19: 11.912 | F19: 5.719 | G19: 6.362 | H19: 8.162 | J19: 5.719 | K19: Word
A20: 65536 | B20: 0.359 | C20: 9.012 | D20: 13.583 | E20: 11.909 | F20: 5.711 | G20: 8.115 | H20: 8.173 | J20: 5.711 | K20: Word
A21: 131072 | B21: 0.359 | C21: 9.037 | D21: 13.681 | E21: 11.955 | F21: 5.725 | G21: 8.027 | H21: 8.173 | J21: 5.725 | K21: Word
A22: 262144 | B22: 0.359 | C22: 9.175 | D22: 13.799 | E22: 12.068 | F22: 5.747 | G22: 8.173 | H22: 8.294 | J22: 5.747 | K22: Word
A23: 524288 | B23: 0.359 | C23: 9.208 | D23: 13.835 | E23: 12.104 | F23: 5.82 | G23: 8.188 | H23: 8.314 | J23: 5.82 | K23: Word
A24: 1048576 | B24: 0.36 | C24: 9.231 | D24: 13.882 | E24: 12.157 | F24: 5.841 | G24: 8.269 | H24: 8.339 | J24: 5.841 | K24: Word
A25: 2097152 | B25: 0.363 | C25: 9.251 | D25: 13.89 | E25: 12.142 | F25: 5.85 | G25: 8.334 | H25: 8.351 | J25: 5.85 | K25: Word
A26: 4194304 | B26: 0.365 | C26: 9.277 | D26: 13.932 | E26: 12.188 | F26: 5.857 | G26: 8.337 | H26: 8.369 | J26: 5.857 | K26: Word
A27: 8388608 | B27: 0.584 | C27: 9.479 | D27: 14.136 | E27: 12.408 | F27: 6.031 | G27: 8.487 | H27: 8.576 | J27: 6.031 | K27: Word
A28: 16777216 | B28: 0.603 | C28: 9.488 | D28: 14.128 | E28: 12.44 | F28: 6.035 | G28: 8.412 | H28: 8.585 | J28: 6.035 | K28: Word
A29: 33554432 | B29: 0.599 | C29: 9.488 | D29: 14.147 | E29: 12.442 | F29: 6.048 | G29: 8.46 | H29: 8.576 | J29: 6.048 | K29: Word
A30: 67108864 | B30: 0.6 | C30: 9.493 | D30: 14.156 | E30: 12.446 | F30: 6.065 | G30: 8.528 | H30: 8.589 | J30: 6.065 | K30: Word
A32: ClassTitle | B32: CRC-64-u64/u64/u64-3-canonical
A33: Compiler | B33: CpuBits | C33: Degree | D33: Crc | E33: TableEntry | F33: Word | G33: Stride | H33: Alignment | I33: TableBytes | J33: InitCycles
A34: GCC-4.5.0 | B34: 32 | C34: 64 | D34: 8 | E34: 8 | F34: 8 | G34: 3 | H34: 0 | I34: 33376 | J34: 160911
B36: Blockword | C36: Multiword | E36: BestTime | F36: BestMethod
A37: 4 | B37: 21.626 | C37: 17.501 | E37: 17.501 | F37: Multiword
A38: 8 | B38: 10.751 | C38: 9.88 | E38: 9.88 | F38: Multiword
A39: 16 | B39: 8.267 | C39: 7.813 | E39: 7.813 | F39: Multiword
A40: 32 | B40: 7.251 | C40: 6.755 | E40: 6.755 | F40: Multiword
A41: 64 | B41: 6.829 | C41: 7.297 | E41: 6.829 | F41: Blockword
A42: 128 | B42: 6.606 | C42: 7.61 | E42: 6.606 | F42: Blockword
A43: 256 | B43: 6.36 | C43: 7.496 | E43: 6.36 | F43: Blockword
A44: 512 | B44: 6.36 | C44: 7.618 | E44: 6.36 | F44: Blockword
A45: 1024 | B45: 6.342 | C45: 7.572 | E45: 6.342 | F45: Blockword
A46: 2048 | B46: 6.228 | C46: 7.587 | E46: 6.228 | F46: Blockword
A47: 4096 | B47: 6.268 | C47: 7.573 | E47: 6.268 | F47: Blockword
A48: 8192 | B48: 6.293 | C48: 7.581 | E48: 6.293 | F48: Blockword
A49: 16384 | B49: 6.34 | C49: 7.583 | E49: 6.34 | F49: Blockword
A50: 32768 | B50: 6.359 | C50: 7.582 | E50: 6.359 | F50: Blockword
A51: 65536 | B51: 7.464 | C51: 7.578 | E51: 7.464 | F51: Blockword
A52: 131072 | B52: 7.43 | C52: 7.578 | E52: 7.43 | F52: Blockword
A53: 262144 | B53: 7.841 | C53: 7.697 | E53: 7.697 | F53: Multiword
A54: 524288 | B54: 7.908 | C54: 7.738 | E54: 7.738 | F54: Multiword
A55: 1048576 | B55: 7.932 | C55: 7.755 | E55: 7.755 | F55: Multiword
A56: 2097152 | B56: 7.983 | C56: 7.752 | E56: 7.752 | F56: Multiword
A57: 4194304 | B57: 8.008 | C57: 7.785 | E57: 7.785 | F57: Multiword
A58: 8388608 | B58: 8.187 | C58: 8 | E58: 8 | F58: Multiword
A59: 16777216 | B59: 8.177 | C59: 7.995 | E59: 7.995 | F59: Multiword
A60: 33554432 | B60: 8.217 | C60: 7.993 | E60: 7.993 | F60: Multiword
A61: 67108864 | B61: 8.284 | C61: 8.014 | E61: 8.014 | F61: Multiword
A63: ClassTitle | B63: CRC-32-u64/u64/u64-4-canonical
A64: Compiler | B64: CpuBits | C64: Degree | D64: Crc | E64: TableEntry | F64: Word | G64: Stride | H64: Alignment | I64: TableBytes | J64: InitCycles
A65: GCC-4.5.0 | B65: 32 | C65: 32 | D65: 8 | E65: 8 | F65: 8 | G65: 4 | H65: 0 | I65: 33376 | J65: 1148598
B67: MemSpeed | C67: Byte | D67: ByteUnrolled | E67: ByteWord | F67: Word | G67: Blockword | H67: Multiword | I67: CRC32C | K67: BestTime | L67: BestMethod
A68: 4 | B68: 10.791 | C68: 14.398 | D68: 18.168 | E68: 17.323 | F68: 17.341 | G68: 21.668 | H68: 16.265 | I68: 11.418 | K68: 11.418 | L68: CRC32C
A69: 8 | B69: 3.493 | C69: 12.278 | D69: 15.775 | E69: 15.001 | F69: 10.065 | G69: 10.425 | H69: 9.334 | I69: 7.181 | K69: 7.181 | L69: CRC32C
A70: 16 | B70: 1.719 | C70: 10.615 | D70: 14.914 | E70: 13.859 | F70: 7.564 | G70: 8.313 | H70: 7.729 | I70: 4.368 | K70: 4.368 | L70: CRC32C
A71: 32 | B71: 1.438 | C71: 9.761 | D71: 14.213 | E71: 12.802 | F71: 6.667 | G71: 7.412 | H71: 6.627 | I71: 3.531 | K71: 3.531 | L71: CRC32C
A72: 64 | B72: 0.887 | C72: 9.366 | D72: 13.902 | E72: 12.297 | F72: 6.102 | G72: 6.887 | H72: 7.844 | I72: 2.959 | K72: 2.959 | L72: CRC32C
A73: 128 | B73: 0.594 | C73: 9.204 | D73: 13.737 | E73: 12.099 | F73: 5.961 | G73: 6.573 | H73: 7.993 | I73: 2.86 | K73: 2.86 | L73: CRC32C
A74: 256 | B74: 0.458 | C74: 8.97 | D74: 13.656 | E74: 12.012 | F74: 5.667 | G74: 6.395 | H74: 8.036 | I74: 2.679 | K74: 2.679 | L74: CRC32C
A75: 512 | B75: 0.432 | C75: 8.915 | D75: 13.756 | E75: 11.971 | F75: 5.667 | G75: 6.36 | H75: 8.075 | I75: 3.469 | K75: 3.469 | L75: CRC32C
A76: 1024 | B76: 0.373 | C76: 8.975 | D76: 13.657 | E76: 11.951 | F76: 5.691 | G76: 6.372 | H76: 8.08 | I76: 3.481 | K76: 3.481 | L76: CRC32C
A77: 2048 | B77: 0.343 | C77: 9.005 | D77: 13.61 | E77: 11.928 | F77: 5.697 | G77: 6.348 | H77: 8.093 | I77: 3.455 | K77: 3.455 | L77: CRC32C
A78: 4096 | B78: 0.334 | C78: 8.937 | D78: 13.586 | E78: 11.926 | F78: 5.681 | G78: 6.31 | H78: 8.117 | I78: 3.428 | K78: 3.428 | L78: CRC32C
A79: 8192 | B79: 0.326 | C79: 8.934 | D79: 13.581 | E79: 11.917 | F79: 5.679 | G79: 6.32 | H79: 8.119 | I79: 3.431 | K79: 3.431 | L79: CRC32C
A80: 16384 | B80: 0.322 | C80: 8.959 | D80: 13.579 | E80: 11.911 | F80: 5.701 | G80: 6.341 | H80: 8.155 | I80: 3.428 | K80: 3.428 | L80: CRC32C
A81: 32768 | B81: 0.327 | C81: 8.975 | D81: 13.582 | E81: 11.909 | F81: 5.719 | G81: 6.36 | H81: 8.165 | I81: 3.439 | K81: 3.439 | L81: CRC32C
A82: 65536 | B82: 0.359 | C82: 9.01 | D82: 13.609 | E82: 11.907 | F82: 5.722 | G82: 7.906 | H82: 8.172 | I82: 3.443 | K82: 3.443 | L82: CRC32C
A83: 131072 | B83: 0.359 | C83: 9.031 | D83: 13.709 | E83: 11.958 | F83: 5.723 | G83: 7.969 | H83: 8.172 | I83: 3.446 | K83: 3.446 | L83: CRC32C
A84: 262144 | B84: 0.359 | C84: 9.187 | D84: 13.799 | E84: 12.068 | F84: 5.769 | G84: 8.081 | H84: 8.261 | I84: 3.447 | K84: 3.447 | L84: CRC32C
A85: 524288 | B85: 0.359 | C85: 9.207 | D85: 13.842 | E85: 12.129 | F85: 5.809 | G85: 8.158 | H85: 8.313 | I85: 3.473 | K85: 3.473 | L85: CRC32C
A86: 1048576 | B86: 0.36 | C86: 9.238 | D86: 13.885 | E86: 12.146 | F86: 5.836 | G86: 8.242 | H86: 8.333 | I86: 3.508 | K86: 3.508 | L86: CRC32C
A87: 2097152 | B87: 0.363 | C87: 9.239 | D87: 13.889 | E87: 12.166 | F87: 5.844 | G87: 8.259 | H87: 8.349 | I87: 3.523 | K87: 3.523 | L87: CRC32C
A88: 4194304 | B88: 0.365 | C88: 9.281 | D88: 13.925 | E88: 12.192 | F88: 5.861 | G88: 8.312 | H88: 8.376 | I88: 3.532 | K88: 3.532 | L88: CRC32C
A89: 8388608 | B89: 0.593 | C89: 9.428 | D89: 14.117 | E89: 12.426 | F89: 6.031 | G89: 8.448 | H89: 8.555 | I89: 3.661 | K89: 3.661 | L89: CRC32C
A90: 16777216 | B90: 0.595 | C90: 9.479 | D90: 14.141 | E90: 12.386 | F90: 6.034 | G90: 8.468 | H90: 8.581 | I90: 3.677 | K90: 3.677 | L90: CRC32C
A91: 33554432 | B91: 0.603 | C91: 9.509 | D91: 14.172 | E91: 12.438 | F91: 6.061 | G91: 8.471 | H91: 8.608 | I91: 3.692 | K91: 3.692 | L91: CRC32C
A92: 67108864 | B92: 0.6 | C92: 9.502 | D92: 14.168 | E92: 12.441 | F92: 6.054 | G92: 8.481 | H92: 8.599 | I92: 3.677 | K92: 3.677 | L92: CRC32C
A94: ClassTitle | B94: CRC-32-u64/u64/u64-3-canonical
A95: Compiler | B95: CpuBits | C95: Degree | D95: Crc | E95: TableEntry | F95: Word | G95: Stride | H95: Alignment | I95: TableBytes | J95: InitCycles
A96: GCC-4.5.0 | B96: 32 | C96: 32 | D96: 8 | E96: 8 | F96: 8 | G96: 3 | H96: 0 | I96: 33376 | J96: 1172925
B98: Blockword | C98: Multiword | D98: CRC32C | F98: BestTime | G98: BestMethod
A99: 4 | B99: 21.627 | C99: 17.501 | D99: 11.379 | F99: 11.379 | G99: CRC32C
A100: 8 | B100: 10.751 | C100: 9.899 | D100: 7.167 | F100: 7.167 | G100: CRC32C
A101: 16 | B101: 8.27 | C101: 7.376 | D101: 4.375 | F101: 4.375 | G101: CRC32C
A102: 32 | B102: 7.256 | C102: 6.719 | D102: 3.428 | F102: 3.428 | G102: CRC32C
A103: 64 | B103: 6.95 | C103: 7.297 | D103: 3.01 | F103: 3.01 | G103: CRC32C
A104: 128 | B104: 6.646 | C104: 7.508 | D104: 2.86 | F104: 2.86 | G104: CRC32C
A105: 256 | B105: 6.5 | C105: 7.477 | D105: 2.727 | F105: 2.727 | G105: CRC32C
A106: 512 | B106: 6.386 | C106: 7.572 | D106: 3.461 | F106: 3.461 | G106: CRC32C
A107: 1024 | B107: 6.353 | C107: 7.531 | D107: 3.468 | F107: 3.468 | G107: CRC32C
A108: 2048 | B108: 6.296 | C108: 7.567 | D108: 3.452 | F108: 3.452 | G108: CRC32C
A109: 4096 | B109: 6.271 | C109: 7.576 | D109: 3.428 | F109: 3.428 | G109: CRC32C
A110: 8192 | B110: 6.295 | C110: 7.573 | D110: 3.423 | F110: 3.423 | G110: CRC32C
A111: 16384 | B111: 6.335 | C111: 7.579 | D111: 3.424 | F111: 3.424 | G111: CRC32C
A112: 32768 | B112: 6.354 | C112: 7.573 | D112: 3.432 | F112: 3.432 | G112: CRC32C
A113: 65536 | B113: 7.4 | C113: 7.589 | D113: 3.439 | F113: 3.439 | G113: CRC32C
A114: 131072 | B114: 7.388 | C114: 7.587 | D114: 3.44 | F114: 3.44 | G114: CRC32C
A115: 262144 | B115: 7.762 | C115: 7.689 | D115: 3.441 | F115: 3.441 | G115: CRC32C
A116: 524288 | B116: 7.888 | C116: 7.718 | D116: 3.466 | F116: 3.466 | G116: CRC32C
A117: 1048576 | B117: 7.925 | C117: 7.728 | D117: 3.491 | F117: 3.491 | G117: CRC32C
A118: 2097152 | B118: 7.949 | C118: 7.76 | D118: 3.505 | F118: 3.505 | G118: CRC32C
A119: 4194304 | B119: 7.968 | C119: 7.789 | D119: 3.52 | F119: 3.52 | G119: CRC32C
A120: 8388608 | B120: 8.167 | C120: 7.962 | D120: 3.658 | F120: 3.658 | G120: CRC32C
A121: 16777216 | B121: 8.154 | C121: 7.992 | D121: 3.676 | F121: 3.676 | G121: CRC32C
A122: 33554432 | B122: 8.212 | C122: 8.001 | D122: 3.676 | F122: 3.676 | G122: CRC32C
A123: 67108864 | B123: 8.247 | C123: 8.01 | D123: 3.678 | F123: 3.678 | G123: CRC32C
A125: ClassTitle | B125: CRC-32-u32/u32/u32-4-canonical
A126: Compiler | B126: CpuBits | C126: Degree | D126: Crc | E126: TableEntry | F126: Word | G126: Stride | H126: Alignment | I126: TableBytes | J126: InitCycles
A127: GCC-4.5.0 | B127: 32 | C127: 32 | D127: 4 | E127: 4 | F127: 4 | G127: 4 | H127: 0 | I127: 8528 | J127: 1117332
B129: MemSpeed | C129: Byte | D129: ByteUnrolled | E129: ByteWord | F129: Word | G129: Blockword | H129: Multiword | I129: CRC32C | K129: BestTime | L129: BestMethod
A130: 4 | B130: 5.059 | C130: 8.198 | D130: 8.439 | E130: 8.27 | F130: 8.251 | G130: 9.81 | H130: 8.413 | I130: 9.001 | K130: 8.198 | L130: Byte
A131: 8 | B131: 2.688 | C131: 6.972 | D131: 7.111 | E131: 6.293 | F131: 5.912 | G131: 6.138 | H131: 5.574 | I131: 5.772 | K131: 5.574 | L131: Multiword
A132: 16 | B132: 1.417 | C132: 7.257 | D132: 7.376 | E132: 5.907 | F132: 3.688 | G132: 4.656 | H132: 4.094 | I132: 3.851 | K132: 3.688 | L132: Word
A133: 32 | B133: 0.834 | C133: 7.398 | D133: 7.391 | E133: 6.251 | F133: 3.209 | G133: 4.052 | H133: 4.063 | I133: 3.162 | K133: 3.162 | L133: CRC32C
A134: 64 | B134: 0.563 | C134: 7.464 | D134: 7.457 | E134: 6.224 | F134: 2.907 | G134: 3.744 | H134: 3.641 | I134: 2.805 | K134: 2.805 | L134: CRC32C
A135: 128 | B135: 0.391 | C135: 7.446 | D135: 7.521 | E135: 6.223 | F135: 2.767 | G135: 3.612 | H135: 3.394 | I135: 2.65 | K135: 2.65 | L135: CRC32C
A136: 256 | B136: 0.352 | C136: 7.36 | D136: 7.568 | E136: 6.23 | F136: 2.73 | G136: 3.524 | H136: 3.297 | I136: 2.683 | K136: 2.683 | L136: CRC32C
A137: 512 | B137: 0.288 | C137: 7.397 | D137: 7.649 | E137: 6.23 | F137: 2.67 | G137: 3.582 | H137: 3.231 | I137: 3.461 | K137: 2.67 | L137: Word
A138: 1024 | B138: 0.274 | C138: 7.339 | D138: 7.625 | E138: 6.221 | F138: 2.662 | G138: 3.498 | H138: 3.212 | I138: 3.457 | K138: 2.662 | L138: Word
A139: 2048 | B139: 0.269 | C139: 7.335 | D139: 7.607 | E139: 6.232 | F139: 2.64 | G139: 3.478 | H139: 3.203 | I139: 3.451 | K139: 2.64 | L139: Word
A140: 4096 | B140: 0.259 | C140: 7.336 | D140: 7.62 | E140: 6.208 | F140: 2.606 | G140: 3.474 | H140: 3.195 | I140: 3.424 | K140: 2.606 | L140: Word
A141: 8192 | B141: 0.255 | C141: 7.34 | D141: 7.594 | E141: 6.219 | F141: 2.598 | G141: 3.468 | H141: 3.188 | I141: 3.422 | K141: 2.598 | L141: Word
A142: 16384 | B142: 0.253 | C142: 7.337 | D142: 7.594 | E142: 6.198 | F142: 2.594 | G142: 3.469 | H142: 3.184 | I142: 3.424 | K142: 2.594 | L142: Word
A143: 32768 | B143: 0.262 | C143: 7.337 | D143: 7.606 | E143: 6.215 | F143: 2.591 | G143: 3.465 | H143: 3.201 | I143: 3.433 | K143: 2.591 | L143: Word
A144: 65536 | B144: 0.308 | C144: 7.336 | D144: 7.608 | E144: 6.216 | F144: 2.59 | G144: 2.997 | H144: 3.202 | I144: 3.437 | K144: 2.59 | L144: Word
A145: 131072 | B145: 0.308 | C145: 7.335 | D145: 7.616 | E145: 6.213 | F145: 2.59 | G145: 2.996 | H145: 3.203 | I145: 3.441 | K145: 2.59 | L145: Word
A146: 262144 | B146: 0.308 | C146: 7.413 | D146: 7.712 | E146: 6.254 | F146: 2.589 | G146: 2.993 | H146: 3.204 | I146: 3.441 | K146: 2.589 | L146: Word
A147: 524288 | B147: 0.309 | C147: 7.461 | D147: 7.772 | E147: 6.285 | F147: 2.59 | G147: 3.014 | H147: 3.221 | I147: 3.491 | K147: 2.59 | L147: Word
A148: 1048576 | B148: 0.309 | C148: 7.485 | D148: 7.784 | E148: 6.326 | F148: 2.67 | G148: 3.003 | H148: 3.251 | I148: 3.505 | K148: 2.67 | L148: Word
A149: 2097152 | B149: 0.312 | C149: 7.492 | D149: 7.808 | E149: 6.334 | F149: 2.686 | G149: 3.018 | H149: 3.263 | I149: 3.512 | K149: 2.686 | L149: Word
A150: 4194304 | B150: 0.315 | C150: 7.511 | D150: 7.823 | E150: 6.349 | F150: 2.69 | G150: 3.026 | H150: 3.277 | I150: 3.515 | K150: 2.69 | L150: Word
A151: 8388608 | B151: 0.547 | C151: 7.717 | D151: 8.023 | E151: 6.525 | F151: 2.787 | G151: 3.158 | H151: 3.402 | I151: 3.668 | K151: 2.787 | L151: Word
A152: 16777216 | B152: 0.559 | C152: 7.718 | D152: 7.956 | E152: 6.537 | F152: 2.813 | G152: 3.159 | H152: 3.413 | I152: 3.674 | K152: 2.813 | L152: Word
A153: 33554432 | B153: 0.557 | C153: 7.728 | D153: 8.03 | E153: 6.542 | F153: 2.819 | G153: 3.166 | H153: 3.424 | I153: 3.677 | K153: 2.819 | L153: Word
A154: 67108864 | B154: 0.556 | C154: 7.733 | D154: 8.02 | E154: 6.553 | F154: 2.822 | G154: 3.167 | H154: 3.419 | I154: 3.672 | K154: 2.822 | L154: Word
A156: ClassTitle | B156: CRC-32-u32/u32/u32-3-canonical
A157: Compiler | B157: CpuBits | C157: Degree | D157: Crc | E157: TableEntry | F157: Word | G157: Stride | H157: Alignment | I157: TableBytes | J157: InitCycles
A158: GCC-4.5.0 | B158: 32 | C158: 32 | D158: 4 | E158: 4 | F158: 4 | G158: 3 | H158: 0 | I158: 8528 | J158: 1107810
B160: Blockword | C160: Multiword | D160: CRC32C | F160: BestTime | G160: BestMethod
A161: 4 | B161: 9.716 | C161: 8.365 | D161: 9.001 | F161: 8.365 | G161: Multiword
A162: 8 | B162: 6.001 | C162: 5.876 | D162: 5.751 | F162: 5.751 | G162: CRC32C
A163: 16 | B163: 4.661 | C163: 4.376 | D163: 3.852 | F163: 3.852 | G163: CRC32C
A164: 32 | B164: 4.057 | C164: 3.735 | D164: 3.163 | F164: 3.163 | G164: CRC32C
A165: 64 | B165: 3.697 | C165: 3.297 | D165: 2.805 | F165: 2.805 | G165: CRC32C
A166: 128 | B166: 3.54 | C166: 3.201 | D166: 2.773 | F166: 2.773 | G166: CRC32C
A167: 256 | B167: 3.483 | C167: 3.091 | D167: 2.68 | F167: 2.68 | G167: CRC32C
A168: 512 | B168: 3.481 | C168: 3.039 | D168: 3.459 | F168: 3.039 | G168: Multiword
A169: 1024 | B169: 3.433 | C169: 3.027 | D169: 3.469 | F169: 3.027 | G169: Multiword
A170: 2048 | B170: 3.404 | C170: 3.029 | D170: 3.452 | F170: 3.029 | G170: Multiword
A171: 4096 | B171: 3.411 | C171: 3.004 | D171: 3.423 | F171: 3.004 | G171: Multiword
A172: 8192 | B172: 3.408 | C172: 3.003 | D172: 3.429 | F172: 3.003 | G172: Multiword
A173: 16384 | B173: 3.398 | C173: 3.002 | D173: 3.429 | F173: 3.002 | G173: Multiword
A174: 32768 | B174: 3.415 | C174: 3.021 | D174: 3.437 | F174: 3.021 | G174: Multiword
A175: 65536 | B175: 2.842 | C175: 3.022 | D175: 3.442 | F175: 2.842 | G175: Blockword
A176: 131072 | B176: 2.827 | C176: 3.022 | D176: 3.443 | F176: 2.827 | G176: Blockword
A177: 262144 | B177: 2.676 | C177: 3.025 | D177: 3.445 | F177: 2.676 | G177: Blockword
A178: 524288 | B178: 2.603 | C178: 3.032 | D178: 3.468 | F178: 2.603 | G178: Blockword
A179: 1048576 | B179: 2.636 | C179: 3.065 | D179: 3.504 | F179: 2.636 | G179: Blockword
A180: 2097152 | B180: 2.63 | C180: 3.081 | D180: 3.517 | F180: 2.63 | G180: Blockword
A181: 4194304 | B181: 2.642 | C181: 3.097 | D181: 3.521 | F181: 2.642 | G181: Blockword
A182: 8388608 | B182: 2.764 | C182: 3.22 | D182: 3.664 | F182: 2.764 | G182: Blockword
A183: 16777216 | B183: 2.756 | C183: 3.228 | D183: 3.676 | F183: 2.756 | G183: Blockword
A184: 33554432 | B184: 2.764 | C184: 3.231 | D184: 3.676 | F184: 2.764 | G184: Blockword
A185: 67108864 | B185: 2.775 | C185: 3.24 | D185: 3.681 | F185: 2.775 | G185: Blockword
A187: ClassTitle | B187: CRC-128-sse2/sse2/u64-4-canonical
A188: Compiler | B188: CpuBits | C188: Degree | D188: Crc | E188: TableEntry | F188: Word | G188: Stride | H188: Alignment | I188: TableBytes | J188: InitCycles
A189: GCC-4.5.0 | B189: 32 | C189: 128 | D189: 16 | E189: 16 | F189: 8 | G189: 4 | H189: 0 | I189: 66720 | J189: 1408779
B191: MemSpeed | C191: Byte | D191: ByteUnrolled | E191: ByteWord | F191: Word | G191: Blockword | H191: Multiword | J191: BestTime | K191: BestMethod
A192: 4 | B192: 9.001 | C192: 14.294 | D192: 14.971 | E192: 15.545 | F192: 16.714 | G192: 15.775 | H192: 15.751 | J192: 14.294 | K192: Byte
A193: 8 | B193: 4.251 | C193: 12.41 | D193: 12.256 | E193: 12.41 | F193: 7.875 | G193: 7.576 | H193: 7.176 | J193: 7.176 | K193: Multiword
A194: 16 | B194: 2.375 | C194: 12.365 | D194: 12.297 | E194: 11.396 | F194: 6.063 | G194: 5.61 | H194: 5.489 | J194: 5.489 | K194: Multiword
A195: 32 | B195: 1.625 | C195: 12.46 | D195: 12.328 | E195: 11.282 | F195: 5.194 | G195: 5.03 | H195: 4.688 | J195: 4.688 | K195: Multiword
A196: 64 | B196: 1.126 | C196: 12.445 | D196: 12.299 | E196: 11.657 | F196: 4.725 | G196: 4.248 | H196: 4.813 | J196: 4.248 | K196: Blockword
A197: 128 | B197: 1.028 | C197: 12.828 | D197: 12.376 | E197: 11.565 | F197: 4.37 | G197: 4.009 | H197: 4.641 | J197: 4.009 | K197: Blockword
A198: 256 | B198: 0.946 | C198: 12.692 | D198: 12.373 | E198: 11.501 | F198: 4.27 | G198: 3.87 | H198: 4.516 | J198: 3.87 | K198: Blockword
A199: 512 | B199: 0.957 | C199: 12.619 | D199: 12.453 | E199: 11.477 | F199: 4.241 | G199: 3.958 | H199: 4.56 | J199: 3.958 | K199: Blockword
A200: 1024 | B200: 0.889 | C200: 12.626 | D200: 12.468 | E200: 11.459 | F200: 4.725 | G200: 4.257 | H200: 4.7 | J200: 4.257 | K200: Blockword
A201: 2048 | B201: 0.882 | C201: 12.583 | D201: 12.422 | E201: 11.467 | F201: 4.704 | G201: 4.249 | H201: 4.731 | J201: 4.249 | K201: Blockword
A202: 4096 | B202: 0.887 | C202: 12.563 | D202: 12.398 | E202: 11.456 | F202: 4.636 | G202: 4.174 | H202: 4.668 | J202: 4.174 | K202: Blockword
A203: 8192 | B203: 0.881 | C203: 12.554 | D203: 12.393 | E203: 11.441 | F203: 4.679 | G203: 4.184 | H203: 4.645 | J203: 4.184 | K203: Blockword
A204: 16384 | B204: 0.878 | C204: 12.479 | D204: 12.452 | E204: 11.442 | F204: 4.767 | G204: 4.274 | H204: 4.648 | J204: 4.274 | K204: Blockword
A205: 32768 | B205: 0.877 | C205: 12.55 | D205: 12.451 | E205: 11.437 | F205: 4.788 | G205: 4.296 | H205: 4.651 | J205: 4.296 | K205: Blockword
A206: 65536 | B206: 0.876 | C206: 12.57 | D206: 12.451 | E206: 11.451 | F206: 4.759 | G206: 5.466 | H206: 4.636 | J206: 4.636 | K206: Multiword
A207: 131072 | B207: 0.875 | C207: 12.641 | D207: 12.544 | E207: 11.519 | F207: 4.798 | G207: 5.156 | H207: 4.637 | J207: 4.637 | K207: Multiword
A208: 262144 | B208: 0.875 | C208: 12.724 | D208: 12.628 | E208: 11.627 | F208: 4.788 | G208: 5.005 | H208: 4.639 | J208: 4.639 | K208: Multiword
A209: 524288 | B209: 0.875 | C209: 12.789 | D209: 12.696 | E209: 11.675 | F209: 4.872 | G209: 4.992 | H209: 4.705 | J209: 4.705 | K209: Multiword
A210: 1048576 | B210: 0.875 | C210: 12.843 | D210: 12.737 | E210: 11.692 | F210: 4.885 | G210: 5.001 | H210: 4.719 | J210: 4.719 | K210: Multiword
A211: 2097152 | B211: 0.892 | C211: 12.833 | D211: 12.785 | E211: 11.714 | F211: 4.909 | G211: 5.004 | H211: 4.733 | J211: 4.733 | K211: Multiword
A212: 4194304 | B212: 0.9 | C212: 12.852 | D212: 12.835 | E212: 11.735 | F212: 4.921 | G212: 5.003 | H212: 4.767 | J212: 4.767 | K212: Multiword
A213: 8388608 | B213: 0.993 | C213: 13.111 | D213: 13.059 | E213: 11.977 | F213: 5.06 | G213: 5.15 | H213: 4.889 | J213: 4.889 | K213: Multiword
... 496 more rows

Sheet GCC-64-ASM
A1: ClassTitle | B1: CRC-64-u64/u64/u64-4-canonical
A2: Compiler | B2: CpuBits | C2: Degree | D2: Crc | E2: TableEntry | F2: Word | G2: Stride | H2: Alignment | I2: TableBytes | J2: InitCycles
A3: GCC-4.5.0 | B3: 64 | C3: 64 | D3: 8 | E3: 8 | F3: 8 | G3: 4 | H3: 0 | I3: 33408 | J3: 91854
B5: MemSpeed | C5: Byte | D5: ByteUnrolled | E5: ByteWord | F5: Word | G5: Blockword | H5: Multiword | J5: BestTime | K5: BestMethod
A6: 4 | B6: 6.231 | C6: 6.189 | D6: 7.111 | E6: 7.001 | F6: 8.278 | G6: 10.343 | H6: 7.731 | J6: 6.189 | K6: Byte
A7: 8 | B7: 2.559 | C7: 6.134 | D7: 6.529 | E7: 5.281 | F7: 4.098 | G7: 4.752 | H7: 3.238 | J7: 3.238 | K7: Multiword
A8: 16 | B8: 1.385 | C8: 6.751 | D8: 7.094 | E8: 5.761 | F8: 3.002 | G8: 3.444 | H8: 2.631 | J8: 2.631 | K8: Multiword
A9: 32 | B9: 0.828 | C9: 7.066 | D9: 7.397 | E9: 5.801 | F9: 2.485 | G9: 2.798 | H9: 2.433 | J9: 2.433 | K9: Multiword
A10: 64 | B10: 0.517 | C10: 7.219 | D10: 7.485 | E10: 5.975 | F10: 2.333 | G10: 2.485 | H10: 1.651 | J10: 1.651 | K10: Multiword
A11: 128 | B11: 0.374 | C11: 7.539 | D11: 7.567 | E11: 6.098 | F11: 2.158 | G11: 2.332 | H11: 1.397 | J11: 1.397 | K11: Multiword
A12: 256 | B12: 0.297 | C12: 7.461 | D12: 7.604 | E12: 6.127 | F12: 2.095 | G12: 2.276 | H12: 1.262 | J12: 1.262 | K12: Multiword
A13: 512 | B13: 0.258 | C13: 7.436 | D13: 7.678 | E13: 6.127 | F13: 2.084 | G13: 2.219 | H13: 1.2 | J13: 1.2 | K13: Multiword
A14: 1024 | B14: 0.24 | C14: 7.373 | D14: 7.661 | E14: 6.145 | F14: 2.063 | G14: 2.225 | H14: 1.166 | J14: 1.166 | K14: Multiword
A15: 2048 | B15: 0.23 | C15: 7.398 | D15: 7.646 | E15: 6.155 | F15: 2.06 | G15: 2.209 | H15: 1.152 | J15: 1.152 | K15: Multiword
A16: 4096 | B16: 0.23 | C16: 7.432 | D16: 7.633 | E16: 6.154 | F16: 2.064 | G16: 2.2 | H16: 1.145 | J16: 1.145 | K16: Multiword
A17: 8192 | B17: 0.226 | C17: 7.384 | D17: 7.629 | E17: 6.177 | F17: 2.058 | G17: 2.186 | H17: 1.147 | J17: 1.147 | K17: Multiword
A18: 16384 | B18: 0.224 | C18: 7.336 | D18: 7.625 | E18: 6.17 | F18: 2.061 | G18: 2.144 | H18: 1.155 | J18: 1.155 | K18: Multiword
A19: 32768 | B19: 0.229 | C19: 7.335 | D19: 7.627 | E19: 6.163 | F19: 2.063 | G19: 2.194 | H19: 1.171 | J19: 1.171 | K19: Multiword
A20: 65536 | B20: 0.258 | C20: 7.336 | D20: 7.611 | E20: 6.161 | F20: 2.063 | G20: 2.306 | H20: 1.172 | J20: 1.172 | K20: Multiword
A21: 131072 | B21: 0.258 | C21: 7.336 | D21: 7.603 | E21: 6.163 | F21: 2.063 | G21: 2.28 | H21: 1.172 | J21: 1.172 | K21: Multiword
A22: 262144 | B22: 0.258 | C22: 7.383 | D22: 7.672 | E22: 6.165 | F22: 2.065 | G22: 2.27 | H22: 1.172 | J22: 1.172 | K22: Multiword
A23: 524288 | B23: 0.258 | C23: 7.406 | D23: 7.701 | E23: 6.217 | F23: 2.066 | G23: 2.263 | H23: 1.172 | J23: 1.172 | K23: Multiword
A24: 1048576 | B24: 0.258 | C24: 7.423 | D24: 7.72 | E24: 6.238 | F24: 2.09 | G24: 2.278 | H24: 1.173 | J24: 1.173 | K24: Multiword
A25: 2097152 | B25: 0.26 | C25: 7.433 | D25: 7.718 | E25: 6.251 | F25: 2.092 | G25: 2.289 | H25: 1.187 | J25: 1.187 | K25: Multiword
A26: 4194304 | B26: 0.26 | C26: 7.446 | D26: 7.74 | E26: 6.267 | F26: 2.098 | G26: 2.295 | H26: 1.187 | J26: 1.187 | K26: Multiword
A27: 8388608 | B27: 0.53 | C27: 7.703 | D27: 7.975 | E27: 6.48 | F27: 2.223 | G27: 2.422 | H27: 1.295 | J27: 1.295 | K27: Multiword
A28: 16777216 | B28: 0.555 | C28: 7.709 | D28: 7.994 | E28: 6.49 | F28: 2.234 | G28: 2.446 | H28: 1.3 | J28: 1.3 | K28: Multiword
A29: 33554432 | B29: 0.555 | C29: 7.715 | D29: 8.004 | E29: 6.501 | F29: 2.209 | G29: 2.437 | H29: 1.299 | J29: 1.299 | K29: Multiword
A30: 67108864 | B30: 0.555 | C30: 7.709 | D30: 8.006 | E30: 6.49 | F30: 2.241 | G30: 2.441 | H30: 1.302 | J30: 1.302 | K30: Multiword
A32: ClassTitle | B32: CRC-64-u64/u64/u64-3-canonical
A33: Compiler | B33: CpuBits | C33: Degree | D33: Crc | E33: TableEntry | F33: Word | G33: Stride | H33: Alignment | I33: TableBytes | J33: InitCycles
A34: GCC-4.5.0 | B34: 64 | C34: 64 | D34: 8 | E34: 8 | F34: 8 | G34: 3 | H34: 0 | I34: 33408 | J34: 98325
B36: Blockword | C36: Multiword | E36: BestTime | F36: BestMethod
A37: 4 | B37: 9.922 | C37: 8.551 | E37: 8.551 | F37: Multiword
A38: 8 | B38: 4.756 | C38: 3.976 | E38: 3.976 | F38: Multiword
A39: 16 | B39: 3.409 | C39: 3.127 | E39: 3.127 | F39: Multiword
A40: 32 | B40: 2.795 | C40: 2.554 | E40: 2.554 | F40: Multiword
A41: 64 | B41: 2.505 | C41: 2.173 | E41: 2.173 | F41: Multiword
A42: 128 | B42: 2.337 | C42: 1.939 | E42: 1.939 | F42: Multiword
A43: 256 | B43: 2.258 | C43: 1.836 | E43: 1.836 | F43: Multiword
A44: 512 | B44: 2.223 | C44: 1.768 | E44: 1.768 | F44: Multiword
A45: 1024 | B45: 2.224 | C45: 1.75 | E45: 1.75 | F45: Multiword
A46: 2048 | B46: 2.214 | C46: 1.74 | E46: 1.74 | F46: Multiword
A47: 4096 | B47: 2.21 | C47: 1.736 | E47: 1.736 | F47: Multiword
A48: 8192 | B48: 2.179 | C48: 1.734 | E48: 1.734 | F48: Multiword
A49: 16384 | B49: 2.145 | C49: 1.744 | E49: 1.744 | F49: Multiword
A50: 32768 | B50: 2.199 | C50: 1.75 | E50: 1.75 | F50: Multiword
A51: 65536 | B51: 2.203 | C51: 1.75 | E51: 1.75 | F51: Multiword
A52: 131072 | B52: 2.177 | C52: 1.75 | E52: 1.75 | F52: Multiword
A53: 262144 | B53: 2.151 | C53: 1.75 | E53: 1.75 | F53: Multiword
A54: 524288 | B54: 2.142 | C54: 1.751 | E54: 1.751 | F54: Multiword
A55: 1048576 | B55: 2.144 | C55: 1.774 | E55: 1.774 | F55: Multiword
A56: 2097152 | B56: 2.16 | C56: 1.773 | E56: 1.773 | F56: Multiword
A57: 4194304 | B57: 2.165 | C57: 1.777 | E57: 1.777 | F57: Multiword
A58: 8388608 | B58: 2.293 | C58: 1.901 | E58: 1.901 | F58: Multiword
A59: 16777216 | B59: 2.302 | C59: 1.907 | E59: 1.907 | F59: Multiword
A60: 33554432 | B60: 2.302 | C60: 1.905 | E60: 1.905 | F60: Multiword
A61: 67108864 | B61: 2.308 | C61: 1.915 | E61: 1.915 | F61: Multiword
A63: ClassTitle | B63: CRC-32-u64/u64/u64-4-canonical
A64: Compiler | B64: CpuBits | C64: Degree | D64: Crc | E64: TableEntry | F64: Word | G64: Stride | H64: Alignment | I64: TableBytes | J64: InitCycles
A65: GCC-4.5.0 | B65: 64 | C65: 32 | D65: 8 | E65: 8 | F65: 8 | G65: 4 | H65: 0 | I65: 33408 | J65: 1192941
B67: MemSpeed | C67: Byte | D67: ByteUnrolled | E67: ByteWord | F67: Word | G67: Blockword | H67: Multiword | I67: CRC32C | K67: BestTime | L67: BestMethod
A68: 4 | B68: 6.23 | C68: 6.19 | D68: 7.109 | E68: 7.001 | F68: 8.268 | G68: 10.615 | H68: 7.732 | I68: 8.959 | K68: 6.19 | L68: Byte
A69: 8 | B69: 2.559 | C69: 6.132 | D69: 6.619 | E69: 5.389 | F69: 3.821 | G69: 4.752 | H69: 3.243 | I69: 4.053 | K69: 3.243 | L69: Multiword
A70: 16 | B70: 1.378 | C70: 6.751 | D70: 7.095 | E70: 5.761 | F70: 3.016 | G70: 3.444 | H70: 2.675 | I70: 3.021 | K70: 2.675 | L70: Multiword
A71: 32 | B71: 0.828 | C71: 7.066 | D71: 7.373 | E71: 5.808 | F71: 2.458 | G71: 2.798 | H71: 2.433 | I71: 2.373 | K71: 2.373 | L71: CRC32C
A72: 64 | B72: 0.517 | C72: 7.221 | D72: 7.485 | E72: 5.97 | F72: 2.278 | G72: 2.453 | H72: 1.651 | I72: 2.115 | K72: 1.651 | L72: Multiword
A73: 128 | B73: 0.373 | C73: 7.539 | D73: 7.581 | E73: 6.095 | F73: 2.148 | G73: 2.332 | H73: 1.395 | I73: 2.169 | K73: 1.395 | L73: Multiword
A74: 256 | B74: 0.294 | C74: 7.461 | D74: 7.605 | E74: 6.127 | F74: 2.111 | G74: 2.276 | H74: 1.263 | I74: 2.062 | K74: 1.263 | L74: Multiword
A75: 512 | B75: 0.258 | C75: 7.436 | D75: 7.678 | E75: 6.127 | F75: 2.086 | G75: 2.222 | H75: 1.2 | I75: 2.369 | K75: 1.2 | L75: Multiword
A76: 1024 | B76: 0.24 | C76: 7.373 | D76: 7.657 | E76: 6.143 | F76: 2.063 | G76: 2.225 | H76: 1.167 | I76: 2.215 | K76: 1.167 | L76: Multiword
A77: 2048 | B77: 0.23 | C77: 7.397 | D77: 7.639 | E77: 6.156 | F77: 2.068 | G77: 2.211 | H77: 1.151 | I77: 2.184 | K77: 1.151 | L77: Multiword
A78: 4096 | B78: 0.23 | C78: 7.432 | D78: 7.633 | E78: 6.154 | F78: 2.064 | G78: 2.202 | H78: 1.145 | I78: 2.241 | K78: 1.145 | L78: Multiword
A79: 8192 | B79: 0.226 | C79: 7.384 | D79: 7.627 | E79: 6.177 | F79: 2.06 | G79: 2.179 | H79: 1.148 | I79: 2.233 | K79: 1.148 | L79: Multiword
A80: 16384 | B80: 0.224 | C80: 7.336 | D80: 7.627 | E80: 6.172 | F80: 2.053 | G80: 2.161 | H80: 1.153 | I80: 2.243 | K80: 1.153 | L80: Multiword
A81: 32768 | B81: 0.228 | C81: 7.335 | D81: 7.627 | E81: 6.163 | F81: 2.064 | G81: 2.193 | H81: 1.171 | I81: 2.256 | K81: 1.171 | L81: Multiword
A82: 65536 | B82: 0.258 | C82: 7.336 | D82: 7.626 | E82: 6.161 | F82: 2.062 | G82: 2.26 | H82: 1.173 | I82: 2.259 | K82: 1.173 | L82: Multiword
A83: 131072 | B83: 0.258 | C83: 7.335 | D83: 7.626 | E83: 6.163 | F83: 2.065 | G83: 2.25 | H83: 1.172 | I83: 2.261 | K83: 1.172 | L83: Multiword
A84: 262144 | B84: 0.258 | C84: 7.389 | D84: 7.68 | E84: 6.165 | F84: 2.065 | G84: 2.245 | H84: 1.172 | I84: 2.26 | K84: 1.172 | L84: Multiword
A85: 524288 | B85: 0.258 | C85: 7.41 | D85: 7.701 | E85: 6.217 | F85: 2.066 | G85: 2.242 | H85: 1.172 | I85: 2.26 | K85: 1.172 | L85: Multiword
A86: 1048576 | B86: 0.258 | C86: 7.428 | D86: 7.717 | E86: 6.241 | F86: 2.072 | G86: 2.267 | H86: 1.172 | I86: 2.282 | K86: 1.172 | L86: Multiword
A87: 2097152 | B87: 0.26 | C87: 7.432 | D87: 7.72 | E87: 6.252 | F87: 2.091 | G87: 2.27 | H87: 1.187 | I87: 2.288 | K87: 1.187 | L87: Multiword
A88: 4194304 | B88: 0.26 | C88: 7.451 | D88: 7.741 | E88: 6.266 | F88: 2.095 | G88: 2.276 | H88: 1.188 | I88: 2.296 | K88: 1.188 | L88: Multiword
A89: 8388608 | B89: 0.533 | C89: 7.678 | D89: 7.977 | E89: 6.485 | F89: 2.234 | G89: 2.405 | H89: 1.288 | I89: 2.444 | K89: 1.288 | L89: Multiword
A90: 16777216 | B90: 0.553 | C90: 7.708 | D90: 7.991 | E90: 6.498 | F90: 2.242 | G90: 2.413 | H90: 1.292 | I90: 2.45 | K90: 1.292 | L90: Multiword
A91: 33554432 | B91: 0.556 | C91: 7.705 | D91: 7.948 | E91: 6.49 | F91: 2.246 | G91: 2.418 | H91: 1.303 | I91: 2.451 | K91: 1.303 | L91: Multiword
A92: 67108864 | B92: 0.556 | C92: 7.718 | D92: 8.003 | E92: 6.503 | F92: 2.249 | G92: 2.423 | H92: 1.302 | I92: 2.46 | K92: 1.302 | L92: Multiword
A94: ClassTitle | B94: CRC-32-u64/u64/u64-3-canonical
A95: Compiler | B95: CpuBits | C95: Degree | D95: Crc | E95: TableEntry | F95: Word | G95: Stride | H95: Alignment | I95: TableBytes | J95: InitCycles
A96: GCC-4.5.0 | B96: 64 | C96: 32 | D96: 8 | E96: 8 | F96: 8 | G96: 3 | H96: 0 | I96: 33408 | J96: 1192950
B98: Blockword | C98: Multiword | D98: CRC32C | F98: BestTime | G98: BestMethod
A99: 4 | B99: 10.165 | C99: 8.919 | D99: 8.959 | F99: 8.919 | G99: Multiword
A100: 8 | B100: 4.756 | C100: 3.978 | D100: 4.051 | F100: 3.978 | G100: Multiword
A101: 16 | B101: 3.416 | C101: 3.086 | D101: 3.036 | F101: 3.036 | G101: CRC32C
A102: 32 | B102: 2.796 | C102: 2.549 | D102: 2.376 | F102: 2.376 | G102: CRC32C
A103: 64 | B103: 2.438 | C103: 2.175 | D103: 2.115 | F103: 2.115 | G103: CRC32C
A104: 128 | B104: 2.337 | C104: 1.921 | D104: 2.149 | F104: 1.921 | G104: Multiword
A105: 256 | B105: 2.259 | C105: 1.832 | D105: 2.066 | F105: 1.832 | G105: Multiword
A106: 512 | B106: 2.227 | C106: 1.76 | D106: 2.372 | F106: 1.76 | G106: Multiword
A107: 1024 | B107: 2.23 | C107: 1.749 | D107: 2.218 | F107: 1.749 | G107: Multiword
A108: 2048 | B108: 2.214 | C108: 1.748 | D108: 2.184 | F108: 1.748 | G108: Multiword
A109: 4096 | B109: 2.204 | C109: 1.735 | D109: 2.238 | F109: 1.735 | G109: Multiword
A110: 8192 | B110: 2.191 | C110: 1.735 | D110: 2.231 | F110: 1.735 | G110: Multiword
A111: 16384 | B111: 2.182 | C111: 1.745 | D111: 2.241 | F111: 1.745 | G111: Multiword
A112: 32768 | B112: 2.193 | C112: 1.751 | D112: 2.254 | F112: 1.751 | G112: Multiword
A113: 65536 | B113: 2.16 | C113: 1.752 | D113: 2.259 | F113: 1.752 | G113: Multiword
A114: 131072 | B114: 2.152 | C114: 1.751 | D114: 2.26 | F114: 1.751 | G114: Multiword
A115: 262144 | B115: 2.13 | C115: 1.751 | D115: 2.261 | F115: 1.751 | G115: Multiword
A116: 524288 | B116: 2.12 | C116: 1.75 | D116: 2.26 | F116: 1.75 | G116: Multiword
A117: 1048576 | B117: 2.142 | C117: 1.764 | D117: 2.284 | F117: 1.764 | G117: Multiword
A118: 2097152 | B118: 2.143 | C118: 1.772 | D118: 2.287 | F118: 1.772 | G118: Multiword
A119: 4194304 | B119: 2.148 | C119: 1.772 | D119: 2.295 | F119: 1.772 | G119: Multiword
A120: 8388608 | B120: 2.282 | C120: 1.904 | D120: 2.44 | F120: 1.904 | G120: Multiword
A121: 16777216 | B121: 2.281 | C121: 1.91 | D121: 2.453 | F121: 1.91 | G121: Multiword
A122: 33554432 | B122: 2.283 | C122: 1.91 | D122: 2.446 | F122: 1.91 | G122: Multiword
A123: 67108864 | B123: 2.265 | C123: 1.916 | D123: 2.452 | F123: 1.916 | G123: Multiword
A125: ClassTitle | B125: CRC-32-u32/u32/u32-4-canonical
A126: Compiler | B126: CpuBits | C126: Degree | D126: Crc | E126: TableEntry | F126: Word | G126: Stride | H126: Alignment | I126: TableBytes | J126: InitCycles
A127: GCC-4.5.0 | B127: 64 | C127: 32 | D127: 4 | E127: 4 | F127: 4 | G127: 4 | H127: 0 | I127: 8544 | J127: 1172142
B129: MemSpeed | C129: Byte | D129: ByteUnrolled | E129: ByteWord | F129: Word | G129: Blockword | H129: Multiword | I129: CRC32C | K129: BestTime | L129: BestMethod
A130: 4 | B130: 3.251 | C130: 6.19 | D130: 7.047 | E130: 6.167 | F130: 5.251 | G130: 7.502 | H130: 6.634 | I130: 9.45 | K130: 5.251 | L130: Word
A131: 8 | B131: 1.875 | C131: 6.123 | D131: 6.612 | E131: 5.591 | F131: 3.755 | G131: 4.897 | H131: 4.251 | I131: 4.211 | K131: 3.755 | L131: Word
A132: 16 | B132: 1.125 | C132: 6.751 | D132: 7.043 | E132: 5.516 | F132: 3.094 | G132: 3.659 | H132: 3.578 | I132: 3.034 | K132: 3.034 | L132: CRC32C
A133: 32 | B133: 0.656 | C133: 7.071 | D133: 7.411 | E133: 5.817 | F133: 2.956 | G133: 3.332 | H133: 2.557 | I133: 2.594 | K133: 2.557 | L133: Multiword
A134: 64 | B134: 0.422 | C134: 7.221 | D134: 7.487 | E134: 6.085 | F134: 2.865 | G134: 3.032 | H134: 2.053 | I134: 2.152 | K134: 2.053 | L134: Multiword
A135: 128 | B135: 0.323 | C135: 7.539 | D135: 7.577 | E135: 6.138 | F135: 2.852 | G135: 2.91 | H135: 1.805 | I135: 2.145 | K135: 1.805 | L135: Multiword
A136: 256 | B136: 0.286 | C136: 7.461 | D136: 7.593 | E136: 6.172 | F136: 2.825 | G136: 2.87 | H136: 1.672 | I136: 2.046 | K136: 1.672 | L136: Multiword
A137: 512 | B137: 0.268 | C137: 7.436 | D137: 7.689 | E137: 6.177 | F137: 2.803 | G137: 3.025 | H137: 1.608 | I137: 2.42 | K137: 1.608 | L137: Multiword
A138: 1024 | B138: 0.259 | C138: 7.373 | D138: 7.658 | E138: 6.181 | F138: 2.818 | G138: 2.852 | H138: 1.588 | I138: 2.191 | K138: 1.588 | L138: Multiword
A139: 2048 | B139: 0.264 | C139: 7.398 | D139: 7.649 | E139: 6.202 | F139: 2.85 | G139: 2.918 | H139: 1.595 | I139: 2.179 | K139: 1.595 | L139: Multiword
A140: 4096 | B140: 0.257 | C140: 7.426 | D140: 7.636 | E140: 6.208 | F140: 2.854 | G140: 2.828 | H140: 1.577 | I140: 2.237 | K140: 1.577 | L140: Multiword
A141: 8192 | B141: 0.254 | C141: 7.383 | D141: 7.657 | E141: 6.187 | F141: 2.878 | G141: 2.824 | H141: 1.572 | I141: 2.231 | K141: 1.572 | L141: Multiword
A142: 16384 | B142: 0.252 | C142: 7.336 | D142: 7.623 | E142: 6.213 | F142: 2.829 | G142: 2.813 | H142: 1.568 | I142: 2.248 | K142: 1.568 | L142: Multiword
A143: 32768 | B143: 0.259 | C143: 7.335 | D143: 7.634 | E143: 6.197 | F143: 2.826 | G143: 2.802 | H143: 1.578 | I143: 2.255 | K143: 1.578 | L143: Multiword
A144: 65536 | B144: 0.308 | C144: 7.336 | D144: 7.618 | E144: 6.194 | F144: 2.815 | G144: 1.819 | H144: 1.58 | I144: 2.256 | K144: 1.58 | L144: Multiword
A145: 131072 | B145: 0.308 | C145: 7.336 | D145: 7.613 | E145: 6.2 | F145: 2.813 | G145: 1.806 | H145: 1.581 | I145: 2.258 | K145: 1.581 | L145: Multiword
A146: 262144 | B146: 0.308 | C146: 7.426 | D146: 7.669 | E146: 6.202 | F146: 2.813 | G146: 1.803 | H146: 1.582 | I146: 2.259 | K146: 1.582 | L146: Multiword
A147: 524288 | B147: 0.309 | C147: 7.413 | D147: 7.702 | E147: 6.265 | F147: 2.814 | G147: 1.802 | H147: 1.582 | I147: 2.262 | K147: 1.582 | L147: Multiword
A148: 1048576 | B148: 0.309 | C148: 7.427 | D148: 7.711 | E148: 6.289 | F148: 2.835 | G148: 1.751 | H148: 1.583 | I148: 2.278 | K148: 1.583 | L148: Multiword
A149: 2097152 | B149: 0.312 | C149: 7.438 | D149: 7.726 | E149: 6.3 | F149: 2.878 | G149: 1.761 | H149: 1.597 | I149: 2.288 | K149: 1.597 | L149: Multiword
A150: 4194304 | B150: 0.312 | C150: 7.46 | D150: 7.738 | E150: 6.31 | F150: 2.889 | G150: 1.761 | H150: 1.604 | I150: 2.295 | K150: 1.604 | L150: Multiword
A151: 8388608 | B151: 0.545 | C151: 7.678 | D151: 7.979 | E151: 6.536 | F151: 3.034 | G151: 1.88 | H151: 1.715 | I151: 2.435 | K151: 1.715 | L151: Multiword
A152: 16777216 | B152: 0.556 | C152: 7.685 | D152: 7.992 | E152: 6.54 | F152: 3.038 | G152: 1.894 | H152: 1.725 | I152: 2.445 | K152: 1.725 | L152: Multiword
A153: 33554432 | B153: 0.557 | C153: 7.712 | D153: 7.99 | E153: 6.549 | F153: 3.044 | G153: 1.889 | H153: 1.72 | I153: 2.447 | K153: 1.72 | L153: Multiword
A154: 67108864 | B154: 0.561 | C154: 7.721 | D154: 8.006 | E154: 6.556 | F154: 3.043 | G154: 1.894 | H154: 1.724 | I154: 2.439 | K154: 1.724 | L154: Multiword
A156: ClassTitle | B156: CRC-32-u32/u32/u32-3-canonical
A157: Compiler | B157: CpuBits | C157: Degree | D157: Crc | E157: TableEntry | F157: Word | G157: Stride | H157: Alignment | I157: TableBytes | J157: InitCycles
A158: GCC-4.5.0 | B158: 64 | C158: 32 | D158: 4 | E158: 4 | F158: 4 | G158: 3 | H158: 0 | I158: 8544 | J158: 1175850
B160: Blockword | C160: Multiword | D160: CRC32C | F160: BestTime | G160: BestMethod
A161: 4 | B161: 7.753 | C161: 7.004 | D161: 9.469 | F161: 7.004 | G161: Multiword
A162: 8 | B162: 5.156 | C162: 5.087 | D162: 4.825 | F162: 4.825 | G162: CRC32C
A163: 16 | B163: 3.897 | C163: 4.032 | D163: 3.036 | F163: 3.036 | G163: CRC32C
A164: 32 | B164: 3.369 | C164: 2.834 | D164: 2.594 | F164: 2.594 | G164: CRC32C
A165: 64 | B165: 3 | C165: 1.963 | D165: 2.143 | F165: 1.963 | G165: Multiword
A166: 128 | B166: 2.953 | C166: 1.735 | D166: 2.137 | F166: 1.735 | G166: Multiword
A167: 256 | B167: 2.884 | C167: 1.541 | D167: 2.046 | F167: 1.541 | G167: Multiword
A168: 512 | B168: 3.021 | C168: 1.492 | D168: 2.38 | F168: 1.492 | G168: Multiword
A169: 1024 | B169: 2.883 | C169: 1.459 | D169: 2.17 | F169: 1.459 | G169: Multiword
A170: 2048 | B170: 2.84 | C170: 1.434 | D170: 2.161 | F170: 1.434 | G170: Multiword
A171: 4096 | B171: 2.83 | C171: 1.412 | D171: 2.223 | F171: 1.412 | G171: Multiword
A172: 8192 | B172: 2.826 | C172: 1.415 | D172: 2.229 | F172: 1.415 | G172: Multiword
A173: 16384 | B173: 2.82 | C173: 1.412 | D173: 2.243 | F173: 1.412 | G173: Multiword
A174: 32768 | B174: 2.794 | C174: 1.427 | D174: 2.253 | F174: 1.427 | G174: Multiword
A175: 65536 | B175: 2.354 | C175: 1.427 | D175: 2.256 | F175: 1.427 | G175: Multiword
A176: 131072 | B176: 2.31 | C176: 1.428 | D176: 2.258 | F176: 1.428 | G176: Multiword
A177: 262144 | B177: 2.175 | C177: 1.428 | D177: 2.258 | F177: 1.428 | G177: Multiword
A178: 524288 | B178: 2.109 | C178: 1.428 | D178: 2.259 | F178: 1.428 | G178: Multiword
A179: 1048576 | B179: 2.13 | C179: 1.429 | D179: 2.284 | F179: 1.429 | G179: Multiword
A180: 2097152 | B180: 2.11 | C180: 1.442 | D180: 2.287 | F180: 1.442 | G180: Multiword
A181: 4194304 | B181: 2.121 | C181: 1.449 | D181: 2.292 | F181: 1.449 | G181: Multiword
A182: 8388608 | B182: 2.245 | C182: 1.559 | D182: 2.442 | F182: 1.559 | G182: Multiword
A183: 16777216 | B183: 2.241 | C183: 1.565 | D183: 2.451 | F183: 1.565 | G183: Multiword
A184: 33554432 | B184: 2.247 | C184: 1.562 | D184: 2.45 | F184: 1.562 | G184: Multiword
A185: 67108864 | B185: 2.254 | C185: 1.569 | D185: 2.444 | F185: 1.569 | G185: Multiword
A187: ClassTitle | B187: CRC-128-sse2/sse2/u64-4-canonical
A188: Compiler | B188: CpuBits | C188: Degree | D188: Crc | E188: TableEntry | F188: Word | G188: Stride | H188: Alignment | I188: TableBytes | J188: InitCycles
A189: GCC-4.5.0 | B189: 64 | C189: 128 | D189: 16 | E189: 16 | F189: 8 | G189: 4 | H189: 0 | I189: 66736 | J189: 1121580
B191: MemSpeed | C191: Byte | D191: ByteUnrolled | E191: ByteWord | F191: Word | G191: Blockword | H191: Multiword | J191: BestTime | K191: BestMethod
A192: 4 | B192: 6.948 | C192: 8.927 | D192: 9.02 | E192: 9.259 | F192: 9.687 | G192: 11.806 | H192: 9.755 | J192: 8.927 | K192: Byte
A193: 8 | B193: 3.26 | C193: 8.296 | D193: 8.555 | E193: 8.571 | F193: 4.588 | G193: 5.668 | H193: 4.643 | J193: 4.588 | K193: Word
A194: 16 | B194: 1.891 | C194: 8.881 | D194: 9.004 | E194: 8.049 | F194: 3.448 | G194: 4.027 | H194: 3.749 | J194: 3.448 | K194: Word
A195: 32 | B195: 1.406 | C195: 9.188 | D195: 9.181 | E195: 8.162 | F195: 2.853 | G195: 3.113 | H195: 3.313 | J195: 2.853 | K195: Word
A196: 64 | B196: 1.102 | C196: 9.325 | D196: 9.302 | E196: 8.227 | F196: 2.677 | G196: 2.841 | H196: 2.522 | J196: 2.522 | K196: Multiword
A197: 128 | B197: 0.953 | C197: 9.61 | D197: 9.355 | E197: 8.284 | F197: 2.551 | G197: 2.637 | H197: 2.064 | J197: 2.064 | K197: Multiword
A198: 256 | B198: 0.889 | C198: 9.528 | D198: 9.389 | E198: 8.333 | F198: 2.48 | G198: 2.535 | H198: 1.828 | J198: 1.828 | K198: Multiword
A199: 512 | B199: 0.852 | C199: 9.499 | D199: 9.459 | E199: 8.341 | F199: 2.445 | G199: 2.498 | H199: 1.78 | J199: 1.78 | K199: Multiword
A200: 1024 | B200: 0.83 | C200: 9.474 | D200: 9.403 | E200: 8.369 | F200: 2.68 | G200: 2.741 | H200: 1.818 | J200: 1.818 | K200: Multiword
A201: 2048 | B201: 0.822 | C201: 9.463 | D201: 9.375 | E201: 8.367 | F201: 2.787 | G201: 2.878 | H201: 1.797 | J201: 1.797 | K201: Multiword
A202: 4096 | B202: 0.82 | C202: 9.456 | D202: 9.36 | E202: 8.36 | F202: 2.783 | G202: 2.825 | H202: 1.769 | J202: 1.769 | K202: Multiword
A203: 8192 | B203: 0.814 | C203: 9.453 | D203: 9.354 | E203: 8.366 | F203: 2.846 | G203: 2.883 | H203: 1.745 | J203: 1.745 | K203: Multiword
A204: 16384 | B204: 0.808 | C204: 9.452 | D204: 9.355 | E204: 8.333 | F204: 2.97 | G204: 2.987 | H204: 1.747 | J204: 1.747 | K204: Multiword
A205: 32768 | B205: 0.802 | C205: 9.438 | D205: 9.346 | E205: 8.314 | F205: 2.979 | G205: 3.001 | H205: 1.737 | J205: 1.737 | K205: Multiword
A206: 65536 | B206: 0.793 | C206: 9.451 | D206: 9.345 | E206: 8.367 | F206: 2.947 | G206: 2.682 | H206: 1.739 | J206: 1.739 | K206: Multiword
A207: 131072 | B207: 0.797 | C207: 9.451 | D207: 9.393 | E207: 8.366 | F207: 2.992 | G207: 2.434 | H207: 1.733 | J207: 1.733 | K207: Multiword
A208: 262144 | B208: 0.797 | C208: 9.502 | D208: 9.439 | E208: 8.453 | F208: 2.973 | G208: 2.311 | H208: 1.737 | J208: 1.737 | K208: Multiword
A209: 524288 | B209: 0.791 | C209: 9.541 | D209: 9.521 | E209: 8.459 | F209: 2.994 | G209: 2.248 | H209: 1.738 | J209: 1.738 | K209: Multiword
A210: 1048576 | B210: 0.787 | C210: 9.565 | D210: 9.551 | E210: 8.459 | F210: 3.032 | G210: 2.188 | H210: 1.754 | J210: 1.754 | K210: Multiword
A211: 2097152 | B211: 0.796 | C211: 9.575 | D211: 9.567 | E211: 8.482 | F211: 3.053 | G211: 2.175 | H211: 1.757 | J211: 1.757 | K211: Multiword
A212: 4194304 | B212: 0.801 | C212: 9.604 | D212: 9.596 | E212: 8.514 | F212: 3.062 | G212: 2.173 | H212: 1.767 | J212: 1.767 | K212: Multiword
A213: 8388608 | B213: 0.918 | C213: 9.862 | D213: 9.841 | E213: 8.773 | F213: 3.197 | G213: 2.281 | H213: 1.879 | J213: 1.879 | K213: Multiword
... 728 more rows

Sheet GCC-64-NOASM
A1: ClassTitle | B1: CRC-64-u64/u64/u64-4-canonical
A2: Compiler | B2: CpuBits | C2: Degree | D2: Crc | E2: TableEntry | F2: Word | G2: Stride | H2: Alignment | I2: TableBytes | J2: InitCycles
A3: GCC-4.5.0 | B3: 64 | C3: 64 | D3: 8 | E3: 8 | F3: 8 | G3: 4 | H3: 0 | I3: 33408 | J3: 91791
B5: MemSpeed | C5: Byte | D5: ByteUnrolled | E5: ByteWord | F5: Word | G5: Blockword | H5: Multiword | J5: BestTime | K5: BestMethod
A6: 4 | B6: 6.228 | C6: 6.175 | D6: 7.108 | E6: 7.001 | F6: 8.301 | G6: 10.277 | H6: 8.477 | J6: 6.175 | K6: Byte
A7: 8 | B7: 2.559 | C7: 6.128 | D7: 6.501 | E7: 5.278 | F7: 3.886 | G7: 4.76 | H7: 4.014 | J7: 3.886 | K7: Word
A8: 16 | B8: 1.379 | C8: 6.751 | D8: 7.094 | E8: 5.761 | F8: 3 | G8: 3.444 | H8: 2.939 | J8: 2.939 | K8: Multiword
A9: 32 | B9: 0.821 | C9: 7.065 | D9: 7.397 | E9: 5.806 | F9: 2.458 | G9: 2.798 | H9: 2.6 | J9: 2.458 | K9: Word
A10: 64 | B10: 0.516 | C10: 7.223 | D10: 7.485 | E10: 5.974 | F10: 2.267 | G10: 2.494 | H10: 2.297 | J10: 2.267 | K10: Word
A11: 128 | B11: 0.372 | C11: 7.539 | D11: 7.601 | E11: 6.092 | F11: 2.153 | G11: 2.332 | H11: 2.183 | J11: 2.153 | K11: Word
A12: 256 | B12: 0.294 | C12: 7.461 | D12: 7.605 | E12: 6.127 | F12: 2.119 | G12: 2.277 | H12: 2.1 | J12: 2.1 | K12: Multiword
A13: 512 | B13: 0.257 | C13: 7.436 | D13: 7.678 | E13: 6.127 | F13: 2.086 | G13: 2.222 | H13: 2.049 | J13: 2.049 | K13: Multiword
A14: 1024 | B14: 0.239 | C14: 7.373 | D14: 7.656 | E14: 6.146 | F14: 2.067 | G14: 2.234 | H14: 2.037 | J14: 2.037 | K14: Multiword
A15: 2048 | B15: 0.23 | C15: 7.399 | D15: 7.638 | E15: 6.155 | F15: 2.063 | G15: 2.216 | H15: 2.022 | J15: 2.022 | K15: Multiword
A16: 4096 | B16: 0.231 | C16: 7.434 | D16: 7.633 | E16: 6.154 | F16: 2.065 | G16: 2.205 | H16: 2.032 | J16: 2.032 | K16: Multiword
A17: 8192 | B17: 0.228 | C17: 7.383 | D17: 7.629 | E17: 6.177 | F17: 2.06 | G17: 2.194 | H17: 2.027 | J17: 2.027 | K17: Multiword
A18: 16384 | B18: 0.224 | C18: 7.336 | D18: 7.627 | E18: 6.17 | F18: 2.057 | G18: 2.167 | H18: 2.034 | J18: 2.034 | K18: Multiword
A19: 32768 | B19: 0.229 | C19: 7.335 | D19: 7.627 | E19: 6.162 | F19: 2.063 | G19: 2.197 | H19: 2.045 | J19: 2.045 | K19: Multiword
A20: 65536 | B20: 0.258 | C20: 7.336 | D20: 7.626 | E20: 6.161 | F20: 2.063 | G20: 2.307 | H20: 2.047 | J20: 2.047 | K20: Multiword
A21: 131072 | B21: 0.258 | C21: 7.336 | D21: 7.626 | E21: 6.163 | F21: 2.064 | G21: 2.281 | H21: 2.047 | J21: 2.047 | K21: Multiword
A22: 262144 | B22: 0.258 | C22: 7.382 | D22: 7.676 | E22: 6.165 | F22: 2.065 | G22: 2.269 | H22: 2.046 | J22: 2.046 | K22: Multiword
A23: 524288 | B23: 0.257 | C23: 7.405 | D23: 7.7 | E23: 6.217 | F23: 2.066 | G23: 2.262 | H23: 2.046 | J23: 2.046 | K23: Multiword
A24: 1048576 | B24: 0.258 | C24: 7.428 | D24: 7.717 | E24: 6.239 | F24: 2.081 | G24: 2.279 | H24: 2.069 | J24: 2.069 | K24: Multiword
A25: 2097152 | B25: 0.26 | C25: 7.43 | D25: 7.728 | E25: 6.245 | F25: 2.091 | G25: 2.289 | H25: 2.07 | J25: 2.07 | K25: Multiword
A26: 4194304 | B26: 0.26 | C26: 7.46 | D26: 7.749 | E26: 6.275 | F26: 2.093 | G26: 2.296 | H26: 2.075 | J26: 2.075 | K26: Multiword
A27: 8388608 | B27: 0.54 | C27: 7.69 | D27: 7.984 | E27: 6.474 | F27: 2.233 | G27: 2.421 | H27: 2.211 | J27: 2.211 | K27: Multiword
A28: 16777216 | B28: 0.556 | C28: 7.709 | D28: 8.007 | E28: 6.488 | F28: 2.234 | G28: 2.435 | H28: 2.221 | J28: 2.221 | K28: Multiword
A29: 33554432 | B29: 0.559 | C29: 7.704 | D29: 7.991 | E29: 6.496 | F29: 2.244 | G29: 2.392 | H29: 2.22 | J29: 2.22 | K29: Multiword
A30: 67108864 | B30: 0.556 | C30: 7.716 | D30: 8.012 | E30: 6.508 | F30: 2.239 | G30: 2.434 | H30: 2.228 | J30: 2.228 | K30: Multiword
A32: ClassTitle | B32: CRC-64-u64/u64/u64-3-canonical
A33: Compiler | B33: CpuBits | C33: Degree | D33: Crc | E33: TableEntry | F33: Word | G33: Stride | H33: Alignment | I33: TableBytes | J33: InitCycles
A34: GCC-4.5.0 | B34: 64 | C34: 64 | D34: 8 | E34: 8 | F34: 8 | G34: 3 | H34: 0 | I34: 33408 | J34: 96273
B36: Blockword | C36: Multiword | E36: BestTime | F36: BestMethod
A37: 4 | B37: 10.408 | C37: 8.919 | E37: 8.919 | F37: Multiword
A38: 8 | B38: 4.756 | C38: 3.895 | E38: 3.895 | F38: Multiword
A39: 16 | B39: 3.41 | C39: 3.063 | E39: 3.063 | F39: Multiword
A40: 32 | B40: 2.796 | C40: 2.554 | E40: 2.554 | F40: Multiword
A41: 64 | B41: 2.438 | C41: 2.181 | E41: 2.181 | F41: Multiword
A42: 128 | B42: 2.337 | C42: 1.917 | E42: 1.917 | F42: Multiword
A43: 256 | B43: 2.259 | C43: 1.834 | E43: 1.834 | F43: Multiword
A44: 512 | B44: 2.232 | C44: 1.762 | E44: 1.762 | F44: Multiword
A45: 1024 | B45: 2.222 | C45: 1.747 | E45: 1.747 | F45: Multiword
A46: 2048 | B46: 2.213 | C46: 1.744 | E46: 1.744 | F46: Multiword
A47: 4096 | B47: 2.21 | C47: 1.739 | E47: 1.739 | F47: Multiword
A48: 8192 | B48: 2.204 | C48: 1.736 | E48: 1.736 | F48: Multiword
A49: 16384 | B49: 2.178 | C49: 1.743 | E49: 1.743 | F49: Multiword
A50: 32768 | B50: 2.197 | C50: 1.751 | E50: 1.751 | F50: Multiword
A51: 65536 | B51: 2.202 | C51: 1.752 | E51: 1.752 | F51: Multiword
A52: 131072 | B52: 2.176 | C52: 1.751 | E52: 1.751 | F52: Multiword
A53: 262144 | B53: 2.153 | C53: 1.751 | E53: 1.751 | F53: Multiword
A54: 524288 | B54: 2.139 | C54: 1.75 | E54: 1.75 | F54: Multiword
A55: 1048576 | B55: 2.161 | C55: 1.764 | E55: 1.764 | F55: Multiword
A56: 2097152 | B56: 2.159 | C56: 1.772 | E56: 1.772 | F56: Multiword
A57: 4194304 | B57: 2.164 | C57: 1.779 | E57: 1.779 | F57: Multiword
A58: 8388608 | B58: 2.289 | C58: 1.898 | E58: 1.898 | F58: Multiword
A59: 16777216 | B59: 2.311 | C59: 1.918 | E59: 1.918 | F59: Multiword
A60: 33554432 | B60: 2.296 | C60: 1.908 | E60: 1.908 | F60: Multiword
A61: 67108864 | B61: 2.309 | C61: 1.911 | E61: 1.911 | F61: Multiword
A63: ClassTitle | B63: CRC-32-u64/u64/u64-4-canonical
A64: Compiler | B64: CpuBits | C64: Degree | D64: Crc | E64: TableEntry | F64: Word | G64: Stride | H64: Alignment | I64: TableBytes | J64: InitCycles
A65: GCC-4.5.0 | B65: 64 | C65: 32 | D65: 8 | E65: 8 | F65: 8 | G65: 4 | H65: 0 | I65: 33408 | J65: 1202193
B67: MemSpeed | C67: Byte | D67: ByteUnrolled | E67: ByteWord | F67: Word | G67: Blockword | H67: Multiword | I67: CRC32C | K67: BestTime | L67: BestMethod
A68: 4 | B68: 6.227 | C68: 6.197 | D68: 7.112 | E68: 7.001 | F68: 8.252 | G68: 10.278 | H68: 8.459 | I68: 8.959 | K68: 6.197 | L68: Byte
A69: 8 | B69: 2.63 | C69: 6.126 | D69: 6.564 | E69: 5.365 | F69: 3.989 | G69: 4.76 | H69: 4.014 | I69: 4.054 | K69: 3.989 | L69: Word
A70: 16 | B70: 1.381 | C70: 6.751 | D70: 7.094 | E70: 5.761 | F70: 3 | G70: 3.444 | H70: 2.951 | I70: 3.028 | K70: 2.951 | L70: Multiword
A71: 32 | B71: 0.828 | C71: 7.041 | D71: 7.397 | E71: 5.803 | F71: 2.45 | G71: 2.798 | H71: 2.6 | I71: 2.39 | K71: 2.39 | L71: CRC32C
A72: 64 | B72: 0.518 | C72: 7.224 | D72: 7.485 | E72: 5.971 | F72: 2.279 | G72: 2.489 | H72: 2.313 | I72: 2.115 | K72: 2.115 | L72: CRC32C
A73: 128 | B73: 0.371 | C73: 7.539 | D73: 7.601 | E73: 6.092 | F73: 2.153 | G73: 2.332 | H73: 2.172 | I73: 2.148 | K73: 2.148 | L73: CRC32C
A74: 256 | B74: 0.294 | C74: 7.461 | D74: 7.605 | E74: 6.127 | F74: 2.1 | G74: 2.277 | H74: 2.09 | I74: 2.073 | K74: 2.073 | L74: CRC32C
A75: 512 | B75: 0.258 | C75: 7.436 | D75: 7.678 | E75: 6.127 | F75: 2.073 | G75: 2.221 | H75: 2.053 | I75: 2.371 | K75: 2.053 | L75: Multiword
A76: 1024 | B76: 0.24 | C76: 7.373 | D76: 7.656 | E76: 6.146 | F76: 2.065 | G76: 2.234 | H76: 2.035 | I76: 2.219 | K76: 2.035 | L76: Multiword
A77: 2048 | B77: 0.229 | C77: 7.398 | D77: 7.639 | E77: 6.154 | F77: 2.055 | G77: 2.216 | H77: 2.02 | I77: 2.184 | K77: 2.02 | L77: Multiword
A78: 4096 | B78: 0.231 | C78: 7.435 | D78: 7.633 | E78: 6.154 | F78: 2.065 | G78: 2.203 | H78: 2.027 | I78: 2.231 | K78: 2.027 | L78: Multiword
A79: 8192 | B79: 0.227 | C79: 7.383 | D79: 7.629 | E79: 6.176 | F79: 2.059 | G79: 2.201 | H79: 2.026 | I79: 2.228 | K79: 2.026 | L79: Multiword
A80: 16384 | B80: 0.223 | C80: 7.336 | D80: 7.627 | E80: 6.172 | F80: 2.059 | G80: 2.167 | H80: 2.036 | I80: 2.244 | K80: 2.036 | L80: Multiword
A81: 32768 | B81: 0.229 | C81: 7.335 | D81: 7.627 | E81: 6.163 | F81: 2.061 | G81: 2.201 | H81: 2.044 | I81: 2.256 | K81: 2.044 | L81: Multiword
A82: 65536 | B82: 0.258 | C82: 7.336 | D82: 7.626 | E82: 6.161 | F82: 2.064 | G82: 2.262 | H82: 2.047 | I82: 2.26 | K82: 2.047 | L82: Multiword
A83: 131072 | B83: 0.258 | C83: 7.335 | D83: 7.626 | E83: 6.163 | F83: 2.066 | G83: 2.251 | H83: 2.046 | I83: 2.261 | K83: 2.046 | L83: Multiword
A84: 262144 | B84: 0.258 | C84: 7.38 | D84: 7.68 | E84: 6.165 | F84: 2.065 | G84: 2.246 | H84: 2.046 | I84: 2.259 | K84: 2.046 | L84: Multiword
A85: 524288 | B85: 0.258 | C85: 7.404 | D85: 7.694 | E85: 6.217 | F85: 2.066 | G85: 2.242 | H85: 2.046 | I85: 2.265 | K85: 2.046 | L85: Multiword
A86: 1048576 | B86: 0.258 | C86: 7.425 | D86: 7.701 | E86: 6.239 | F86: 2.086 | G86: 2.267 | H86: 2.059 | I86: 2.287 | K86: 2.059 | L86: Multiword
A87: 2097152 | B87: 0.26 | C87: 7.433 | D87: 7.72 | E87: 6.253 | F87: 2.091 | G87: 2.269 | H87: 2.065 | I87: 2.292 | K87: 2.065 | L87: Multiword
A88: 4194304 | B88: 0.26 | C88: 7.459 | D88: 7.739 | E88: 6.273 | F88: 2.094 | G88: 2.276 | H88: 2.074 | I88: 2.294 | K88: 2.074 | L88: Multiword
A89: 8388608 | B89: 0.536 | C89: 7.689 | D89: 8 | E89: 6.486 | F89: 2.227 | G89: 2.405 | H89: 2.208 | I89: 2.445 | K89: 2.208 | L89: Multiword
A90: 16777216 | B90: 0.557 | C90: 7.691 | D90: 7.996 | E90: 6.467 | F90: 2.231 | G90: 2.413 | H90: 2.219 | I90: 2.448 | K90: 2.219 | L90: Multiword
A91: 33554432 | B91: 0.557 | C91: 7.669 | D91: 7.995 | E91: 6.497 | F91: 2.243 | G91: 2.424 | H91: 2.224 | I91: 2.449 | K91: 2.224 | L91: Multiword
A92: 67108864 | B92: 0.558 | C92: 7.708 | D92: 8.015 | E92: 6.502 | F92: 2.244 | G92: 2.425 | H92: 2.221 | I92: 2.457 | K92: 2.221 | L92: Multiword
A94: ClassTitle | B94: CRC-32-u64/u64/u64-3-canonical
A95: Compiler | B95: CpuBits | C95: Degree | D95: Crc | E95: TableEntry | F95: Word | G95: Stride | H95: Alignment | I95: TableBytes | J95: InitCycles
A96: GCC-4.5.0 | B96: 64 | C96: 32 | D96: 8 | E96: 8 | F96: 8 | G96: 3 | H96: 0 | I96: 33408 | J96: 1206702
B98: Blockword | C98: Multiword | D98: CRC32C | F98: BestTime | G98: BestMethod
A99: 4 | B99: 10.11 | C99: 8.919 | D99: 8.959 | F99: 8.919 | G99: Multiword
A100: 8 | B100: 4.756 | C100: 4.003 | D100: 4.053 | F100: 4.003 | G100: Multiword
A101: 16 | B101: 3.422 | C101: 3.063 | D101: 3.001 | F101: 3.001 | G101: CRC32C
A102: 32 | B102: 2.797 | C102: 2.545 | D102: 2.39 | F102: 2.39 | G102: CRC32C
A103: 64 | B103: 2.438 | C103: 2.162 | D103: 2.115 | F103: 2.115 | G103: CRC32C
A104: 128 | B104: 2.336 | C104: 1.935 | D104: 2.146 | F104: 1.935 | G104: Multiword
A105: 256 | B105: 2.259 | C105: 1.832 | D105: 2.064 | F105: 1.832 | G105: Multiword
A106: 512 | B106: 2.231 | C106: 1.765 | D106: 2.389 | F106: 1.765 | G106: Multiword
A107: 1024 | B107: 2.261 | C107: 1.744 | D107: 2.214 | F107: 1.744 | G107: Multiword
A108: 2048 | B108: 2.222 | C108: 1.745 | D108: 2.189 | F108: 1.745 | G108: Multiword
A109: 4096 | B109: 2.21 | C109: 1.733 | D109: 2.233 | F109: 1.733 | G109: Multiword
A110: 8192 | B110: 2.144 | C110: 1.737 | D110: 2.232 | F110: 1.737 | G110: Multiword
A111: 16384 | B111: 2.174 | C111: 1.743 | D111: 2.238 | F111: 1.743 | G111: Multiword
A112: 32768 | B112: 2.197 | C112: 1.751 | D112: 2.259 | F112: 1.751 | G112: Multiword
A113: 65536 | B113: 2.164 | C113: 1.753 | D113: 2.264 | F113: 1.753 | G113: Multiword
A114: 131072 | B114: 2.156 | C114: 1.75 | D114: 2.264 | F114: 1.75 | G114: Multiword
A115: 262144 | B115: 2.132 | C115: 1.751 | D115: 2.262 | F115: 1.751 | G115: Multiword
A116: 524288 | B116: 2.122 | C116: 1.75 | D116: 2.264 | F116: 1.75 | G116: Multiword
A117: 1048576 | B117: 2.144 | C117: 1.765 | D117: 2.282 | F117: 1.765 | G117: Multiword
A118: 2097152 | B118: 2.143 | C118: 1.765 | D118: 2.287 | F118: 1.765 | G118: Multiword
A119: 4194304 | B119: 2.146 | C119: 1.777 | D119: 2.293 | F119: 1.777 | G119: Multiword
A120: 8388608 | B120: 2.272 | C120: 1.895 | D120: 2.447 | F120: 1.895 | G120: Multiword
A121: 16777216 | B121: 2.284 | C121: 1.902 | D121: 2.454 | F121: 1.902 | G121: Multiword
A122: 33554432 | B122: 2.284 | C122: 1.916 | D122: 2.454 | F122: 1.916 | G122: Multiword
A123: 67108864 | B123: 2.29 | C123: 1.915 | D123: 2.451 | F123: 1.915 | G123: Multiword
A125: ClassTitle | B125: CRC-32-u32/u32/u32-4-canonical
A126: Compiler | B126: CpuBits | C126: Degree | D126: Crc | E126: TableEntry | F126: Word | G126: Stride | H126: Alignment | I126: TableBytes | J126: InitCycles
A127: GCC-4.5.0 | B127: 64 | C127: 32 | D127: 4 | E127: 4 | F127: 4 | G127: 4 | H127: 0 | I127: 8544 | J127: 1187334
B129: MemSpeed | C129: Byte | D129: ByteUnrolled | E129: ByteWord | F129: Word | G129: Blockword | H129: Multiword | I129: CRC32C | K129: BestTime | L129: BestMethod
A130: 4 | B130: 3.251 | C130: 6.189 | D130: 7.016 | E130: 6.167 | F130: 5.251 | G130: 7.502 | H130: 6.512 | I130: 9.45 | K130: 5.251 | L130: Word
A131: 8 | B131: 1.875 | C131: 6.136 | D131: 6.612 | E131: 5.607 | F131: 3.752 | G131: 4.941 | H131: 4.251 | I131: 4.211 | K131: 3.752 | L131: Word
A132: 16 | B132: 1 | C132: 6.751 | D132: 7.022 | E132: 5.494 | F132: 3.031 | G132: 3.64 | H132: 3.657 | I132: 3.068 | K132: 3.031 | L132: Word
A133: 32 | B133: 0.594 | C133: 7.042 | D133: 7.393 | E133: 5.817 | F133: 2.956 | G133: 3.219 | H133: 2.557 | I133: 2.417 | K133: 2.417 | L133: CRC32C
A134: 64 | B134: 0.412 | C134: 7.22 | D134: 7.487 | E134: 6.079 | F134: 2.865 | G134: 3.032 | H134: 2.055 | I134: 2.144 | K134: 2.055 | L134: Multiword
A135: 128 | B135: 0.321 | C135: 7.539 | D135: 7.573 | E135: 6.138 | F135: 2.835 | G135: 2.918 | H135: 1.808 | I135: 2.14 | K135: 1.808 | L135: Multiword
A136: 256 | B136: 0.287 | C136: 7.461 | D136: 7.593 | E136: 6.17 | F136: 2.825 | G136: 2.857 | H136: 1.673 | I136: 2.046 | K136: 1.673 | L136: Multiword
A137: 512 | B137: 0.268 | C137: 7.436 | D137: 7.662 | E137: 6.177 | F137: 2.811 | G137: 3.038 | H137: 1.608 | I137: 2.416 | K137: 1.608 | L137: Multiword
A138: 1024 | B138: 0.26 | C138: 7.373 | D138: 7.645 | E138: 6.18 | F138: 2.826 | G138: 2.879 | H138: 1.585 | I138: 2.188 | K138: 1.585 | L138: Multiword
A139: 2048 | B139: 0.263 | C139: 7.398 | D139: 7.636 | E139: 6.202 | F139: 2.849 | G139: 2.838 | H139: 1.595 | I139: 2.188 | K139: 1.595 | L139: Multiword
A140: 4096 | B140: 0.257 | C140: 7.432 | D140: 7.665 | E140: 6.207 | F140: 2.852 | G140: 2.828 | H140: 1.576 | I140: 2.234 | K140: 1.576 | L140: Multiword
A141: 8192 | B141: 0.253 | C141: 7.384 | D141: 7.627 | E141: 6.187 | F141: 2.877 | G141: 2.877 | H141: 1.571 | I141: 2.227 | K141: 1.571 | L141: Multiword
A142: 16384 | B142: 0.252 | C142: 7.336 | D142: 7.627 | E142: 6.213 | F142: 2.825 | G142: 2.814 | H142: 1.568 | I142: 2.245 | K142: 1.568 | L142: Multiword
A143: 32768 | B143: 0.259 | C143: 7.335 | D143: 7.622 | E143: 6.197 | F143: 2.823 | G143: 2.805 | H143: 1.578 | I143: 2.26 | K143: 1.578 | L143: Multiword
A144: 65536 | B144: 0.308 | C144: 7.335 | D144: 7.61 | E144: 6.194 | F144: 2.814 | G144: 1.824 | H144: 1.579 | I144: 2.257 | K144: 1.579 | L144: Multiword
A145: 131072 | B145: 0.308 | C145: 7.335 | D145: 7.608 | E145: 6.2 | F145: 2.81 | G145: 1.81 | H145: 1.581 | I145: 2.264 | K145: 1.581 | L145: Multiword
A146: 262144 | B146: 0.308 | C146: 7.381 | D146: 7.676 | E146: 6.205 | F146: 2.811 | G146: 1.802 | H146: 1.581 | I146: 2.265 | K146: 1.581 | L146: Multiword
A147: 524288 | B147: 0.309 | C147: 7.411 | D147: 7.697 | E147: 6.266 | F147: 2.811 | G147: 1.802 | H147: 1.582 | I147: 2.264 | K147: 1.582 | L147: Multiword
A148: 1048576 | B148: 0.309 | C148: 7.428 | D148: 7.716 | E148: 6.284 | F148: 2.834 | G148: 1.74 | H148: 1.583 | I148: 2.286 | K148: 1.583 | L148: Multiword
A149: 2097152 | B149: 0.312 | C149: 7.439 | D149: 7.719 | E149: 6.295 | F149: 2.861 | G149: 1.758 | H149: 1.596 | I149: 2.289 | K149: 1.596 | L149: Multiword
A150: 4194304 | B150: 0.314 | C150: 7.456 | D150: 7.736 | E150: 6.316 | F150: 2.882 | G150: 1.763 | H150: 1.603 | I150: 2.298 | K150: 1.603 | L150: Multiword
A151: 8388608 | B151: 0.55 | C151: 7.688 | D151: 7.986 | E151: 6.539 | F151: 3.015 | G151: 1.887 | H151: 1.714 | I151: 2.454 | K151: 1.714 | L151: Multiword
A152: 16777216 | B152: 0.557 | C152: 7.703 | D152: 8 | E152: 6.541 | F152: 3.022 | G152: 1.887 | H152: 1.727 | I152: 2.459 | K152: 1.727 | L152: Multiword
A153: 33554432 | B153: 0.558 | C153: 7.718 | D153: 8.002 | E153: 6.547 | F153: 3.051 | G153: 1.89 | H153: 1.727 | I153: 2.458 | K153: 1.727 | L153: Multiword
A154: 67108864 | B154: 0.554 | C154: 7.715 | D154: 8.006 | E154: 6.558 | F154: 3.05 | G154: 1.868 | H154: 1.729 | I154: 2.459 | K154: 1.729 | L154: Multiword
A156: ClassTitle | B156: CRC-32-u32/u32/u32-3-canonical
A157: Compiler | B157: CpuBits | C157: Degree | D157: Crc | E157: TableEntry | F157: Word | G157: Stride | H157: Alignment | I157: TableBytes | J157: InitCycles
A158: GCC-4.5.0 | B158: 64 | C158: 32 | D158: 4 | E158: 4 | F158: 4 | G158: 3 | H158: 0 | I158: 8544 | J158: 1187208
B160: Blockword | C160: Multiword | D160: CRC32C | F160: BestTime | G160: BestMethod
A161: 4 | B161: 7.502 | C161: 6.752 | D161: 9.463 | F161: 6.752 | G161: Multiword
A162: 8 | B162: 4.879 | C162: 4.144 | D162: 4.21 | F162: 4.144 | G162: Multiword
A163: 16 | B163: 3.653 | C163: 3.571 | D163: 3.461 | F163: 3.461 | G163: CRC32C
A164: 32 | B164: 3.232 | C164: 2.563 | D164: 2.417 | F164: 2.417 | G164: CRC32C
A165: 64 | B165: 3.032 | C165: 1.918 | D165: 2.141 | F165: 1.918 | G165: Multiword
A166: 128 | B166: 2.918 | C166: 1.7 | D166: 2.14 | F166: 1.7 | G166: Multiword
A167: 256 | B167: 2.857 | C167: 1.533 | D167: 2.046 | F167: 1.533 | G167: Multiword
A168: 512 | B168: 3.025 | C168: 1.483 | D168: 2.422 | F168: 1.483 | G168: Multiword
A169: 1024 | B169: 2.852 | C169: 1.456 | D169: 2.188 | F169: 1.456 | G169: Multiword
A170: 2048 | B170: 2.839 | C170: 1.431 | D170: 2.19 | F170: 1.431 | G170: Multiword
A171: 4096 | B171: 2.828 | C171: 1.413 | D171: 2.237 | F171: 1.413 | G171: Multiword
A172: 8192 | B172: 2.824 | C172: 1.414 | D172: 2.23 | F172: 1.414 | G172: Multiword
A173: 16384 | B173: 2.809 | C173: 1.41 | D173: 2.247 | F173: 1.41 | G173: Multiword
A174: 32768 | B174: 2.805 | C174: 1.427 | D174: 2.259 | F174: 1.427 | G174: Multiword
A175: 65536 | B175: 2.362 | C175: 1.426 | D175: 2.258 | F175: 1.426 | G175: Multiword
A176: 131072 | B176: 2.308 | C176: 1.427 | D176: 2.259 | F176: 1.427 | G176: Multiword
A177: 262144 | B177: 2.176 | C177: 1.428 | D177: 2.262 | F177: 1.428 | G177: Multiword
A178: 524288 | B178: 2.109 | C178: 1.428 | D178: 2.262 | F178: 1.428 | G178: Multiword
A179: 1048576 | B179: 2.123 | C179: 1.429 | D179: 2.271 | F179: 1.429 | G179: Multiword
A180: 2097152 | B180: 2.114 | C180: 1.442 | D180: 2.288 | F180: 1.442 | G180: Multiword
A181: 4194304 | B181: 2.121 | C181: 1.449 | D181: 2.295 | F181: 1.449 | G181: Multiword
A182: 8388608 | B182: 2.247 | C182: 1.55 | D182: 2.438 | F182: 1.55 | G182: Multiword
A183: 16777216 | B183: 2.25 | C183: 1.562 | D183: 2.44 | F183: 1.562 | G183: Multiword
A184: 33554432 | B184: 2.255 | C184: 1.563 | D184: 2.461 | F184: 1.563 | G184: Multiword
A185: 67108864 | B185: 2.252 | C185: 1.566 | D185: 2.454 | F185: 1.566 | G185: Multiword
A187: ClassTitle | B187: CRC-128-sse2/sse2/u64-4-canonical
A188: Compiler | B188: CpuBits | C188: Degree | D188: Crc | E188: TableEntry | F188: Word | G188: Stride | H188: Alignment | I188: TableBytes | J188: InitCycles
A189: GCC-4.5.0 | B189: 64 | C189: 128 | D189: 16 | E189: 16 | F189: 8 | G189: 4 | H189: 0 | I189: 66736 | J189: 1121211
B191: MemSpeed | C191: Byte | D191: ByteUnrolled | E191: ByteWord | F191: Word | G191: Blockword | H191: Multiword | J191: BestTime | K191: BestMethod
A192: 4 | B192: 6.956 | C192: 8.927 | D192: 9.02 | E192: 9.259 | F192: 9.669 | G192: 11.806 | H192: 11.252 | J192: 8.927 | K192: Byte
A193: 8 | B193: 3.26 | C193: 8.294 | D193: 8.555 | E193: 8.563 | F193: 4.587 | G193: 5.669 | H193: 4.806 | J193: 4.587 | K193: Word
A194: 16 | B194: 1.891 | C194: 8.881 | D194: 9.004 | E194: 8.052 | F194: 3.448 | G194: 4.077 | H194: 3.551 | J194: 3.448 | K194: Word
A195: 32 | B195: 1.344 | C195: 9.188 | D195: 9.182 | E195: 8.161 | F195: 2.854 | G195: 3.251 | H195: 3.022 | J195: 2.854 | K195: Word
A196: 64 | B196: 1.102 | C196: 9.33 | D196: 9.302 | E196: 8.227 | F196: 2.674 | G196: 2.837 | H196: 2.457 | J196: 2.457 | K196: Multiword
A197: 128 | B197: 0.953 | C197: 9.61 | D197: 9.355 | E197: 8.284 | F197: 2.556 | G197: 2.638 | H197: 2.043 | J197: 2.043 | K197: Multiword
A198: 256 | B198: 0.887 | C198: 9.528 | D198: 9.386 | E198: 8.333 | F198: 2.48 | G198: 2.535 | H198: 1.83 | J198: 1.83 | K198: Multiword
A199: 512 | B199: 0.848 | C199: 9.498 | D199: 9.459 | E199: 8.341 | F199: 2.445 | G199: 2.498 | H199: 1.81 | J199: 1.81 | K199: Multiword
A200: 1024 | B200: 0.832 | C200: 9.474 | D200: 9.403 | E200: 8.362 | F200: 2.627 | G200: 2.736 | H200: 1.812 | J200: 1.812 | K200: Multiword
A201: 2048 | B201: 0.822 | C201: 9.463 | D201: 9.376 | E201: 8.356 | F201: 2.785 | G201: 2.837 | H201: 1.811 | J201: 1.811 | K201: Multiword
A202: 4096 | B202: 0.82 | C202: 9.456 | D202: 9.36 | E202: 8.359 | F202: 2.792 | G202: 2.824 | H202: 1.777 | J202: 1.777 | K202: Multiword
A203: 8192 | B203: 0.815 | C203: 9.453 | D203: 9.358 | E203: 8.366 | F203: 2.862 | G203: 2.898 | H203: 1.76 | J203: 1.76 | K203: Multiword
A204: 16384 | B204: 0.809 | C204: 9.452 | D204: 9.356 | E204: 8.333 | F204: 2.966 | G204: 2.976 | H204: 1.755 | J204: 1.755 | K204: Multiword
A205: 32768 | B205: 0.803 | C205: 9.445 | D205: 9.346 | E205: 8.315 | F205: 2.967 | G205: 2.998 | H205: 1.746 | J205: 1.746 | K205: Multiword
A206: 65536 | B206: 0.795 | C206: 9.451 | D206: 9.345 | E206: 8.36 | F206: 2.988 | G206: 2.682 | H206: 1.742 | J206: 1.742 | K206: Multiword
A207: 131072 | B207: 0.785 | C207: 9.45 | D207: 9.387 | E207: 8.368 | F207: 2.986 | G207: 2.432 | H207: 1.739 | J207: 1.739 | K207: Multiword
A208: 262144 | B208: 0.785 | C208: 9.501 | D208: 9.459 | E208: 8.441 | F208: 2.991 | G208: 2.308 | H208: 1.739 | J208: 1.739 | K208: Multiword
A209: 524288 | B209: 0.784 | C209: 9.542 | D209: 9.521 | E209: 8.442 | F209: 3.003 | G209: 2.247 | H209: 1.739 | J209: 1.739 | K209: Multiword
A210: 1048576 | B210: 0.786 | C210: 9.564 | D210: 9.548 | E210: 8.465 | F210: 3.032 | G210: 2.187 | H210: 1.763 | J210: 1.763 | K210: Multiword
A211: 2097152 | B211: 0.793 | C211: 9.575 | D211: 9.572 | E211: 8.479 | F211: 3.053 | G211: 2.174 | H211: 1.754 | J211: 1.754 | K211: Multiword
A212: 4194304 | B212: 0.793 | C212: 9.599 | D212: 9.6 | E212: 8.508 | F212: 3.062 | G212: 2.17 | H212: 1.76 | J212: 1.76 | K212: Multiword
A213: 8388608 | B213: 0.894 | C213: 9.853 | D213: 9.86 | E213: 8.754 | F213: 3.191 | G213: 2.27 | H213: 1.877 | J213: 1.877 | K213: Multiword
... 728 more rows

Sheet ICL-32-ASM
A1: ClassTitle | B1: CRC-64-u64/u64/u64-4-canonical
A2: Compiler | B2: CpuBits | C2: Degree | D2: Crc | E2: TableEntry | F2: Word | G2: Stride | H2: Alignment | I2: TableBytes | J2: InitCycles
A3: ICL-1110 | B3: 32 | C3: 64 | D3: 8 | E3: 8 | F3: 8 | G3: 4 | H3: 0 | I3: 33368 | J3: 124632
B5: MemSpeed | C5: Byte | D5: ByteUnrolled | E5: ByteWord | F5: Word | G5: Blockword | H5: Multiword | J5: BestTime | K5: BestMethod
A6: 4 | B6: 9.301 | C6: 11.38 | D6: 11.487 | E6: 14.512 | F6: 15.284 | G6: 13.983 | H6: 11.186 | J6: 11.186 | K6: Multiword
A7: 8 | B7: 4.77 | C7: 9.317 | D7: 9.485 | E7: 10.365 | F7: 7.946 | G7: 10.107 | H7: 9.44 | J7: 7.946 | K7: Word
A8: 16 | B8: 2.649 | C8: 7.938 | D8: 8.409 | E8: 8.594 | F8: 5.969 | G8: 8.146 | H8: 5.688 | J8: 5.688 | K8: Multiword
A9: 32 | B9: 1.282 | C9: 7.691 | D9: 7.811 | E9: 7.778 | F9: 4.84 | G9: 7.022 | H9: 3.938 | J9: 3.938 | K9: Multiword
A10: 64 | B10: 0.729 | C10: 6.944 | D10: 7.453 | E10: 7.342 | F10: 4.344 | G10: 6.532 | H10: 2.563 | J10: 2.563 | K10: Multiword
A11: 128 | B11: 0.51 | C11: 7.262 | D11: 7.37 | E11: 7.169 | F11: 4.145 | G11: 6.242 | H11: 1.965 | J11: 1.965 | K11: Multiword
A12: 256 | B12: 0.373 | C12: 6.872 | D12: 7.189 | E12: 7.013 | F12: 4.019 | G12: 6.132 | H12: 1.539 | J12: 1.539 | K12: Multiword
A13: 512 | B13: 0.326 | C13: 6.7 | D13: 7.375 | E13: 7.012 | F13: 3.942 | G13: 6.06 | H13: 1.416 | J13: 1.416 | K13: Multiword
A14: 1024 | B14: 0.291 | C14: 6.596 | D14: 7.16 | E14: 6.84 | F14: 3.924 | G14: 6.056 | H14: 1.338 | J14: 1.338 | K14: Multiword
A15: 2048 | B15: 0.278 | C15: 6.556 | D15: 7.271 | E15: 6.894 | F15: 3.916 | G15: 5.998 | H15: 1.292 | J15: 1.292 | K15: Multiword
A16: 4096 | B16: 0.276 | C16: 6.537 | D16: 7.134 | E16: 6.912 | F16: 3.905 | G16: 6.006 | H16: 1.277 | J16: 1.277 | K16: Multiword
A17: 8192 | B17: 0.271 | C17: 6.57 | D17: 7.229 | E17: 6.915 | F17: 3.899 | G17: 5.997 | H17: 1.276 | J17: 1.276 | K17: Multiword
A18: 16384 | B18: 0.268 | C18: 6.491 | D18: 7.039 | E18: 6.885 | F18: 3.895 | G18: 6.006 | H18: 1.279 | J18: 1.279 | K18: Multiword
A19: 32768 | B19: 0.274 | C19: 6.595 | D19: 7.311 | E19: 6.919 | F19: 3.892 | G19: 6.013 | H19: 1.287 | J19: 1.287 | K19: Multiword
A20: 65536 | B20: 0.303 | C20: 6.414 | D20: 7.226 | E20: 6.915 | F20: 3.895 | G20: 6.3 | H20: 1.289 | J20: 1.289 | K20: Multiword
A21: 131072 | B21: 0.303 | C21: 6.545 | D21: 7.048 | E21: 6.903 | F21: 3.896 | G21: 6.263 | H21: 1.287 | J21: 1.287 | K21: Multiword
A22: 262144 | B22: 0.303 | C22: 6.586 | D22: 7.134 | E22: 6.909 | F22: 3.894 | G22: 6.248 | H22: 1.287 | J22: 1.287 | K22: Multiword
A23: 524288 | B23: 0.302 | C23: 6.919 | D23: 7.231 | E23: 6.98 | F23: 3.917 | G23: 6.282 | H23: 1.287 | J23: 1.287 | K23: Multiword
A24: 1048576 | B24: 0.303 | C24: 7.058 | D24: 7.36 | E24: 7.013 | F24: 3.942 | G24: 6.315 | H24: 1.288 | J24: 1.288 | K24: Multiword
A25: 2097152 | B25: 0.305 | C25: 7.419 | D25: 7.423 | E25: 7.036 | F25: 3.952 | G25: 6.326 | H25: 1.3 | J25: 1.3 | K25: Multiword
A26: 4194304 | B26: 0.305 | C26: 7.448 | D26: 7.456 | E26: 7.083 | F26: 3.963 | G26: 6.333 | H26: 1.306 | J26: 1.306 | K26: Multiword
A27: 8388608 | B27: 0.542 | C27: 7.574 | D27: 7.656 | E27: 7.284 | F27: 4.115 | G27: 6.499 | H27: 1.412 | J27: 1.412 | K27: Multiword
A28: 16777216 | B28: 0.546 | C28: 7.655 | D28: 7.684 | E28: 7.224 | F28: 4.123 | G28: 6.516 | H28: 1.411 | J28: 1.411 | K28: Multiword
A29: 33554432 | B29: 0.553 | C29: 7.723 | D29: 7.723 | E29: 7.301 | F29: 4.131 | G29: 6.522 | H29: 1.414 | J29: 1.414 | K29: Multiword
A30: 67108864 | B30: 0.553 | C30: 7.729 | D30: 7.724 | E30: 7.305 | F30: 4.135 | G30: 6.519 | H30: 1.417 | J30: 1.417 | K30: Multiword
A32: ClassTitle | B32: CRC-64-u64/u64/u64-3-canonical
A33: Compiler | B33: CpuBits | C33: Degree | D33: Crc | E33: TableEntry | F33: Word | G33: Stride | H33: Alignment | I33: TableBytes | J33: InitCycles
A34: ICL-1110 | B34: 32 | C34: 64 | D34: 8 | E34: 8 | F34: 8 | G34: 3 | H34: 0 | I34: 33368 | J34: 134694
B36: Blockword | C36: Multiword | E36: BestTime | F36: BestMethod
A37: 4 | B37: 13.762 | C37: 14.765 | E37: 13.762 | F37: Blockword
A38: 8 | B38: 10.232 | C38: 7.805 | E38: 7.805 | F38: Multiword
A39: 16 | B39: 8.131 | C39: 5.938 | E39: 5.938 | F39: Multiword
A40: 32 | B40: 6.907 | C40: 5.143 | E40: 5.143 | F40: Multiword
A41: 64 | B41: 6.521 | C41: 5.703 | E41: 5.703 | F41: Multiword
A42: 128 | B42: 6.261 | C42: 5.585 | E42: 5.585 | F42: Multiword
A43: 256 | B43: 6.115 | C43: 5.344 | E43: 5.344 | F43: Multiword
A44: 512 | B44: 6.067 | C44: 5.352 | E44: 5.352 | F44: Multiword
A45: 1024 | B45: 6.049 | C45: 5.324 | E45: 5.324 | F45: Multiword
A46: 2048 | B46: 6.026 | C46: 5.32 | E46: 5.32 | F46: Multiword
A47: 4096 | B47: 6.018 | C47: 5.296 | E47: 5.296 | F47: Multiword
A48: 8192 | B48: 6.01 | C48: 5.296 | E48: 5.296 | F48: Multiword
A49: 16384 | B49: 6.018 | C49: 5.313 | E49: 5.313 | F49: Multiword
A50: 32768 | B50: 6.026 | C50: 5.319 | E50: 5.319 | F50: Multiword
A51: 65536 | B51: 6.129 | C51: 5.307 | E51: 5.307 | F51: Multiword
A52: 131072 | B52: 6.097 | C52: 5.317 | E52: 5.317 | F52: Multiword
A53: 262144 | B53: 6.089 | C53: 5.316 | E53: 5.316 | F53: Multiword
A54: 524288 | B54: 6.13 | C54: 5.365 | E54: 5.365 | F54: Multiword
A55: 1048576 | B55: 6.146 | C55: 5.376 | E55: 5.376 | F55: Multiword
A56: 2097152 | B56: 6.157 | C56: 5.395 | E56: 5.395 | F56: Multiword
A57: 4194304 | B57: 6.162 | C57: 5.402 | E57: 5.402 | F57: Multiword
A58: 8388608 | B58: 6.33 | C58: 5.588 | E58: 5.588 | F58: Multiword
A59: 16777216 | B59: 6.349 | C59: 5.598 | E59: 5.598 | F59: Multiword
A60: 33554432 | B60: 6.348 | C60: 5.603 | E60: 5.603 | F60: Multiword
A61: 67108864 | B61: 6.355 | C61: 5.612 | E61: 5.612 | F61: Multiword
A63: ClassTitle | B63: CRC-32-u64/u64/u64-4-canonical
A64: Compiler | B64: CpuBits | C64: Degree | D64: Crc | E64: TableEntry | F64: Word | G64: Stride | H64: Alignment | I64: TableBytes | J64: InitCycles
A65: ICL-1110 | B65: 32 | C65: 32 | D65: 8 | E65: 8 | F65: 8 | G65: 4 | H65: 0 | I65: 33368 | J65: 1054953
B67: MemSpeed | C67: Byte | D67: ByteUnrolled | E67: ByteWord | F67: Word | G67: Blockword | H67: Multiword | I67: CRC32C | K67: BestTime | L67: BestMethod
A68: 4 | B68: 9.317 | C68: 11.387 | D68: 11.72 | E68: 14.399 | F68: 15.133 | G68: 13.48 | H68: 11.279 | I68: 8.797 | K68: 8.797 | L68: CRC32C
A69: 8 | B69: 4.77 | C69: 9.403 | D69: 9.449 | E69: 10.36 | F69: 8.079 | G69: 10.088 | H69: 9.186 | I69: 5.98 | K69: 5.98 | L69: CRC32C
A70: 16 | B70: 2.686 | C70: 7.939 | D70: 8.225 | E70: 8.088 | F70: 6.143 | G70: 8.126 | H70: 5.938 | I70: 3.651 | K70: 3.651 | L70: CRC32C
A71: 32 | B71: 1.283 | C71: 7.369 | D71: 7.826 | E71: 7.777 | F71: 4.832 | G71: 7.071 | H71: 4.063 | I71: 3.32 | K71: 3.32 | L71: CRC32C
A72: 64 | B72: 0.737 | C72: 7.175 | D72: 7.445 | E72: 7.343 | F72: 4.344 | G72: 6.485 | H72: 2.61 | I72: 3.407 | K72: 2.61 | L72: Multiword
A73: 128 | B73: 0.51 | C73: 7.205 | D73: 7.374 | E73: 7.141 | F73: 4.093 | G73: 6.226 | H73: 1.965 | I73: 3.18 | K73: 1.965 | L73: Multiword
A74: 256 | B74: 0.375 | C74: 6.85 | D74: 7.032 | E74: 7.013 | F74: 4.009 | G74: 6.096 | H74: 1.559 | I74: 3.128 | K74: 1.559 | L74: Multiword
A75: 512 | B75: 0.321 | C75: 6.693 | D75: 7.318 | E75: 7.011 | F75: 3.966 | G75: 6.056 | H75: 1.403 | I75: 2.017 | K75: 1.403 | L75: Multiword
A76: 1024 | B76: 0.293 | C76: 6.609 | D76: 7.162 | E76: 6.84 | F76: 3.936 | G76: 6.038 | H76: 1.328 | I76: 1.947 | K76: 1.328 | L76: Multiword
A77: 2048 | B77: 0.277 | C77: 6.602 | D77: 7.272 | E77: 6.894 | F77: 3.918 | G77: 6.002 | H77: 1.292 | I77: 1.937 | K77: 1.292 | L77: Multiword
A78: 4096 | B78: 0.278 | C78: 6.538 | D78: 7.134 | E78: 6.921 | F78: 3.903 | G78: 5.995 | H78: 1.282 | I78: 1.931 | K78: 1.282 | L78: Multiword
A79: 8192 | B79: 0.272 | C79: 6.517 | D79: 7.218 | E79: 6.915 | F79: 3.892 | G79: 5.992 | H79: 1.27 | I79: 1.925 | K79: 1.27 | L79: Multiword
A80: 16384 | B80: 0.267 | C80: 6.535 | D80: 7.135 | E80: 6.922 | F80: 3.888 | G80: 6.003 | H80: 1.279 | I80: 1.926 | K80: 1.279 | L80: Multiword
A81: 32768 | B81: 0.274 | C81: 6.566 | D81: 7.378 | E81: 6.918 | F81: 3.892 | G81: 6.013 | H81: 1.288 | I81: 1.935 | K81: 1.288 | L81: Multiword
A82: 65536 | B82: 0.303 | C82: 6.423 | D82: 7.334 | E82: 6.916 | F82: 3.893 | G82: 6.226 | H82: 1.288 | I82: 1.936 | K82: 1.288 | L82: Multiword
A83: 131072 | B83: 0.303 | C83: 6.457 | D83: 7.021 | E83: 6.905 | F83: 3.896 | G83: 6.212 | H83: 1.287 | I83: 1.934 | K83: 1.287 | L83: Multiword
A84: 262144 | B84: 0.303 | C84: 6.675 | D84: 7.217 | E84: 6.929 | F84: 3.899 | G84: 6.208 | H84: 1.287 | I84: 1.935 | K84: 1.287 | L84: Multiword
A85: 524288 | B85: 0.302 | C85: 6.684 | D85: 7.302 | E85: 6.986 | F85: 3.937 | G85: 6.252 | H85: 1.287 | I85: 1.935 | K85: 1.287 | L85: Multiword
A86: 1048576 | B86: 0.303 | C86: 7.044 | D86: 7.33 | E86: 6.984 | F86: 3.934 | G86: 6.278 | H86: 1.288 | I86: 1.959 | K86: 1.288 | L86: Multiword
A87: 2097152 | B87: 0.305 | C87: 7.334 | D87: 7.432 | E87: 7.034 | F87: 3.954 | G87: 6.296 | H87: 1.301 | I87: 1.96 | K87: 1.301 | L87: Multiword
A88: 4194304 | B88: 0.305 | C88: 7.492 | D88: 7.486 | E88: 7.078 | F88: 3.966 | G88: 6.312 | H88: 1.307 | I88: 1.96 | K88: 1.307 | L88: Multiword
A89: 8388608 | B89: 0.545 | C89: 7.625 | D89: 7.688 | E89: 7.274 | F89: 4.12 | G89: 6.472 | H89: 1.408 | I89: 2.082 | K89: 1.408 | L89: Multiword
A90: 16777216 | B90: 0.55 | C90: 7.675 | D90: 7.704 | E90: 7.283 | F90: 4.074 | G90: 6.479 | H90: 1.416 | I90: 2.088 | K90: 1.416 | L90: Multiword
A91: 33554432 | B91: 0.55 | C91: 7.661 | D91: 7.702 | E91: 7.295 | F91: 4.129 | G91: 6.489 | H91: 1.414 | I91: 2.095 | K91: 1.414 | L91: Multiword
A92: 67108864 | B92: 0.556 | C92: 7.706 | D92: 7.714 | E92: 7.3 | F92: 4.141 | G92: 6.494 | H92: 1.421 | I92: 2.098 | K92: 1.421 | L92: Multiword
A94: ClassTitle | B94: CRC-32-u64/u64/u64-3-canonical
A95: Compiler | B95: CpuBits | C95: Degree | D95: Crc | E95: TableEntry | F95: Word | G95: Stride | H95: Alignment | I95: TableBytes | J95: InitCycles
A96: ICL-1110 | B96: 32 | C96: 32 | D96: 8 | E96: 8 | F96: 8 | G96: 3 | H96: 0 | I96: 33368 | J96: 1051056
B98: Blockword | C98: Multiword | D98: CRC32C | F98: BestTime | G98: BestMethod
A99: 4 | B99: 13.761 | C99: 13.814 | D99: 8.831 | F99: 8.831 | G99: CRC32C
A100: 8 | B100: 10.243 | C100: 7.659 | D100: 6.037 | F100: 6.037 | G100: CRC32C
A101: 16 | B101: 8.13 | C101: 5.938 | D101: 3.651 | F101: 3.651 | G101: CRC32C
A102: 32 | B102: 6.907 | C102: 5.14 | D102: 3.384 | F102: 3.384 | G102: CRC32C
A103: 64 | B103: 6.521 | C103: 5.719 | D103: 3.407 | F103: 3.407 | G103: CRC32C
A104: 128 | B104: 6.259 | C104: 5.579 | D104: 3.223 | F104: 3.223 | G104: CRC32C
A105: 256 | B105: 6.115 | C105: 5.441 | D105: 3.059 | F105: 3.059 | G105: CRC32C
A106: 512 | B106: 6.072 | C106: 5.341 | D106: 2.014 | F106: 2.014 | G106: CRC32C
A107: 1024 | B107: 6.041 | C107: 5.347 | D107: 1.947 | F107: 1.947 | G107: CRC32C
A108: 2048 | B108: 6.027 | C108: 5.318 | D108: 1.944 | F108: 1.944 | G108: CRC32C
A109: 4096 | B109: 6.012 | C109: 5.303 | D109: 1.929 | F109: 1.929 | G109: CRC32C
A110: 8192 | B110: 6.008 | C110: 5.296 | D110: 1.924 | F110: 1.924 | G110: CRC32C
A111: 16384 | B111: 6.022 | C111: 5.315 | D111: 1.927 | F111: 1.927 | G111: CRC32C
A112: 32768 | B112: 6.025 | C112: 5.314 | D112: 1.935 | F112: 1.935 | G112: CRC32C
A113: 65536 | B113: 6.074 | C113: 5.32 | D113: 1.935 | F113: 1.935 | G113: CRC32C
A114: 131072 | B114: 6.058 | C114: 5.323 | D114: 1.932 | F114: 1.932 | G114: CRC32C
A115: 262144 | B115: 6.057 | C115: 5.324 | D115: 1.935 | F115: 1.935 | G115: CRC32C
A116: 524288 | B116: 6.098 | C116: 5.368 | D116: 1.935 | F116: 1.935 | G116: CRC32C
A117: 1048576 | B117: 6.119 | C117: 5.38 | D117: 1.95 | F117: 1.95 | G117: CRC32C
A118: 2097152 | B118: 6.131 | C118: 5.394 | D118: 1.958 | F118: 1.958 | G118: CRC32C
A119: 4194304 | B119: 6.143 | C119: 5.405 | D119: 1.961 | F119: 1.961 | G119: CRC32C
A120: 8388608 | B120: 6.302 | C120: 5.589 | D120: 2.083 | F120: 2.083 | G120: CRC32C
A121: 16777216 | B121: 6.317 | C121: 5.596 | D121: 2.086 | F121: 2.086 | G121: CRC32C
A122: 33554432 | B122: 6.326 | C122: 5.605 | D122: 2.094 | F122: 2.094 | G122: CRC32C
A123: 67108864 | B123: 6.329 | C123: 5.611 | D123: 2.097 | F123: 2.097 | G123: CRC32C
A125: ClassTitle | B125: CRC-32-u32/u32/u32-4-canonical
A126: Compiler | B126: CpuBits | C126: Degree | D126: Crc | E126: TableEntry | F126: Word | G126: Stride | H126: Alignment | I126: TableBytes | J126: InitCycles
A127: ICL-1110 | B127: 32 | C127: 32 | D127: 4 | E127: 4 | F127: 4 | G127: 4 | H127: 0 | I127: 8500 | J127: 1009611
B129: MemSpeed | C129: Byte | D129: ByteUnrolled | E129: ByteWord | F129: Word | G129: Blockword | H129: Multiword | I129: CRC32C | K129: BestTime | L129: BestMethod
A130: 4 | B130: 8.775 | C130: 7.782 | D130: 7.063 | E130: 9.956 | F130: 8.951 | G130: 9.569 | H130: 8.001 | I130: 8.319 | K130: 7.063 | L130: ByteUnrolled
A131: 8 | B131: 4.501 | C131: 6.96 | D131: 6.641 | E131: 7.717 | F131: 5.807 | G131: 6.037 | H131: 5.163 | I131: 5.685 | K131: 5.163 | L131: Multiword
A132: 16 | B132: 2.075 | C132: 7.058 | D132: 6.876 | E132: 6.921 | F132: 4.29 | G132: 4.477 | H132: 4.102 | I132: 3.688 | K132: 3.688 | L132: CRC32C
A133: 32 | B133: 1.137 | C133: 7.264 | D133: 7.217 | E133: 6.611 | F133: 3.606 | G133: 3.702 | H133: 4.266 | I133: 3.285 | K133: 3.285 | L133: CRC32C
A134: 64 | B134: 0.737 | C134: 7.368 | D134: 7.275 | E134: 6.451 | F134: 3.274 | G134: 3.301 | H134: 3.75 | I134: 3.429 | K134: 3.274 | L134: Word
A135: 128 | B135: 0.514 | C135: 7.31 | D135: 7.334 | E135: 6.329 | F135: 3.111 | G135: 3.166 | H135: 3.508 | I135: 3.149 | K135: 3.111 | L135: Word
A136: 256 | B136: 0.415 | C136: 7.578 | D136: 7.385 | E136: 6.34 | F136: 3.01 | G136: 3.065 | H136: 3.371 | I136: 3.119 | K136: 3.01 | L136: Word
A137: 512 | B137: 0.362 | C137: 7.53 | D137: 7.401 | E137: 6.326 | F137: 2.963 | G137: 3.03 | H137: 3.302 | I137: 2.004 | K137: 2.004 | L137: CRC32C
A138: 1024 | B138: 0.337 | C138: 7.494 | D138: 7.354 | E138: 6.31 | F138: 2.922 | G138: 3.003 | H138: 3.262 | I138: 1.953 | K138: 1.953 | L138: CRC32C
A139: 2048 | B139: 0.323 | C139: 7.475 | D139: 7.343 | E139: 6.342 | F139: 2.976 | G139: 2.991 | H139: 3.234 | I139: 1.944 | K139: 1.944 | L139: CRC32C
A140: 4096 | B140: 0.308 | C140: 7.466 | D140: 7.335 | E140: 6.339 | F140: 2.971 | G140: 2.987 | H140: 3.211 | I140: 1.928 | K140: 1.928 | L140: CRC32C
A141: 8192 | B141: 0.301 | C141: 7.463 | D141: 7.332 | E141: 6.336 | F141: 2.962 | G141: 2.988 | H141: 3.202 | I141: 1.926 | K141: 1.926 | L141: CRC32C
A142: 16384 | B142: 0.3 | C142: 7.463 | D142: 7.324 | E142: 6.334 | F142: 2.96 | G142: 2.98 | H142: 3.195 | I142: 1.928 | K142: 1.928 | L142: CRC32C
A143: 32768 | B143: 0.304 | C143: 7.527 | D143: 7.432 | E143: 6.33 | F143: 2.959 | G143: 2.983 | H143: 3.253 | I143: 1.937 | K143: 1.937 | L143: CRC32C
A144: 65536 | B144: 0.319 | C144: 7.485 | D144: 7.384 | E144: 6.329 | F144: 2.955 | G144: 3.094 | H144: 3.252 | I144: 1.934 | K144: 1.934 | L144: CRC32C
A145: 131072 | B145: 0.319 | C145: 7.471 | D145: 7.373 | E145: 6.326 | F145: 2.947 | G145: 3.089 | H145: 3.232 | I145: 1.933 | K145: 1.933 | L145: CRC32C
A146: 262144 | B146: 0.319 | C146: 7.543 | D146: 7.424 | E146: 6.318 | F146: 2.949 | G146: 3.09 | H146: 3.243 | I146: 1.935 | K146: 1.935 | L146: CRC32C
A147: 524288 | B147: 0.319 | C147: 7.574 | D147: 7.461 | E147: 6.366 | F147: 2.951 | G147: 3.09 | H147: 3.244 | I147: 1.936 | K147: 1.936 | L147: CRC32C
A148: 1048576 | B148: 0.319 | C148: 7.587 | D148: 7.477 | E148: 6.391 | F148: 2.978 | G148: 3.118 | H148: 3.271 | I148: 1.946 | K148: 1.946 | L148: CRC32C
A149: 2097152 | B149: 0.321 | C149: 7.598 | D149: 7.477 | E149: 6.397 | F149: 2.99 | G149: 3.125 | H149: 3.304 | I149: 1.959 | K149: 1.959 | L149: CRC32C
A150: 4194304 | B150: 0.321 | C150: 7.617 | D150: 7.503 | E150: 6.418 | F150: 3.007 | G150: 3.137 | H150: 3.316 | I150: 1.961 | K150: 1.961 | L150: CRC32C
A151: 8388608 | B151: 0.543 | C151: 7.853 | D151: 7.718 | E151: 6.607 | F151: 3.145 | G151: 3.268 | H151: 3.451 | I151: 2.084 | K151: 2.084 | L151: CRC32C
A152: 16777216 | B152: 0.554 | C152: 7.868 | D152: 7.73 | E152: 6.619 | F152: 3.15 | G152: 3.276 | H152: 3.46 | I152: 2.093 | K152: 2.093 | L152: CRC32C
A153: 33554432 | B153: 0.553 | C153: 7.875 | D153: 7.733 | E153: 6.616 | F153: 3.156 | G153: 3.282 | H153: 3.464 | I153: 2.094 | K153: 2.094 | L153: CRC32C
A154: 67108864 | B154: 0.555 | C154: 7.877 | D154: 7.736 | E154: 6.623 | F154: 3.154 | G154: 3.288 | H154: 3.462 | I154: 2.098 | K154: 2.098 | L154: CRC32C
A156: ClassTitle | B156: CRC-32-u32/u32/u32-3-canonical
A157: Compiler | B157: CpuBits | C157: Degree | D157: Crc | E157: TableEntry | F157: Word | G157: Stride | H157: Alignment | I157: TableBytes | J157: InitCycles
A158: ICL-1110 | B158: 32 | C158: 32 | D158: 4 | E158: 4 | F158: 4 | G158: 3 | H158: 0 | I158: 8500 | J158: 1013247
B160: Blockword | C160: Multiword | D160: CRC32C | F160: BestTime | G160: BestMethod
A161: 4 | B161: 9.609 | C161: 8.18 | D161: 8.127 | F161: 8.127 | G161: CRC32C
A162: 8 | B162: 6.068 | C162: 5.251 | D162: 5.685 | F162: 5.251 | G162: Multiword
A163: 16 | B163: 4.497 | C163: 4.095 | D163: 3.784 | F163: 3.784 | G163: CRC32C
A164: 32 | B164: 3.722 | C164: 4.782 | D164: 3.27 | F164: 3.27 | G164: CRC32C
A165: 64 | B165: 3.305 | C165: 3.861 | D165: 3.428 | F165: 3.305 | G165: Blockword
A166: 128 | B166: 3.105 | C166: 3.438 | D166: 3.149 | F166: 3.105 | G166: Blockword
A167: 256 | B167: 3.078 | C167: 3.234 | D167: 3.117 | F167: 3.078 | G167: Blockword
A168: 512 | B168: 3.061 | C168: 3.121 | D168: 2.004 | F168: 2.004 | G168: CRC32C
A169: 1024 | B169: 3.016 | C169: 3.08 | D169: 1.95 | F169: 1.95 | G169: CRC32C
A170: 2048 | B170: 3.007 | C170: 3.039 | D170: 1.94 | F170: 1.94 | G170: CRC32C
A171: 4096 | B171: 2.985 | C171: 3.025 | D171: 1.927 | F171: 1.927 | G171: CRC32C
A172: 8192 | B172: 2.99 | C172: 3.023 | D172: 1.926 | F172: 1.926 | G172: CRC32C
A173: 16384 | B173: 2.98 | C173: 3.018 | D173: 1.928 | F173: 1.928 | G173: CRC32C
A174: 32768 | B174: 2.985 | C174: 3.038 | D174: 1.937 | F174: 1.937 | G174: CRC32C
A175: 65536 | B175: 3.1 | C175: 3.021 | D175: 1.936 | F175: 1.936 | G175: CRC32C
A176: 131072 | B176: 3.089 | C176: 3.007 | D176: 1.934 | F176: 1.934 | G176: CRC32C
A177: 262144 | B177: 3.112 | C177: 2.997 | D177: 1.935 | F177: 1.935 | G177: CRC32C
A178: 524288 | B178: 3.119 | C178: 3.004 | D178: 1.936 | F178: 1.936 | G178: CRC32C
A179: 1048576 | B179: 3.14 | C179: 3.047 | D179: 1.947 | F179: 1.947 | G179: CRC32C
A180: 2097152 | B180: 3.157 | C180: 3.057 | D180: 1.956 | F180: 1.956 | G180: CRC32C
A181: 4194304 | B181: 3.166 | C181: 3.069 | D181: 1.966 | F181: 1.966 | G181: CRC32C
A182: 8388608 | B182: 3.295 | C182: 3.207 | D182: 2.085 | F182: 2.085 | G182: CRC32C
A183: 16777216 | B183: 3.306 | C183: 3.22 | D183: 2.087 | F183: 2.087 | G183: CRC32C
A184: 33554432 | B184: 3.314 | C184: 3.219 | D184: 2.099 | F184: 2.099 | G184: CRC32C
A185: 67108864 | B185: 3.314 | C185: 3.224 | D185: 2.098 | F185: 2.098 | G185: CRC32C
A187: ClassTitle | B187: CRC-128-sse2/sse2/u64-4-canonical
A188: Compiler | B188: CpuBits | C188: Degree | D188: Crc | E188: TableEntry | F188: Word | G188: Stride | H188: Alignment | I188: TableBytes | J188: InitCycles
A189: ICL-1110 | B189: 32 | C189: 128 | D189: 16 | E189: 16 | F189: 8 | G189: 4 | H189: 0 | I189: 66736 | J189: 1479735
B191: MemSpeed | C191: Byte | D191: ByteUnrolled | E191: ByteWord | F191: Word | G191: Blockword | H191: Multiword | J191: BestTime | K191: BestMethod
A192: 4 | B192: 13.501 | C192: 20.001 | D192: 21.125 | E192: 20.564 | F192: 20.001 | G192: 21.784 | H192: 20.501 | J192: 20.001 | K192: Byte
A193: 8 | B193: 7.126 | C193: 16.01 | D193: 15.813 | E193: 15.712 | F193: 8.786 | G193: 10.379 | H193: 8.651 | J193: 8.651 | K193: Multiword
A194: 16 | B194: 4.247 | C194: 13.688 | D194: 13.501 | E194: 12.563 | F194: 6.54 | G194: 8.088 | H194: 6.5 | J194: 6.5 | K194: Multiword
A195: 32 | B195: 3.375 | C195: 12.422 | D195: 12.335 | E195: 11.54 | F195: 5.449 | G195: 6.958 | H195: 5.411 | J195: 5.411 | K195: Multiword
A196: 64 | B196: 1.907 | C196: 11.727 | D196: 11.766 | E196: 10.875 | F196: 4.875 | G196: 6.458 | H196: 5.4 | J196: 4.875 | K196: Word
A197: 128 | B197: 1.352 | C197: 11.399 | D197: 11.477 | E197: 10.646 | F197: 4.574 | G197: 6.146 | H197: 4.243 | J197: 4.243 | K197: Multiword
A198: 256 | B198: 1.055 | C198: 11.2 | D198: 11.333 | E198: 10.52 | F198: 4.414 | G198: 5.993 | H198: 3.728 | J198: 3.728 | K198: Multiword
A199: 512 | B199: 0.907 | C199: 11.1 | D199: 11.311 | E199: 10.447 | F199: 4.375 | G199: 5.982 | H199: 3.473 | J199: 3.473 | K199: Multiword
A200: 1024 | B200: 0.832 | C200: 11.105 | D200: 11.322 | E200: 10.413 | F200: 4.667 | G200: 6.222 | H200: 3.504 | J200: 3.504 | K200: Multiword
A201: 2048 | B201: 0.796 | C201: 11.053 | D201: 11.269 | E201: 10.394 | F201: 4.704 | G201: 6.173 | H201: 3.48 | J201: 3.48 | K201: Multiword
A202: 4096 | B202: 0.781 | C202: 11.026 | D202: 11.243 | E202: 10.385 | F202: 4.626 | G202: 6.126 | H202: 3.409 | J202: 3.409 | K202: Multiword
A203: 8192 | B203: 0.77 | C203: 11.02 | D203: 11.235 | E203: 10.384 | F203: 4.645 | G203: 6.149 | H203: 3.374 | J203: 3.374 | K203: Multiword
A204: 16384 | B204: 0.765 | C204: 11.017 | D204: 11.206 | E204: 10.38 | F204: 4.692 | G204: 6.171 | H204: 3.382 | J204: 3.382 | K204: Multiword
A205: 32768 | B205: 0.769 | C205: 11.016 | D205: 11.206 | E205: 10.379 | F205: 4.689 | G205: 6.196 | H205: 3.371 | J205: 3.371 | K205: Multiword
A206: 65536 | B206: 0.766 | C206: 11.015 | D206: 11.206 | E206: 10.378 | F206: 4.693 | G206: 5.61 | H206: 3.363 | J206: 3.363 | K206: Multiword
A207: 131072 | B207: 0.762 | C207: 11.014 | D207: 11.21 | E207: 10.377 | F207: 4.714 | G207: 5.301 | H207: 3.361 | J207: 3.361 | K207: Multiword
A208: 262144 | B208: 0.763 | C208: 11.104 | D208: 11.285 | E208: 10.432 | F208: 4.726 | G208: 5.148 | H208: 3.358 | J208: 3.358 | K208: Multiword
A209: 524288 | B209: 0.763 | C209: 11.152 | D209: 11.339 | E209: 10.466 | F209: 4.763 | G209: 5.104 | H209: 3.359 | J209: 3.359 | K209: Multiword
A210: 1048576 | B210: 0.763 | C210: 11.19 | D210: 11.358 | E210: 10.491 | F210: 4.778 | G210: 4.999 | H210: 3.385 | J210: 3.385 | K210: Multiword
A211: 2097152 | B211: 0.764 | C211: 11.223 | D211: 11.382 | E211: 10.508 | F211: 4.795 | G211: 5 | H211: 3.399 | J211: 3.399 | K211: Multiword
A212: 4194304 | B212: 0.765 | C212: 11.324 | D212: 11.433 | E212: 10.528 | F212: 4.818 | G212: 4.997 | H212: 3.413 | J212: 3.413 | K212: Multiword
A213: 8388608 | B213: 0.866 | C213: 11.532 | D213: 11.653 | E213: 10.776 | F213: 4.956 | G213: 5.144 | H213: 3.54 | J213: 3.54 | K213: Multiword
... 496 more rows

Sheet ICL-32-NOASM
A1: ClassTitle | B1: CRC-64-u64/u64/u64-4-canonical
A2: Compiler | B2: CpuBits | C2: Degree | D2: Crc | E2: TableEntry | F2: Word | G2: Stride | H2: Alignment | I2: TableBytes | J2: InitCycles
A3: ICL-1110 | B3: 32 | C3: 64 | D3: 8 | E3: 8 | F3: 8 | G3: 4 | H3: 0 | I3: 33368 | J3: 124110
B5: MemSpeed | C5: Byte | D5: ByteUnrolled | E5: ByteWord | F5: Word | G5: Blockword | H5: Multiword | J5: BestTime | K5: BestMethod
A6: 4 | B6: 9.394 | C6: 11.377 | D6: 11.41 | E6: 15.224 | F6: 15.074 | G6: 13.972 | H6: 14.654 | J6: 11.377 | K6: Byte
A7: 8 | B7: 5.108 | C7: 9.273 | D7: 9.188 | E7: 10.325 | F7: 8.376 | G7: 10.1 | H7: 7.583 | J7: 7.583 | K7: Multiword
A8: 16 | B8: 2.872 | C8: 7.941 | D8: 8.111 | E8: 8.32 | F8: 5.974 | G8: 8.143 | H8: 5.798 | J8: 5.798 | K8: Multiword
A9: 32 | B9: 1.305 | C9: 7.578 | D9: 7.809 | E9: 7.747 | F9: 4.907 | G9: 7.006 | H9: 5.039 | J9: 4.907 | K9: Word
A10: 64 | B10: 0.771 | C10: 7.008 | D10: 7.453 | E10: 7.343 | F10: 4.344 | G10: 6.531 | H10: 5.469 | J10: 4.344 | K10: Word
A11: 128 | B11: 0.525 | C11: 7.223 | D11: 7.397 | E11: 7.169 | F11: 4.147 | G11: 6.232 | H11: 5.446 | J11: 4.147 | K11: Word
A12: 256 | B12: 0.382 | C12: 6.875 | D12: 7.188 | E12: 7.054 | F12: 4.028 | G12: 6.133 | H12: 5.469 | J12: 4.028 | K12: Word
A13: 512 | B13: 0.324 | C13: 6.684 | D13: 7.434 | E13: 7.001 | F13: 3.959 | G13: 6.061 | H13: 5.528 | J13: 3.959 | K13: Word
A14: 1024 | B14: 0.295 | C14: 6.617 | D14: 7.134 | E14: 6.898 | F14: 3.928 | G14: 6.019 | H14: 5.55 | J14: 3.928 | K14: Word
A15: 2048 | B15: 0.279 | C15: 6.607 | D15: 7.342 | E15: 6.894 | F15: 3.907 | G15: 6.011 | H15: 5.54 | J15: 3.907 | K15: Word
A16: 4096 | B16: 0.275 | C16: 6.528 | D16: 7.122 | E16: 6.934 | F16: 3.905 | G16: 5.993 | H16: 5.545 | J16: 3.905 | K16: Word
A17: 8192 | B17: 0.27 | C17: 6.571 | D17: 7.288 | E17: 6.922 | F17: 3.898 | G17: 5.992 | H17: 5.558 | J17: 3.898 | K17: Word
A18: 16384 | B18: 0.267 | C18: 6.491 | D18: 6.843 | E18: 6.914 | F18: 3.9 | G18: 6.005 | H18: 5.567 | J18: 3.9 | K18: Word
A19: 32768 | B19: 0.274 | C19: 6.547 | D19: 7.337 | E19: 6.905 | F19: 3.893 | G19: 6.013 | H19: 5.575 | J19: 3.893 | K19: Word
A20: 65536 | B20: 0.303 | C20: 6.512 | D20: 7.265 | E20: 6.887 | F20: 3.894 | G20: 6.3 | H20: 5.583 | J20: 3.894 | K20: Word
A21: 131072 | B21: 0.303 | C21: 6.425 | D21: 7.114 | E21: 6.899 | F21: 3.896 | G21: 6.265 | H21: 5.579 | J21: 3.896 | K21: Word
A22: 262144 | B22: 0.303 | C22: 6.633 | D22: 7.185 | E22: 6.923 | F22: 3.895 | G22: 6.25 | H22: 5.579 | J22: 3.895 | K22: Word
A23: 524288 | B23: 0.302 | C23: 6.79 | D23: 7.269 | E23: 6.964 | F23: 3.925 | G23: 6.283 | H23: 5.623 | J23: 3.925 | K23: Word
A24: 1048576 | B24: 0.303 | C24: 7.082 | D24: 7.366 | E24: 7 | F24: 3.947 | G24: 6.316 | H24: 5.643 | J24: 3.947 | K24: Word
A25: 2097152 | B25: 0.305 | C25: 7.429 | D25: 7.391 | E25: 7.037 | F25: 3.954 | G25: 6.331 | H25: 5.652 | J25: 3.954 | K25: Word
A26: 4194304 | B26: 0.305 | C26: 7.416 | D26: 7.476 | E26: 7.087 | F26: 3.96 | G26: 6.346 | H26: 5.671 | J26: 3.96 | K26: Word
A27: 8388608 | B27: 0.543 | C27: 7.675 | D27: 7.689 | E27: 7.266 | F27: 4.117 | G27: 6.505 | H27: 5.843 | J27: 4.117 | K27: Word
A28: 16777216 | B28: 0.548 | C28: 7.63 | D28: 7.69 | E28: 7.283 | F28: 4.128 | G28: 6.508 | H28: 5.86 | J28: 4.128 | K28: Word
A29: 33554432 | B29: 0.551 | C29: 7.68 | D29: 7.716 | E29: 7.296 | F29: 4.137 | G29: 6.503 | H29: 5.844 | J29: 4.137 | K29: Word
A30: 67108864 | B30: 0.553 | C30: 7.719 | D30: 7.731 | E30: 7.301 | F30: 4.137 | G30: 6.521 | H30: 5.876 | J30: 4.137 | K30: Word
A32: ClassTitle | B32: CRC-64-u64/u64/u64-3-canonical
A33: Compiler | B33: CpuBits | C33: Degree | D33: Crc | E33: TableEntry | F33: Word | G33: Stride | H33: Alignment | I33: TableBytes | J33: InitCycles
A34: ICL-1110 | B34: 32 | C34: 64 | D34: 8 | E34: 8 | F34: 8 | G34: 3 | H34: 0 | I34: 33368 | J34: 134532
B36: Blockword | C36: Multiword | E36: BestTime | F36: BestMethod
A37: 4 | B37: 14.117 | C37: 14.335 | E37: 14.117 | F37: Blockword
A38: 8 | B38: 10.251 | C38: 7.659 | E38: 7.659 | F38: Multiword
A39: 16 | B39: 8.129 | C39: 5.948 | E39: 5.948 | F39: Multiword
A40: 32 | B40: 6.907 | C40: 5.167 | E40: 5.167 | F40: Multiword
A41: 64 | B41: 6.521 | C41: 5.703 | E41: 5.703 | F41: Multiword
A42: 128 | B42: 6.26 | C42: 5.532 | E42: 5.532 | F42: Multiword
A43: 256 | B43: 6.114 | C43: 5.344 | E43: 5.344 | F43: Multiword
A44: 512 | B44: 6.068 | C44: 5.354 | E44: 5.354 | F44: Multiword
A45: 1024 | B45: 6.046 | C45: 5.323 | E45: 5.323 | F45: Multiword
A46: 2048 | B46: 6.026 | C46: 5.314 | E46: 5.314 | F46: Multiword
A47: 4096 | B47: 6.006 | C47: 5.293 | E47: 5.293 | F47: Multiword
A48: 8192 | B48: 6.015 | C48: 5.297 | E48: 5.297 | F48: Multiword
A49: 16384 | B49: 6.018 | C49: 5.31 | E49: 5.31 | F49: Multiword
A50: 32768 | B50: 6.026 | C50: 5.32 | E50: 5.32 | F50: Multiword
A51: 65536 | B51: 6.132 | C51: 5.307 | E51: 5.307 | F51: Multiword
A52: 131072 | B52: 6.099 | C52: 5.315 | E52: 5.315 | F52: Multiword
A53: 262144 | B53: 6.089 | C53: 5.304 | E53: 5.304 | F53: Multiword
A54: 524288 | B54: 6.11 | C54: 5.367 | E54: 5.367 | F54: Multiword
A55: 1048576 | B55: 6.139 | C55: 5.383 | E55: 5.383 | F55: Multiword
A56: 2097152 | B56: 6.157 | C56: 5.394 | E56: 5.394 | F56: Multiword
A57: 4194304 | B57: 6.161 | C57: 5.406 | E57: 5.406 | F57: Multiword
A58: 8388608 | B58: 6.336 | C58: 5.591 | E58: 5.591 | F58: Multiword
A59: 16777216 | B59: 6.339 | C59: 5.598 | E59: 5.598 | F59: Multiword
A60: 33554432 | B60: 6.353 | C60: 5.61 | E60: 5.61 | F60: Multiword
A61: 67108864 | B61: 6.354 | C61: 5.61 | E61: 5.61 | F61: Multiword
A63: ClassTitle | B63: CRC-32-u64/u64/u64-4-canonical
A64: Compiler | B64: CpuBits | C64: Degree | D64: Crc | E64: TableEntry | F64: Word | G64: Stride | H64: Alignment | I64: TableBytes | J64: InitCycles
A65: ICL-1110 | B65: 32 | C65: 32 | D65: 8 | E65: 8 | F65: 8 | G65: 4 | H65: 0 | I65: 33368 | J65: 1049598
B67: MemSpeed | C67: Byte | D67: ByteUnrolled | E67: ByteWord | F67: Word | G67: Blockword | H67: Multiword | I67: CRC32C | K67: BestTime | L67: BestMethod
A68: 4 | B68: 9.393 | C68: 11.38 | D68: 11.463 | E68: 14.575 | F68: 15.093 | G68: 13.257 | H68: 14.429 | I68: 8.823 | K68: 8.823 | L68: CRC32C
A69: 8 | B69: 4.774 | C69: 9.385 | D69: 9.189 | E69: 10.277 | F69: 7.95 | G69: 10.093 | H69: 7.584 | I69: 5.605 | K69: 5.605 | L69: CRC32C
A70: 16 | B70: 2.646 | C70: 7.941 | D70: 8.277 | E70: 8.439 | F70: 6.143 | G70: 8.126 | H70: 5.798 | I70: 3.731 | K70: 3.731 | L70: CRC32C
A71: 32 | B71: 1.305 | C71: 7.737 | D71: 7.82 | E71: 7.742 | F71: 4.913 | G71: 7.041 | H71: 5.035 | I71: 3.382 | K71: 3.382 | L71: CRC32C
A72: 64 | B72: 0.771 | C72: 6.923 | D72: 7.453 | E72: 7.342 | F72: 4.344 | G72: 6.485 | H72: 5.454 | I72: 3.373 | K72: 3.373 | L72: CRC32C
A73: 128 | B73: 0.519 | C73: 6.892 | D73: 7.371 | E73: 7.169 | F73: 4.152 | G73: 6.247 | H73: 5.464 | I73: 3.223 | K73: 3.223 | L73: CRC32C
A74: 256 | B74: 0.395 | C74: 6.935 | D74: 7.302 | E74: 7.043 | F74: 4.028 | G74: 6.094 | H74: 5.477 | I74: 3.059 | K74: 3.059 | L74: CRC32C
A75: 512 | B75: 0.328 | C75: 6.719 | D75: 7.373 | E75: 7.002 | F75: 3.954 | G75: 6.056 | H75: 5.497 | I75: 2.017 | K75: 2.017 | L75: CRC32C
A76: 1024 | B76: 0.295 | C76: 6.597 | D76: 7.136 | E76: 6.84 | F76: 3.924 | G76: 6.041 | H76: 5.535 | I76: 1.947 | K76: 1.947 | L76: CRC32C
A77: 2048 | B77: 0.28 | C77: 6.629 | D77: 7.347 | E77: 6.894 | F77: 3.907 | G77: 6.005 | H77: 5.534 | I77: 1.943 | K77: 1.943 | L77: CRC32C
A78: 4096 | B78: 0.279 | C78: 6.541 | D78: 7.134 | E78: 6.933 | F78: 3.904 | G78: 5.996 | H78: 5.546 | I78: 1.93 | K78: 1.93 | L78: CRC32C
A79: 8192 | B79: 0.27 | C79: 6.556 | D79: 7.264 | E79: 6.922 | F79: 3.89 | G79: 5.994 | H79: 5.551 | I79: 1.926 | K79: 1.926 | L79: CRC32C
A80: 16384 | B80: 0.267 | C80: 6.491 | D80: 7.115 | E80: 6.904 | F80: 3.888 | G80: 6.003 | H80: 5.563 | I80: 1.928 | K80: 1.928 | L80: CRC32C
A81: 32768 | B81: 0.274 | C81: 6.607 | D81: 7.354 | E81: 6.905 | F81: 3.892 | G81: 6.011 | H81: 5.579 | I81: 1.936 | K81: 1.936 | L81: CRC32C
A82: 65536 | B82: 0.303 | C82: 6.476 | D82: 7.22 | E82: 6.908 | F82: 3.891 | G82: 6.231 | H82: 5.583 | I82: 1.936 | K82: 1.936 | L82: CRC32C
A83: 131072 | B83: 0.303 | C83: 6.562 | D83: 7.236 | E83: 6.897 | F83: 3.896 | G83: 6.215 | H83: 5.582 | I83: 1.933 | K83: 1.933 | L83: CRC32C
A84: 262144 | B84: 0.303 | C84: 6.725 | D84: 7.218 | E84: 6.921 | F84: 3.898 | G84: 6.21 | H84: 5.581 | I84: 1.935 | K84: 1.935 | L84: CRC32C
A85: 524288 | B85: 0.302 | C85: 6.833 | D85: 7.252 | E85: 7.001 | F85: 3.907 | G85: 6.251 | H85: 5.624 | I85: 1.936 | K85: 1.936 | L85: CRC32C
A86: 1048576 | B86: 0.303 | C86: 7.118 | D86: 7.32 | E86: 7.001 | F86: 3.936 | G86: 6.284 | H86: 5.644 | I86: 1.954 | K86: 1.954 | L86: CRC32C
A87: 2097152 | B87: 0.305 | C87: 7.33 | D87: 7.385 | E87: 7.018 | F87: 3.952 | G87: 6.297 | H87: 5.654 | I87: 1.959 | K87: 1.959 | L87: CRC32C
A88: 4194304 | B88: 0.305 | C88: 7.46 | D88: 7.406 | E88: 7.059 | F88: 3.96 | G88: 6.306 | H88: 5.666 | I88: 1.961 | K88: 1.961 | L88: CRC32C
A89: 8388608 | B89: 0.544 | C89: 7.658 | D89: 7.705 | E89: 7.276 | F89: 4.114 | G89: 6.467 | H89: 5.849 | I89: 2.082 | K89: 2.082 | L89: CRC32C
A90: 16777216 | B90: 0.553 | C90: 7.639 | D90: 7.697 | E90: 7.292 | F90: 4.132 | G90: 6.476 | H90: 5.864 | I90: 2.091 | K90: 2.091 | L90: CRC32C
A91: 33554432 | B91: 0.55 | C91: 7.697 | D91: 7.72 | E91: 7.301 | F91: 4.133 | G91: 6.494 | H91: 5.873 | I91: 2.096 | K91: 2.096 | L91: CRC32C
A92: 67108864 | B92: 0.551 | C92: 7.743 | D92: 7.724 | E92: 7.306 | F92: 4.137 | G92: 6.497 | H92: 5.87 | I92: 2.098 | K92: 2.098 | L92: CRC32C
A94: ClassTitle | B94: CRC-32-u64/u64/u64-3-canonical
A95: Compiler | B95: CpuBits | C95: Degree | D95: Crc | E95: TableEntry | F95: Word | G95: Stride | H95: Alignment | I95: TableBytes | J95: InitCycles
A96: ICL-1110 | B96: 32 | C96: 32 | D96: 8 | E96: 8 | F96: 8 | G96: 3 | H96: 0 | I96: 33368 | J96: 1051200
B98: Blockword | C98: Multiword | D98: CRC32C | F98: BestTime | G98: BestMethod
A99: 4 | B99: 13.778 | C99: 14.004 | D99: 9.186 | F99: 9.186 | G99: CRC32C
A100: 8 | B100: 10.247 | C100: 7.839 | D100: 5.984 | F100: 5.984 | G100: CRC32C
A101: 16 | B101: 8.131 | C101: 5.997 | D101: 3.848 | F101: 3.848 | G101: CRC32C
A102: 32 | B102: 6.907 | C102: 5.142 | D102: 3.32 | F102: 3.32 | G102: CRC32C
A103: 64 | B103: 6.521 | C103: 5.719 | D103: 3.407 | F103: 3.407 | G103: CRC32C
A104: 128 | B104: 6.259 | C104: 5.579 | D104: 3.178 | F104: 3.178 | G104: CRC32C
A105: 256 | B105: 6.114 | C105: 5.434 | D105: 3.06 | F105: 3.06 | G105: CRC32C
A106: 512 | B106: 6.075 | C106: 5.34 | D106: 2.034 | F106: 2.034 | G106: CRC32C
A107: 1024 | B107: 6.048 | C107: 5.34 | D107: 1.948 | F107: 1.948 | G107: CRC32C
A108: 2048 | B108: 6.03 | C108: 5.313 | D108: 1.939 | F108: 1.939 | G108: CRC32C
A109: 4096 | B109: 6.011 | C109: 5.3 | D109: 1.928 | F109: 1.928 | G109: CRC32C
A110: 8192 | B110: 6.007 | C110: 5.293 | D110: 1.925 | F110: 1.925 | G110: CRC32C
A111: 16384 | B111: 6.018 | C111: 5.313 | D111: 1.926 | F111: 1.926 | G111: CRC32C
A112: 32768 | B112: 6.026 | C112: 5.313 | D112: 1.936 | F112: 1.936 | G112: CRC32C
A113: 65536 | B113: 6.07 | C113: 5.313 | D113: 1.935 | F113: 1.935 | G113: CRC32C
A114: 131072 | B114: 6.059 | C114: 5.325 | D114: 1.934 | F114: 1.934 | G114: CRC32C
A115: 262144 | B115: 6.055 | C115: 5.325 | D115: 1.935 | F115: 1.935 | G115: CRC32C
A116: 524288 | B116: 6.1 | C116: 5.371 | D116: 1.935 | F116: 1.935 | G116: CRC32C
A117: 1048576 | B117: 6.112 | C117: 5.376 | D117: 1.956 | F117: 1.956 | G117: CRC32C
A118: 2097152 | B118: 6.135 | C118: 5.394 | D118: 1.955 | F118: 1.955 | G118: CRC32C
A119: 4194304 | B119: 6.151 | C119: 5.416 | D119: 1.964 | F119: 1.964 | G119: CRC32C
A120: 8388608 | B120: 6.31 | C120: 5.588 | D120: 2.08 | F120: 2.08 | G120: CRC32C
A121: 16777216 | B121: 6.247 | C121: 5.601 | D121: 2.095 | F121: 2.095 | G121: CRC32C
A122: 33554432 | B122: 6.325 | C122: 5.598 | D122: 2.096 | F122: 2.096 | G122: CRC32C
A123: 67108864 | B123: 6.331 | C123: 5.609 | D123: 2.099 | F123: 2.099 | G123: CRC32C
A125: ClassTitle | B125: CRC-32-u32/u32/u32-4-canonical
A126: Compiler | B126: CpuBits | C126: Degree | D126: Crc | E126: TableEntry | F126: Word | G126: Stride | H126: Alignment | I126: TableBytes | J126: InitCycles
A127: ICL-1110 | B127: 32 | C127: 32 | D127: 4 | E127: 4 | F127: 4 | G127: 4 | H127: 0 | I127: 8500 | J127: 1009773
B129: MemSpeed | C129: Byte | D129: ByteUnrolled | E129: ByteWord | F129: Word | G129: Blockword | H129: Multiword | I129: CRC32C | K129: BestTime | L129: BestMethod
A130: 4 | B130: 8.79 | C130: 7.698 | D130: 7.229 | E130: 9.954 | F130: 8.951 | G130: 9.574 | H130: 8.001 | I130: 8.74 | K130: 7.229 | L130: ByteUnrolled
A131: 8 | B131: 5.312 | C131: 6.903 | D131: 6.637 | E131: 7.751 | F131: 5.695 | G131: 6.101 | H131: 5.203 | I131: 5.558 | K131: 5.203 | L131: Multiword
A132: 16 | B132: 1.994 | C132: 7.121 | D132: 6.876 | E132: 6.982 | F132: 4.375 | G132: 4.505 | H132: 4.056 | I132: 3.782 | K132: 3.782 | L132: CRC32C
A133: 32 | B133: 1.133 | C133: 7.226 | D133: 7.145 | E133: 6.555 | F133: 3.607 | G133: 3.737 | H133: 4.315 | I133: 3.292 | K133: 3.292 | L133: CRC32C
A134: 64 | B134: 0.719 | C134: 7.368 | D134: 7.236 | E134: 6.438 | F134: 3.275 | G134: 3.304 | H134: 3.75 | I134: 3.297 | K134: 3.275 | L134: Word
A135: 128 | B135: 0.515 | C135: 7.389 | D135: 7.363 | E135: 6.34 | F135: 3.11 | G135: 3.105 | H135: 3.508 | I135: 3.156 | K135: 3.105 | L135: Blockword
A136: 256 | B136: 0.414 | C136: 7.624 | D136: 7.392 | E136: 6.325 | F136: 3.01 | G136: 3.079 | H136: 3.369 | I136: 3.103 | K136: 3.01 | L136: Word
A137: 512 | B137: 0.362 | C137: 7.536 | D137: 7.416 | E137: 6.298 | F137: 2.963 | G137: 3.038 | H137: 3.304 | I137: 2.012 | K137: 2.012 | L137: CRC32C
A138: 1024 | B138: 0.338 | C138: 7.495 | D138: 7.358 | E138: 6.31 | F138: 2.964 | G138: 3.003 | H138: 3.262 | I138: 1.954 | K138: 1.954 | L138: CRC32C
A139: 2048 | B139: 0.323 | C139: 7.475 | D139: 7.343 | E139: 6.342 | F139: 2.975 | G139: 3.005 | H139: 3.235 | I139: 1.946 | K139: 1.946 | L139: CRC32C
A140: 4096 | B140: 0.31 | C140: 7.553 | D140: 7.335 | E140: 6.339 | F140: 2.962 | G140: 2.988 | H140: 3.213 | I140: 1.93 | K140: 1.93 | L140: CRC32C
A141: 8192 | B141: 0.302 | C141: 7.464 | D141: 7.328 | E141: 6.335 | F141: 2.961 | G141: 2.985 | H141: 3.207 | I141: 1.923 | K141: 1.923 | L141: CRC32C
A142: 16384 | B142: 0.301 | C142: 7.464 | D142: 7.332 | E142: 6.334 | F142: 2.957 | G142: 2.979 | H142: 3.218 | I142: 1.927 | K142: 1.927 | L142: CRC32C
A143: 32768 | B143: 0.304 | C143: 7.533 | D143: 7.342 | E143: 6.331 | F143: 2.959 | G143: 2.984 | H143: 3.253 | I143: 1.936 | K143: 1.936 | L143: CRC32C
A144: 65536 | B144: 0.319 | C144: 7.451 | D144: 7.354 | E144: 6.329 | F144: 2.951 | G144: 3.096 | H144: 3.241 | I144: 1.934 | K144: 1.934 | L144: CRC32C
A145: 131072 | B145: 0.319 | C145: 7.488 | D145: 7.323 | E145: 6.326 | F145: 2.943 | G145: 3.089 | H145: 3.233 | I145: 1.934 | K145: 1.934 | L145: CRC32C
A146: 262144 | B146: 0.318 | C146: 7.565 | D146: 7.446 | E146: 6.323 | F146: 2.941 | G146: 3.084 | H146: 3.248 | I146: 1.934 | K146: 1.934 | L146: CRC32C
A147: 524288 | B147: 0.319 | C147: 7.564 | D147: 7.465 | E147: 6.368 | F147: 2.948 | G147: 3.09 | H147: 3.245 | I147: 1.935 | K147: 1.935 | L147: CRC32C
A148: 1048576 | B148: 0.319 | C148: 7.61 | D148: 7.473 | E148: 6.383 | F148: 2.96 | G148: 3.118 | H148: 3.279 | I148: 1.957 | K148: 1.957 | L148: CRC32C
A149: 2097152 | B149: 0.321 | C149: 7.605 | D149: 7.484 | E149: 6.396 | F149: 2.99 | G149: 3.128 | H149: 3.293 | I149: 1.958 | K149: 1.958 | L149: CRC32C
A150: 4194304 | B150: 0.322 | C150: 7.633 | D150: 7.524 | E150: 6.417 | F150: 3.008 | G150: 3.141 | H150: 3.305 | I150: 1.96 | K150: 1.96 | L150: CRC32C
A151: 8388608 | B151: 0.545 | C151: 7.854 | D151: 7.717 | E151: 6.608 | F151: 3.136 | G151: 3.272 | H151: 3.453 | I151: 2.086 | K151: 2.086 | L151: CRC32C
A152: 16777216 | B152: 0.562 | C152: 7.866 | D152: 7.731 | E152: 6.612 | F152: 3.15 | G152: 3.286 | H152: 3.46 | I152: 2.092 | K152: 2.092 | L152: CRC32C
A153: 33554432 | B153: 0.562 | C153: 7.878 | D153: 7.738 | E153: 6.628 | F153: 3.155 | G153: 3.287 | H153: 3.464 | I153: 2.096 | K153: 2.096 | L153: CRC32C
A154: 67108864 | B154: 0.561 | C154: 7.798 | D154: 7.73 | E154: 6.626 | F154: 3.155 | G154: 3.284 | H154: 3.467 | I154: 2.101 | K154: 2.101 | L154: CRC32C
A156: ClassTitle | B156: CRC-32-u32/u32/u32-3-canonical
A157: Compiler | B157: CpuBits | C157: Degree | D157: Crc | E157: TableEntry | F157: Word | G157: Stride | H157: Alignment | I157: TableBytes | J157: InitCycles
A158: ICL-1110 | B158: 32 | C158: 32 | D158: 4 | E158: 4 | F158: 4 | G158: 3 | H158: 0 | I158: 8500 | J158: 1010754
B160: Blockword | C160: Multiword | D160: CRC32C | F160: BestTime | G160: BestMethod
A161: 4 | B161: 9.722 | C161: 8.18 | D161: 8.687 | F161: 8.18 | G161: Multiword
A162: 8 | B162: 6.067 | C162: 5.257 | D162: 5.691 | F162: 5.257 | G162: Multiword
A163: 16 | B163: 4.511 | C163: 4.094 | D163: 3.689 | F163: 3.689 | G163: CRC32C
A164: 32 | B164: 3.722 | C164: 4.781 | D164: 3.263 | F164: 3.263 | G164: CRC32C
A165: 64 | B165: 3.298 | C165: 3.938 | D165: 3.433 | F165: 3.298 | G165: Blockword
A166: 128 | B166: 3.104 | C166: 3.43 | D166: 3.149 | F166: 3.104 | G166: Blockword
A167: 256 | B167: 3.066 | C167: 3.235 | D167: 3.102 | F167: 3.066 | G167: Blockword
A168: 512 | B168: 3.03 | C168: 3.121 | D168: 2.011 | F168: 2.011 | G168: CRC32C
A169: 1024 | B169: 3.003 | C169: 3.08 | D169: 1.957 | F169: 1.957 | G169: CRC32C
A170: 2048 | B170: 2.991 | C170: 3.039 | D170: 1.944 | F170: 1.944 | G170: CRC32C
A171: 4096 | B171: 2.99 | C171: 3.023 | D171: 1.93 | F171: 1.93 | G171: CRC32C
A172: 8192 | B172: 2.984 | C172: 3.022 | D172: 1.926 | F172: 1.926 | G172: CRC32C
A173: 16384 | B173: 2.977 | C173: 3.015 | D173: 1.928 | F173: 1.928 | G173: CRC32C
A174: 32768 | B174: 2.98 | C174: 3.036 | D174: 1.936 | F174: 1.936 | G174: CRC32C
A175: 65536 | B175: 3.098 | C175: 3.021 | D175: 1.935 | F175: 1.935 | G175: CRC32C
A176: 131072 | B176: 3.089 | C176: 3.003 | D176: 1.934 | F176: 1.934 | G176: CRC32C
A177: 262144 | B177: 3.107 | C177: 3.01 | D177: 1.935 | F177: 1.935 | G177: CRC32C
A178: 524288 | B178: 3.12 | C178: 3.012 | D178: 1.936 | F178: 1.936 | G178: CRC32C
A179: 1048576 | B179: 3.141 | C179: 3.049 | D179: 1.945 | F179: 1.945 | G179: CRC32C
A180: 2097152 | B180: 3.156 | C180: 3.058 | D180: 1.957 | F180: 1.957 | G180: CRC32C
A181: 4194304 | B181: 3.167 | C181: 3.067 | D181: 1.96 | F181: 1.96 | G181: CRC32C
A182: 8388608 | B182: 3.292 | C182: 3.212 | D182: 2.084 | F182: 2.084 | G182: CRC32C
A183: 16777216 | B183: 3.314 | C183: 3.214 | D183: 2.091 | F183: 2.091 | G183: CRC32C
A184: 33554432 | B184: 3.311 | C184: 3.218 | D184: 2.097 | F184: 2.097 | G184: CRC32C
A185: 67108864 | B185: 3.315 | C185: 3.224 | D185: 2.097 | F185: 2.097 | G185: CRC32C
A187: ClassTitle | B187: CRC-128-sse2/sse2/u64-4-canonical
A188: Compiler | B188: CpuBits | C188: Degree | D188: Crc | E188: TableEntry | F188: Word | G188: Stride | H188: Alignment | I188: TableBytes | J188: InitCycles
A189: ICL-1110 | B189: 32 | C189: 128 | D189: 16 | E189: 16 | F189: 8 | G189: 4 | H189: 0 | I189: 66736 | J189: 1477557
B191: MemSpeed | C191: Byte | D191: ByteUnrolled | E191: ByteWord | F191: Word | G191: Blockword | H191: Multiword | J191: BestTime | K191: BestMethod
A192: 4 | B192: 13.501 | C192: 20.001 | D192: 21.125 | E192: 20.252 | F192: 20.002 | G192: 21.501 | H192: 20.501 | J192: 20.001 | K192: Byte
A193: 8 | B193: 7.126 | C193: 16.032 | D193: 15.813 | E193: 15.625 | F193: 8.757 | G193: 10.218 | H193: 8.651 | J193: 8.651 | K193: Multiword
A194: 16 | B194: 4.254 | C194: 13.696 | D194: 13.501 | E194: 12.563 | F194: 6.54 | G194: 8.155 | H194: 6.5 | J194: 6.5 | K194: Multiword
A195: 32 | B195: 3.381 | C195: 12.422 | D195: 12.336 | E195: 11.5 | F195: 5.449 | G195: 7.027 | H195: 5.432 | J195: 5.432 | K195: Multiword
A196: 64 | B196: 1.953 | C196: 11.727 | D196: 11.766 | E196: 10.875 | F196: 4.866 | G196: 6.458 | H196: 5.339 | J196: 4.866 | K196: Word
A197: 128 | B197: 1.352 | C197: 11.399 | D197: 11.477 | E197: 10.646 | F197: 4.578 | G197: 6.155 | H197: 4.243 | J197: 4.243 | K197: Multiword
A198: 256 | B198: 1.055 | C198: 11.2 | D198: 11.333 | E198: 10.52 | F198: 4.414 | G198: 5.997 | H198: 3.698 | J198: 3.698 | K198: Multiword
A199: 512 | B199: 0.908 | C199: 11.1 | D199: 11.311 | E199: 10.447 | F199: 4.382 | G199: 6.007 | H199: 3.497 | J199: 3.497 | K199: Multiword
A200: 1024 | B200: 0.832 | C200: 11.105 | D200: 11.322 | E200: 10.413 | F200: 4.664 | G200: 6.214 | H200: 3.511 | J200: 3.511 | K200: Multiword
A201: 2048 | B201: 0.797 | C201: 11.053 | D201: 11.269 | E201: 10.394 | F201: 4.66 | G201: 6.185 | H201: 3.468 | J201: 3.468 | K201: Multiword
A202: 4096 | B202: 0.781 | C202: 11.026 | D202: 11.241 | E202: 10.385 | F202: 4.621 | G202: 6.121 | H202: 3.416 | J202: 3.416 | K202: Multiword
A203: 8192 | B203: 0.77 | C203: 11.02 | D203: 11.236 | E203: 10.384 | F203: 4.65 | G203: 6.153 | H203: 3.375 | J203: 3.375 | K203: Multiword
A204: 16384 | B204: 0.764 | C204: 11.017 | D204: 11.206 | E204: 10.38 | F204: 4.677 | G204: 6.19 | H204: 3.384 | J204: 3.384 | K204: Multiword
A205: 32768 | B205: 0.769 | C205: 11.016 | D205: 11.204 | E205: 10.379 | F205: 4.689 | G205: 6.161 | H205: 3.372 | J205: 3.372 | K205: Multiword
A206: 65536 | B206: 0.767 | C206: 11.015 | D206: 11.206 | E206: 10.377 | F206: 4.687 | G206: 5.617 | H206: 3.364 | J206: 3.364 | K206: Multiword
A207: 131072 | B207: 0.765 | C207: 11.019 | D207: 11.21 | E207: 10.377 | F207: 4.696 | G207: 5.296 | H207: 3.362 | J207: 3.362 | K207: Multiword
A208: 262144 | B208: 0.763 | C208: 11.105 | D208: 11.281 | E208: 10.437 | F208: 4.729 | G208: 5.149 | H208: 3.357 | J208: 3.357 | K208: Multiword
A209: 524288 | B209: 0.763 | C209: 11.152 | D209: 11.338 | E209: 10.469 | F209: 4.737 | G209: 5.112 | H209: 3.359 | J209: 3.359 | K209: Multiword
A210: 1048576 | B210: 0.763 | C210: 11.203 | D210: 11.349 | E210: 10.493 | F210: 4.779 | G210: 5.014 | H210: 3.383 | J210: 3.383 | K210: Multiword
A211: 2097152 | B211: 0.763 | C211: 11.229 | D211: 11.377 | E211: 10.505 | F211: 4.79 | G211: 4.994 | H211: 3.405 | J211: 3.405 | K211: Multiword
A212: 4194304 | B212: 0.765 | C212: 11.321 | D212: 11.417 | E212: 10.546 | F212: 4.81 | G212: 4.997 | H212: 3.422 | J212: 3.422 | K212: Multiword
A213: 8388608 | B213: 0.868 | C213: 11.52 | D213: 11.669 | E213: 10.767 | F213: 4.96 | G213: 5.123 | H213: 3.549 | J213: 3.549 | K213: Multiword
... 496 more rows

Sheet ICL-64-NOASM
A1: ClassTitle | B1: CRC-64-u64/u64/u64-4-canonical
A2: Compiler | B2: CpuBits | C2: Degree | D2: Crc | E2: TableEntry | F2: Word | G2: Stride | H2: Alignment | I2: TableBytes | J2: InitCycles
A3: ICL-1110 | B3: 64 | C3: 64 | D3: 8 | E3: 8 | F3: 8 | G3: 4 | H3: 0 | I3: 33384 | J3: 79353
B5: MemSpeed | C5: Byte | D5: ByteUnrolled | E5: ByteWord | F5: Word | G5: Blockword | H5: Multiword | J5: BestTime | K5: BestMethod
A6: 4 | B6: 6.502 | C6: 6.518 | D6: 6.125 | E6: 8.252 | F6: 8.256 | G6: 10.701 | H6: 8.767 | J6: 6.125 | K6: ByteUnrolled
A7: 8 | B7: 2.876 | C7: 6.136 | D7: 6.131 | E7: 6.267 | F7: 3.877 | G7: 5.415 | H7: 4.052 | J7: 3.877 | K7: Word
A8: 16 | B8: 1.501 | C8: 6.784 | D8: 6.815 | E8: 6.481 | F8: 2.993 | G8: 4.045 | H8: 3.185 | J8: 2.993 | K8: Word
A9: 32 | B9: 0.938 | C9: 7.137 | D9: 7.136 | E9: 6.366 | F9: 2.523 | G9: 3.443 | H9: 2.782 | J9: 2.523 | K9: Word
A10: 64 | B10: 0.613 | C10: 7.304 | D10: 7.293 | E10: 6.201 | F10: 2.289 | G10: 3.159 | H10: 2.188 | J10: 2.188 | K10: Multiword
A11: 128 | B11: 0.462 | C11: 7.405 | D11: 7.364 | E11: 6.166 | F11: 2.212 | G11: 3.014 | H11: 1.848 | J11: 1.848 | K11: Multiword
A12: 256 | B12: 0.359 | C12: 7.578 | D12: 7.403 | E12: 6.184 | F12: 2.143 | G12: 2.951 | H12: 1.619 | J12: 1.619 | K12: Multiword
A13: 512 | B13: 0.311 | C13: 7.53 | D13: 7.533 | E13: 6.175 | F13: 2.13 | G13: 2.881 | H13: 1.544 | J13: 1.544 | K13: Multiword
A14: 1024 | B14: 0.287 | C14: 7.525 | D14: 7.515 | E14: 6.203 | F14: 2.119 | G14: 2.91 | H14: 1.494 | J14: 1.494 | K14: Multiword
A15: 2048 | B15: 0.278 | C15: 7.533 | D15: 7.507 | E15: 6.199 | F15: 2.123 | G15: 2.65 | H15: 1.466 | J15: 1.466 | K15: Multiword
A16: 4096 | B16: 0.275 | C16: 7.53 | D16: 7.515 | E16: 6.206 | F16: 2.124 | G16: 2.908 | H16: 1.462 | J16: 1.462 | K16: Multiword
A17: 8192 | B17: 0.273 | C17: 7.407 | D17: 7.511 | E17: 6.201 | F17: 2.118 | G17: 2.889 | H17: 1.451 | J17: 1.451 | K17: Multiword
A18: 16384 | B18: 0.269 | C18: 7.262 | D18: 7.394 | E18: 6.2 | F18: 2.115 | G18: 2.887 | H18: 1.453 | J18: 1.453 | K18: Multiword
A19: 32768 | B19: 0.273 | C19: 7.386 | D19: 7.403 | E19: 6.202 | F19: 2.114 | G19: 2.895 | H19: 1.455 | J19: 1.455 | K19: Multiword
A20: 65536 | B20: 0.303 | C20: 7.356 | D20: 7.45 | E20: 6.188 | F20: 2.111 | G20: 1.587 | H20: 1.454 | J20: 1.454 | K20: Multiword
A21: 131072 | B21: 0.303 | C21: 7.253 | D21: 7.382 | E21: 6.191 | F21: 2.115 | G21: 1.563 | H21: 1.454 | J21: 1.454 | K21: Multiword
A22: 262144 | B22: 0.302 | C22: 7.481 | D22: 7.505 | E22: 6.191 | F22: 2.115 | G22: 1.551 | H22: 1.455 | J22: 1.455 | K22: Multiword
A23: 524288 | B23: 0.302 | C23: 7.581 | D23: 7.499 | E23: 6.247 | F23: 2.121 | G23: 1.545 | H23: 1.455 | J23: 1.455 | K23: Multiword
A24: 1048576 | B24: 0.302 | C24: 7.603 | D24: 7.537 | E24: 6.269 | F24: 2.145 | G24: 1.459 | H24: 1.455 | J24: 1.455 | K24: Multiword
A25: 2097152 | B25: 0.305 | C25: 7.616 | D25: 7.553 | E25: 6.282 | F25: 2.149 | G25: 1.472 | H25: 1.469 | J25: 1.469 | K25: Multiword
A26: 4194304 | B26: 0.305 | C26: 7.635 | D26: 7.562 | E26: 6.289 | F26: 2.154 | G26: 1.477 | H26: 1.475 | J26: 1.475 | K26: Multiword
A27: 8388608 | B27: 0.545 | C27: 7.854 | D27: 7.781 | E27: 6.481 | F27: 2.281 | G27: 1.584 | H27: 1.579 | J27: 1.579 | K27: Multiword
A28: 16777216 | B28: 0.547 | C28: 7.872 | D28: 7.802 | E28: 6.487 | F28: 2.286 | G28: 1.591 | H28: 1.584 | J28: 1.584 | K28: Multiword
A29: 33554432 | B29: 0.55 | C29: 7.872 | D29: 7.796 | E29: 6.499 | F29: 2.292 | G29: 1.592 | H29: 1.584 | J29: 1.584 | K29: Multiword
A30: 67108864 | B30: 0.552 | C30: 7.863 | D30: 7.802 | E30: 6.501 | F30: 2.291 | G30: 1.592 | H30: 1.589 | J30: 1.589 | K30: Multiword
A32: ClassTitle | B32: CRC-64-u64/u64/u64-3-canonical
A33: Compiler | B33: CpuBits | C33: Degree | D33: Crc | E33: TableEntry | F33: Word | G33: Stride | H33: Alignment | I33: TableBytes | J33: InitCycles
A34: ICL-1110 | B34: 64 | C34: 64 | D34: 8 | E34: 8 | F34: 8 | G34: 3 | H34: 0 | I34: 33384 | J34: 85266
B36: Blockword | C36: Multiword | E36: BestTime | F36: BestMethod
A37: 4 | B37: 10.57 | C37: 9.072 | E37: 9.072 | F37: Multiword
A38: 8 | B38: 6 | C38: 4.126 | E38: 4.126 | F38: Multiword
A39: 16 | B39: 4.625 | C39: 3.195 | E39: 3.195 | F39: Multiword
A40: 32 | B40: 3.938 | C40: 2.782 | E40: 2.782 | F40: Multiword
A41: 64 | B41: 3.594 | C41: 2.282 | E41: 2.282 | F41: Multiword
A42: 128 | B42: 3.422 | C42: 1.821 | E42: 1.821 | F42: Multiword
A43: 256 | B43: 3.336 | C43: 1.651 | E43: 1.651 | F43: Multiword
A44: 512 | B44: 3.293 | C44: 1.516 | E44: 1.516 | F44: Multiword
A45: 1024 | B45: 3.289 | C45: 1.477 | E45: 1.477 | F45: Multiword
A46: 2048 | B46: 3.27 | C46: 1.45 | E46: 1.45 | F46: Multiword
A47: 4096 | B47: 3.26 | C47: 1.436 | E47: 1.436 | F47: Multiword
A48: 8192 | B48: 3.255 | C48: 1.433 | E48: 1.433 | F48: Multiword
A49: 16384 | B49: 3.253 | C49: 1.441 | E49: 1.441 | F49: Multiword
A50: 32768 | B50: 3.251 | C50: 1.443 | E50: 1.443 | F50: Multiword
A51: 65536 | B51: 2.122 | C51: 1.447 | E51: 1.447 | F51: Multiword
A52: 131072 | B52: 2.097 | C52: 1.446 | E52: 1.446 | F52: Multiword
A53: 262144 | B53: 1.791 | C53: 1.446 | E53: 1.446 | F53: Multiword
A54: 524288 | B54: 1.639 | C54: 1.445 | E54: 1.445 | F54: Multiword
A55: 1048576 | B55: 1.636 | C55: 1.447 | E55: 1.447 | F55: Multiword
A56: 2097152 | B56: 1.61 | C56: 1.461 | E56: 1.461 | F56: Multiword
A57: 4194304 | B57: 1.615 | C57: 1.466 | E57: 1.466 | F57: Multiword
A58: 8388608 | B58: 1.715 | C58: 1.584 | E58: 1.584 | F58: Multiword
A59: 16777216 | B59: 1.722 | C59: 1.591 | E59: 1.591 | F59: Multiword
A60: 33554432 | B60: 1.72 | C60: 1.592 | E60: 1.592 | F60: Multiword
A61: 67108864 | B61: 1.723 | C61: 1.597 | E61: 1.597 | F61: Multiword
A63: ClassTitle | B63: CRC-32-u64/u64/u64-4-canonical
A64: Compiler | B64: CpuBits | C64: Degree | D64: Crc | E64: TableEntry | F64: Word | G64: Stride | H64: Alignment | I64: TableBytes | J64: InitCycles
A65: ICL-1110 | B65: 64 | C65: 32 | D65: 8 | E65: 8 | F65: 8 | G65: 4 | H65: 0 | I65: 33384 | J65: 1123812
B67: MemSpeed | C67: Byte | D67: ByteUnrolled | E67: ByteWord | F67: Word | G67: Blockword | H67: Multiword | I67: CRC32C | K67: BestTime | L67: BestMethod
A68: 4 | B68: 6.502 | C68: 6.52 | D68: 6.125 | E68: 8.254 | F68: 8.267 | G68: 10.701 | H68: 8.769 | I68: 7.856 | K68: 6.125 | L68: ByteUnrolled
A69: 8 | B69: 2.876 | C69: 6.098 | D69: 6.135 | E69: 6.284 | F69: 3.885 | G69: 5.192 | H69: 4.055 | I69: 3.66 | K69: 3.66 | L69: CRC32C
A70: 16 | B70: 1.503 | C70: 6.784 | D70: 6.789 | E70: 6.481 | F70: 2.993 | G70: 4.106 | H70: 3.185 | I70: 2.877 | K70: 2.877 | L70: CRC32C
A71: 32 | B71: 0.938 | C71: 7.142 | D71: 7.13 | E71: 6.366 | F71: 2.522 | G71: 3.443 | H71: 2.777 | I71: 2.313 | K71: 2.313 | L71: CRC32C
A72: 64 | B72: 0.614 | C72: 7.307 | D72: 7.253 | E72: 6.201 | F72: 2.313 | G72: 3.143 | H72: 2.188 | I72: 2.235 | K72: 2.188 | L72: Multiword
A73: 128 | B73: 0.455 | C73: 7.407 | D73: 7.364 | E73: 6.152 | F73: 2.203 | G73: 3.014 | H73: 1.847 | I73: 2.302 | K73: 1.847 | L73: Multiword
A74: 256 | B74: 0.36 | C74: 7.578 | D74: 7.401 | E74: 6.162 | F74: 2.143 | G74: 2.951 | H74: 1.646 | I74: 2.238 | K74: 1.646 | L74: Multiword
A75: 512 | B75: 0.311 | C75: 7.53 | D75: 7.533 | E75: 6.178 | F75: 2.136 | G75: 2.88 | H75: 1.547 | I75: 1.535 | K75: 1.535 | L75: CRC32C
A76: 1024 | B76: 0.288 | C76: 7.524 | D76: 7.515 | E76: 6.206 | F76: 2.118 | G76: 2.91 | H76: 1.49 | I76: 1.462 | K76: 1.462 | L76: CRC32C
A77: 2048 | B77: 0.279 | C77: 7.536 | D77: 7.507 | E77: 6.199 | F77: 2.123 | G77: 2.65 | H77: 1.471 | I77: 1.452 | K77: 1.452 | L77: CRC32C
A78: 4096 | B78: 0.275 | C78: 7.535 | D78: 7.518 | E78: 6.206 | F78: 2.122 | G78: 2.643 | H78: 1.463 | I78: 1.413 | K78: 1.413 | L78: CRC32C
A79: 8192 | B79: 0.273 | C79: 7.405 | D79: 7.519 | E79: 6.202 | F79: 2.118 | G79: 2.893 | H79: 1.454 | I79: 1.417 | K79: 1.417 | L79: CRC32C
A80: 16384 | B80: 0.269 | C80: 7.262 | D80: 7.393 | E80: 6.2 | F80: 2.111 | G80: 2.873 | H80: 1.454 | I80: 1.423 | K80: 1.423 | L80: CRC32C
A81: 32768 | B81: 0.273 | C81: 7.393 | D81: 7.381 | E81: 6.199 | F81: 2.112 | G81: 2.893 | H81: 1.456 | I81: 1.317 | K81: 1.317 | L81: CRC32C
A82: 65536 | B82: 0.303 | C82: 7.339 | D82: 7.383 | E82: 6.188 | F82: 2.092 | G82: 1.54 | H82: 1.453 | I82: 1.32 | K82: 1.32 | L82: CRC32C
A83: 131072 | B83: 0.303 | C83: 7.352 | D83: 7.448 | E83: 6.191 | F83: 2.097 | G83: 1.53 | H83: 1.455 | I83: 1.319 | K83: 1.319 | L83: CRC32C
A84: 262144 | B84: 0.302 | C84: 7.48 | D84: 7.473 | E84: 6.192 | F84: 2.118 | G84: 1.529 | H84: 1.454 | I84: 1.318 | K84: 1.318 | L84: CRC32C
A85: 524288 | B85: 0.302 | C85: 7.597 | D85: 7.518 | E85: 6.247 | F85: 2.124 | G85: 1.526 | H85: 1.453 | I85: 1.317 | K85: 1.317 | L85: CRC32C
A86: 1048576 | B86: 0.303 | C86: 7.606 | D86: 7.543 | E86: 6.269 | F86: 2.146 | G86: 1.441 | H86: 1.456 | I86: 1.319 | K86: 1.319 | L86: CRC32C
A87: 2097152 | B87: 0.305 | C87: 7.61 | D87: 7.542 | E87: 6.274 | F87: 2.15 | G87: 1.452 | H87: 1.469 | I87: 1.333 | K87: 1.333 | L87: CRC32C
A88: 4194304 | B88: 0.305 | C88: 7.637 | D88: 7.56 | E88: 6.283 | F88: 2.15 | G88: 1.459 | H88: 1.475 | I88: 1.339 | K88: 1.339 | L88: CRC32C
A89: 8388608 | B89: 0.545 | C89: 7.852 | D89: 7.775 | E89: 6.49 | F89: 2.285 | G89: 1.564 | H89: 1.577 | I89: 1.453 | K89: 1.453 | L89: CRC32C
A90: 16777216 | B90: 0.549 | C90: 7.872 | D90: 7.786 | E90: 6.492 | F90: 2.285 | G90: 1.575 | H90: 1.586 | I90: 1.46 | K90: 1.46 | L90: CRC32C
A91: 33554432 | B91: 0.55 | C91: 7.881 | D91: 7.8 | E91: 6.506 | F91: 2.289 | G91: 1.575 | H91: 1.588 | I91: 1.462 | K91: 1.462 | L91: CRC32C
A92: 67108864 | B92: 0.553 | C92: 7.88 | D92: 7.808 | E92: 6.503 | F92: 2.293 | G92: 1.575 | H92: 1.589 | I92: 1.464 | K92: 1.464 | L92: CRC32C
A94: ClassTitle | B94: CRC-32-u64/u64/u64-3-canonical
A95: Compiler | B95: CpuBits | C95: Degree | D95: Crc | E95: TableEntry | F95: Word | G95: Stride | H95: Alignment | I95: TableBytes | J95: InitCycles
A96: ICL-1110 | B96: 64 | C96: 32 | D96: 8 | E96: 8 | F96: 8 | G96: 3 | H96: 0 | I96: 33384 | J96: 1124271
B98: Blockword | C98: Multiword | D98: CRC32C | F98: BestTime | G98: BestMethod
A99: 4 | B99: 10.423 | C99: 9.103 | D99: 7.917 | F99: 7.917 | G99: CRC32C
A100: 8 | B100: 6 | C100: 4.126 | D100: 3.687 | F100: 3.687 | G100: CRC32C
A101: 16 | B101: 4.625 | C101: 3.195 | D101: 2.879 | F101: 2.879 | G101: CRC32C
A102: 32 | B102: 3.938 | C102: 2.746 | D102: 2.313 | F102: 2.313 | G102: CRC32C
A103: 64 | B103: 3.594 | C103: 2.282 | D103: 2.235 | F103: 2.235 | G103: CRC32C
A104: 128 | B104: 3.422 | C104: 1.821 | D104: 2.302 | F104: 1.821 | G104: Multiword
A105: 256 | B105: 3.336 | C105: 1.652 | D105: 2.249 | F105: 1.652 | G105: Multiword
A106: 512 | B106: 3.293 | C106: 1.516 | D106: 1.54 | F106: 1.516 | G106: Multiword
A107: 1024 | B107: 3.289 | C107: 1.481 | D107: 1.463 | F107: 1.463 | G107: CRC32C
A108: 2048 | B108: 3.27 | C108: 1.444 | D108: 1.45 | F108: 1.444 | G108: Multiword
A109: 4096 | B109: 3.26 | C109: 1.438 | D109: 1.414 | F109: 1.414 | G109: CRC32C
A110: 8192 | B110: 3.255 | C110: 1.433 | D110: 1.412 | F110: 1.412 | G110: CRC32C
A111: 16384 | B111: 3.253 | C111: 1.438 | D111: 1.424 | F111: 1.424 | G111: CRC32C
A112: 32768 | B112: 3.251 | C112: 1.444 | D112: 1.317 | F112: 1.317 | G112: CRC32C
A113: 65536 | B113: 2.082 | C113: 1.447 | D113: 1.32 | F113: 1.32 | G113: CRC32C
A114: 131072 | B114: 2.072 | C114: 1.445 | D114: 1.318 | F114: 1.318 | G114: CRC32C
A115: 262144 | B115: 1.77 | C115: 1.445 | D115: 1.316 | F115: 1.316 | G115: CRC32C
A116: 524288 | B116: 1.62 | C116: 1.445 | D116: 1.318 | F116: 1.318 | G116: CRC32C
A117: 1048576 | B117: 1.62 | C117: 1.447 | D117: 1.32 | F117: 1.32 | G117: CRC32C
A118: 2097152 | B118: 1.595 | C118: 1.461 | D118: 1.333 | F118: 1.333 | G118: CRC32C
A119: 4194304 | B119: 1.6 | C119: 1.467 | D119: 1.339 | F119: 1.339 | G119: CRC32C
A120: 8388608 | B120: 1.703 | C120: 1.582 | D120: 1.455 | F120: 1.455 | G120: CRC32C
A121: 16777216 | B121: 1.708 | C121: 1.592 | D121: 1.461 | F121: 1.461 | G121: CRC32C
A122: 33554432 | B122: 1.707 | C122: 1.592 | D122: 1.464 | F122: 1.464 | G122: CRC32C
A123: 67108864 | B123: 1.707 | C123: 1.594 | D123: 1.466 | F123: 1.466 | G123: CRC32C
A125: ClassTitle | B125: CRC-32-u32/u32/u32-4-canonical
A126: Compiler | B126: CpuBits | C126: Degree | D126: Crc | E126: TableEntry | F126: Word | G126: Stride | H126: Alignment | I126: TableBytes | J126: InitCycles
A127: ICL-1110 | B127: 64 | C127: 32 | D127: 4 | E127: 4 | F127: 4 | G127: 4 | H127: 0 | I127: 8528 | J127: 1110501
B129: MemSpeed | C129: Byte | D129: ByteUnrolled | E129: ByteWord | F129: Word | G129: Blockword | H129: Multiword | I129: CRC32C | K129: BestTime | L129: BestMethod
A130: 4 | B130: 6.801 | C130: 6.547 | D130: 6.043 | E130: 7.01 | F130: 6.341 | G130: 8.096 | H130: 6.803 | I130: 7.906 | K130: 6.043 | L130: ByteUnrolled
A131: 8 | B131: 3.751 | C131: 6.12 | D131: 6.13 | E131: 6.466 | F131: 4.283 | G131: 5.436 | H131: 4.594 | I131: 3.642 | K131: 3.642 | L131: CRC32C
A132: 16 | B132: 1.502 | C132: 6.787 | D132: 6.807 | E132: 6.115 | F132: 3.361 | G132: 4.229 | H132: 3.668 | I132: 2.906 | K132: 2.906 | L132: CRC32C
A133: 32 | B133: 0.875 | C133: 7.14 | D133: 7.128 | E133: 6.255 | F133: 3.125 | G133: 3.648 | H133: 2.954 | I133: 2.297 | K133: 2.297 | L133: CRC32C
A134: 64 | B134: 0.563 | C134: 7.309 | D134: 7.251 | E134: 6.217 | F134: 2.991 | G134: 3.352 | H134: 2.206 | I134: 2.219 | K134: 2.206 | L134: Multiword
A135: 128 | B135: 0.414 | C135: 7.405 | D135: 7.363 | E135: 6.208 | F135: 2.947 | G135: 3.216 | H135: 1.86 | I135: 2.324 | K135: 1.86 | L135: Multiword
A136: 256 | B136: 0.341 | C136: 7.578 | D136: 7.404 | E136: 6.285 | F136: 2.93 | G136: 3.158 | H136: 1.668 | I136: 2.248 | K136: 1.668 | L136: Multiword
A137: 512 | B137: 0.309 | C137: 7.529 | D137: 7.547 | E137: 6.278 | F137: 2.925 | G137: 3.177 | H137: 1.581 | I137: 1.527 | K137: 1.527 | L137: CRC32C
A138: 1024 | B138: 0.295 | C138: 7.524 | D138: 7.519 | E138: 6.285 | F138: 2.934 | G138: 3.125 | H138: 1.528 | I138: 1.467 | K138: 1.467 | L138: CRC32C
A139: 2048 | B139: 0.299 | C139: 7.533 | D139: 7.54 | E139: 6.285 | F139: 2.963 | G139: 3.112 | H139: 1.511 | I139: 1.451 | K139: 1.451 | L139: CRC32C
A140: 4096 | B140: 0.291 | C140: 7.528 | D140: 7.484 | E140: 6.279 | F140: 2.935 | G140: 3.096 | H140: 1.492 | I140: 1.419 | K140: 1.419 | L140: CRC32C
A141: 8192 | B141: 0.285 | C141: 7.406 | D141: 7.405 | E141: 6.275 | F141: 2.937 | G141: 3.094 | H141: 1.484 | I141: 1.417 | K141: 1.417 | L141: CRC32C
A142: 16384 | B142: 0.283 | C142: 7.465 | D142: 7.409 | E142: 6.273 | F142: 2.916 | G142: 3.085 | H142: 1.494 | I142: 1.424 | K142: 1.424 | L142: CRC32C
A143: 32768 | B143: 0.287 | C143: 7.408 | D143: 7.384 | E143: 6.274 | F143: 2.91 | G143: 3.091 | H143: 1.505 | I143: 1.317 | K143: 1.317 | L143: CRC32C
A144: 65536 | B144: 0.307 | C144: 7.341 | D144: 7.383 | E144: 6.273 | F144: 2.904 | G144: 1.679 | H144: 1.507 | I144: 1.32 | K144: 1.32 | L144: CRC32C
A145: 131072 | B145: 0.307 | C145: 7.396 | D145: 7.403 | E145: 6.272 | F145: 2.893 | G145: 1.67 | H145: 1.508 | I145: 1.318 | K145: 1.318 | L145: CRC32C
A146: 262144 | B146: 0.307 | C146: 7.465 | D146: 7.488 | E146: 6.273 | F146: 2.912 | G146: 1.667 | H146: 1.508 | I146: 1.318 | K146: 1.318 | L146: CRC32C
A147: 524288 | B147: 0.307 | C147: 7.589 | D147: 7.506 | E147: 6.318 | F147: 2.917 | G147: 1.666 | H147: 1.508 | I147: 1.316 | K147: 1.316 | L147: CRC32C
A148: 1048576 | B148: 0.308 | C148: 7.581 | D148: 7.543 | E148: 6.341 | F148: 2.962 | G148: 1.578 | H148: 1.51 | I148: 1.319 | K148: 1.319 | L148: CRC32C
A149: 2097152 | B149: 0.31 | C149: 7.612 | D149: 7.552 | E149: 6.355 | F149: 2.984 | G149: 1.59 | H149: 1.523 | I149: 1.333 | K149: 1.333 | L149: CRC32C
A150: 4194304 | B150: 0.31 | C150: 7.631 | D150: 7.566 | E150: 6.369 | F150: 2.988 | G150: 1.596 | H150: 1.529 | I150: 1.337 | K150: 1.337 | L150: CRC32C
A151: 8388608 | B151: 0.54 | C151: 7.854 | D151: 7.777 | E151: 6.555 | F151: 3.126 | G151: 1.703 | H151: 1.635 | I151: 1.456 | K151: 1.456 | L151: CRC32C
A152: 16777216 | B152: 0.548 | C152: 7.861 | D152: 7.796 | E152: 6.574 | F152: 3.131 | G152: 1.71 | H152: 1.637 | I152: 1.461 | K152: 1.461 | L152: CRC32C
A153: 33554432 | B153: 0.551 | C153: 7.83 | D153: 7.802 | E153: 6.585 | F153: 3.136 | G153: 1.71 | H153: 1.641 | I153: 1.464 | K153: 1.464 | L153: CRC32C
A154: 67108864 | B154: 0.553 | C154: 7.885 | D154: 7.808 | E154: 6.586 | F154: 3.138 | G154: 1.711 | H154: 1.644 | I154: 1.467 | K154: 1.467 | L154: CRC32C
A156: ClassTitle | B156: CRC-32-u32/u32/u32-3-canonical
A157: Compiler | B157: CpuBits | C157: Degree | D157: Crc | E157: TableEntry | F157: Word | G157: Stride | H157: Alignment | I157: TableBytes | J157: InitCycles
A158: ICL-1110 | B158: 64 | C158: 32 | D158: 4 | E158: 4 | F158: 4 | G158: 3 | H158: 0 | I158: 8528 | J158: 1111680
B160: Blockword | C160: Multiword | D160: CRC32C | F160: BestTime | G160: BestMethod
A161: 4 | B161: 8.064 | C161: 6.8 | D161: 7.877 | F161: 6.8 | G161: Multiword
A162: 8 | B162: 5.438 | C162: 4.501 | D162: 3.63 | F162: 3.63 | G162: CRC32C
A163: 16 | B163: 4.217 | C163: 3.763 | D163: 2.906 | F163: 2.906 | G163: CRC32C
A164: 32 | B164: 3.657 | C164: 2.872 | D164: 2.297 | F164: 2.297 | G164: CRC32C
A165: 64 | B165: 3.327 | C165: 2.115 | D165: 2.219 | F165: 2.115 | G165: Multiword
A166: 128 | B166: 3.178 | C166: 1.856 | D166: 2.324 | F166: 1.856 | G166: Multiword
A167: 256 | B167: 3.121 | C167: 1.667 | D167: 2.248 | F167: 1.667 | G167: Multiword
A168: 512 | B168: 3.146 | C168: 1.606 | D168: 1.527 | F168: 1.527 | G168: CRC32C
A169: 1024 | B169: 3.138 | C169: 1.564 | D169: 1.461 | F169: 1.461 | G169: CRC32C
A170: 2048 | B170: 3.114 | C170: 1.544 | D170: 1.451 | F170: 1.451 | G170: CRC32C
A171: 4096 | B171: 3.093 | C171: 1.526 | D171: 1.419 | F171: 1.419 | G171: CRC32C
A172: 8192 | B172: 3.067 | C172: 1.522 | D172: 1.416 | F172: 1.416 | G172: CRC32C
A173: 16384 | B173: 3.083 | C173: 1.521 | D173: 1.424 | F173: 1.424 | G173: CRC32C
A174: 32768 | B174: 3.091 | C174: 1.539 | D174: 1.317 | F174: 1.317 | G174: CRC32C
A175: 65536 | B175: 2.107 | C175: 1.539 | D175: 1.32 | F175: 1.32 | G175: CRC32C
A176: 131072 | B176: 2.095 | C176: 1.54 | D176: 1.318 | F176: 1.318 | G176: CRC32C
A177: 262144 | B177: 1.841 | C177: 1.541 | D177: 1.317 | F177: 1.317 | G177: CRC32C
A178: 524288 | B178: 1.713 | C178: 1.541 | D178: 1.317 | F178: 1.317 | G178: CRC32C
A179: 1048576 | B179: 1.735 | C179: 1.542 | D179: 1.32 | F179: 1.32 | G179: CRC32C
A180: 2097152 | B180: 1.694 | C180: 1.556 | D180: 1.333 | F180: 1.333 | G180: CRC32C
A181: 4194304 | B181: 1.699 | C181: 1.562 | D181: 1.338 | F181: 1.338 | G181: CRC32C
A182: 8388608 | B182: 1.806 | C182: 1.667 | D182: 1.454 | F182: 1.454 | G182: CRC32C
A183: 16777216 | B183: 1.804 | C183: 1.675 | D183: 1.461 | F183: 1.461 | G183: CRC32C
A184: 33554432 | B184: 1.807 | C184: 1.674 | D184: 1.443 | F184: 1.443 | G184: CRC32C
A185: 67108864 | B185: 1.81 | C185: 1.679 | D185: 1.466 | F185: 1.466 | G185: CRC32C
A187: ClassTitle | B187: CRC-128-sse2/sse2/u64-4-canonical
A188: Compiler | B188: CpuBits | C188: Degree | D188: Crc | E188: TableEntry | F188: Word | G188: Stride | H188: Alignment | I188: TableBytes | J188: InitCycles
A189: ICL-1110 | B189: 64 | C189: 128 | D189: 16 | E189: 16 | F189: 8 | G189: 4 | H189: 0 | I189: 66736 | J189: 1106820
B191: MemSpeed | C191: Byte | D191: ByteUnrolled | E191: ByteWord | F191: Word | G191: Blockword | H191: Multiword | J191: BestTime | K191: BestMethod
A192: 4 | B192: 6.251 | C192: 10.342 | D192: 18.418 | E192: 11.804 | F192: 11.754 | G192: 13.663 | H192: 12.501 | J192: 10.342 | K192: Byte
A193: 8 | B193: 2.556 | C193: 10.365 | D193: 14.633 | E193: 10.817 | F193: 4.761 | G193: 6.787 | H193: 5.219 | J193: 4.761 | K193: Word
A194: 16 | B194: 1.605 | C194: 10.756 | D194: 12.97 | E194: 9.896 | F194: 3.975 | G194: 5.204 | H194: 4.163 | J194: 3.975 | K194: Word
A195: 32 | B195: 1.175 | C195: 10.938 | D195: 12.134 | E195: 10.407 | F195: 3.579 | G195: 4.626 | H195: 3.719 | J195: 3.579 | K195: Word
A196: 64 | B196: 1.094 | C196: 11.016 | D196: 11.684 | E196: 10.516 | F196: 3.404 | G196: 4.373 | H196: 3.1 | J196: 3.1 | K196: Multiword
A197: 128 | B197: 1.032 | C197: 11.227 | D197: 11.477 | E197: 10.453 | F197: 3.258 | G197: 4.241 | H197: 2.537 | J197: 2.537 | K197: Multiword
A198: 256 | B198: 1.012 | C198: 11.114 | D198: 11.332 | E198: 10.411 | F198: 3.235 | G198: 4.165 | H198: 2.225 | J198: 2.225 | K198: Multiword
A199: 512 | B199: 0.998 | C199: 11.058 | D199: 11.261 | E199: 10.401 | F199: 3.271 | G199: 4.123 | H199: 2.136 | J199: 2.136 | K199: Multiword
A200: 1024 | B200: 0.992 | C200: 11.03 | D200: 11.224 | E200: 10.396 | F200: 3.565 | G200: 4.274 | H200: 2.143 | J200: 2.143 | K200: Multiword
A201: 2048 | B201: 0.988 | C201: 11.015 | D201: 11.208 | E201: 10.393 | F201: 3.667 | G201: 4.432 | H201: 2.127 | J201: 2.127 | K201: Multiword
A202: 4096 | B202: 0.991 | C202: 11.028 | D202: 11.214 | E202: 10.392 | F202: 3.586 | G202: 4.391 | H202: 2.074 | J202: 2.074 | K202: Multiword
A203: 8192 | B203: 0.988 | C203: 11.019 | D203: 11.21 | E203: 10.396 | F203: 3.641 | G203: 4.446 | H203: 2.058 | J203: 2.058 | K203: Multiword
A204: 16384 | B204: 0.986 | C204: 11.017 | D204: 11.205 | E204: 10.393 | F204: 3.675 | G204: 4.467 | H204: 2.058 | J204: 2.058 | K204: Multiword
A205: 32768 | B205: 0.986 | C205: 11.016 | D205: 11.204 | E205: 10.393 | F205: 3.748 | G205: 4.518 | H205: 2.052 | J205: 2.052 | K205: Multiword
A206: 65536 | B206: 0.985 | C206: 11.016 | D206: 11.203 | E206: 10.392 | F206: 3.718 | G206: 2.985 | H206: 2.05 | J206: 2.05 | K206: Multiword
A207: 131072 | B207: 0.985 | C207: 11.02 | D207: 11.207 | E207: 10.392 | F207: 3.744 | G207: 2.78 | H207: 2.048 | J207: 2.048 | K207: Multiword
A208: 262144 | B208: 0.984 | C208: 11.109 | D208: 11.278 | E208: 10.447 | F208: 3.746 | G208: 2.666 | H208: 2.051 | J208: 2.051 | K208: Multiword
A209: 524288 | B209: 0.984 | C209: 11.151 | D209: 11.329 | E209: 10.486 | F209: 3.784 | G209: 2.614 | H209: 2.051 | J209: 2.051 | K209: Multiword
A210: 1048576 | B210: 0.985 | C210: 11.165 | D210: 11.346 | E210: 10.509 | F210: 3.807 | G210: 2.485 | H210: 2.067 | J210: 2.067 | K210: Multiword
A211: 2097152 | B211: 0.991 | C211: 11.162 | D211: 11.367 | E211: 10.531 | F211: 3.819 | G211: 2.475 | H211: 2.081 | J211: 2.081 | K211: Multiword
A212: 4194304 | B212: 0.996 | C212: 11.18 | D212: 11.378 | E212: 10.546 | F212: 3.82 | G212: 2.472 | H212: 2.08 | J212: 2.08 | K212: Multiword
A213: 8388608 | B213: 1.085 | C213: 11.419 | D213: 11.621 | E213: 10.786 | F213: 3.954 | G213: 2.586 | H213: 2.191 | J213: 2.191 | K213: Multiword
... 557 more rows
